Workbook

Sheet Index
A1: =Inputs!$D$6&" - Introduction and Index" -> Força Açoreana, S.A.: Azores PV & BESS (Terceira) - Introduction and Index
B4: Overview | I4: Worksheet Navigation
B6: Project Name: | D6: Azores Photovoltaic Energy Venture | J6: Inputs | L6: Inputs | P6: Summary | R6: Project Summary Information | S6: Calculations | U6: Production Calculations
B7: Project Developer: | D7: Força Açoreana, S.A. | L7: General | R7: Key Project Information | U7: Electricity Production
B8: Location: | D8: =Inputs!D7 -> Angra, Terceira, Acores, Portugal | L8: Timing | R8: Sources and Uses
B9: Projections by: | D9: R. Bercuvitz | F9: rbercuvitz@bell.net | L9: Electricity Production | R9: Financial Metrics
L10: Revenues | R10: Key Dates
L11: Capital Expenses Monthly Breakdown | R11: Error Checks | S11: Calculations | U11: Debt
L12: Reserve Accounts | R12: Summary Financials | U12: Subordinated Debt
L13: Financing | R13: Project Spend Curve (chart) | U13: Senior Debt
L14: Depreciation and Tax | R14: Debt Service Coverage (chart) | U14: Amortization Table
R15: Senior Debt Amortization (chart) | U15: Debt Covenants
R16: Equity Cash Flow (chart)
L17: Cell Style Guide | U17: Equity
J18: 1234 | L18: Input (project-specific) | P18: Timeline | R18: Project Timeline | U18: Equity Drawdown Detail
J19: 1234 | L19: Input reference from another sheet | R19: Timeline | U19: Dividend Detail
J20: 1234 | L20: Calculation | U20: IRR Calculation
J21: 1234 | L21: Sum or Max Reference Calculation | P21: AFS | R21: Annual Financial Statements
J22: OK | L22: Positive Error Check Result | R22: Income Statement | U22: Startup Costs
J23: NO | L23: Negative Error Check Result | R23: Balance Sheet | U23: Startup Costs
R24: Cash Flow Statement
R25: Cash Waterfall | U25: Capital Expenses
U26: Capital Expense Detail & Assumptions
P27: QFS | R27: Quarterly Financial Statements | U27: Construction Labor
R28: Income Statement
R29: Balance Sheet | U29: Revenues
R30: Cash Flow Statement | U30: Revenue Calculations (Electricity)
R31: Cash Waterfall
U32: Operating Expenses
P33: MFS | R33: Monthly Financial Statements | U33: Operating Expenses
R34: Income Statement | U34: Payroll and Staffing
R35: Balance Sheet | U35: Monthly Expenses
R36: Cash Flow Statement
R37: Cash Waterfall | U37: Other Calculations
U38: Flags and Timing
U39: Indexation Factors
U40: Uses of Funds
U41: Sources of Funds
U42: Working Capital
U43: Depreciation
U44: Taxes
U45: Retained Earnings

Sheet AFS
A1: =Inputs!$D$6&" - Annual Financial Statements" -> Força Açoreana, S.A.: Azores PV & BESS (Terceira) - Annual Financial Statements
C2: Year | D2: 2028-2045 | E2: 2045-2053 | H2: 2028-2053 | I2: =YEAR(I3) -> 2026 | J2: =YEAR(J3) -> 2027 | K2: 2028 | L2: 2029 | M2: 2030 | N2: 2031 | O2: 2032 | P2: 2033 | Q2: 2034 | R2: 2035 | S2: 2036 | T2: 2037 | U2: 2038 | V2: 2039 | W2: 2040 | X2: 2041 | Y2: 2042 | Z2: 2043 | AA2: 2044 | AB2: 2045 | AC2: 2046 | AD2: 2047 | AE2: 2048 | AF2: 2049 | AG2: 2050 | AH2: 2051 | AI2: 2052 | AJ2: 2053
C3: Period End | D3: 17.5 Years | E3: 7.5 Years | H3: 2053-06-30 | I3: 2026-12-31 | J3: =I3+365 -> 2027-12-31 | K3: =J3+365 -> 2028-12-30 | L3: =K3+366 -> 2029-12-31 | M3: =L3+365 -> 2030-12-31 | N3: 2031-12-31 | O3: 2032-12-30 | P3: =O3+366 -> 2033-12-31 | Q3: 2034-12-31 | R3: 2035-12-31 | S3: 2036-12-30 | T3: =S3+366 -> 2037-12-31 | U3: 2038-12-31 | V3: 2039-12-31 | W3: 2040-12-30 | X3: =W3+366 -> 2041-12-31 | Y3: 2042-12-31 | Z3: 2043-12-31 | AA3: 2044-12-30 | AB3: =AA3+366 -> 2045-12-31 | AC3: 2046-12-31 | AD3: 2047-12-31 | AE3: 2048-12-30 | AF3: =AE3+366 -> 2049-12-31 | AG3: 2050-12-31 | AH3: 2051-12-31 | AI3: 2052-12-30 | AJ3: =AI3+182 -> 2053-06-30
A4: · | B4: Income Statement | F4: Unit
A5: =Summary!$C$49 -> OK
C6: =Calculations!C351 -> Revenues | H6: Project Lifetime
C7: Electricity Produced | D7: =SUM(K7:AA7)+AB7/2 -> 304612219.3 | E7: =H7-D7 -> 126387177.8 | F7: Kwh | H7: =SUM(I7:AT7) -> 430999397.1 | I7: =SUMIF(Calculations!$I$8:$QJ$8, I$2, Calculations!$I210:$QJ210) -> 0 | J7: =SUMIF(Calculations!$I$8:$QJ$8, J$2, Calculations!$I210:$QJ210) -> 0 | K7: =SUMIF(Calculations!$I$8:$QJ$8, K$2, Calculations!$I215:$QJ215) -> 9650645.058 | L7: =SUMIF(Calculations!$I$8:$QJ$8, L$2, Calculations!$I215:$QJ215) -> 19281336.69 | M7: =SUMIF(Calculations!$I$8:$QJ$8, M$2, Calculations!$I215:$QJ215) -> 19106124.12 | N7: =SUMIF(Calculations!$I$8:$QJ$8, N$2, Calculations!$I215:$QJ215) -> 18915936.15 | O7: =SUMIF(Calculations!$I$8:$QJ$8, O$2, Calculations!$I215:$QJ215) -> 18727641.36 | P7: =SUMIF(Calculations!$I$8:$QJ$8, P$2, Calculations!$I215:$QJ215) -> 18541220.92 | Q7: =SUMIF(Calculations!$I$8:$QJ$8, Q$2, Calculations!$I215:$QJ215) -> 18356656.16 | R7: =SUMIF(Calculations!$I$8:$QJ$8, R$2, Calculations!$I215:$QJ215) -> 18173928.61 | S7: =SUMIF(Calculations!$I$8:$QJ$8, S$2, Calculations!$I215:$QJ215) -> 17993019.99 | T7: =SUMIF(Calculations!$I$8:$QJ$8, T$2, Calculations!$I215:$QJ215) -> 17813912.18 | U7: =SUMIF(Calculations!$I$8:$QJ$8, U$2, Calculations!$I215:$QJ215) -> 17636587.27 | V7: =SUMIF(Calculations!$I$8:$QJ$8, V$2, Calculations!$I215:$QJ215) -> 17461027.5 | W7: =SUMIF(Calculations!$I$8:$QJ$8, W$2, Calculations!$I215:$QJ215) -> 17287215.3 | X7: =SUMIF(Calculations!$I$8:$QJ$8, X$2, Calculations!$I215:$QJ215) -> 17115133.28 | Y7: =SUMIF(Calculations!$I$8:$QJ$8, Y$2, Calculations!$I215:$QJ215) -> 16944764.22 | Z7: =SUMIF(Calculations!$I$8:$QJ$8, Z$2, Calculations!$I215:$QJ215) -> 16776091.06 | AA7: =SUMIF(Calculations!$I$8:$QJ$8, AA$2, Calculations!$I215:$QJ215) -> 16609096.92 | AB7: =SUMIF(Calculations!$I$8:$QJ$8, AB$2, Calculations!$I215:$QJ215) -> 16443765.09 | AC7: =SUMIF(Calculations!$I$8:$QJ$8, AC$2, Calculations!$I215:$QJ215) -> 16280079.02 | AD7: =SUMIF(Calculations!$I$8:$QJ$8, AD$2, Calculations!$I215:$QJ215) -> 16118022.33 | AE7: =SUMIF(Calculations!$I$8:$QJ$8, AE$2, Calculations!$I215:$QJ215) -> 15957578.8 | AF7: =SUMIF(Calculations!$I$8:$QJ$8, AF$2, Calculations!$I215:$QJ215) -> 15798732.38 | AG7: =SUMIF(Calculations!$I$8:$QJ$8, AG$2, Calculations!$I215:$QJ215) -> 15641467.15 | AH7: =SUMIF(Calculations!$I$8:$QJ$8, AH$2, Calculations!$I215:$QJ215) -> 15485767.4 | AI7: =SUMIF(Calculations!$I$8:$QJ$8, AI$2, Calculations!$I215:$QJ215) -> 15331617.52 | AJ7: =SUMIF(Calculations!$I$8:$QJ$8, AJ$2, Calculations!$I215:$QJ215) -> 7552030.653
C8: Electricity Sold | D8: =SUM(K8:AA8)+AB8/2 -> 321655637.7 | E8: =H8-D8 -> 139575959.6 | F8: Kwh | H8: =SUM(I8:AT8) -> 461231597.3 | I8: =SUMIF(Calculations!$I$8:$QJ$8, I$2, Calculations!$I215:$QJ215) -> 0 | J8: =SUMIF(Calculations!$I$8:$QJ$8, J$2, Calculations!$I215:$QJ215) -> 0 | K8: =SUMIF(Calculations!$I$8:$QJ$8, K$2, Calculations!$I218:$QJ218)+SUMIF(Calculations!$I$8:$QJ$8, K$2, Calculations!$I225:$QJ225) -> 9920521.381 | L8: =SUMIF(Calculations!$I$8:$QJ$8, L$2, Calculations!$I218:$QJ218)+SUMIF(Calculations!$I$8:$QJ$8, L$2, Calculations!$I225:$QJ225) -> 18932762.86 | M8: =SUMIF(Calculations!$I$8:$QJ$8, M$2, Calculations!$I218:$QJ218)+SUMIF(Calculations!$I$8:$QJ$8, M$2, Calculations!$I225:$QJ225) -> 19109147.29 | N8: =SUMIF(Calculations!$I$8:$QJ$8, N$2, Calculations!$I218:$QJ218)+SUMIF(Calculations!$I$8:$QJ$8, N$2, Calculations!$I225:$QJ225) -> 19233024.04 | O8: =SUMIF(Calculations!$I$8:$QJ$8, O$2, Calculations!$I218:$QJ218)+SUMIF(Calculations!$I$8:$QJ$8, O$2, Calculations!$I225:$QJ225) -> 19307534.66 | P8: =SUMIF(Calculations!$I$8:$QJ$8, P$2, Calculations!$I218:$QJ218)+SUMIF(Calculations!$I$8:$QJ$8, P$2, Calculations!$I225:$QJ225) -> 19335338.34 | Q8: =SUMIF(Calculations!$I$8:$QJ$8, Q$2, Calculations!$I218:$QJ218)+SUMIF(Calculations!$I$8:$QJ$8, Q$2, Calculations!$I225:$QJ225) -> 19304995.31 | R8: =SUMIF(Calculations!$I$8:$QJ$8, R$2, Calculations!$I218:$QJ218)+SUMIF(Calculations!$I$8:$QJ$8, R$2, Calculations!$I225:$QJ225) -> 19250457.02 | S8: =SUMIF(Calculations!$I$8:$QJ$8, S$2, Calculations!$I218:$QJ218)+SUMIF(Calculations!$I$8:$QJ$8, S$2, Calculations!$I225:$QJ225) -> 19187081.49 | T8: =SUMIF(Calculations!$I$8:$QJ$8, T$2, Calculations!$I218:$QJ218)+SUMIF(Calculations!$I$8:$QJ$8, T$2, Calculations!$I225:$QJ225) -> 19085524.54 | U8: =SUMIF(Calculations!$I$8:$QJ$8, U$2, Calculations!$I218:$QJ218)+SUMIF(Calculations!$I$8:$QJ$8, U$2, Calculations!$I225:$QJ225) -> 18962069.86 | V8: =SUMIF(Calculations!$I$8:$QJ$8, V$2, Calculations!$I218:$QJ218)+SUMIF(Calculations!$I$8:$QJ$8, V$2, Calculations!$I225:$QJ225) -> 18840108.89 | W8: =SUMIF(Calculations!$I$8:$QJ$8, W$2, Calculations!$I218:$QJ218)+SUMIF(Calculations!$I$8:$QJ$8, W$2, Calculations!$I225:$QJ225) -> 18712384.88 | X8: =SUMIF(Calculations!$I$8:$QJ$8, X$2, Calculations!$I218:$QJ218)+SUMIF(Calculations!$I$8:$QJ$8, X$2, Calculations!$I225:$QJ225) -> 18568620.27 | Y8: =SUMIF(Calculations!$I$8:$QJ$8, Y$2, Calculations!$I218:$QJ218)+SUMIF(Calculations!$I$8:$QJ$8, Y$2, Calculations!$I225:$QJ225) -> 18431238.13 | Z8: =SUMIF(Calculations!$I$8:$QJ$8, Z$2, Calculations!$I218:$QJ218)+SUMIF(Calculations!$I$8:$QJ$8, Z$2, Calculations!$I225:$QJ225) -> 18295286.59 | AA8: =SUMIF(Calculations!$I$8:$QJ$8, AA$2, Calculations!$I218:$QJ218)+SUMIF(Calculations!$I$8:$QJ$8, AA$2, Calculations!$I225:$QJ225) -> 18165719.82 | AB8: =SUMIF(Calculations!$I$8:$QJ$8, AB$2, Calculations!$I218:$QJ218)+SUMIF(Calculations!$I$8:$QJ$8, AB$2, Calculations!$I225:$QJ225) -> 18027644.66 | AC8: =SUMIF(Calculations!$I$8:$QJ$8, AC$2, Calculations!$I218:$QJ218)+SUMIF(Calculations!$I$8:$QJ$8, AC$2, Calculations!$I225:$QJ225) -> 17885378.88 | AD8: =SUMIF(Calculations!$I$8:$QJ$8, AD$2, Calculations!$I218:$QJ218)+SUMIF(Calculations!$I$8:$QJ$8, AD$2, Calculations!$I225:$QJ225) -> 17753129.15 | AE8: =SUMIF(Calculations!$I$8:$QJ$8, AE$2, Calculations!$I218:$QJ218)+SUMIF(Calculations!$I$8:$QJ$8, AE$2, Calculations!$I225:$QJ225) -> 17615918.2 | AF8: =SUMIF(Calculations!$I$8:$QJ$8, AF$2, Calculations!$I218:$QJ218)+SUMIF(Calculations!$I$8:$QJ$8, AF$2, Calculations!$I225:$QJ225) -> 17458055.93 | AG8: =SUMIF(Calculations!$I$8:$QJ$8, AG$2, Calculations!$I218:$QJ218)+SUMIF(Calculations!$I$8:$QJ$8, AG$2, Calculations!$I225:$QJ225) -> 17305786.19 | AH8: =SUMIF(Calculations!$I$8:$QJ$8, AH$2, Calculations!$I218:$QJ218)+SUMIF(Calculations!$I$8:$QJ$8, AH$2, Calculations!$I225:$QJ225) -> 17155370.14 | AI8: =SUMIF(Calculations!$I$8:$QJ$8, AI$2, Calculations!$I218:$QJ218)+SUMIF(Calculations!$I$8:$QJ$8, AI$2, Calculations!$I225:$QJ225) -> 17011498.14 | AJ8: =SUMIF(Calculations!$I$8:$QJ$8, AJ$2, Calculations!$I218:$QJ218)+SUMIF(Calculations!$I$8:$QJ$8, AJ$2, Calculations!$I225:$QJ225) -> 8377000.629
C9: Average PPA Price | D9: =(D13-D12)/D8 -> 0.13704 | E9: =(E13-E12)/E8 -> 0.13704 | H9: =(H13-H12)/H8 -> 0.13704 | K9: =(K13-K12)/K8 -> 0.13704 | L9: 0.13704 | M9: 0.13704 | N9: 0.13704 | O9: 0.13704 | P9: 0.13704 | Q9: 0.13704 | R9: 0.13704 | S9: 0.13704 | T9: 0.13704 | U9: 0.13704 | V9: 0.13704 | W9: 0.13704 | X9: 0.13704 | Y9: 0.13704 | Z9: 0.13704 | AA9: 0.13704 | AB9: 0.13704 | AC9: 0.13704 | AD9: 0.13704 | AE9: 0.13704 | AF9: 0.13704 | AG9: 0.13704 | AH9: 0.13704 | AI9: 0.13704 | AJ9: 0.13704
C10: =Calculations!C352 -> Production Sold | D10: =SUM(K10:AA10)+AB10/2 -> 38972812.21 | E10: =H10-D10 -> 16796497.29 | F10: EUR | H10: =SUM(I10:AT10) -> 55769309.51 | I10: =SUMIF(Calculations!$I$8:$QJ$8, I$2, Calculations!$I352:$QJ352) -> 0 | J10: =SUMIF(Calculations!$I$8:$QJ$8, J$2, Calculations!$I352:$QJ352) -> 0 | K10: =SUMIF(Calculations!$I$8:$QJ$8, K$2, Calculations!$I229:$QJ229) -> 1206284.473 | L10: =SUMIF(Calculations!$I$8:$QJ$8, L$2, Calculations!$I229:$QJ229) -> 2287772.427 | M10: =SUMIF(Calculations!$I$8:$QJ$8, M$2, Calculations!$I229:$QJ229) -> 2313731.646 | N10: =SUMIF(Calculations!$I$8:$QJ$8, N$2, Calculations!$I229:$QJ229) -> 2333959.974 | O10: =SUMIF(Calculations!$I$8:$QJ$8, O$2, Calculations!$I229:$QJ229) -> 2344724.717 | P10: =SUMIF(Calculations!$I$8:$QJ$8, P$2, Calculations!$I229:$QJ229) -> 2350383.448 | Q10: =SUMIF(Calculations!$I$8:$QJ$8, Q$2, Calculations!$I229:$QJ229) -> 2346739.582 | R10: =SUMIF(Calculations!$I$8:$QJ$8, R$2, Calculations!$I229:$QJ229) -> 2339593.007 | S10: =SUMIF(Calculations!$I$8:$QJ$8, S$2, Calculations!$I229:$QJ229) -> 2330338.052 | T10: =SUMIF(Calculations!$I$8:$QJ$8, T$2, Calculations!$I229:$QJ229) -> 2317232.293 | U10: =SUMIF(Calculations!$I$8:$QJ$8, U$2, Calculations!$I229:$QJ229) -> 2300109.023 | V10: =SUMIF(Calculations!$I$8:$QJ$8, V$2, Calculations!$I229:$QJ229) -> 2283232.259 | W10: =SUMIF(Calculations!$I$8:$QJ$8, W$2, Calculations!$I229:$QJ229) -> 2264688.735 | X10: =SUMIF(Calculations!$I$8:$QJ$8, X$2, Calculations!$I229:$QJ229) -> 2245534.412 | Y10: =SUMIF(Calculations!$I$8:$QJ$8, Y$2, Calculations!$I229:$QJ229) -> 2226485.932 | Z10: =SUMIF(Calculations!$I$8:$QJ$8, Z$2, Calculations!$I229:$QJ229) -> 2207671.938 | AA10: =SUMIF(Calculations!$I$8:$QJ$8, AA$2, Calculations!$I229:$QJ229) -> 2188960.172 | AB10: =SUMIF(Calculations!$I$8:$QJ$8, AB$2, Calculations!$I229:$QJ229) -> 2170740.248 | AC10: =SUMIF(Calculations!$I$8:$QJ$8, AC$2, Calculations!$I229:$QJ229) -> 2152619.034 | AD10: =SUMIF(Calculations!$I$8:$QJ$8, AD$2, Calculations!$I229:$QJ229) -> 2134725.268 | AE10: =SUMIF(Calculations!$I$8:$QJ$8, AE$2, Calculations!$I229:$QJ229) -> 2116926.789 | AF10: =SUMIF(Calculations!$I$8:$QJ$8, AF$2, Calculations!$I229:$QJ229) -> 2099613.307 | AG10: =SUMIF(Calculations!$I$8:$QJ$8, AG$2, Calculations!$I229:$QJ229) -> 2082391.784 | AH10: =SUMIF(Calculations!$I$8:$QJ$8, AH$2, Calculations!$I229:$QJ229) -> 2065391.053 | AI10: =SUMIF(Calculations!$I$8:$QJ$8, AI$2, Calculations!$I229:$QJ229) -> 2048479.047 | AJ10: =SUMIF(Calculations!$I$8:$QJ$8, AJ$2, Calculations!$I229:$QJ229) -> 1010980.889
C11: Storage Sold | D11: 5106876.375 | E11: 2330992.208 | F11: EUR | H11: 7437868.583 | I11: =SUMIF(Calculations!$I$8:$QJ$8, I$2, Calculations!$I353:$QJ353) -> 0 | J11: =SUMIF(Calculations!$I$8:$QJ$8, J$2, Calculations!$I353:$QJ353) -> 0 | K11: =SUMIF(Calculations!$I$8:$QJ$8, K$2, Calculations!$I230:$QJ230) -> 153223.7773 | L11: =SUMIF(Calculations!$I$8:$QJ$8, L$2, Calculations!$I230:$QJ230) -> 306773.3948 | M11: =SUMIF(Calculations!$I$8:$QJ$8, M$2, Calculations!$I230:$QJ230) -> 304985.8983 | N11: =SUMIF(Calculations!$I$8:$QJ$8, N$2, Calculations!$I230:$QJ230) -> 301733.6402 | O11: =SUMIF(Calculations!$I$8:$QJ$8, O$2, Calculations!$I230:$QJ230) -> 301179.8328 | P11: =SUMIF(Calculations!$I$8:$QJ$8, P$2, Calculations!$I230:$QJ230) -> 299331.319 | Q11: =SUMIF(Calculations!$I$8:$QJ$8, Q$2, Calculations!$I230:$QJ230) -> 298816.9742 | R11: =SUMIF(Calculations!$I$8:$QJ$8, R$2, Calculations!$I230:$QJ230) -> 298489.6231 | S11: =SUMIF(Calculations!$I$8:$QJ$8, S$2, Calculations!$I230:$QJ230) -> 299059.5959 | T11: =SUMIF(Calculations!$I$8:$QJ$8, T$2, Calculations!$I230:$QJ230) -> 298247.9898 | U11: =SUMIF(Calculations!$I$8:$QJ$8, U$2, Calculations!$I230:$QJ230) -> 298453.03 | V11: =SUMIF(Calculations!$I$8:$QJ$8, V$2, Calculations!$I230:$QJ230) -> 298616.2637 | W11: =SUMIF(Calculations!$I$8:$QJ$8, W$2, Calculations!$I230:$QJ230) -> 299656.4898 | X11: =SUMIF(Calculations!$I$8:$QJ$8, X$2, Calculations!$I230:$QJ230) -> 299109.3098 | Y11: =SUMIF(Calculations!$I$8:$QJ$8, Y$2, Calculations!$I230:$QJ230) -> 299330.9414 | Z11: =SUMIF(Calculations!$I$8:$QJ$8, Z$2, Calculations!$I230:$QJ230) -> 299514.1358 | AA11: =SUMIF(Calculations!$I$8:$QJ$8, AA$2, Calculations!$I230:$QJ230) -> 300470.0716 | AB11: =SUMIF(Calculations!$I$8:$QJ$8, AB$2, Calculations!$I230:$QJ230) -> 299768.1754 | AC11: =SUMIF(Calculations!$I$8:$QJ$8, AC$2, Calculations!$I230:$QJ230) -> 298393.2879 | AD11: =SUMIF(Calculations!$I$8:$QJ$8, AD$2, Calculations!$I230:$QJ230) -> 298163.5504 | AE11: =SUMIF(Calculations!$I$8:$QJ$8, AE$2, Calculations!$I230:$QJ230) -> 297158.6411 | AF11: =SUMIF(Calculations!$I$8:$QJ$8, AF$2, Calculations!$I230:$QJ230) -> 292838.6784 | AG11: =SUMIF(Calculations!$I$8:$QJ$8, AG$2, Calculations!$I230:$QJ230) -> 289193.1553 | AH11: =SUMIF(Calculations!$I$8:$QJ$8, AH$2, Calculations!$I230:$QJ230) -> 285580.8715 | AI11: =SUMIF(Calculations!$I$8:$QJ$8, AI$2, Calculations!$I230:$QJ230) -> 282776.6583 | AJ11: =SUMIF(Calculations!$I$8:$QJ$8, AJ$2, Calculations!$I230:$QJ230) -> 137003.2772
E12: 0
C13: Gross Revenues | D13: 44079688.59 | E13: 19127489.5 | F13: =Calculations!E355 -> EUR | H13: 63207178.09 | I13: =I10+I11+I12 -> 0 | J13: 0 | K13: 1359508.25 | L13: 2594545.822 | M13: 2618717.544 | N13: 2635693.614 | O13: 2645904.55 | P13: 2649714.767 | Q13: 2645556.557 | R13: 2638082.631 | S13: 2629397.648 | T13: 2615480.283 | U13: 2598562.053 | V13: 2581848.522 | W13: 2564345.224 | X13: 2544643.721 | Y13: 2525816.873 | Z13: 2507186.074 | AA13: 2489430.244 | AB13: 2470508.424 | AC13: 2451012.322 | AD13: 2432888.818 | AE13: 2414085.43 | AF13: 2392451.985 | AG13: 2371584.939 | AH13: 2350971.925 | AI13: 2331255.706 | AJ13: 1147984.166
C14: less: Cost of Goods Sold | D14: -4473250.595 | E14: =H14-D14 -> -2478863.2 | F14: =Calculations!E355 -> EUR | H14: =SUM(I14:AT14) -> -6952113.795 | I14: =SUMIF(Calculations!$I$8:$QJ$8, I$2, Calculations!$I231:$QJ232) -> 0 | J14: =SUMIF(Calculations!$I$8:$QJ$8, J$2, Calculations!$I231:$QJ232) -> 0 | K14: =SUMIF(Calculations!$I$8:$QJ$8, K$2, Calculations!$I354:$QJ354) -> -87908.86447 | L14: =SUMIF(Calculations!$I$8:$QJ$8, L$2, Calculations!$I354:$QJ354) -> -127969.1011 | M14: =SUMIF(Calculations!$I$8:$QJ$8, M$2, Calculations!$I354:$QJ354) -> -164257.6278 | N14: =SUMIF(Calculations!$I$8:$QJ$8, N$2, Calculations!$I354:$QJ354) -> -199317.0478 | O14: =SUMIF(Calculations!$I$8:$QJ$8, O$2, Calculations!$I354:$QJ354) -> -228998.1796 | P14: =SUMIF(Calculations!$I$8:$QJ$8, P$2, Calculations!$I354:$QJ354) -> -251963.3285 | Q14: =SUMIF(Calculations!$I$8:$QJ$8, Q$2, Calculations!$I354:$QJ354) -> -267590.2143 | R14: =SUMIF(Calculations!$I$8:$QJ$8, R$2, Calculations!$I354:$QJ354) -> -279912.6294 | S14: =SUMIF(Calculations!$I$8:$QJ$8, S$2, Calculations!$I354:$QJ354) -> -291157.7791 | T14: =SUMIF(Calculations!$I$8:$QJ$8, T$2, Calculations!$I354:$QJ354) -> -296774.2657 | U14: =SUMIF(Calculations!$I$8:$QJ$8, U$2, Calculations!$I354:$QJ354) -> -299660.1977 | V14: =SUMIF(Calculations!$I$8:$QJ$8, V$2, Calculations!$I354:$QJ354) -> -302508.4412 | W14: =SUMIF(Calculations!$I$8:$QJ$8, W$2, Calculations!$I354:$QJ354) -> -304677.5744 | X14: =SUMIF(Calculations!$I$8:$QJ$8, X$2, Calculations!$I354:$QJ354) -> -304033.0478 | Y14: =SUMIF(Calculations!$I$8:$QJ$8, Y$2, Calculations!$I354:$QJ354) -> -304253.9275 | Z14: =SUMIF(Calculations!$I$8:$QJ$8, Z$2, Calculations!$I354:$QJ354) -> -304436.2294 | AA14: =SUMIF(Calculations!$I$8:$QJ$8, AA$2, Calculations!$I354:$QJ354) -> -305488.1022 | AB14: =SUMIF(Calculations!$I$8:$QJ$8, AB$2, Calculations!$I354:$QJ354) -> -304688.073 | AC14: =SUMIF(Calculations!$I$8:$QJ$8, AC$2, Calculations!$I354:$QJ354) -> -305208.9115 | AD14: =SUMIF(Calculations!$I$8:$QJ$8, AD$2, Calculations!$I354:$QJ354) -> -308996.8469 | AE14: =SUMIF(Calculations!$I$8:$QJ$8, AE$2, Calculations!$I354:$QJ354) -> -311961.5723 | AF14: =SUMIF(Calculations!$I$8:$QJ$8, AF$2, Calculations!$I354:$QJ354) -> -311262.5655 | AG14: =SUMIF(Calculations!$I$8:$QJ$8, AG$2, Calculations!$I354:$QJ354) -> -311327.5201 | AH14: =SUMIF(Calculations!$I$8:$QJ$8, AH$2, Calculations!$I354:$QJ354) -> -311434.7077 | AI14: =SUMIF(Calculations!$I$8:$QJ$8, AI$2, Calculations!$I354:$QJ354) -> -312453.0687 | AJ14: =SUMIF(Calculations!$I$8:$QJ$8, AJ$2, Calculations!$I354:$QJ354) -> -153873.9709
C15: =Calculations!C356 -> less: Operating Expenses | D15: -12054362.74 | E15: -7700618.895 | F15: =Calculations!E356 -> EUR | H15: -19754981.64 | I15: =SUMIF(Calculations!$I$8:$QJ$8, I$2, Calculations!$I356:$QJ356) -> 0 | J15: =SUMIF(Calculations!$I$8:$QJ$8, J$2, Calculations!$I356:$QJ356) -> 0 | K15: =SUMIF(Calculations!$I$8:$QJ$8, K$2, Calculations!$I356:$QJ356) -> -332640.3915 | L15: =SUMIF(Calculations!$I$8:$QJ$8, L$2, Calculations!$I356:$QJ356) -> -664680.4347 | M15: =SUMIF(Calculations!$I$8:$QJ$8, M$2, Calculations!$I356:$QJ356) -> -684113.3566 | N15: =SUMIF(Calculations!$I$8:$QJ$8, N$2, Calculations!$I356:$QJ356) -> -687518.829 | O15: =SUMIF(Calculations!$I$8:$QJ$8, O$2, Calculations!$I356:$QJ356) -> -692735.0262 | P15: =SUMIF(Calculations!$I$8:$QJ$8, P$2, Calculations!$I356:$QJ356) -> -696065.4952 | Q15: =SUMIF(Calculations!$I$8:$QJ$8, Q$2, Calculations!$I356:$QJ356) -> -699726.5904 | R15: =SUMIF(Calculations!$I$8:$QJ$8, R$2, Calculations!$I356:$QJ356) -> -703488.8807 | S15: =SUMIF(Calculations!$I$8:$QJ$8, S$2, Calculations!$I356:$QJ356) -> -707596.7337 | T15: =SUMIF(Calculations!$I$8:$QJ$8, T$2, Calculations!$I356:$QJ356) -> -711330.5003 | U15: =SUMIF(Calculations!$I$8:$QJ$8, U$2, Calculations!$I356:$QJ356) -> -715412.362 | V15: =SUMIF(Calculations!$I$8:$QJ$8, V$2, Calculations!$I356:$QJ356) -> -719611.0201 | W15: =SUMIF(Calculations!$I$8:$QJ$8, W$2, Calculations!$I356:$QJ356) -> -724166.4956 | X15: =SUMIF(Calculations!$I$8:$QJ$8, X$2, Calculations!$I356:$QJ356) -> -728363.3299 | Y15: =SUMIF(Calculations!$I$8:$QJ$8, Y$2, Calculations!$I356:$QJ356) -> -732925.1887 | Z15: =SUMIF(Calculations!$I$8:$QJ$8, Z$2, Calculations!$I356:$QJ356) -> -737615.3104 | AA15: =SUMIF(Calculations!$I$8:$QJ$8, AA$2, Calculations!$I356:$QJ356) -> -742676.4828 | AB15: =SUMIF(Calculations!$I$8:$QJ$8, AB$2, Calculations!$I356:$QJ356) -> -747392.6332 | AC15: =SUMIF(Calculations!$I$8:$QJ$8, AC$2, Calculations!$I356:$QJ356) -> -752448.2355 | AD15: =SUMIF(Calculations!$I$8:$QJ$8, AD$2, Calculations!$I356:$QJ356) -> -757602.3464 | AE15: =SUMIF(Calculations!$I$8:$QJ$8, AE$2, Calculations!$I356:$QJ356) -> -763143.4155 | AF15: =SUMIF(Calculations!$I$8:$QJ$8, AF$2, Calculations!$I356:$QJ356) -> -768355.8954 | AG15: =SUMIF(Calculations!$I$8:$QJ$8, AG$2, Calculations!$I356:$QJ356) -> -773959.5935 | AH15: =SUMIF(Calculations!$I$8:$QJ$8, AH$2, Calculations!$I356:$QJ356) -> -779718.086 | AI15: =SUMIF(Calculations!$I$8:$QJ$8, AI$2, Calculations!$I356:$QJ356) -> -785874.8967 | AJ15: =SUMIF(Calculations!$I$8:$QJ$8, AJ$2, Calculations!$I356:$QJ356) -> -1945820.109
C16: =Calculations!C357 -> EBITDA | D16: 27552075.25 | E16: 8948007.407 | F16: =Calculations!E357 -> EUR | H16: 36500082.66 | I16: =SUM(I13:I15) -> 0 | J16: 0 | K16: 938958.9941 | L16: 1801896.286 | M16: 1770346.56 | N16: 1748857.737 | O16: 1724171.344 | P16: 1701685.943 | Q16: 1678239.752 | R16: 1654681.12 | S16: 1630643.135 | T16: 1607375.517 | U16: 1583489.494 | V16: 1559729.061 | W16: 1535501.154 | X16: 1512247.344 | Y16: 1488637.757 | Z16: 1465134.534 | AA16: 1441265.659 | AB16: 1418427.718 | AC16: 1393355.175 | AD16: 1366289.625 | AE16: 1338980.442 | AF16: 1312833.524 | AG16: 1286297.825 | AH16: 1259819.131 | AI16: 1232927.74 | AJ16: =SUM(AJ13:AJ15) -> -951709.9142
D17: 0 | E17: 0
C18: =Calculations!C359 -> less: Depreciation and Amortization | D18: -14350528.32 | E18: -2862428.804 | F18: =Calculations!E359 -> EUR | H18: =SUM(I18:AT18) -> -17212957.12 | I18: =SUMIF(Calculations!$I$8:$QJ$8, I$2, Calculations!$I359:$QJ359) -> 0 | J18: =SUMIF(Calculations!$I$8:$QJ$8, J$2, Calculations!$I359:$QJ359) -> 0 | K18: =SUMIF(Calculations!$I$8:$QJ$8, K$2, Calculations!$I359:$QJ359) -> -667987.1322 | L18: =SUMIF(Calculations!$I$8:$QJ$8, L$2, Calculations!$I359:$QJ359) -> -1335974.264 | M18: =SUMIF(Calculations!$I$8:$QJ$8, M$2, Calculations!$I359:$QJ359) -> -1335974.264 | N18: =SUMIF(Calculations!$I$8:$QJ$8, N$2, Calculations!$I359:$QJ359) -> -1335974.264 | O18: =SUMIF(Calculations!$I$8:$QJ$8, O$2, Calculations!$I359:$QJ359) -> -1335974.264 | P18: =SUMIF(Calculations!$I$8:$QJ$8, P$2, Calculations!$I359:$QJ359) -> -1319924.264 | Q18: =SUMIF(Calculations!$I$8:$QJ$8, Q$2, Calculations!$I359:$QJ359) -> -1303874.264 | R18: =SUMIF(Calculations!$I$8:$QJ$8, R$2, Calculations!$I359:$QJ359) -> -1027368.307 | S18: =SUMIF(Calculations!$I$8:$QJ$8, S$2, Calculations!$I359:$QJ359) -> -750862.3497 | T18: =SUMIF(Calculations!$I$8:$QJ$8, T$2, Calculations!$I359:$QJ359) -> -750862.3497 | U18: =SUMIF(Calculations!$I$8:$QJ$8, U$2, Calculations!$I359:$QJ359) -> -615449.9802 | V18: =SUMIF(Calculations!$I$8:$QJ$8, V$2, Calculations!$I359:$QJ359) -> -480477.6106 | W18: =SUMIF(Calculations!$I$8:$QJ$8, W$2, Calculations!$I359:$QJ359) -> -480477.6106 | X18: =SUMIF(Calculations!$I$8:$QJ$8, X$2, Calculations!$I359:$QJ359) -> -357632.7535 | Y18: =SUMIF(Calculations!$I$8:$QJ$8, Y$2, Calculations!$I359:$QJ359) -> -357632.7535 | Z18: =SUMIF(Calculations!$I$8:$QJ$8, Z$2, Calculations!$I359:$QJ359) -> -357632.7535 | AA18: =SUMIF(Calculations!$I$8:$QJ$8, AA$2, Calculations!$I359:$QJ359) -> -357632.7535 | AB18: =SUMIF(Calculations!$I$8:$QJ$8, AB$2, Calculations!$I359:$QJ359) -> -357632.7535 | AC18: =SUMIF(Calculations!$I$8:$QJ$8, AC$2, Calculations!$I359:$QJ359) -> -357814.9903 | AD18: =SUMIF(Calculations!$I$8:$QJ$8, AD$2, Calculations!$I359:$QJ359) -> -357814.9903 | AE18: =SUMIF(Calculations!$I$8:$QJ$8, AE$2, Calculations!$I359:$QJ359) -> -357814.9903 | AF18: =SUMIF(Calculations!$I$8:$QJ$8, AF$2, Calculations!$I359:$QJ359) -> -357814.9903 | AG18: =SUMIF(Calculations!$I$8:$QJ$8, AG$2, Calculations!$I359:$QJ359) -> -357814.9903 | AH18: =SUMIF(Calculations!$I$8:$QJ$8, AH$2, Calculations!$I359:$QJ359) -> -357814.9903 | AI18: =SUMIF(Calculations!$I$8:$QJ$8, AI$2, Calculations!$I359:$QJ359) -> -357814.9903 | AJ18: =SUMIF(Calculations!$I$8:$QJ$8, AJ$2, Calculations!$I359:$QJ359) -> -178907.4951
C19: =Calculations!C360 -> EBIT | D19: 13201546.93 | E19: 6085578.603 | F19: =Calculations!E360 -> EUR | H19: =SUM(I19:AT19) -> 19287125.54 | I19: =I16+I18 -> 0 | J19: =J16+J18 -> 0 | K19: 270971.8619 | L19: 465922.0218 | M19: 434372.2953 | N19: 412883.4731 | O19: 388197.0798 | P19: 381761.6784 | Q19: 374365.4876 | R19: 627312.8134 | S19: 879780.7855 | T19: 856513.1673 | U19: 968039.5134 | V19: 1079251.45 | W19: 1055023.544 | X19: 1154614.59 | Y19: 1131005.004 | Z19: 1107501.781 | AA19: 1083632.905 | AB19: 1060794.964 | AC19: 1035540.185 | AD19: 1008474.635 | AE19: 981165.4516 | AF19: 955018.5338 | AG19: 928482.8349 | AH19: 902004.1405 | AI19: 875112.7501 | AJ19: =AJ16+AJ18 -> -1130617.409
D20: 0 | E20: 0
C21: =Calculations!C362 -> less: Senior Debt Interest Expense | D21: -5307549.881 | E21: -21340.53168 | F21: =Calculations!E362 -> EUR | H21: =SUM(I21:AT21) -> -5328890.413 | I21: =SUMIF(Calculations!$I$8:$QJ$8, I$2, Calculations!$I362:$QJ362) -> 0 | J21: =SUMIF(Calculations!$I$8:$QJ$8, J$2, Calculations!$I362:$QJ362) -> 0 | K21: =SUMIF(Calculations!$I$8:$QJ$8, K$2, Calculations!$I362:$QJ362) -> -253476.3669 | L21: =SUMIF(Calculations!$I$8:$QJ$8, L$2, Calculations!$I362:$QJ362) -> -495709.3238 | M21: =SUMIF(Calculations!$I$8:$QJ$8, M$2, Calculations!$I362:$QJ362) -> -477403.1645 | N21: =SUMIF(Calculations!$I$8:$QJ$8, N$2, Calculations!$I362:$QJ362) -> -458064.394 | O21: =SUMIF(Calculations!$I$8:$QJ$8, O$2, Calculations!$I362:$QJ362) -> -437634.7647 | P21: =SUMIF(Calculations!$I$8:$QJ$8, P$2, Calculations!$I362:$QJ362) -> -416052.7438 | Q21: =SUMIF(Calculations!$I$8:$QJ$8, Q$2, Calculations!$I362:$QJ362) -> -393253.3272 | R21: =SUMIF(Calculations!$I$8:$QJ$8, R$2, Calculations!$I362:$QJ362) -> -369167.8444 | S21: =SUMIF(Calculations!$I$8:$QJ$8, S$2, Calculations!$I362:$QJ362) -> -343723.751 | T21: =SUMIF(Calculations!$I$8:$QJ$8, T$2, Calculations!$I362:$QJ362) -> -316844.4107 | U21: =SUMIF(Calculations!$I$8:$QJ$8, U$2, Calculations!$I362:$QJ362) -> -288448.8643 | V21: =SUMIF(Calculations!$I$8:$QJ$8, V$2, Calculations!$I362:$QJ362) -> -258451.586 | W21: =SUMIF(Calculations!$I$8:$QJ$8, W$2, Calculations!$I362:$QJ362) -> -226762.2253 | X21: =SUMIF(Calculations!$I$8:$QJ$8, X$2, Calculations!$I362:$QJ362) -> -193285.3356 | Y21: =SUMIF(Calculations!$I$8:$QJ$8, Y$2, Calculations!$I362:$QJ362) -> -157920.0862 | Z21: =SUMIF(Calculations!$I$8:$QJ$8, Z$2, Calculations!$I362:$QJ362) -> -120559.9588 | AA21: =SUMIF(Calculations!$I$8:$QJ$8, AA$2, Calculations!$I362:$QJ362) -> -81092.42646 | AB21: =SUMIF(Calculations!$I$8:$QJ$8, AB$2, Calculations!$I362:$QJ362) -> -39398.61509 | AC21: =SUMIF(Calculations!$I$8:$QJ$8, AC$2, Calculations!$I362:$QJ362) -> -1641.224132 | AD21: =SUMIF(Calculations!$I$8:$QJ$8, AD$2, Calculations!$I362:$QJ362) -> 0 | AE21: =SUMIF(Calculations!$I$8:$QJ$8, AE$2, Calculations!$I362:$QJ362) -> 0 | AF21: =SUMIF(Calculations!$I$8:$QJ$8, AF$2, Calculations!$I362:$QJ362) -> 0 | AG21: =SUMIF(Calculations!$I$8:$QJ$8, AG$2, Calculations!$I362:$QJ362) -> 0 | AH21: =SUMIF(Calculations!$I$8:$QJ$8, AH$2, Calculations!$I362:$QJ362) -> 0 | AI21: =SUMIF(Calculations!$I$8:$QJ$8, AI$2, Calculations!$I362:$QJ362) -> 0 | AJ21: =SUMIF(Calculations!$I$8:$QJ$8, AJ$2, Calculations!$I362:$QJ362) -> 0
C22: =Calculations!C363 -> less: Subordinated Debt Interest Expense | D22: -6709520.47 | E22: 949456.9569 | F22: =Calculations!E363 -> EUR | H22: =SUM(I22:AT22) -> -5760063.513 | I22: =SUMIF(Calculations!$I$8:$QJ$8, I$2, Calculations!$I363:$QJ363) -> 0 | J22: 0 | K22: =SUMIF(Calculations!$I$8:$QJ$8, K$2, Calculations!$I363:$QJ363) -> -278268.4945 | L22: =SUMIF(Calculations!$I$8:$QJ$8, L$2, Calculations!$I363:$QJ363) -> -548995.8797 | M22: =SUMIF(Calculations!$I$8:$QJ$8, M$2, Calculations!$I363:$QJ363) -> -538669.2078 | N22: =SUMIF(Calculations!$I$8:$QJ$8, N$2, Calculations!$I363:$QJ363) -> -527032.8555 | O22: =SUMIF(Calculations!$I$8:$QJ$8, O$2, Calculations!$I363:$QJ363) -> -513920.7224 | P22: =SUMIF(Calculations!$I$8:$QJ$8, P$2, Calculations!$I363:$QJ363) -> -499145.6426 | Q22: =SUMIF(Calculations!$I$8:$QJ$8, Q$2, Calculations!$I363:$QJ363) -> -482496.713 | R22: =SUMIF(Calculations!$I$8:$QJ$8, R$2, Calculations!$I363:$QJ363) -> -463736.2823 | S22: =SUMIF(Calculations!$I$8:$QJ$8, S$2, Calculations!$I363:$QJ363) -> -442596.5594 | T22: =SUMIF(Calculations!$I$8:$QJ$8, T$2, Calculations!$I363:$QJ363) -> -418775.7905 | U22: =SUMIF(Calculations!$I$8:$QJ$8, U$2, Calculations!$I363:$QJ363) -> -391933.9519 | V22: =SUMIF(Calculations!$I$8:$QJ$8, V$2, Calculations!$I363:$QJ363) -> -361687.8963 | W22: =SUMIF(Calculations!$I$8:$QJ$8, W$2, Calculations!$I363:$QJ363) -> -327605.8838 | X22: =SUMIF(Calculations!$I$8:$QJ$8, X$2, Calculations!$I363:$QJ363) -> -289201.4191 | Y22: =SUMIF(Calculations!$I$8:$QJ$8, Y$2, Calculations!$I363:$QJ363) -> -245926.3069 | Z22: =SUMIF(Calculations!$I$8:$QJ$8, Z$2, Calculations!$I363:$QJ363) -> -197162.8274 | AA22: =SUMIF(Calculations!$I$8:$QJ$8, AA$2, Calculations!$I363:$QJ363) -> -142214.918 | AB22: =SUMIF(Calculations!$I$8:$QJ$8, AB$2, Calculations!$I363:$QJ363) -> -80298.23844 | AC22: =SUMIF(Calculations!$I$8:$QJ$8, AC$2, Calculations!$I363:$QJ363) -> -10528.9741 | AD22: =SUMIF(Calculations!$I$8:$QJ$8, AD$2, Calculations!$I363:$QJ363) -> 68088.77929 | AE22: =SUMIF(Calculations!$I$8:$QJ$8, AE$2, Calculations!$I363:$QJ363) -> 156677.2316 | AF22: =SUMIF(Calculations!$I$8:$QJ$8, AF$2, Calculations!$I363:$QJ363) -> 256500.9171 | AG22: =SUMIF(Calculations!$I$8:$QJ$8, AG$2, Calculations!$I363:$QJ363) -> 368984.7445 | AH22: =SUMIF(Calculations!$I$8:$QJ$8, AH$2, Calculations!$I363:$QJ363) -> 149883.3777 | AI22: =SUMIF(Calculations!$I$8:$QJ$8, AI$2, Calculations!$I363:$QJ363) -> 0 | AJ22: =SUMIF(Calculations!$I$8:$QJ$8, AJ$2, Calculations!$I363:$QJ363) -> 0
C23: =Calculations!C364 -> add: Interest on Reserve Accounts | D23: 0 | E23: 0 | F23: =Calculations!E364 -> EUR | H23: =SUM(I23:AT23) -> 0 | I23: =SUMIF(Calculations!$I$8:$QJ$8, I$2, Calculations!$I364:$QJ364) -> 0 | J23: =SUMIF(Calculations!$I$8:$QJ$8, J$2, Calculations!$I364:$QJ364) -> 0 | K23: =SUMIF(Calculations!$I$8:$QJ$8, K$2, Calculations!$I364:$QJ364) -> 0 | L23: =SUMIF(Calculations!$I$8:$QJ$8, L$2, Calculations!$I364:$QJ364) -> 0 | M23: =SUMIF(Calculations!$I$8:$QJ$8, M$2, Calculations!$I364:$QJ364) -> 0 | N23: =SUMIF(Calculations!$I$8:$QJ$8, N$2, Calculations!$I364:$QJ364) -> 0 | O23: =SUMIF(Calculations!$I$8:$QJ$8, O$2, Calculations!$I364:$QJ364) -> 0 | P23: =SUMIF(Calculations!$I$8:$QJ$8, P$2, Calculations!$I364:$QJ364) -> 0 | Q23: =SUMIF(Calculations!$I$8:$QJ$8, Q$2, Calculations!$I364:$QJ364) -> 0 | R23: =SUMIF(Calculations!$I$8:$QJ$8, R$2, Calculations!$I364:$QJ364) -> 0 | S23: =SUMIF(Calculations!$I$8:$QJ$8, S$2, Calculations!$I364:$QJ364) -> 0 | T23: =SUMIF(Calculations!$I$8:$QJ$8, T$2, Calculations!$I364:$QJ364) -> 0 | U23: =SUMIF(Calculations!$I$8:$QJ$8, U$2, Calculations!$I364:$QJ364) -> 0 | V23: =SUMIF(Calculations!$I$8:$QJ$8, V$2, Calculations!$I364:$QJ364) -> 0 | W23: =SUMIF(Calculations!$I$8:$QJ$8, W$2, Calculations!$I364:$QJ364) -> 0 | X23: =SUMIF(Calculations!$I$8:$QJ$8, X$2, Calculations!$I364:$QJ364) -> 0 | Y23: =SUMIF(Calculations!$I$8:$QJ$8, Y$2, Calculations!$I364:$QJ364) -> 0 | Z23: =SUMIF(Calculations!$I$8:$QJ$8, Z$2, Calculations!$I364:$QJ364) -> 0 | AA23: =SUMIF(Calculations!$I$8:$QJ$8, AA$2, Calculations!$I364:$QJ364) -> 0 | AB23: =SUMIF(Calculations!$I$8:$QJ$8, AB$2, Calculations!$I364:$QJ364) -> 0 | AC23: =SUMIF(Calculations!$I$8:$QJ$8, AC$2, Calculations!$I364:$QJ364) -> 0 | AD23: =SUMIF(Calculations!$I$8:$QJ$8, AD$2, Calculations!$I364:$QJ364) -> 0 | AE23: =SUMIF(Calculations!$I$8:$QJ$8, AE$2, Calculations!$I364:$QJ364) -> 0 | AF23: =SUMIF(Calculations!$I$8:$QJ$8, AF$2, Calculations!$I364:$QJ364) -> 0 | AG23: =SUMIF(Calculations!$I$8:$QJ$8, AG$2, Calculations!$I364:$QJ364) -> 0 | AH23: =SUMIF(Calculations!$I$8:$QJ$8, AH$2, Calculations!$I364:$QJ364) -> 0 | AI23: =SUMIF(Calculations!$I$8:$QJ$8, AI$2, Calculations!$I364:$QJ364) -> 0 | AJ23: =SUMIF(Calculations!$I$8:$QJ$8, AJ$2, Calculations!$I364:$QJ364) -> 0
C24: =Calculations!C365 -> EBT | D24: 1184476.582 | E24: 7013695.028 | F24: =Calculations!E365 -> EUR | H24: =SUM(I24:AT24) -> 8198171.61 | I24: =I19+SUM(I21:I23) -> 0 | J24: 0 | K24: -260772.9996 | L24: -578783.1817 | M24: -581700.077 | N24: -572213.7764 | O24: -563358.4073 | P24: -533436.708 | Q24: -501384.5526 | R24: -205591.3133 | S24: 93460.47517 | T24: 120892.9661 | U24: 287656.6971 | V24: 459111.968 | W24: 500655.4346 | X24: 672127.8355 | Y24: 727158.6106 | Z24: 789778.9946 | AA24: 860325.5606 | AB24: 941098.1106 | AC24: 1023369.986 | AD24: 1076563.414 | AE24: 1137842.683 | AF24: 1211519.451 | AG24: 1297467.579 | AH24: 1051887.518 | AI24: 875112.7501 | AJ24: =AJ19+SUM(AJ21:AJ23) -> -1130617.409
D25: 0 | E25: 0
C26: =Calculations!C367 -> less: Taxes | D26: -1155.166802 | E26: -1208142.2 | F26: =Calculations!E367 -> EUR | H26: =SUM(I26:AT26) -> -1209297.366 | I26: =SUMIF(Calculations!$I$8:$QJ$8, I$2, Calculations!$I367:$QJ367) -> 0 | J26: =SUMIF(Calculations!$I$8:$QJ$8, J$2, Calculations!$I367:$QJ367) -> 0 | K26: =SUMIF(Calculations!$I$8:$QJ$8, K$2, Calculations!$I367:$QJ367) -> -1155.166802 | L26: =SUMIF(Calculations!$I$8:$QJ$8, L$2, Calculations!$I367:$QJ367) -> 0 | M26: =SUMIF(Calculations!$I$8:$QJ$8, M$2, Calculations!$I367:$QJ367) -> 0 | N26: =SUMIF(Calculations!$I$8:$QJ$8, N$2, Calculations!$I367:$QJ367) -> 0 | O26: =SUMIF(Calculations!$I$8:$QJ$8, O$2, Calculations!$I367:$QJ367) -> 0 | P26: =SUMIF(Calculations!$I$8:$QJ$8, P$2, Calculations!$I367:$QJ367) -> 0 | Q26: =SUMIF(Calculations!$I$8:$QJ$8, Q$2, Calculations!$I367:$QJ367) -> 0 | R26: =SUMIF(Calculations!$I$8:$QJ$8, R$2, Calculations!$I367:$QJ367) -> 0 | S26: =SUMIF(Calculations!$I$8:$QJ$8, S$2, Calculations!$I367:$QJ367) -> 0 | T26: =SUMIF(Calculations!$I$8:$QJ$8, T$2, Calculations!$I367:$QJ367) -> 0 | U26: =SUMIF(Calculations!$I$8:$QJ$8, U$2, Calculations!$I367:$QJ367) -> 0 | V26: =SUMIF(Calculations!$I$8:$QJ$8, V$2, Calculations!$I367:$QJ367) -> 0 | W26: =SUMIF(Calculations!$I$8:$QJ$8, W$2, Calculations!$I367:$QJ367) -> 0 | X26: =SUMIF(Calculations!$I$8:$QJ$8, X$2, Calculations!$I367:$QJ367) -> 0 | Y26: =SUMIF(Calculations!$I$8:$QJ$8, Y$2, Calculations!$I367:$QJ367) -> 0 | Z26: =SUMIF(Calculations!$I$8:$QJ$8, Z$2, Calculations!$I367:$QJ367) -> 0 | AA26: =SUMIF(Calculations!$I$8:$QJ$8, AA$2, Calculations!$I367:$QJ367) -> 0 | AB26: =SUMIF(Calculations!$I$8:$QJ$8, AB$2, Calculations!$I367:$QJ367) -> 0 | AC26: =SUMIF(Calculations!$I$8:$QJ$8, AC$2, Calculations!$I367:$QJ367) -> 0 | AD26: =SUMIF(Calculations!$I$8:$QJ$8, AD$2, Calculations!$I367:$QJ367) -> -120487.4428 | AE26: =SUMIF(Calculations!$I$8:$QJ$8, AE$2, Calculations!$I367:$QJ367) -> -209551.0999 | AF26: =SUMIF(Calculations!$I$8:$QJ$8, AF$2, Calculations!$I367:$QJ367) -> -221928.7969 | AG26: =SUMIF(Calculations!$I$8:$QJ$8, AG$2, Calculations!$I367:$QJ367) -> -236368.0825 | AH26: =SUMIF(Calculations!$I$8:$QJ$8, AH$2, Calculations!$I367:$QJ367) -> -197334.543 | AI26: =SUMIF(Calculations!$I$8:$QJ$8, AI$2, Calculations!$I367:$QJ367) -> -165625.3172 | AJ26: =SUMIF(Calculations!$I$8:$QJ$8, AJ$2, Calculations!$I367:$QJ367) -> -56846.91746
C27: =Calculations!C368 -> add: Change in Deferred Tax Asset | D27: 385124.1618 | E27: -145093.5272 | F27: =Calculations!E368 -> EUR | H27: =SUM(I27:AT27) -> 240030.6345 | I27: =SUMIF(Calculations!$I$8:$QJ$8, I$2, Calculations!$I368:$QJ368) -> 0 | J27: 0 | K27: =SUMIF(Calculations!$I$8:$QJ$8, K$2, Calculations!$I368:$QJ368) -> 82435.68342 | L27: =SUMIF(Calculations!$I$8:$QJ$8, L$2, Calculations!$I368:$QJ368) -> 172176.8799 | M27: =SUMIF(Calculations!$I$8:$QJ$8, M$2, Calculations!$I368:$QJ368) -> 172666.9183 | N27: =SUMIF(Calculations!$I$8:$QJ$8, N$2, Calculations!$I368:$QJ368) -> 171073.2198 | O27: =SUMIF(Calculations!$I$8:$QJ$8, O$2, Calculations!$I368:$QJ368) -> 169585.5178 | P27: =SUMIF(Calculations!$I$8:$QJ$8, P$2, Calculations!$I368:$QJ368) -> 167255.0723 | Q27: =SUMIF(Calculations!$I$8:$QJ$8, Q$2, Calculations!$I368:$QJ368) -> 164566.7102 | R27: =SUMIF(Calculations!$I$8:$QJ$8, R$2, Calculations!$I368:$QJ368) -> 161326.4468 | S27: =SUMIF(Calculations!$I$8:$QJ$8, S$2, Calculations!$I368:$QJ368) -> 157538.7472 | T27: =SUMIF(Calculations!$I$8:$QJ$8, T$2, Calculations!$I368:$QJ368) -> 152930.0887 | U27: =SUMIF(Calculations!$I$8:$QJ$8, U$2, Calculations!$I368:$QJ368) -> -2029.43089 | V27: =SUMIF(Calculations!$I$8:$QJ$8, V$2, Calculations!$I368:$QJ368) -> -157851.0492 | W27: =SUMIF(Calculations!$I$8:$QJ$8, W$2, Calculations!$I368:$QJ368) -> -164830.3516 | X27: =SUMIF(Calculations!$I$8:$QJ$8, X$2, Calculations!$I368:$QJ368) -> -172999.7789 | Y27: =SUMIF(Calculations!$I$8:$QJ$8, Y$2, Calculations!$I368:$QJ368) -> -182244.9492 | Z27: =SUMIF(Calculations!$I$8:$QJ$8, Z$2, Calculations!$I368:$QJ368) -> -192765.1737 | AA27: =SUMIF(Calculations!$I$8:$QJ$8, AA$2, Calculations!$I368:$QJ368) -> -204616.9968 | AB27: =SUMIF(Calculations!$I$8:$QJ$8, AB$2, Calculations!$I368:$QJ368) -> -218186.7852 | AC27: =SUMIF(Calculations!$I$8:$QJ$8, AC$2, Calculations!$I368:$QJ368) -> -197262.0292 | AD27: =SUMIF(Calculations!$I$8:$QJ$8, AD$2, Calculations!$I368:$QJ368) -> -78768.73993 | AE27: =SUMIF(Calculations!$I$8:$QJ$8, AE$2, Calculations!$I368:$QJ368) -> 0 | AF27: =SUMIF(Calculations!$I$8:$QJ$8, AF$2, Calculations!$I368:$QJ368) -> 0 | AG27: =SUMIF(Calculations!$I$8:$QJ$8, AG$2, Calculations!$I368:$QJ368) -> 0 | AH27: =SUMIF(Calculations!$I$8:$QJ$8, AH$2, Calculations!$I368:$QJ368) -> 2223.910783 | AI27: =SUMIF(Calculations!$I$8:$QJ$8, AI$2, Calculations!$I368:$QJ368) -> 212.8460567 | AJ27: =SUMIF(Calculations!$I$8:$QJ$8, AJ$2, Calculations!$I368:$QJ368) -> 237593.8777
C28: =Calculations!C369 -> Net Income / (Loss) | D28: 1568445.577 | E28: 5660459.301 | F28: =Calculations!E369 -> EUR | H28: =SUM(I28:AT28) -> 7228904.878 | I28: =I24+SUM(I26:I27) -> 0 | J28: =J24+SUM(J26:J27) -> 0 | K28: -179492.483 | L28: -406606.3018 | M28: -409033.1587 | N28: -401140.5565 | O28: -393772.8895 | P28: -366181.6357 | Q28: -336817.8424 | R28: -44264.86642 | S28: 250999.2224 | T28: 273823.0548 | U28: 285627.2663 | V28: 301260.9188 | W28: 335825.083 | X28: 499128.0565 | Y28: 544913.6615 | Z28: 597013.8209 | AA28: 655708.5638 | AB28: 722911.3254 | AC28: 826107.9572 | AD28: 877307.2313 | AE28: 928291.5833 | AF28: 989590.654 | AG28: 1061099.497 | AH28: 856776.886 | AI28: 709700.2789 | AJ28: =AJ24+SUM(AJ26:AJ27) -> -949870.4491
A30: · | B30: Balance Sheet | F30: Unit
B32: Current Assets
C33: =Calculations!C374 -> Unrestricted Cash | F33: =Calculations!E374 -> EUR | I33: =LOOKUP(I$3, Calculations!$I$4:$QJ$4, Calculations!$I374:$QJ374) -> 117740.3059 | J33: =LOOKUP(J$3, Calculations!$I$4:$QJ$4, Calculations!$I374:$QJ374) -> 3486.027826 | K33: =LOOKUP(K$3, Calculations!$I$4:$QJ$4, Calculations!$I374:$QJ374) -> 280655.9476 | L33: =LOOKUP(L$3, Calculations!$I$4:$QJ$4, Calculations!$I374:$QJ374) -> 771553.9898 | M33: =LOOKUP(M$3, Calculations!$I$4:$QJ$4, Calculations!$I374:$QJ374) -> 1093655.998 | N33: =LOOKUP(N$3, Calculations!$I$4:$QJ$4, Calculations!$I374:$QJ374) -> 1394513.9 | O33: =LOOKUP(O$3, Calculations!$I$4:$QJ$4, Calculations!$I374:$QJ374) -> 1538501.643 | P33: =LOOKUP(P$3, Calculations!$I$4:$QJ$4, Calculations!$I374:$QJ374) -> 1924324.751 | Q33: =LOOKUP(Q$3, Calculations!$I$4:$QJ$4, Calculations!$I374:$QJ374) -> 2154508.265 | R33: =LOOKUP(R$3, Calculations!$I$4:$QJ$4, Calculations!$I374:$QJ374) -> 2361111.595 | S33: =LOOKUP(S$3, Calculations!$I$4:$QJ$4, Calculations!$I374:$QJ374) -> 2420271.485 | T33: =LOOKUP(T$3, Calculations!$I$4:$QJ$4, Calculations!$I374:$QJ374) -> 2702911.394 | U33: =LOOKUP(U$3, Calculations!$I$4:$QJ$4, Calculations!$I374:$QJ374) -> 2838260.515 | V33: =LOOKUP(V$3, Calculations!$I$4:$QJ$4, Calculations!$I374:$QJ374) -> 2949829.032 | W33: =LOOKUP(W$3, Calculations!$I$4:$QJ$4, Calculations!$I374:$QJ374) -> 2922589.496 | X33: =LOOKUP(X$3, Calculations!$I$4:$QJ$4, Calculations!$I374:$QJ374) -> 3101197.308 | Y33: =LOOKUP(Y$3, Calculations!$I$4:$QJ$4, Calculations!$I374:$QJ374) -> 3141616.076 | Z33: =LOOKUP(Z$3, Calculations!$I$4:$QJ$4, Calculations!$I374:$QJ374) -> 3158512.829 | AA33: =LOOKUP(AA$3, Calculations!$I$4:$QJ$4, Calculations!$I374:$QJ374) -> 3045654.091 | AB33: =LOOKUP(AB$3, Calculations!$I$4:$QJ$4, Calculations!$I374:$QJ374) -> 3172069.851 | AC33: =LOOKUP(AC$3, Calculations!$I$4:$QJ$4, Calculations!$I374:$QJ374) -> 1808902.595 | AD33: =LOOKUP(AD$3, Calculations!$I$4:$QJ$4, Calculations!$I374:$QJ374) -> 2435552.446 | AE33: =LOOKUP(AE$3, Calculations!$I$4:$QJ$4, Calculations!$I374:$QJ374) -> 2856714.703 | AF33: =LOOKUP(AF$3, Calculations!$I$4:$QJ$4, Calculations!$I374:$QJ374) -> 3404128.604 | AG33: =LOOKUP(AG$3, Calculations!$I$4:$QJ$4, Calculations!$I374:$QJ374) -> 3828690.444 | AH33: =LOOKUP(AH$3, Calculations!$I$4:$QJ$4, Calculations!$I374:$QJ374) -> 8606911.073 | AI33: =LOOKUP(AI$3, Calculations!$I$4:$QJ$4, Calculations!$I374:$QJ374) -> 9598426.469 | AJ33: =LOOKUP(AJ$3, Calculations!$I$4:$QJ$4, Calculations!$I374:$QJ374) -> 8458957.232
C34: =Calculations!C375 -> DSRA | F34: =Calculations!E375 -> EUR | I34: =LOOKUP(I$3, Calculations!$I$4:$QJ$4, Calculations!$I375:$QJ375) -> 0 | J34: =LOOKUP(J$3, Calculations!$I$4:$QJ$4, Calculations!$I375:$QJ375) -> 0 | K34: =LOOKUP(K$3, Calculations!$I$4:$QJ$4, Calculations!$I375:$QJ375) -> 410120.6934 | L34: =LOOKUP(L$3, Calculations!$I$4:$QJ$4, Calculations!$I375:$QJ375) -> 410120.6934 | M34: =LOOKUP(M$3, Calculations!$I$4:$QJ$4, Calculations!$I375:$QJ375) -> 410120.6934 | N34: =LOOKUP(N$3, Calculations!$I$4:$QJ$4, Calculations!$I375:$QJ375) -> 410120.6934 | O34: =LOOKUP(O$3, Calculations!$I$4:$QJ$4, Calculations!$I375:$QJ375) -> 410120.6934 | P34: =LOOKUP(P$3, Calculations!$I$4:$QJ$4, Calculations!$I375:$QJ375) -> 410120.6934 | Q34: =LOOKUP(Q$3, Calculations!$I$4:$QJ$4, Calculations!$I375:$QJ375) -> 410120.6934 | R34: =LOOKUP(R$3, Calculations!$I$4:$QJ$4, Calculations!$I375:$QJ375) -> 410120.6934 | S34: =LOOKUP(S$3, Calculations!$I$4:$QJ$4, Calculations!$I375:$QJ375) -> 410120.6934 | T34: =LOOKUP(T$3, Calculations!$I$4:$QJ$4, Calculations!$I375:$QJ375) -> 410120.6934 | U34: =LOOKUP(U$3, Calculations!$I$4:$QJ$4, Calculations!$I375:$QJ375) -> 410120.6934 | V34: =LOOKUP(V$3, Calculations!$I$4:$QJ$4, Calculations!$I375:$QJ375) -> 410120.6934 | W34: =LOOKUP(W$3, Calculations!$I$4:$QJ$4, Calculations!$I375:$QJ375) -> 410120.6934 | X34: =LOOKUP(X$3, Calculations!$I$4:$QJ$4, Calculations!$I375:$QJ375) -> 410120.6934 | Y34: =LOOKUP(Y$3, Calculations!$I$4:$QJ$4, Calculations!$I375:$QJ375) -> 410120.6934 | Z34: =LOOKUP(Z$3, Calculations!$I$4:$QJ$4, Calculations!$I375:$QJ375) -> 410120.6934 | AA34: =LOOKUP(AA$3, Calculations!$I$4:$QJ$4, Calculations!$I375:$QJ375) -> 410120.6934 | AB34: =LOOKUP(AB$3, Calculations!$I$4:$QJ$4, Calculations!$I375:$QJ375) -> 359726.4892 | AC34: =LOOKUP(AC$3, Calculations!$I$4:$QJ$4, Calculations!$I375:$QJ375) -> 0 | AD34: =LOOKUP(AD$3, Calculations!$I$4:$QJ$4, Calculations!$I375:$QJ375) -> 0 | AE34: =LOOKUP(AE$3, Calculations!$I$4:$QJ$4, Calculations!$I375:$QJ375) -> 0 | AF34: =LOOKUP(AF$3, Calculations!$I$4:$QJ$4, Calculations!$I375:$QJ375) -> 0 | AG34: =LOOKUP(AG$3, Calculations!$I$4:$QJ$4, Calculations!$I375:$QJ375) -> 0 | AH34: =LOOKUP(AH$3, Calculations!$I$4:$QJ$4, Calculations!$I375:$QJ375) -> 0 | AI34: =LOOKUP(AI$3, Calculations!$I$4:$QJ$4, Calculations!$I375:$QJ375) -> 0 | AJ34: =LOOKUP(AJ$3, Calculations!$I$4:$QJ$4, Calculations!$I375:$QJ375) -> 0
C35: =Calculations!C376 -> MMRA | F35: =Calculations!E376 -> EUR | I35: =LOOKUP(I$3, Calculations!$I$4:$QJ$4, Calculations!$I376:$QJ376) -> 0 | J35: =LOOKUP(J$3, Calculations!$I$4:$QJ$4, Calculations!$I376:$QJ376) -> 0 | K35: =LOOKUP(K$3, Calculations!$I$4:$QJ$4, Calculations!$I376:$QJ376) -> 0 | L35: =LOOKUP(L$3, Calculations!$I$4:$QJ$4, Calculations!$I376:$QJ376) -> 0 | M35: =LOOKUP(M$3, Calculations!$I$4:$QJ$4, Calculations!$I376:$QJ376) -> 0 | N35: =LOOKUP(N$3, Calculations!$I$4:$QJ$4, Calculations!$I376:$QJ376) -> 0 | O35: =LOOKUP(O$3, Calculations!$I$4:$QJ$4, Calculations!$I376:$QJ376) -> 0 | P35: =LOOKUP(P$3, Calculations!$I$4:$QJ$4, Calculations!$I376:$QJ376) -> 0 | Q35: =LOOKUP(Q$3, Calculations!$I$4:$QJ$4, Calculations!$I376:$QJ376) -> 0 | R35: =LOOKUP(R$3, Calculations!$I$4:$QJ$4, Calculations!$I376:$QJ376) -> 0 | S35: =LOOKUP(S$3, Calculations!$I$4:$QJ$4, Calculations!$I376:$QJ376) -> 0 | T35: =LOOKUP(T$3, Calculations!$I$4:$QJ$4, Calculations!$I376:$QJ376) -> 0 | U35: =LOOKUP(U$3, Calculations!$I$4:$QJ$4, Calculations!$I376:$QJ376) -> 0 | V35: =LOOKUP(V$3, Calculations!$I$4:$QJ$4, Calculations!$I376:$QJ376) -> 0 | W35: =LOOKUP(W$3, Calculations!$I$4:$QJ$4, Calculations!$I376:$QJ376) -> 0 | X35: =LOOKUP(X$3, Calculations!$I$4:$QJ$4, Calculations!$I376:$QJ376) -> 0 | Y35: =LOOKUP(Y$3, Calculations!$I$4:$QJ$4, Calculations!$I376:$QJ376) -> 0 | Z35: =LOOKUP(Z$3, Calculations!$I$4:$QJ$4, Calculations!$I376:$QJ376) -> 0 | AA35: =LOOKUP(AA$3, Calculations!$I$4:$QJ$4, Calculations!$I376:$QJ376) -> 0 | AB35: =LOOKUP(AB$3, Calculations!$I$4:$QJ$4, Calculations!$I376:$QJ376) -> 0 | AC35: =LOOKUP(AC$3, Calculations!$I$4:$QJ$4, Calculations!$I376:$QJ376) -> 0 | AD35: =LOOKUP(AD$3, Calculations!$I$4:$QJ$4, Calculations!$I376:$QJ376) -> 0 | AE35: =LOOKUP(AE$3, Calculations!$I$4:$QJ$4, Calculations!$I376:$QJ376) -> 0 | AF35: =LOOKUP(AF$3, Calculations!$I$4:$QJ$4, Calculations!$I376:$QJ376) -> 0 | AG35: =LOOKUP(AG$3, Calculations!$I$4:$QJ$4, Calculations!$I376:$QJ376) -> 0 | AH35: =LOOKUP(AH$3, Calculations!$I$4:$QJ$4, Calculations!$I376:$QJ376) -> 0 | AI35: =LOOKUP(AI$3, Calculations!$I$4:$QJ$4, Calculations!$I376:$QJ376) -> 0 | AJ35: =LOOKUP(AJ$3, Calculations!$I$4:$QJ$4, Calculations!$I376:$QJ376) -> 0
C36: =Calculations!C377 -> Accounts Receivable | F36: =Calculations!E377 -> EUR | I36: =LOOKUP(I$3, Calculations!$I$4:$QJ$4, Calculations!$I377:$QJ377) -> 704298.167 | J36: =LOOKUP(J$3, Calculations!$I$4:$QJ$4, Calculations!$I377:$QJ377) -> 223896.6699 | K36: =LOOKUP(K$3, Calculations!$I$4:$QJ$4, Calculations!$I377:$QJ377) -> 346689.0595 | L36: =LOOKUP(L$3, Calculations!$I$4:$QJ$4, Calculations!$I377:$QJ377) -> 242525.0104 | M36: =LOOKUP(M$3, Calculations!$I$4:$QJ$4, Calculations!$I377:$QJ377) -> 240237.3408 | N36: =LOOKUP(N$3, Calculations!$I$4:$QJ$4, Calculations!$I377:$QJ377) -> 237708.1947 | O36: =LOOKUP(O$3, Calculations!$I$4:$QJ$4, Calculations!$I377:$QJ377) -> 336021.0928 | P36: =LOOKUP(P$3, Calculations!$I$4:$QJ$4, Calculations!$I377:$QJ377) -> 232706.7144 | Q36: =LOOKUP(Q$3, Calculations!$I$4:$QJ$4, Calculations!$I377:$QJ377) -> 230244.1857 | R36: =LOOKUP(R$3, Calculations!$I$4:$QJ$4, Calculations!$I377:$QJ377) -> 227806.7851 | S36: =LOOKUP(S$3, Calculations!$I$4:$QJ$4, Calculations!$I377:$QJ377) -> 322453.2202 | T36: =LOOKUP(T$3, Calculations!$I$4:$QJ$4, Calculations!$I377:$QJ377) -> 223006.3462 | U36: =LOOKUP(U$3, Calculations!$I$4:$QJ$4, Calculations!$I377:$QJ377) -> 220642.803 | V36: =LOOKUP(V$3, Calculations!$I$4:$QJ$4, Calculations!$I377:$QJ377) -> 218303.3786 | W36: =LOOKUP(W$3, Calculations!$I$4:$QJ$4, Calculations!$I377:$QJ377) -> 309239.3017 | X36: =LOOKUP(X$3, Calculations!$I$4:$QJ$4, Calculations!$I377:$QJ377) -> 213695.9045 | Y36: =LOOKUP(Y$3, Calculations!$I$4:$QJ$4, Calculations!$I377:$QJ377) -> 211427.3704 | Z36: =LOOKUP(Z$3, Calculations!$I$4:$QJ$4, Calculations!$I377:$QJ377) -> 209181.986 | AA36: =LOOKUP(AA$3, Calculations!$I$4:$QJ$4, Calculations!$I377:$QJ377) -> 296552.8637 | AB36: =LOOKUP(AB$3, Calculations!$I$4:$QJ$4, Calculations!$I377:$QJ377) -> 204759.7246 | AC36: =LOOKUP(AC$3, Calculations!$I$4:$QJ$4, Calculations!$I377:$QJ377) -> 202582.3826 | AD36: =LOOKUP(AD$3, Calculations!$I$4:$QJ$4, Calculations!$I377:$QJ377) -> 200427.2603 | AE36: =LOOKUP(AE$3, Calculations!$I$4:$QJ$4, Calculations!$I377:$QJ377) -> 284421.2696 | AF36: =LOOKUP(AF$3, Calculations!$I$4:$QJ$4, Calculations!$I377:$QJ377) -> 196283.8734 | AG36: =LOOKUP(AG$3, Calculations!$I$4:$QJ$4, Calculations!$I377:$QJ377) -> 194245.7356 | AH36: =LOOKUP(AH$3, Calculations!$I$4:$QJ$4, Calculations!$I377:$QJ377) -> 192227.8861 | AI36: =LOOKUP(AI$3, Calculations!$I$4:$QJ$4, Calculations!$I377:$QJ377) -> 272932.3132 | AJ36: =LOOKUP(AJ$3, Calculations!$I$4:$QJ$4, Calculations!$I377:$QJ377) -> 412254.2293
C37: =Calculations!C378 -> Total Current Assets | F37: =Calculations!E378 -> EUR | I37: =SUM(I33:I36) -> 822038.4728 | J37: =SUM(J33:J36) -> 227382.6977 | K37: 1037465.701 | L37: 1424199.694 | M37: 1744014.032 | N37: 2042342.788 | O37: 2284643.429 | P37: 2567152.159 | Q37: 2794873.144 | R37: 2999039.074 | S37: 3152845.399 | T37: 3336038.434 | U37: 3469024.011 | V37: 3578253.104 | W37: 3641949.491 | X37: 3725013.906 | Y37: 3763164.14 | Z37: 3777815.509 | AA37: 3752327.649 | AB37: 3736556.065 | AC37: 2011484.977 | AD37: 2635979.706 | AE37: 3141135.973 | AF37: 3600412.477 | AG37: =SUM(AG33:AG36) -> 4022936.18 | AH37: 8799138.96 | AI37: 9871358.782 | AJ37: 8871211.461
B39: Non-Current Assets
C40: =Calculations!C381 -> Net Property, Plant and Equipment | F40: =Calculations!E381 -> EUR | I40: =LOOKUP(I$3, Calculations!$I$4:$QJ$4, Calculations!$I381:$QJ381) -> 6442961.527 | J40: =LOOKUP(J$3, Calculations!$I$4:$QJ$4, Calculations!$I381:$QJ381) -> 14957617.3 | K40: =LOOKUP(K$3, Calculations!$I$4:$QJ$4, Calculations!$I381:$QJ381) -> 17263878.69 | L40: =LOOKUP(L$3, Calculations!$I$4:$QJ$4, Calculations!$I381:$QJ381) -> 15816573.23 | M40: =LOOKUP(M$3, Calculations!$I$4:$QJ$4, Calculations!$I381:$QJ381) -> 14480598.97 | N40: =LOOKUP(N$3, Calculations!$I$4:$QJ$4, Calculations!$I381:$QJ381) -> 13144624.71 | O40: =LOOKUP(O$3, Calculations!$I$4:$QJ$4, Calculations!$I381:$QJ381) -> 11919981.63 | P40: =LOOKUP(P$3, Calculations!$I$4:$QJ$4, Calculations!$I381:$QJ381) -> 10488726.18 | Q40: =LOOKUP(Q$3, Calculations!$I$4:$QJ$4, Calculations!$I381:$QJ381) -> 9184851.912 | R40: =LOOKUP(R$3, Calculations!$I$4:$QJ$4, Calculations!$I381:$QJ381) -> 8157483.605 | S40: =LOOKUP(S$3, Calculations!$I$4:$QJ$4, Calculations!$I381:$QJ381) -> 7469193.118 | T40: =LOOKUP(T$3, Calculations!$I$4:$QJ$4, Calculations!$I381:$QJ381) -> 6655758.906 | U40: =LOOKUP(U$3, Calculations!$I$4:$QJ$4, Calculations!$I381:$QJ381) -> 6040308.926 | V40: =LOOKUP(V$3, Calculations!$I$4:$QJ$4, Calculations!$I381:$QJ381) -> 5559831.315 | W40: =LOOKUP(W$3, Calculations!$I$4:$QJ$4, Calculations!$I381:$QJ381) -> 5119393.505 | X40: =LOOKUP(X$3, Calculations!$I$4:$QJ$4, Calculations!$I381:$QJ381) -> 4721720.951 | Y40: =LOOKUP(Y$3, Calculations!$I$4:$QJ$4, Calculations!$I381:$QJ381) -> 4364088.197 | Z40: =LOOKUP(Z$3, Calculations!$I$4:$QJ$4, Calculations!$I381:$QJ381) -> 4006455.444 | AA40: =LOOKUP(AA$3, Calculations!$I$4:$QJ$4, Calculations!$I381:$QJ381) -> 3678625.42 | AB40: =LOOKUP(AB$3, Calculations!$I$4:$QJ$4, Calculations!$I381:$QJ381) -> 3291189.937 | AC40: =LOOKUP(AC$3, Calculations!$I$4:$QJ$4, Calculations!$I381:$QJ381) -> 5416671.925 | AD40: =LOOKUP(AD$3, Calculations!$I$4:$QJ$4, Calculations!$I381:$QJ381) -> 5058856.935 | AE40: =LOOKUP(AE$3, Calculations!$I$4:$QJ$4, Calculations!$I381:$QJ381) -> 4730859.86 | AF40: =LOOKUP(AF$3, Calculations!$I$4:$QJ$4, Calculations!$I381:$QJ381) -> 4343226.954 | AG40: =LOOKUP(AG$3, Calculations!$I$4:$QJ$4, Calculations!$I381:$QJ381) -> 3985411.964 | AH40: =LOOKUP(AH$3, Calculations!$I$4:$QJ$4, Calculations!$I381:$QJ381) -> 3627596.974 | AI40: =LOOKUP(AI$3, Calculations!$I$4:$QJ$4, Calculations!$I381:$QJ381) -> 3299599.899 | AJ40: =LOOKUP(AJ$3, Calculations!$I$4:$QJ$4, Calculations!$I381:$QJ381) -> 3090874.488
C41: =Calculations!C382 -> Goodwill (net of amortization) | F41: =Calculations!E382 -> EUR | I41: =LOOKUP(I$3, Calculations!$I$4:$QJ$4, Calculations!$I382:$QJ382) -> 0 | J41: =LOOKUP(J$3, Calculations!$I$4:$QJ$4, Calculations!$I382:$QJ382) -> 0 | K41: =LOOKUP(K$3, Calculations!$I$4:$QJ$4, Calculations!$I382:$QJ382) -> 0 | L41: =LOOKUP(L$3, Calculations!$I$4:$QJ$4, Calculations!$I382:$QJ382) -> 0 | M41: =LOOKUP(M$3, Calculations!$I$4:$QJ$4, Calculations!$I382:$QJ382) -> 0 | N41: =LOOKUP(N$3, Calculations!$I$4:$QJ$4, Calculations!$I382:$QJ382) -> 0 | O41: =LOOKUP(O$3, Calculations!$I$4:$QJ$4, Calculations!$I382:$QJ382) -> 0 | P41: =LOOKUP(P$3, Calculations!$I$4:$QJ$4, Calculations!$I382:$QJ382) -> 0 | Q41: =LOOKUP(Q$3, Calculations!$I$4:$QJ$4, Calculations!$I382:$QJ382) -> 0 | R41: =LOOKUP(R$3, Calculations!$I$4:$QJ$4, Calculations!$I382:$QJ382) -> 0 | S41: =LOOKUP(S$3, Calculations!$I$4:$QJ$4, Calculations!$I382:$QJ382) -> 0 | T41: =LOOKUP(T$3, Calculations!$I$4:$QJ$4, Calculations!$I382:$QJ382) -> 0 | U41: =LOOKUP(U$3, Calculations!$I$4:$QJ$4, Calculations!$I382:$QJ382) -> 0 | V41: =LOOKUP(V$3, Calculations!$I$4:$QJ$4, Calculations!$I382:$QJ382) -> 0 | W41: =LOOKUP(W$3, Calculations!$I$4:$QJ$4, Calculations!$I382:$QJ382) -> 0 | X41: =LOOKUP(X$3, Calculations!$I$4:$QJ$4, Calculations!$I382:$QJ382) -> 0 | Y41: =LOOKUP(Y$3, Calculations!$I$4:$QJ$4, Calculations!$I382:$QJ382) -> 0 | Z41: =LOOKUP(Z$3, Calculations!$I$4:$QJ$4, Calculations!$I382:$QJ382) -> 0 | AA41: =LOOKUP(AA$3, Calculations!$I$4:$QJ$4, Calculations!$I382:$QJ382) -> 0 | AB41: =LOOKUP(AB$3, Calculations!$I$4:$QJ$4, Calculations!$I382:$QJ382) -> 0 | AC41: =LOOKUP(AC$3, Calculations!$I$4:$QJ$4, Calculations!$I382:$QJ382) -> 0 | AD41: =LOOKUP(AD$3, Calculations!$I$4:$QJ$4, Calculations!$I382:$QJ382) -> 0 | AE41: =LOOKUP(AE$3, Calculations!$I$4:$QJ$4, Calculations!$I382:$QJ382) -> 0 | AF41: =LOOKUP(AF$3, Calculations!$I$4:$QJ$4, Calculations!$I382:$QJ382) -> 0 | AG41: =LOOKUP(AG$3, Calculations!$I$4:$QJ$4, Calculations!$I382:$QJ382) -> 0 | AH41: =LOOKUP(AH$3, Calculations!$I$4:$QJ$4, Calculations!$I382:$QJ382) -> 0 | AI41: =LOOKUP(AI$3, Calculations!$I$4:$QJ$4, Calculations!$I382:$QJ382) -> 0 | AJ41: =LOOKUP(AJ$3, Calculations!$I$4:$QJ$4, Calculations!$I382:$QJ382) -> 0
C42: =Calculations!C383 -> Deferred Tax Asset | F42: =Calculations!E383 -> EUR | I42: =LOOKUP(I$3, Calculations!$I$4:$QJ$4, Calculations!$I383:$QJ383) -> 0 | J42: =LOOKUP(J$3, Calculations!$I$4:$QJ$4, Calculations!$I383:$QJ383) -> 0 | K42: =LOOKUP(K$3, Calculations!$I$4:$QJ$4, Calculations!$I383:$QJ383) -> 48598.47785 | L42: =LOOKUP(L$3, Calculations!$I$4:$QJ$4, Calculations!$I383:$QJ383) -> 254612.5633 | M42: =LOOKUP(M$3, Calculations!$I$4:$QJ$4, Calculations!$I383:$QJ383) -> 427279.4816 | N42: =LOOKUP(N$3, Calculations!$I$4:$QJ$4, Calculations!$I383:$QJ383) -> 598352.7014 | O42: =LOOKUP(O$3, Calculations!$I$4:$QJ$4, Calculations!$I383:$QJ383) -> 735160.5073 | P42: =LOOKUP(P$3, Calculations!$I$4:$QJ$4, Calculations!$I383:$QJ383) -> 935193.2916 | Q42: =LOOKUP(Q$3, Calculations!$I$4:$QJ$4, Calculations!$I383:$QJ383) -> 1099760.002 | R42: =LOOKUP(R$3, Calculations!$I$4:$QJ$4, Calculations!$I383:$QJ383) -> 1261086.449 | S42: =LOOKUP(S$3, Calculations!$I$4:$QJ$4, Calculations!$I383:$QJ383) -> 1387406.323 | T42: =LOOKUP(T$3, Calculations!$I$4:$QJ$4, Calculations!$I383:$QJ383) -> 1571555.285 | U42: =LOOKUP(U$3, Calculations!$I$4:$QJ$4, Calculations!$I383:$QJ383) -> 1569525.854 | V42: =LOOKUP(V$3, Calculations!$I$4:$QJ$4, Calculations!$I383:$QJ383) -> 1411674.804 | W42: =LOOKUP(W$3, Calculations!$I$4:$QJ$4, Calculations!$I383:$QJ383) -> 1243109.95 | X42: =LOOKUP(X$3, Calculations!$I$4:$QJ$4, Calculations!$I383:$QJ383) -> 1073844.674 | Y42: =LOOKUP(Y$3, Calculations!$I$4:$QJ$4, Calculations!$I383:$QJ383) -> 891599.7248 | Z42: =LOOKUP(Z$3, Calculations!$I$4:$QJ$4, Calculations!$I383:$QJ383) -> 698834.5511 | AA42: =LOOKUP(AA$3, Calculations!$I$4:$QJ$4, Calculations!$I383:$QJ383) -> 494468.2516 | AB42: =LOOKUP(AB$3, Calculations!$I$4:$QJ$4, Calculations!$I383:$QJ383) -> 276030.7692 | AC42: =LOOKUP(AC$3, Calculations!$I$4:$QJ$4, Calculations!$I383:$QJ383) -> 78768.73993 | AD42: =LOOKUP(AD$3, Calculations!$I$4:$QJ$4, Calculations!$I383:$QJ383) -> 0 | AE42: =LOOKUP(AE$3, Calculations!$I$4:$QJ$4, Calculations!$I383:$QJ383) -> 0 | AF42: =LOOKUP(AF$3, Calculations!$I$4:$QJ$4, Calculations!$I383:$QJ383) -> 0 | AG42: =LOOKUP(AG$3, Calculations!$I$4:$QJ$4, Calculations!$I383:$QJ383) -> 0 | AH42: =LOOKUP(AH$3, Calculations!$I$4:$QJ$4, Calculations!$I383:$QJ383) -> 2223.910783 | AI42: =LOOKUP(AI$3, Calculations!$I$4:$QJ$4, Calculations!$I383:$QJ383) -> 0 | AJ42: =LOOKUP(AJ$3, Calculations!$I$4:$QJ$4, Calculations!$I383:$QJ383) -> 240030.6345
C43: =Calculations!C384 -> Total Non-Current Assets | F43: =Calculations!E384 -> EUR | I43: =SUM(I40:I42) -> 6442961.527 | J43: =SUM(J40:J42) -> 14957617.3 | K43: 17312477.16 | L43: 16071185.8 | M43: 14907878.45 | N43: 13742977.41 | O43: 12655142.14 | P43: 11423919.47 | Q43: 10284611.91 | R43: 9418570.054 | S43: 8856599.441 | T43: 8227314.19 | U43: 7609834.779 | V43: 6971506.119 | W43: 6362503.455 | X43: 5795565.625 | Y43: 5255687.922 | Z43: 4705289.995 | AA43: 4173093.671 | AB43: 3567220.706 | AC43: 5495440.665 | AD43: 5058856.935 | AE43: 4730859.86 | AF43: 4343226.954 | AG43: =SUM(AG40:AG42) -> 3985411.964 | AH43: 3629820.884 | AI43: 3299599.899 | AJ43: 3330905.123
B45: Total Assets | F45: =Calculations!E386 -> EUR | I45: =I37+I43 -> 7265000 | J45: =J37+J43 -> 15185000 | K45: 18349942.87 | L45: 17495385.49 | M45: 16651892.48 | N45: 15785320.19 | O45: 14939785.57 | P45: 13991071.63 | Q45: 13079485.06 | R45: 12417609.13 | S45: 12009444.84 | T45: 11563352.62 | U45: 11078858.79 | V45: 10549759.22 | W45: 10004452.95 | X45: 9520579.531 | Y45: 9018852.062 | Z45: 8483105.504 | AA45: 7925421.32 | AB45: 7303776.771 | AC45: 7506925.642 | AD45: 7694836.641 | AE45: 7871995.833 | AF45: 7943639.431 | AG45: =AG37+AG43 -> 8008348.144 | AH45: 12428959.84 | AI45: 13170958.68 | AJ45: 12202116.58
B47: Current Liabilities
C48: =Calculations!C389 -> Accounts Payable | F48: =Calculations!E389 -> EUR | I48: =LOOKUP(I$3, Calculations!$I$4:$QJ$4, Calculations!$I389:$QJ389) -> 0 | J48: =LOOKUP(J$3, Calculations!$I$4:$QJ$4, Calculations!$I389:$QJ389) -> 0 | K48: =LOOKUP(K$3, Calculations!$I$4:$QJ$4, Calculations!$I389:$QJ389) -> 5057.638962 | L48: =LOOKUP(L$3, Calculations!$I$4:$QJ$4, Calculations!$I389:$QJ389) -> 5184.079936 | M48: =LOOKUP(M$3, Calculations!$I$4:$QJ$4, Calculations!$I389:$QJ389) -> 5313.681935 | N48: =LOOKUP(N$3, Calculations!$I$4:$QJ$4, Calculations!$I389:$QJ389) -> 5446.523983 | O48: =LOOKUP(O$3, Calculations!$I$4:$QJ$4, Calculations!$I389:$QJ389) -> 5582.687083 | P48: =LOOKUP(P$3, Calculations!$I$4:$QJ$4, Calculations!$I389:$QJ389) -> 5722.25426 | Q48: =LOOKUP(Q$3, Calculations!$I$4:$QJ$4, Calculations!$I389:$QJ389) -> 5865.310616 | R48: =LOOKUP(R$3, Calculations!$I$4:$QJ$4, Calculations!$I389:$QJ389) -> 6011.943382 | S48: =LOOKUP(S$3, Calculations!$I$4:$QJ$4, Calculations!$I389:$QJ389) -> 6162.241966 | T48: =LOOKUP(T$3, Calculations!$I$4:$QJ$4, Calculations!$I389:$QJ389) -> 6316.298015 | U48: =LOOKUP(U$3, Calculations!$I$4:$QJ$4, Calculations!$I389:$QJ389) -> 6474.205466 | V48: =LOOKUP(V$3, Calculations!$I$4:$QJ$4, Calculations!$I389:$QJ389) -> 6636.060602 | W48: =LOOKUP(W$3, Calculations!$I$4:$QJ$4, Calculations!$I389:$QJ389) -> 6801.962117 | X48: =LOOKUP(X$3, Calculations!$I$4:$QJ$4, Calculations!$I389:$QJ389) -> 6972.01117 | Y48: =LOOKUP(Y$3, Calculations!$I$4:$QJ$4, Calculations!$I389:$QJ389) -> 7146.31145 | Z48: =LOOKUP(Z$3, Calculations!$I$4:$QJ$4, Calculations!$I389:$QJ389) -> 7324.969236 | AA48: =LOOKUP(AA$3, Calculations!$I$4:$QJ$4, Calculations!$I389:$QJ389) -> 7508.093467 | AB48: =LOOKUP(AB$3, Calculations!$I$4:$QJ$4, Calculations!$I389:$QJ389) -> 7695.795803 | AC48: =LOOKUP(AC$3, Calculations!$I$4:$QJ$4, Calculations!$I389:$QJ389) -> 7888.190698 | AD48: =LOOKUP(AD$3, Calculations!$I$4:$QJ$4, Calculations!$I389:$QJ389) -> 16884.54267 | AE48: =LOOKUP(AE$3, Calculations!$I$4:$QJ$4, Calculations!$I389:$QJ389) -> 23358.04647 | AF48: =LOOKUP(AF$3, Calculations!$I$4:$QJ$4, Calculations!$I389:$QJ389) -> 19459.70185 | AG48: =LOOKUP(AG$3, Calculations!$I$4:$QJ$4, Calculations!$I389:$QJ389) -> 21022.73562 | AH48: =LOOKUP(AH$3, Calculations!$I$4:$QJ$4, Calculations!$I389:$QJ389) -> 15059.54918 | AI48: =LOOKUP(AI$3, Calculations!$I$4:$QJ$4, Calculations!$I389:$QJ389) -> 20327.21462 | AJ48: =LOOKUP(AJ$3, Calculations!$I$4:$QJ$4, Calculations!$I389:$QJ389) -> 28386.4594
C49: =Calculations!C390 -> Accrued Interest: Subordinated Debt | F49: =Calculations!E390 -> EUR | I49: =LOOKUP(I$3, Calculations!$I$4:$QJ$4, Calculations!$I390:$QJ390) -> 0 | J49: =LOOKUP(J$3, Calculations!$I$4:$QJ$4, Calculations!$I390:$QJ390) -> 0 | K49: =LOOKUP(K$3, Calculations!$I$4:$QJ$4, Calculations!$I390:$QJ390) -> 45719.44707 | L49: =LOOKUP(L$3, Calculations!$I$4:$QJ$4, Calculations!$I390:$QJ390) -> 90291.70316 | M49: =LOOKUP(M$3, Calculations!$I$4:$QJ$4, Calculations!$I390:$QJ390) -> 88483.84149 | N49: =LOOKUP(N$3, Calculations!$I$4:$QJ$4, Calculations!$I390:$QJ390) -> 86446.6977 | O49: =LOOKUP(O$3, Calculations!$I$4:$QJ$4, Calculations!$I390:$QJ390) -> 41866.26522 | P49: =LOOKUP(P$3, Calculations!$I$4:$QJ$4, Calculations!$I390:$QJ390) -> 81564.56104 | Q49: =LOOKUP(Q$3, Calculations!$I$4:$QJ$4, Calculations!$I390:$QJ390) -> 78649.8793 | R49: =LOOKUP(R$3, Calculations!$I$4:$QJ$4, Calculations!$I390:$QJ390) -> 75365.54296 | S49: =LOOKUP(S$3, Calculations!$I$4:$QJ$4, Calculations!$I390:$QJ390) -> 35654.06496 | T49: =LOOKUP(T$3, Calculations!$I$4:$QJ$4, Calculations!$I390:$QJ390) -> 67494.43492 | U49: =LOOKUP(U$3, Calculations!$I$4:$QJ$4, Calculations!$I390:$QJ390) -> 62795.30901 | V49: =LOOKUP(V$3, Calculations!$I$4:$QJ$4, Calculations!$I390:$QJ390) -> 57500.21632 | W49: =LOOKUP(W$3, Calculations!$I$4:$QJ$4, Calculations!$I390:$QJ390) -> 25638.5937 | X49: =LOOKUP(X$3, Calculations!$I$4:$QJ$4, Calculations!$I390:$QJ390) -> 44810.21067 | Y49: =LOOKUP(Y$3, Calculations!$I$4:$QJ$4, Calculations!$I390:$QJ390) -> 37234.15734 | Z49: =LOOKUP(Z$3, Calculations!$I$4:$QJ$4, Calculations!$I390:$QJ390) -> 28697.27082 | AA49: =LOOKUP(AA$3, Calculations!$I$4:$QJ$4, Calculations!$I390:$QJ390) -> 9491.389752 | AB49: =LOOKUP(AB$3, Calculations!$I$4:$QJ$4, Calculations!$I390:$QJ390) -> 8238.112792 | AC49: =LOOKUP(AC$3, Calculations!$I$4:$QJ$4, Calculations!$I390:$QJ390) -> -3976.197955 | AD49: =LOOKUP(AD$3, Calculations!$I$4:$QJ$4, Calculations!$I390:$QJ390) -> -17739.58903 | AE49: =LOOKUP(AE$3, Calculations!$I$4:$QJ$4, Calculations!$I390:$QJ390) -> -16541.55353 | AF49: =LOOKUP(AF$3, Calculations!$I$4:$QJ$4, Calculations!$I390:$QJ390) -> -50724.37713 | AG49: =LOOKUP(AG$3, Calculations!$I$4:$QJ$4, Calculations!$I390:$QJ390) -> -70416.60743 | AH49: =LOOKUP(AH$3, Calculations!$I$4:$QJ$4, Calculations!$I390:$QJ390) -> 0 | AI49: =LOOKUP(AI$3, Calculations!$I$4:$QJ$4, Calculations!$I390:$QJ390) -> 0 | AJ49: =LOOKUP(AJ$3, Calculations!$I$4:$QJ$4, Calculations!$I390:$QJ390) -> 0
C50: =Calculations!C391 -> Accrued Interest: Senior Debt | F50: =Calculations!E391 -> EUR | I50: =LOOKUP(I$3, Calculations!$I$4:$QJ$4, Calculations!$I391:$QJ391) -> 0 | J50: =LOOKUP(J$3, Calculations!$I$4:$QJ$4, Calculations!$I391:$QJ391) -> 0 | K50: =LOOKUP(K$3, Calculations!$I$4:$QJ$4, Calculations!$I391:$QJ391) -> 41911.8345 | L50: =LOOKUP(L$3, Calculations!$I$4:$QJ$4, Calculations!$I391:$QJ391) -> 81061.21568 | M50: =LOOKUP(M$3, Calculations!$I$4:$QJ$4, Calculations!$I391:$QJ391) -> 77940.00664 | N50: =LOOKUP(N$3, Calculations!$I$4:$QJ$4, Calculations!$I391:$QJ391) -> 74642.73688 | O50: =LOOKUP(O$3, Calculations!$I$4:$QJ$4, Calculations!$I391:$QJ391) -> 35498.38712 | P50: =LOOKUP(P$3, Calculations!$I$4:$QJ$4, Calculations!$I391:$QJ391) -> 67479.73015 | Q50: =LOOKUP(Q$3, Calculations!$I$4:$QJ$4, Calculations!$I391:$QJ391) -> 63592.41857 | R50: =LOOKUP(R$3, Calculations!$I$4:$QJ$4, Calculations!$I391:$QJ391) -> 59485.83206 | S50: =LOOKUP(S$3, Calculations!$I$4:$QJ$4, Calculations!$I391:$QJ391) -> 27510.75542 | T50: =LOOKUP(T$3, Calculations!$I$4:$QJ$4, Calculations!$I391:$QJ391) -> 50564.66125 | U50: =LOOKUP(U$3, Calculations!$I$4:$QJ$4, Calculations!$I391:$QJ391) -> 45723.20682 | V50: =LOOKUP(V$3, Calculations!$I$4:$QJ$4, Calculations!$I391:$QJ391) -> 40608.65632 | W50: =LOOKUP(W$3, Calculations!$I$4:$QJ$4, Calculations!$I391:$QJ391) -> 17562.55496 | X50: =LOOKUP(X$3, Calculations!$I$4:$QJ$4, Calculations!$I391:$QJ391) -> 29497.77903 | Y50: =LOOKUP(Y$3, Calculations!$I$4:$QJ$4, Calculations!$I391:$QJ391) -> 23467.98686 | Z50: =LOOKUP(Z$3, Calculations!$I$4:$QJ$4, Calculations!$I391:$QJ391) -> 17098.06701 | AA50: =LOOKUP(AA$3, Calculations!$I$4:$QJ$4, Calculations!$I391:$QJ391) -> 5172.563015 | AB50: =LOOKUP(AB$3, Calculations!$I$4:$QJ$4, Calculations!$I391:$QJ391) -> 3260.018554 | AC50: =LOOKUP(AC$3, Calculations!$I$4:$QJ$4, Calculations!$I391:$QJ391) -> 0 | AD50: =LOOKUP(AD$3, Calculations!$I$4:$QJ$4, Calculations!$I391:$QJ391) -> 0 | AE50: =LOOKUP(AE$3, Calculations!$I$4:$QJ$4, Calculations!$I391:$QJ391) -> 0 | AF50: =LOOKUP(AF$3, Calculations!$I$4:$QJ$4, Calculations!$I391:$QJ391) -> 0 | AG50: =LOOKUP(AG$3, Calculations!$I$4:$QJ$4, Calculations!$I391:$QJ391) -> 0 | AH50: =LOOKUP(AH$3, Calculations!$I$4:$QJ$4, Calculations!$I391:$QJ391) -> 0 | AI50: =LOOKUP(AI$3, Calculations!$I$4:$QJ$4, Calculations!$I391:$QJ391) -> 0 | AJ50: =LOOKUP(AJ$3, Calculations!$I$4:$QJ$4, Calculations!$I391:$QJ391) -> 0
C51: =Calculations!C392 -> Income Tax Payable | F51: =Calculations!E392 -> EUR | I51: =LOOKUP(I$3, Calculations!$I$4:$QJ$4, Calculations!$I392:$QJ392) -> 0 | J51: =LOOKUP(J$3, Calculations!$I$4:$QJ$4, Calculations!$I392:$QJ392) -> 0 | K51: =LOOKUP(K$3, Calculations!$I$4:$QJ$4, Calculations!$I392:$QJ392) -> 0 | L51: =LOOKUP(L$3, Calculations!$I$4:$QJ$4, Calculations!$I392:$QJ392) -> 0 | M51: =LOOKUP(M$3, Calculations!$I$4:$QJ$4, Calculations!$I392:$QJ392) -> 0 | N51: =LOOKUP(N$3, Calculations!$I$4:$QJ$4, Calculations!$I392:$QJ392) -> 0 | O51: =LOOKUP(O$3, Calculations!$I$4:$QJ$4, Calculations!$I392:$QJ392) -> 0 | P51: =LOOKUP(P$3, Calculations!$I$4:$QJ$4, Calculations!$I392:$QJ392) -> 0 | Q51: =LOOKUP(Q$3, Calculations!$I$4:$QJ$4, Calculations!$I392:$QJ392) -> 0 | R51: =LOOKUP(R$3, Calculations!$I$4:$QJ$4, Calculations!$I392:$QJ392) -> 0 | S51: =LOOKUP(S$3, Calculations!$I$4:$QJ$4, Calculations!$I392:$QJ392) -> 0 | T51: =LOOKUP(T$3, Calculations!$I$4:$QJ$4, Calculations!$I392:$QJ392) -> 0 | U51: =LOOKUP(U$3, Calculations!$I$4:$QJ$4, Calculations!$I392:$QJ392) -> 0 | V51: =LOOKUP(V$3, Calculations!$I$4:$QJ$4, Calculations!$I392:$QJ392) -> 0 | W51: =LOOKUP(W$3, Calculations!$I$4:$QJ$4, Calculations!$I392:$QJ392) -> 0 | X51: =LOOKUP(X$3, Calculations!$I$4:$QJ$4, Calculations!$I392:$QJ392) -> 0 | Y51: =LOOKUP(Y$3, Calculations!$I$4:$QJ$4, Calculations!$I392:$QJ392) -> 0 | Z51: =LOOKUP(Z$3, Calculations!$I$4:$QJ$4, Calculations!$I392:$QJ392) -> 0 | AA51: =LOOKUP(AA$3, Calculations!$I$4:$QJ$4, Calculations!$I392:$QJ392) -> 0 | AB51: =LOOKUP(AB$3, Calculations!$I$4:$QJ$4, Calculations!$I392:$QJ392) -> 0 | AC51: =LOOKUP(AC$3, Calculations!$I$4:$QJ$4, Calculations!$I392:$QJ392) -> 0 | AD51: =LOOKUP(AD$3, Calculations!$I$4:$QJ$4, Calculations!$I392:$QJ392) -> 116.6308933 | AE51: =LOOKUP(AE$3, Calculations!$I$4:$QJ$4, Calculations!$I392:$QJ392) -> 9799.595365 | AF51: =LOOKUP(AF$3, Calculations!$I$4:$QJ$4, Calculations!$I392:$QJ392) -> 2481.046729 | AG51: =LOOKUP(AG$3, Calculations!$I$4:$QJ$4, Calculations!$I392:$QJ392) -> 3932.409359 | AH51: =LOOKUP(AH$3, Calculations!$I$4:$QJ$4, Calculations!$I392:$QJ392) -> 0 | AI51: =LOOKUP(AI$3, Calculations!$I$4:$QJ$4, Calculations!$I392:$QJ392) -> 5839.370432 | AJ51: =LOOKUP(AJ$3, Calculations!$I$4:$QJ$4, Calculations!$I392:$QJ392) -> 0
C52: =Calculations!C393 -> Current Portion of Subordinated Debt | F52: =Calculations!E393 -> EUR | I52: =LOOKUP(I$3, Calculations!$I$4:$QJ$4, Calculations!$I393:$QJ393) -> 0 | J52: =LOOKUP(J$3, Calculations!$I$4:$QJ$4, Calculations!$I393:$QJ393) -> 0 | K52: =LOOKUP(K$3, Calculations!$I$4:$QJ$4, Calculations!$I393:$QJ393) -> 79820.17134 | L52: =LOOKUP(L$3, Calculations!$I$4:$QJ$4, Calculations!$I393:$QJ393) -> 89943.36698 | M52: =LOOKUP(M$3, Calculations!$I$4:$QJ$4, Calculations!$I393:$QJ393) -> 101350.4372 | N52: =LOOKUP(N$3, Calculations!$I$4:$QJ$4, Calculations!$I393:$QJ393) -> 114204.2095 | O52: =LOOKUP(O$3, Calculations!$I$4:$QJ$4, Calculations!$I393:$QJ393) -> 128688.1618 | P52: =LOOKUP(P$3, Calculations!$I$4:$QJ$4, Calculations!$I393:$QJ393) -> 145009.0418 | Q52: =LOOKUP(Q$3, Calculations!$I$4:$QJ$4, Calculations!$I393:$QJ393) -> 163399.8179 | R52: =LOOKUP(R$3, Calculations!$I$4:$QJ$4, Calculations!$I393:$QJ393) -> 184123.0047 | S52: =LOOKUP(S$3, Calculations!$I$4:$QJ$4, Calculations!$I393:$QJ393) -> 207474.4103 | T52: =LOOKUP(T$3, Calculations!$I$4:$QJ$4, Calculations!$I393:$QJ393) -> 233787.3586 | U52: =LOOKUP(U$3, Calculations!$I$4:$QJ$4, Calculations!$I393:$QJ393) -> 263437.4474 | V52: =LOOKUP(V$3, Calculations!$I$4:$QJ$4, Calculations!$I393:$QJ393) -> 296847.9096 | W52: =LOOKUP(W$3, Calculations!$I$4:$QJ$4, Calculations!$I393:$QJ393) -> 334495.6547 | X52: =LOOKUP(X$3, Calculations!$I$4:$QJ$4, Calculations!$I393:$QJ393) -> 376918.0762 | Y52: =LOOKUP(Y$3, Calculations!$I$4:$QJ$4, Calculations!$I393:$QJ393) -> 424720.7226 | Z52: =LOOKUP(Z$3, Calculations!$I$4:$QJ$4, Calculations!$I393:$QJ393) -> 478585.941 | AA52: =LOOKUP(AA$3, Calculations!$I$4:$QJ$4, Calculations!$I393:$QJ393) -> 539282.6174 | AB52: =LOOKUP(AB$3, Calculations!$I$4:$QJ$4, Calculations!$I393:$QJ393) -> 409856.3578 | AC52: =LOOKUP(AC$3, Calculations!$I$4:$QJ$4, Calculations!$I393:$QJ393) -> -197820.7938 | AD52: =LOOKUP(AD$3, Calculations!$I$4:$QJ$4, Calculations!$I393:$QJ393) -> -882566.6185 | AE52: =LOOKUP(AE$3, Calculations!$I$4:$QJ$4, Calculations!$I393:$QJ393) -> -1654155.353 | AF52: =LOOKUP(AF$3, Calculations!$I$4:$QJ$4, Calculations!$I393:$QJ393) -> -2523600.852 | AG52: =LOOKUP(AG$3, Calculations!$I$4:$QJ$4, Calculations!$I393:$QJ393) -> -3503313.803 | AH52: =LOOKUP(AH$3, Calculations!$I$4:$QJ$4, Calculations!$I393:$QJ393) -> 0 | AI52: =LOOKUP(AI$3, Calculations!$I$4:$QJ$4, Calculations!$I393:$QJ393) -> 0 | AJ52: =LOOKUP(AJ$3, Calculations!$I$4:$QJ$4, Calculations!$I393:$QJ393) -> 0
C53: =Calculations!C394 -> Current Portion of Senior Debt | F53: =Calculations!E394 -> EUR | I53: =LOOKUP(I$3, Calculations!$I$4:$QJ$4, Calculations!$I394:$QJ394) -> 380000 | J53: =LOOKUP(J$3, Calculations!$I$4:$QJ$4, Calculations!$I394:$QJ394) -> 35599.7447 | K53: =LOOKUP(K$3, Calculations!$I$4:$QJ$4, Calculations!$I394:$QJ394) -> 321577.5138 | L53: =LOOKUP(L$3, Calculations!$I$4:$QJ$4, Calculations!$I394:$QJ394) -> 339717.0133 | M53: =LOOKUP(M$3, Calculations!$I$4:$QJ$4, Calculations!$I394:$QJ394) -> 358879.7232 | N53: =LOOKUP(N$3, Calculations!$I$4:$QJ$4, Calculations!$I394:$QJ394) -> 379123.3605 | O53: =LOOKUP(O$3, Calculations!$I$4:$QJ$4, Calculations!$I394:$QJ394) -> 400508.8981 | P53: =LOOKUP(P$3, Calculations!$I$4:$QJ$4, Calculations!$I394:$QJ394) -> 423100.7481 | Q53: =LOOKUP(Q$3, Calculations!$I$4:$QJ$4, Calculations!$I394:$QJ394) -> 446966.956 | R53: =LOOKUP(R$3, Calculations!$I$4:$QJ$4, Calculations!$I394:$QJ394) -> 472179.4056 | S53: =LOOKUP(S$3, Calculations!$I$4:$QJ$4, Calculations!$I394:$QJ394) -> 498814.0356 | T53: =LOOKUP(T$3, Calculations!$I$4:$QJ$4, Calculations!$I394:$QJ394) -> 526951.0681 | U53: =LOOKUP(U$3, Calculations!$I$4:$QJ$4, Calculations!$I394:$QJ394) -> 556675.2504 | V53: =LOOKUP(V$3, Calculations!$I$4:$QJ$4, Calculations!$I394:$QJ394) -> 588076.1102 | W53: =LOOKUP(W$3, Calculations!$I$4:$QJ$4, Calculations!$I394:$QJ394) -> 621248.2253 | X53: =LOOKUP(X$3, Calculations!$I$4:$QJ$4, Calculations!$I394:$QJ394) -> 656291.5085 | Y53: =LOOKUP(Y$3, Calculations!$I$4:$QJ$4, Calculations!$I394:$QJ394) -> 693311.5083 | Z53: =LOOKUP(Z$3, Calculations!$I$4:$QJ$4, Calculations!$I394:$QJ394) -> 732419.727 | AA53: =LOOKUP(AA$3, Calculations!$I$4:$QJ$4, Calculations!$I394:$QJ394) -> 773733.9567 | AB53: =LOOKUP(AB$3, Calculations!$I$4:$QJ$4, Calculations!$I394:$QJ394) -> 354825.2465 | AC53: =LOOKUP(AC$3, Calculations!$I$4:$QJ$4, Calculations!$I394:$QJ394) -> 0 | AD53: =LOOKUP(AD$3, Calculations!$I$4:$QJ$4, Calculations!$I394:$QJ394) -> 0 | AE53: =LOOKUP(AE$3, Calculations!$I$4:$QJ$4, Calculations!$I394:$QJ394) -> 0 | AF53: =LOOKUP(AF$3, Calculations!$I$4:$QJ$4, Calculations!$I394:$QJ394) -> 0 | AG53: =LOOKUP(AG$3, Calculations!$I$4:$QJ$4, Calculations!$I394:$QJ394) -> 0 | AH53: =LOOKUP(AH$3, Calculations!$I$4:$QJ$4, Calculations!$I394:$QJ394) -> 0 | AI53: =LOOKUP(AI$3, Calculations!$I$4:$QJ$4, Calculations!$I394:$QJ394) -> 0 | AJ53: =LOOKUP(AJ$3, Calculations!$I$4:$QJ$4, Calculations!$I394:$QJ394) -> 0
C54: =Calculations!C395 -> Total Current Liabilities | F54: =Calculations!E395 -> EUR | I54: =SUM(I48:I53) -> 380000 | J54: =SUM(J48:J53) -> 35599.7447 | K54: 494086.6057 | L54: 606197.3791 | M54: 631967.6904 | N54: 659863.5285 | O54: 612144.3993 | P54: 722876.3353 | Q54: 758474.3823 | R54: 797165.7287 | S54: 775615.5083 | T54: 885113.8209 | U54: 935105.4191 | V54: 989668.9531 | W54: 1005746.991 | X54: 1114489.586 | Y54: 1185880.686 | Z54: 1264125.975 | AA54: 1335188.62 | AB54: 783875.5315 | AC54: -193908.801 | AD54: -883305.0339 | AE54: -1637539.265 | AF54: -2552384.481 | AG54: =SUM(AG48:AG53) -> -3548775.265 | AH54: 15059.54918 | AI54: 26166.58505 | AJ54: 28386.4594
B56: Non-Current Liabilities
C57: =Calculations!C398 -> Subordinated Debt | F57: =Calculations!E398 -> EUR | I57: =LOOKUP(I$3, Calculations!$I$4:$QJ$4, Calculations!$I398:$QJ398) -> 2295000 | J57: =LOOKUP(J$3, Calculations!$I$4:$QJ$4, Calculations!$I398:$QJ398) -> 4590000 | K57: =LOOKUP(K$3, Calculations!$I$4:$QJ$4, Calculations!$I398:$QJ398) -> 4492124.535 | L57: =LOOKUP(L$3, Calculations!$I$4:$QJ$4, Calculations!$I398:$QJ398) -> 4402181.168 | M57: =LOOKUP(M$3, Calculations!$I$4:$QJ$4, Calculations!$I398:$QJ398) -> 4300830.731 | N57: =LOOKUP(N$3, Calculations!$I$4:$QJ$4, Calculations!$I398:$QJ398) -> 4186626.522 | O57: =LOOKUP(O$3, Calculations!$I$4:$QJ$4, Calculations!$I398:$QJ398) -> 4057938.36 | P57: =LOOKUP(P$3, Calculations!$I$4:$QJ$4, Calculations!$I398:$QJ398) -> 3912929.318 | Q57: =LOOKUP(Q$3, Calculations!$I$4:$QJ$4, Calculations!$I398:$QJ398) -> 3749529.5 | R57: =LOOKUP(R$3, Calculations!$I$4:$QJ$4, Calculations!$I398:$QJ398) -> 3565406.496 | S57: =LOOKUP(S$3, Calculations!$I$4:$QJ$4, Calculations!$I398:$QJ398) -> 3357932.085 | T57: =LOOKUP(T$3, Calculations!$I$4:$QJ$4, Calculations!$I398:$QJ398) -> 3124144.727 | U57: =LOOKUP(U$3, Calculations!$I$4:$QJ$4, Calculations!$I398:$QJ398) -> 2860707.279 | V57: =LOOKUP(V$3, Calculations!$I$4:$QJ$4, Calculations!$I398:$QJ398) -> 2563859.37 | W57: =LOOKUP(W$3, Calculations!$I$4:$QJ$4, Calculations!$I398:$QJ398) -> 2229363.715 | X57: =LOOKUP(X$3, Calculations!$I$4:$QJ$4, Calculations!$I398:$QJ398) -> 1852445.639 | Y57: =LOOKUP(Y$3, Calculations!$I$4:$QJ$4, Calculations!$I398:$QJ398) -> 1427724.916 | Z57: =LOOKUP(Z$3, Calculations!$I$4:$QJ$4, Calculations!$I398:$QJ398) -> 949138.9752 | AA57: =LOOKUP(AA$3, Calculations!$I$4:$QJ$4, Calculations!$I398:$QJ398) -> 409856.3578 | AB57: =LOOKUP(AB$3, Calculations!$I$4:$QJ$4, Calculations!$I398:$QJ398) -> 0 | AC57: =LOOKUP(AC$3, Calculations!$I$4:$QJ$4, Calculations!$I398:$QJ398) -> 0 | AD57: =LOOKUP(AD$3, Calculations!$I$4:$QJ$4, Calculations!$I398:$QJ398) -> 0 | AE57: =LOOKUP(AE$3, Calculations!$I$4:$QJ$4, Calculations!$I398:$QJ398) -> 0 | AF57: =LOOKUP(AF$3, Calculations!$I$4:$QJ$4, Calculations!$I398:$QJ398) -> 0 | AG57: =LOOKUP(AG$3, Calculations!$I$4:$QJ$4, Calculations!$I398:$QJ398) -> 0 | AH57: =LOOKUP(AH$3, Calculations!$I$4:$QJ$4, Calculations!$I398:$QJ398) -> 0 | AI57: =LOOKUP(AI$3, Calculations!$I$4:$QJ$4, Calculations!$I398:$QJ398) -> 0 | AJ57: =LOOKUP(AJ$3, Calculations!$I$4:$QJ$4, Calculations!$I398:$QJ398) -> 0
C58: =Calculations!C399 -> Long-Term Senior Debt | F58: =Calculations!E399 -> EUR | I58: =LOOKUP(I$3, Calculations!$I$4:$QJ$4, Calculations!$I399:$QJ399) -> 0 | J58: =LOOKUP(J$3, Calculations!$I$4:$QJ$4, Calculations!$I399:$QJ399) -> 5969400.255 | K58: =LOOKUP(K$3, Calculations!$I$4:$QJ$4, Calculations!$I399:$QJ399) -> 8822822.741 | L58: =LOOKUP(L$3, Calculations!$I$4:$QJ$4, Calculations!$I399:$QJ399) -> 8483105.728 | M58: =LOOKUP(M$3, Calculations!$I$4:$QJ$4, Calculations!$I399:$QJ399) -> 8124226.005 | N58: =LOOKUP(N$3, Calculations!$I$4:$QJ$4, Calculations!$I399:$QJ399) -> 7745102.645 | O58: =LOOKUP(O$3, Calculations!$I$4:$QJ$4, Calculations!$I399:$QJ399) -> 7344593.746 | P58: =LOOKUP(P$3, Calculations!$I$4:$QJ$4, Calculations!$I399:$QJ399) -> 6921492.998 | Q58: =LOOKUP(Q$3, Calculations!$I$4:$QJ$4, Calculations!$I399:$QJ399) -> 6474526.042 | R58: =LOOKUP(R$3, Calculations!$I$4:$QJ$4, Calculations!$I399:$QJ399) -> 6002346.637 | S58: =LOOKUP(S$3, Calculations!$I$4:$QJ$4, Calculations!$I399:$QJ399) -> 5503532.601 | T58: =LOOKUP(T$3, Calculations!$I$4:$QJ$4, Calculations!$I399:$QJ399) -> 4976581.533 | U58: =LOOKUP(U$3, Calculations!$I$4:$QJ$4, Calculations!$I399:$QJ399) -> 4419906.283 | V58: =LOOKUP(V$3, Calculations!$I$4:$QJ$4, Calculations!$I399:$QJ399) -> 3831830.172 | W58: =LOOKUP(W$3, Calculations!$I$4:$QJ$4, Calculations!$I399:$QJ399) -> 3210581.947 | X58: =LOOKUP(X$3, Calculations!$I$4:$QJ$4, Calculations!$I399:$QJ399) -> 2554290.439 | Y58: =LOOKUP(Y$3, Calculations!$I$4:$QJ$4, Calculations!$I399:$QJ399) -> 1860978.93 | Z58: =LOOKUP(Z$3, Calculations!$I$4:$QJ$4, Calculations!$I399:$QJ399) -> 1128559.203 | AA58: =LOOKUP(AA$3, Calculations!$I$4:$QJ$4, Calculations!$I399:$QJ399) -> 354825.2465 | AB58: =LOOKUP(AB$3, Calculations!$I$4:$QJ$4, Calculations!$I399:$QJ399) -> 0 | AC58: =LOOKUP(AC$3, Calculations!$I$4:$QJ$4, Calculations!$I399:$QJ399) -> 0 | AD58: =LOOKUP(AD$3, Calculations!$I$4:$QJ$4, Calculations!$I399:$QJ399) -> 0 | AE58: =LOOKUP(AE$3, Calculations!$I$4:$QJ$4, Calculations!$I399:$QJ399) -> 0 | AF58: =LOOKUP(AF$3, Calculations!$I$4:$QJ$4, Calculations!$I399:$QJ399) -> 0 | AG58: =LOOKUP(AG$3, Calculations!$I$4:$QJ$4, Calculations!$I399:$QJ399) -> 0 | AH58: =LOOKUP(AH$3, Calculations!$I$4:$QJ$4, Calculations!$I399:$QJ399) -> 0 | AI58: =LOOKUP(AI$3, Calculations!$I$4:$QJ$4, Calculations!$I399:$QJ399) -> 0 | AJ58: =LOOKUP(AJ$3, Calculations!$I$4:$QJ$4, Calculations!$I399:$QJ399) -> 0
C59: =Calculations!C400 -> Total Non-Current Liabilities | F59: =Calculations!E400 -> EUR | I59: =SUM(I57:I58) -> 2295000 | J59: 10559400.26 | K59: 13314947.28 | L59: 12885286.9 | M59: 12425056.74 | N59: 11931729.17 | O59: 11402532.11 | P59: 10834422.32 | Q59: 10224055.54 | R59: 9567753.133 | S59: 8861464.687 | T59: 8100726.26 | U59: 7280613.562 | V59: 6395689.542 | W59: 5439945.662 | X59: 4406736.077 | Y59: 3288703.847 | Z59: 2077698.179 | AA59: 764681.6044 | AB59: 0 | AC59: 0 | AD59: 0 | AE59: 0 | AF59: 0 | AG59: 0 | AH59: 0 | AI59: 0 | AJ59: =SUM(AJ57:AJ58) -> 0
B61: Total Liabilities | F61: =Calculations!E402 -> EUR | I61: =I54+I59 -> 2675000 | J61: 10595000 | K61: 13809033.88 | L61: 13491484.28 | M61: 13057024.43 | N61: 12591592.69 | O61: 12014676.51 | P61: 11557298.65 | Q61: 10982529.93 | R61: 10364918.86 | S61: 9637080.195 | T61: 8985840.081 | U61: 8215718.981 | V61: 7385358.495 | W61: 6445692.653 | X61: 5521225.663 | Y61: 4474584.533 | Z61: 3341824.154 | AA61: 2099870.225 | AB61: 783875.5315 | AC61: -193908.801 | AD61: -883305.0339 | AE61: -1637539.265 | AF61: -2552384.481 | AG61: -3548775.265 | AH61: 15059.54918 | AI61: 26166.58505 | AJ61: =AJ54+AJ59 -> 28386.4594
B63: Shareholders' Equity
C64: =Calculations!C405 -> Share Capital | F64: =Calculations!E405 -> EUR | I64: =LOOKUP(I$3, Calculations!$I$4:$QJ$4, Calculations!$I405:$QJ405) -> 4590000 | J64: =LOOKUP(J$3, Calculations!$I$4:$QJ$4, Calculations!$I405:$QJ405) -> 4590000 | K64: =LOOKUP(K$3, Calculations!$I$4:$QJ$4, Calculations!$I405:$QJ405) -> 4590000 | L64: =LOOKUP(L$3, Calculations!$I$4:$QJ$4, Calculations!$I405:$QJ405) -> 4590000 | M64: =LOOKUP(M$3, Calculations!$I$4:$QJ$4, Calculations!$I405:$QJ405) -> 4590000 | N64: =LOOKUP(N$3, Calculations!$I$4:$QJ$4, Calculations!$I405:$QJ405) -> 4590000 | O64: =LOOKUP(O$3, Calculations!$I$4:$QJ$4, Calculations!$I405:$QJ405) -> 4590000 | P64: =LOOKUP(P$3, Calculations!$I$4:$QJ$4, Calculations!$I405:$QJ405) -> 4590000 | Q64: =LOOKUP(Q$3, Calculations!$I$4:$QJ$4, Calculations!$I405:$QJ405) -> 4590000 | R64: =LOOKUP(R$3, Calculations!$I$4:$QJ$4, Calculations!$I405:$QJ405) -> 4590000 | S64: =LOOKUP(S$3, Calculations!$I$4:$QJ$4, Calculations!$I405:$QJ405) -> 4590000 | T64: =LOOKUP(T$3, Calculations!$I$4:$QJ$4, Calculations!$I405:$QJ405) -> 4590000 | U64: =LOOKUP(U$3, Calculations!$I$4:$QJ$4, Calculations!$I405:$QJ405) -> 4590000 | V64: =LOOKUP(V$3, Calculations!$I$4:$QJ$4, Calculations!$I405:$QJ405) -> 4590000 | W64: =LOOKUP(W$3, Calculations!$I$4:$QJ$4, Calculations!$I405:$QJ405) -> 4590000 | X64: =LOOKUP(X$3, Calculations!$I$4:$QJ$4, Calculations!$I405:$QJ405) -> 4590000 | Y64: =LOOKUP(Y$3, Calculations!$I$4:$QJ$4, Calculations!$I405:$QJ405) -> 4590000 | Z64: =LOOKUP(Z$3, Calculations!$I$4:$QJ$4, Calculations!$I405:$QJ405) -> 4590000 | AA64: =LOOKUP(AA$3, Calculations!$I$4:$QJ$4, Calculations!$I405:$QJ405) -> 4590000 | AB64: =LOOKUP(AB$3, Calculations!$I$4:$QJ$4, Calculations!$I405:$QJ405) -> 4590000 | AC64: =LOOKUP(AC$3, Calculations!$I$4:$QJ$4, Calculations!$I405:$QJ405) -> 4590000 | AD64: =LOOKUP(AD$3, Calculations!$I$4:$QJ$4, Calculations!$I405:$QJ405) -> 4590000 | AE64: =LOOKUP(AE$3, Calculations!$I$4:$QJ$4, Calculations!$I405:$QJ405) -> 4590000 | AF64: =LOOKUP(AF$3, Calculations!$I$4:$QJ$4, Calculations!$I405:$QJ405) -> 4590000 | AG64: =LOOKUP(AG$3, Calculations!$I$4:$QJ$4, Calculations!$I405:$QJ405) -> 4590000 | AH64: =LOOKUP(AH$3, Calculations!$I$4:$QJ$4, Calculations!$I405:$QJ405) -> 4590000 | AI64: =LOOKUP(AI$3, Calculations!$I$4:$QJ$4, Calculations!$I405:$QJ405) -> 4590000 | AJ64: =LOOKUP(AJ$3, Calculations!$I$4:$QJ$4, Calculations!$I405:$QJ405) -> 4590000
C65: =Calculations!C406 -> Retained Earnings | F65: =Calculations!E406 -> EUR | I65: =LOOKUP(I$3, Calculations!$I$4:$QJ$4, Calculations!$I406:$QJ406) -> 0 | J65: =LOOKUP(J$3, Calculations!$I$4:$QJ$4, Calculations!$I406:$QJ406) -> 0 | K65: =LOOKUP(K$3, Calculations!$I$4:$QJ$4, Calculations!$I406:$QJ406) -> -49091 | L65: =LOOKUP(L$3, Calculations!$I$4:$QJ$4, Calculations!$I406:$QJ406) -> -586100 | M65: =LOOKUP(M$3, Calculations!$I$4:$QJ$4, Calculations!$I406:$QJ406) -> -995132 | N65: =LOOKUP(N$3, Calculations!$I$4:$QJ$4, Calculations!$I406:$QJ406) -> -1396273 | O65: =LOOKUP(O$3, Calculations!$I$4:$QJ$4, Calculations!$I406:$QJ406) -> -1664890 | P65: =LOOKUP(P$3, Calculations!$I$4:$QJ$4, Calculations!$I406:$QJ406) -> -2156225 | Q65: =LOOKUP(Q$3, Calculations!$I$4:$QJ$4, Calculations!$I406:$QJ406) -> -2493042 | R65: =LOOKUP(R$3, Calculations!$I$4:$QJ$4, Calculations!$I406:$QJ406) -> -2537307 | S65: =LOOKUP(S$3, Calculations!$I$4:$QJ$4, Calculations!$I406:$QJ406) -> -2217633 | T65: =LOOKUP(T$3, Calculations!$I$4:$QJ$4, Calculations!$I406:$QJ406) -> -2012485 | U65: =LOOKUP(U$3, Calculations!$I$4:$QJ$4, Calculations!$I406:$QJ406) -> -1726859 | V65: =LOOKUP(V$3, Calculations!$I$4:$QJ$4, Calculations!$I406:$QJ406) -> -1425599 | W65: =LOOKUP(W$3, Calculations!$I$4:$QJ$4, Calculations!$I406:$QJ406) -> -1031239 | X65: =LOOKUP(X$3, Calculations!$I$4:$QJ$4, Calculations!$I406:$QJ406) -> -590646 | Y65: =LOOKUP(Y$3, Calculations!$I$4:$QJ$4, Calculations!$I406:$QJ406) -> -45734 | Z65: =LOOKUP(Z$3, Calculations!$I$4:$QJ$4, Calculations!$I406:$QJ406) -> 551279 | AA65: =LOOKUP(AA$3, Calculations!$I$4:$QJ$4, Calculations!$I406:$QJ406) -> 1235549 | AB65: =LOOKUP(AB$3, Calculations!$I$4:$QJ$4, Calculations!$I406:$QJ406) -> 1929900 | AC65: =LOOKUP(AC$3, Calculations!$I$4:$QJ$4, Calculations!$I406:$QJ406) -> 2756008 | AD65: =LOOKUP(AD$3, Calculations!$I$4:$QJ$4, Calculations!$I406:$QJ406) -> 3633314 | AE65: =LOOKUP(AE$3, Calculations!$I$4:$QJ$4, Calculations!$I406:$QJ406) -> 4564707 | AF65: =LOOKUP(AF$3, Calculations!$I$4:$QJ$4, Calculations!$I406:$QJ406) -> 5551197 | AG65: =LOOKUP(AG$3, Calculations!$I$4:$QJ$4, Calculations!$I406:$QJ406) -> 6612297 | AH65: =LOOKUP(AH$3, Calculations!$I$4:$QJ$4, Calculations!$I406:$QJ406) -> 7469075 | AI65: =LOOKUP(AI$3, Calculations!$I$4:$QJ$4, Calculations!$I406:$QJ406) -> 8199967 | AJ65: =LOOKUP(AJ$3, Calculations!$I$4:$QJ$4, Calculations!$I406:$QJ406) -> 7228905
C66: =Calculations!C407 -> Rounding | F66: =Calculations!E407 -> 0 | I66: =LOOKUP(I$3, Calculations!$I$4:$QJ$4, Calculations!$I407:$QJ407) -> 0 | J66: =LOOKUP(J$3, Calculations!$I$4:$QJ$4, Calculations!$I407:$QJ407) -> 0 | K66: =LOOKUP(K$3, Calculations!$I$4:$QJ$4, Calculations!$I407:$QJ407) -> -0.01716455445 | L66: =LOOKUP(L$3, Calculations!$I$4:$QJ$4, Calculations!$I407:$QJ407) -> 1.215265136 | M66: =LOOKUP(M$3, Calculations!$I$4:$QJ$4, Calculations!$I407:$QJ407) -> 0.05654422753 | N66: =LOOKUP(N$3, Calculations!$I$4:$QJ$4, Calculations!$I407:$QJ407) -> 0.4999973737 | O66: =LOOKUP(O$3, Calculations!$I$4:$QJ$4, Calculations!$I407:$QJ407) -> -0.9396050945 | P66: =LOOKUP(P$3, Calculations!$I$4:$QJ$4, Calculations!$I407:$QJ407) -> -2.025168851 | Q66: =LOOKUP(Q$3, Calculations!$I$4:$QJ$4, Calculations!$I407:$QJ407) -> -2.867563834 | R66: =LOOKUP(R$3, Calculations!$I$4:$QJ$4, Calculations!$I407:$QJ407) -> -2.733983222 | S66: =LOOKUP(S$3, Calculations!$I$4:$QJ$4, Calculations!$I407:$QJ407) -> -2.354632424 | T66: =LOOKUP(T$3, Calculations!$I$4:$QJ$4, Calculations!$I407:$QJ407) -> -2.456757596 | U66: =LOOKUP(U$3, Calculations!$I$4:$QJ$4, Calculations!$I407:$QJ407) -> -1.190504828 | V66: =LOOKUP(V$3, Calculations!$I$4:$QJ$4, Calculations!$I407:$QJ407) -> -0.2717502983 | W66: =LOOKUP(W$3, Calculations!$I$4:$QJ$4, Calculations!$I407:$QJ407) -> -0.7065538708 | X66: =LOOKUP(X$3, Calculations!$I$4:$QJ$4, Calculations!$I407:$QJ407) -> -0.1321852896 | Y66: =LOOKUP(Y$3, Calculations!$I$4:$QJ$4, Calculations!$I407:$QJ407) -> 1.529266521 | Z66: =LOOKUP(Z$3, Calculations!$I$4:$QJ$4, Calculations!$I407:$QJ407) -> 2.350192349 | AA66: =LOOKUP(AA$3, Calculations!$I$4:$QJ$4, Calculations!$I407:$QJ407) -> 2.095222731 | AB66: =LOOKUP(AB$3, Calculations!$I$4:$QJ$4, Calculations!$I407:$QJ407) -> 1.239396769 | AC66: =LOOKUP(AC$3, Calculations!$I$4:$QJ$4, Calculations!$I407:$QJ407) -> 354826.4431 | AD66: =LOOKUP(AD$3, Calculations!$I$4:$QJ$4, Calculations!$I407:$QJ407) -> 354827.6745 | AE66: =LOOKUP(AE$3, Calculations!$I$4:$QJ$4, Calculations!$I407:$QJ407) -> 354828.0976 | AF66: =LOOKUP(AF$3, Calculations!$I$4:$QJ$4, Calculations!$I407:$QJ407) -> 354826.9118 | AG66: =LOOKUP(AG$3, Calculations!$I$4:$QJ$4, Calculations!$I407:$QJ407) -> 354826.4087 | AH66: =LOOKUP(AH$3, Calculations!$I$4:$QJ$4, Calculations!$I407:$QJ407) -> 354825.2948 | AI66: =LOOKUP(AI$3, Calculations!$I$4:$QJ$4, Calculations!$I407:$QJ407) -> 354825.0962 | AJ66: =LOOKUP(AJ$3, Calculations!$I$4:$QJ$4, Calculations!$I407:$QJ407) -> 354825.1246
C67: =Calculations!C408 -> Total Shareholders' Equity | F67: =Calculations!E408 -> EUR | I67: =LOOKUP(I$3, Calculations!$I$4:$QJ$4, Calculations!$I408:$QJ408) -> 4590000 | J67: =LOOKUP(J$3, Calculations!$I$4:$QJ$4, Calculations!$I408:$QJ408) -> 4590000 | K67: =LOOKUP(K$3, Calculations!$I$4:$QJ$4, Calculations!$I408:$QJ408) -> 4540908.983 | L67: =LOOKUP(L$3, Calculations!$I$4:$QJ$4, Calculations!$I408:$QJ408) -> 4003901.215 | M67: =LOOKUP(M$3, Calculations!$I$4:$QJ$4, Calculations!$I408:$QJ408) -> 3594868.057 | N67: =LOOKUP(N$3, Calculations!$I$4:$QJ$4, Calculations!$I408:$QJ408) -> 3193727.5 | O67: =LOOKUP(O$3, Calculations!$I$4:$QJ$4, Calculations!$I408:$QJ408) -> 2925109.06 | P67: =LOOKUP(P$3, Calculations!$I$4:$QJ$4, Calculations!$I408:$QJ408) -> 2433772.975 | Q67: =LOOKUP(Q$3, Calculations!$I$4:$QJ$4, Calculations!$I408:$QJ408) -> 2096955.132 | R67: =LOOKUP(R$3, Calculations!$I$4:$QJ$4, Calculations!$I408:$QJ408) -> 2052690.266 | S67: =LOOKUP(S$3, Calculations!$I$4:$QJ$4, Calculations!$I408:$QJ408) -> 2372364.645 | T67: =LOOKUP(T$3, Calculations!$I$4:$QJ$4, Calculations!$I408:$QJ408) -> 2577512.543 | U67: =LOOKUP(U$3, Calculations!$I$4:$QJ$4, Calculations!$I408:$QJ408) -> 2863139.809 | V67: =LOOKUP(V$3, Calculations!$I$4:$QJ$4, Calculations!$I408:$QJ408) -> 3164400.728 | W67: =LOOKUP(W$3, Calculations!$I$4:$QJ$4, Calculations!$I408:$QJ408) -> 3558760.293 | X67: =LOOKUP(X$3, Calculations!$I$4:$QJ$4, Calculations!$I408:$QJ408) -> 3999353.868 | Y67: =LOOKUP(Y$3, Calculations!$I$4:$QJ$4, Calculations!$I408:$QJ408) -> 4544267.529 | Z67: =LOOKUP(Z$3, Calculations!$I$4:$QJ$4, Calculations!$I408:$QJ408) -> 5141281.35 | AA67: =LOOKUP(AA$3, Calculations!$I$4:$QJ$4, Calculations!$I408:$QJ408) -> 5825551.095 | AB67: =LOOKUP(AB$3, Calculations!$I$4:$QJ$4, Calculations!$I408:$QJ408) -> 6519901.239 | AC67: =LOOKUP(AC$3, Calculations!$I$4:$QJ$4, Calculations!$I408:$QJ408) -> 7700834.443 | AD67: =LOOKUP(AD$3, Calculations!$I$4:$QJ$4, Calculations!$I408:$QJ408) -> 8578141.674 | AE67: =LOOKUP(AE$3, Calculations!$I$4:$QJ$4, Calculations!$I408:$QJ408) -> 9509535.098 | AF67: =LOOKUP(AF$3, Calculations!$I$4:$QJ$4, Calculations!$I408:$QJ408) -> 10496023.91 | AG67: =LOOKUP(AG$3, Calculations!$I$4:$QJ$4, Calculations!$I408:$QJ408) -> 11557123.41 | AH67: =LOOKUP(AH$3, Calculations!$I$4:$QJ$4, Calculations!$I408:$QJ408) -> 12413900.29 | AI67: =LOOKUP(AI$3, Calculations!$I$4:$QJ$4, Calculations!$I408:$QJ408) -> 13144792.1 | AJ67: =LOOKUP(AJ$3, Calculations!$I$4:$QJ$4, Calculations!$I408:$QJ408) -> 12173730.12
B69: Total Liabilities & Shareholders' Equity | F69: =Calculations!E410 -> EUR | I69: =I61+I67 -> 7265000 | J69: =J61+J67 -> 15185000 | K69: 18349942.87 | L69: 17495385.49 | M69: 16651892.48 | N69: 15785320.19 | O69: 14939785.57 | P69: 13991071.63 | Q69: 13079485.06 | R69: 12417609.13 | S69: 12009444.84 | T69: 11563352.62 | U69: 11078858.79 | V69: 10549759.22 | W69: 10004452.95 | X69: 9520579.531 | Y69: 9018852.062 | Z69: 8483105.504 | AA69: 7925421.32 | AB69: 7303776.771 | AC69: 7506925.642 | AD69: 7694836.641 | AE69: 7871995.833 | AF69: 7943639.431 | AG69: =AG61+AG67 -> 8008348.144 | AH69: 12428959.84 | AI69: 13170958.68 | AJ69: 12202116.58
M70: =M45-M69 -> 0 | N70: =N45-N69 -> 0 | O70: =O45-O69 -> 0 | P70: 0 | Q70: 0 | R70: 0 | S70: 0 | T70: 0 | U70: 0 | V70: 0
C71: Balance Check | F71: Check | H71: =IF(COUNTIF(I71:AT71, "NO")>0, "NO", "OK") -> OK | I71: =IF(ROUND(I45-I69, 0)=0, "OK", "NO") -> OK | J71: =IF(ROUND(J45-J69, 0)=0, "OK", "NO") -> OK | K71: OK | L71: OK | M71: OK | N71: OK | O71: OK | P71: OK | Q71: OK | R71: OK | S71: OK | T71: OK | U71: OK | V71: OK | W71: OK | X71: OK | Y71: OK | Z71: OK | AA71: OK | AB71: OK | AC71: OK | AD71: OK | AE71: OK | AF71: OK | AG71: OK | AH71: OK | AI71: OK | AJ71: =IF(ROUND(AJ45-AJ69, 0)=0, "OK", "NO") -> OK
A73: · | B73: Cash Flow Statement | F73: Unit
B75: Operating Activities
C76: =Calculations!C417 -> Net Income | D76: =SUM(K76:AA76)+AB76/2 -> 1568445.577 | E76: =H76-D76 -> 5660459.301 | F76: =Calculations!E417 -> EUR | H76: =SUM(I76:AT76) -> 7228904.878 | I76: =SUMIF(Calculations!$I$8:$QJ$8, I$2, Calculations!$I417:$QJ417) -> 0 | J76: 0 | K76: =SUMIF(Calculations!$I$8:$QJ$8, K$2, Calculations!$I417:$QJ417) -> -179492.483 | L76: =SUMIF(Calculations!$I$8:$QJ$8, L$2, Calculations!$I417:$QJ417) -> -406606.3018 | M76: =SUMIF(Calculations!$I$8:$QJ$8, M$2, Calculations!$I417:$QJ417) -> -409033.1587 | N76: =SUMIF(Calculations!$I$8:$QJ$8, N$2, Calculations!$I417:$QJ417) -> -401140.5565 | O76: =SUMIF(Calculations!$I$8:$QJ$8, O$2, Calculations!$I417:$QJ417) -> -393772.8895 | P76: =SUMIF(Calculations!$I$8:$QJ$8, P$2, Calculations!$I417:$QJ417) -> -366181.6357 | Q76: =SUMIF(Calculations!$I$8:$QJ$8, Q$2, Calculations!$I417:$QJ417) -> -336817.8424 | R76: =SUMIF(Calculations!$I$8:$QJ$8, R$2, Calculations!$I417:$QJ417) -> -44264.86642 | S76: =SUMIF(Calculations!$I$8:$QJ$8, S$2, Calculations!$I417:$QJ417) -> 250999.2224 | T76: =SUMIF(Calculations!$I$8:$QJ$8, T$2, Calculations!$I417:$QJ417) -> 273823.0548 | U76: =SUMIF(Calculations!$I$8:$QJ$8, U$2, Calculations!$I417:$QJ417) -> 285627.2663 | V76: =SUMIF(Calculations!$I$8:$QJ$8, V$2, Calculations!$I417:$QJ417) -> 301260.9188 | W76: =SUMIF(Calculations!$I$8:$QJ$8, W$2, Calculations!$I417:$QJ417) -> 335825.083 | X76: =SUMIF(Calculations!$I$8:$QJ$8, X$2, Calculations!$I417:$QJ417) -> 499128.0565 | Y76: =SUMIF(Calculations!$I$8:$QJ$8, Y$2, Calculations!$I417:$QJ417) -> 544913.6615 | Z76: =SUMIF(Calculations!$I$8:$QJ$8, Z$2, Calculations!$I417:$QJ417) -> 597013.8209 | AA76: =SUMIF(Calculations!$I$8:$QJ$8, AA$2, Calculations!$I417:$QJ417) -> 655708.5638 | AB76: =SUMIF(Calculations!$I$8:$QJ$8, AB$2, Calculations!$I417:$QJ417) -> 722911.3254 | AC76: =SUMIF(Calculations!$I$8:$QJ$8, AC$2, Calculations!$I417:$QJ417) -> 826107.9572 | AD76: =SUMIF(Calculations!$I$8:$QJ$8, AD$2, Calculations!$I417:$QJ417) -> 877307.2313 | AE76: =SUMIF(Calculations!$I$8:$QJ$8, AE$2, Calculations!$I417:$QJ417) -> 928291.5833 | AF76: =SUMIF(Calculations!$I$8:$QJ$8, AF$2, Calculations!$I417:$QJ417) -> 989590.654 | AG76: =SUMIF(Calculations!$I$8:$QJ$8, AG$2, Calculations!$I417:$QJ417) -> 1061099.497 | AH76: =SUMIF(Calculations!$I$8:$QJ$8, AH$2, Calculations!$I417:$QJ417) -> 856776.886 | AI76: =SUMIF(Calculations!$I$8:$QJ$8, AI$2, Calculations!$I417:$QJ417) -> 709700.2789 | AJ76: =SUMIF(Calculations!$I$8:$QJ$8, AJ$2, Calculations!$I417:$QJ417) -> -949870.4491
C77: =Calculations!C418 -> less: Changes in Net Working Capital | D77: 25638.99456 | E77: -409506.7645 | F77: =Calculations!E418 -> EUR | H77: -383867.7699 | I77: =SUMIF(Calculations!$I$8:$QJ$8, I$2, Calculations!$I418:$QJ418) -> -704298.167 | J77: =SUMIF(Calculations!$I$8:$QJ$8, J$2, Calculations!$I418:$QJ418) -> 480401.4971 | K77: =SUMIF(Calculations!$I$8:$QJ$8, K$2, Calculations!$I418:$QJ418) -> -14453.86508 | L77: =SUMIF(Calculations!$I$8:$QJ$8, L$2, Calculations!$I418:$QJ418) -> 1009.604565 | M77: =SUMIF(Calculations!$I$8:$QJ$8, M$2, Calculations!$I418:$QJ418) -> 2417.271556 | N77: =SUMIF(Calculations!$I$8:$QJ$8, N$2, Calculations!$I418:$QJ418) -> 2661.988186 | O77: =SUMIF(Calculations!$I$8:$QJ$8, O$2, Calculations!$I418:$QJ418) -> 2649.727548 | P77: =SUMIF(Calculations!$I$8:$QJ$8, P$2, Calculations!$I418:$QJ418) -> 2627.482981 | Q77: =SUMIF(Calculations!$I$8:$QJ$8, Q$2, Calculations!$I418:$QJ418) -> 2605.585081 | R77: =SUMIF(Calculations!$I$8:$QJ$8, R$2, Calculations!$I418:$QJ418) -> 2584.033308 | S77: =SUMIF(Calculations!$I$8:$QJ$8, S$2, Calculations!$I418:$QJ418) -> 2562.827205 | T77: =SUMIF(Calculations!$I$8:$QJ$8, T$2, Calculations!$I418:$QJ418) -> 2541.966396 | U77: =SUMIF(Calculations!$I$8:$QJ$8, U$2, Calculations!$I418:$QJ418) -> 2521.450586 | V77: =SUMIF(Calculations!$I$8:$QJ$8, V$2, Calculations!$I418:$QJ418) -> 2501.279564 | W77: =SUMIF(Calculations!$I$8:$QJ$8, W$2, Calculations!$I418:$QJ418) -> 2481.453205 | X77: =SUMIF(Calculations!$I$8:$QJ$8, X$2, Calculations!$I418:$QJ418) -> 2461.97147 | Y77: =SUMIF(Calculations!$I$8:$QJ$8, Y$2, Calculations!$I418:$QJ418) -> 2442.834404 | Z77: =SUMIF(Calculations!$I$8:$QJ$8, Z$2, Calculations!$I418:$QJ418) -> 2424.042146 | AA77: =SUMIF(Calculations!$I$8:$QJ$8, AA$2, Calculations!$I418:$QJ418) -> 2405.59492 | AB77: =SUMIF(Calculations!$I$8:$QJ$8, AB$2, Calculations!$I418:$QJ418) -> 2387.493043 | AC77: =SUMIF(Calculations!$I$8:$QJ$8, AC$2, Calculations!$I418:$QJ418) -> 2369.736925 | AD77: =SUMIF(Calculations!$I$8:$QJ$8, AD$2, Calculations!$I418:$QJ418) -> 11268.10517 | AE77: =SUMIF(Calculations!$I$8:$QJ$8, AE$2, Calculations!$I418:$QJ418) -> 4386.676653 | AF77: =SUMIF(Calculations!$I$8:$QJ$8, AF$2, Calculations!$I418:$QJ418) -> 4696.285275 | AG77: =SUMIF(Calculations!$I$8:$QJ$8, AG$2, Calculations!$I418:$QJ418) -> 5052.53415 | AH77: =SUMIF(Calculations!$I$8:$QJ$8, AH$2, Calculations!$I418:$QJ418) -> -7877.746259 | AI77: =SUMIF(Calculations!$I$8:$QJ$8, AI$2, Calculations!$I418:$QJ418) -> 1925.467355 | AJ77: =SUMIF(Calculations!$I$8:$QJ$8, AJ$2, Calculations!$I418:$QJ418) -> -208624.9003
C78: =Calculations!C419 -> less: Change in Deferred Tax Asset | D78: -385124.1618 | E78: 145093.5272 | F78: =Calculations!E419 -> EUR | H78: -240030.6345 | I78: =SUMIF(Calculations!$I$8:$QJ$8, I$2, Calculations!$I419:$QJ419) -> 0 | J78: 0 | K78: =SUMIF(Calculations!$I$8:$QJ$8, K$2, Calculations!$I419:$QJ419) -> -82435.68342 | L78: =SUMIF(Calculations!$I$8:$QJ$8, L$2, Calculations!$I419:$QJ419) -> -172176.8799 | M78: =SUMIF(Calculations!$I$8:$QJ$8, M$2, Calculations!$I419:$QJ419) -> -172666.9183 | N78: =SUMIF(Calculations!$I$8:$QJ$8, N$2, Calculations!$I419:$QJ419) -> -171073.2198 | O78: =SUMIF(Calculations!$I$8:$QJ$8, O$2, Calculations!$I419:$QJ419) -> -169585.5178 | P78: =SUMIF(Calculations!$I$8:$QJ$8, P$2, Calculations!$I419:$QJ419) -> -167255.0723 | Q78: =SUMIF(Calculations!$I$8:$QJ$8, Q$2, Calculations!$I419:$QJ419) -> -164566.7102 | R78: =SUMIF(Calculations!$I$8:$QJ$8, R$2, Calculations!$I419:$QJ419) -> -161326.4468 | S78: =SUMIF(Calculations!$I$8:$QJ$8, S$2, Calculations!$I419:$QJ419) -> -157538.7472 | T78: =SUMIF(Calculations!$I$8:$QJ$8, T$2, Calculations!$I419:$QJ419) -> -152930.0887 | U78: =SUMIF(Calculations!$I$8:$QJ$8, U$2, Calculations!$I419:$QJ419) -> 2029.43089 | V78: =SUMIF(Calculations!$I$8:$QJ$8, V$2, Calculations!$I419:$QJ419) -> 157851.0492 | W78: =SUMIF(Calculations!$I$8:$QJ$8, W$2, Calculations!$I419:$QJ419) -> 164830.3516 | X78: =SUMIF(Calculations!$I$8:$QJ$8, X$2, Calculations!$I419:$QJ419) -> 172999.7789 | Y78: =SUMIF(Calculations!$I$8:$QJ$8, Y$2, Calculations!$I419:$QJ419) -> 182244.9492 | Z78: =SUMIF(Calculations!$I$8:$QJ$8, Z$2, Calculations!$I419:$QJ419) -> 192765.1737 | AA78: =SUMIF(Calculations!$I$8:$QJ$8, AA$2, Calculations!$I419:$QJ419) -> 204616.9968 | AB78: =SUMIF(Calculations!$I$8:$QJ$8, AB$2, Calculations!$I419:$QJ419) -> 218186.7852 | AC78: =SUMIF(Calculations!$I$8:$QJ$8, AC$2, Calculations!$I419:$QJ419) -> 197262.0292 | AD78: =SUMIF(Calculations!$I$8:$QJ$8, AD$2, Calculations!$I419:$QJ419) -> 78768.73993 | AE78: =SUMIF(Calculations!$I$8:$QJ$8, AE$2, Calculations!$I419:$QJ419) -> 0 | AF78: =SUMIF(Calculations!$I$8:$QJ$8, AF$2, Calculations!$I419:$QJ419) -> 0 | AG78: =SUMIF(Calculations!$I$8:$QJ$8, AG$2, Calculations!$I419:$QJ419) -> 0 | AH78: =SUMIF(Calculations!$I$8:$QJ$8, AH$2, Calculations!$I419:$QJ419) -> -2223.910783 | AI78: =SUMIF(Calculations!$I$8:$QJ$8, AI$2, Calculations!$I419:$QJ419) -> -212.8460567 | AJ78: =SUMIF(Calculations!$I$8:$QJ$8, AJ$2, Calculations!$I419:$QJ419) -> -237593.8777
C79: =Calculations!C420 -> add: Depreciation | D79: 14350528.32 | E79: 2862428.804 | F79: =Calculations!E420 -> EUR | H79: 17212957.12 | I79: =SUMIF(Calculations!$I$8:$QJ$8, I$2, Calculations!$I420:$QJ420) -> 0 | J79: =SUMIF(Calculations!$I$8:$QJ$8, J$2, Calculations!$I420:$QJ420) -> 0 | K79: =SUMIF(Calculations!$I$8:$QJ$8, K$2, Calculations!$I420:$QJ420) -> 667987.1322 | L79: =SUMIF(Calculations!$I$8:$QJ$8, L$2, Calculations!$I420:$QJ420) -> 1335974.264 | M79: =SUMIF(Calculations!$I$8:$QJ$8, M$2, Calculations!$I420:$QJ420) -> 1335974.264 | N79: =SUMIF(Calculations!$I$8:$QJ$8, N$2, Calculations!$I420:$QJ420) -> 1335974.264 | O79: =SUMIF(Calculations!$I$8:$QJ$8, O$2, Calculations!$I420:$QJ420) -> 1335974.264 | P79: =SUMIF(Calculations!$I$8:$QJ$8, P$2, Calculations!$I420:$QJ420) -> 1319924.264 | Q79: =SUMIF(Calculations!$I$8:$QJ$8, Q$2, Calculations!$I420:$QJ420) -> 1303874.264 | R79: =SUMIF(Calculations!$I$8:$QJ$8, R$2, Calculations!$I420:$QJ420) -> 1027368.307 | S79: =SUMIF(Calculations!$I$8:$QJ$8, S$2, Calculations!$I420:$QJ420) -> 750862.3497 | T79: =SUMIF(Calculations!$I$8:$QJ$8, T$2, Calculations!$I420:$QJ420) -> 750862.3497 | U79: =SUMIF(Calculations!$I$8:$QJ$8, U$2, Calculations!$I420:$QJ420) -> 615449.9802 | V79: =SUMIF(Calculations!$I$8:$QJ$8, V$2, Calculations!$I420:$QJ420) -> 480477.6106 | W79: =SUMIF(Calculations!$I$8:$QJ$8, W$2, Calculations!$I420:$QJ420) -> 480477.6106 | X79: =SUMIF(Calculations!$I$8:$QJ$8, X$2, Calculations!$I420:$QJ420) -> 357632.7535 | Y79: =SUMIF(Calculations!$I$8:$QJ$8, Y$2, Calculations!$I420:$QJ420) -> 357632.7535 | Z79: =SUMIF(Calculations!$I$8:$QJ$8, Z$2, Calculations!$I420:$QJ420) -> 357632.7535 | AA79: =SUMIF(Calculations!$I$8:$QJ$8, AA$2, Calculations!$I420:$QJ420) -> 357632.7535 | AB79: =SUMIF(Calculations!$I$8:$QJ$8, AB$2, Calculations!$I420:$QJ420) -> 357632.7535 | AC79: =SUMIF(Calculations!$I$8:$QJ$8, AC$2, Calculations!$I420:$QJ420) -> 357814.9903 | AD79: =SUMIF(Calculations!$I$8:$QJ$8, AD$2, Calculations!$I420:$QJ420) -> 357814.9903 | AE79: =SUMIF(Calculations!$I$8:$QJ$8, AE$2, Calculations!$I420:$QJ420) -> 357814.9903 | AF79: =SUMIF(Calculations!$I$8:$QJ$8, AF$2, Calculations!$I420:$QJ420) -> 357814.9903 | AG79: =SUMIF(Calculations!$I$8:$QJ$8, AG$2, Calculations!$I420:$QJ420) -> 357814.9903 | AH79: =SUMIF(Calculations!$I$8:$QJ$8, AH$2, Calculations!$I420:$QJ420) -> 357814.9903 | AI79: =SUMIF(Calculations!$I$8:$QJ$8, AI$2, Calculations!$I420:$QJ420) -> 357814.9903 | AJ79: =SUMIF(Calculations!$I$8:$QJ$8, AJ$2, Calculations!$I420:$QJ420) -> 178907.4951
C80: =Calculations!C421 -> add: Senior Debt Interest Expense | D80: 5307549.881 | E80: 21340.53168 | F80: =Calculations!E421 -> EUR | H80: 5328890.413 | I80: =SUMIF(Calculations!$I$8:$QJ$8, I$2, Calculations!$I421:$QJ421) -> 0 | J80: =SUMIF(Calculations!$I$8:$QJ$8, J$2, Calculations!$I421:$QJ421) -> 0 | K80: =SUMIF(Calculations!$I$8:$QJ$8, K$2, Calculations!$I421:$QJ421) -> 253476.3669 | L80: =SUMIF(Calculations!$I$8:$QJ$8, L$2, Calculations!$I421:$QJ421) -> 495709.3238 | M80: =SUMIF(Calculations!$I$8:$QJ$8, M$2, Calculations!$I421:$QJ421) -> 477403.1645 | N80: =SUMIF(Calculations!$I$8:$QJ$8, N$2, Calculations!$I421:$QJ421) -> 458064.394 | O80: =SUMIF(Calculations!$I$8:$QJ$8, O$2, Calculations!$I421:$QJ421) -> 437634.7647 | P80: =SUMIF(Calculations!$I$8:$QJ$8, P$2, Calculations!$I421:$QJ421) -> 416052.7438 | Q80: =SUMIF(Calculations!$I$8:$QJ$8, Q$2, Calculations!$I421:$QJ421) -> 393253.3272 | R80: =SUMIF(Calculations!$I$8:$QJ$8, R$2, Calculations!$I421:$QJ421) -> 369167.8444 | S80: =SUMIF(Calculations!$I$8:$QJ$8, S$2, Calculations!$I421:$QJ421) -> 343723.751 | T80: =SUMIF(Calculations!$I$8:$QJ$8, T$2, Calculations!$I421:$QJ421) -> 316844.4107 | U80: =SUMIF(Calculations!$I$8:$QJ$8, U$2, Calculations!$I421:$QJ421) -> 288448.8643 | V80: =SUMIF(Calculations!$I$8:$QJ$8, V$2, Calculations!$I421:$QJ421) -> 258451.586 | W80: =SUMIF(Calculations!$I$8:$QJ$8, W$2, Calculations!$I421:$QJ421) -> 226762.2253 | X80: =SUMIF(Calculations!$I$8:$QJ$8, X$2, Calculations!$I421:$QJ421) -> 193285.3356 | Y80: =SUMIF(Calculations!$I$8:$QJ$8, Y$2, Calculations!$I421:$QJ421) -> 157920.0862 | Z80: =SUMIF(Calculations!$I$8:$QJ$8, Z$2, Calculations!$I421:$QJ421) -> 120559.9588 | AA80: =SUMIF(Calculations!$I$8:$QJ$8, AA$2, Calculations!$I421:$QJ421) -> 81092.42646 | AB80: =SUMIF(Calculations!$I$8:$QJ$8, AB$2, Calculations!$I421:$QJ421) -> 39398.61509 | AC80: =SUMIF(Calculations!$I$8:$QJ$8, AC$2, Calculations!$I421:$QJ421) -> 1641.224132 | AD80: =SUMIF(Calculations!$I$8:$QJ$8, AD$2, Calculations!$I421:$QJ421) -> 0 | AE80: =SUMIF(Calculations!$I$8:$QJ$8, AE$2, Calculations!$I421:$QJ421) -> 0 | AF80: =SUMIF(Calculations!$I$8:$QJ$8, AF$2, Calculations!$I421:$QJ421) -> 0 | AG80: =SUMIF(Calculations!$I$8:$QJ$8, AG$2, Calculations!$I421:$QJ421) -> 0 | AH80: =SUMIF(Calculations!$I$8:$QJ$8, AH$2, Calculations!$I421:$QJ421) -> 0 | AI80: =SUMIF(Calculations!$I$8:$QJ$8, AI$2, Calculations!$I421:$QJ421) -> 0 | AJ80: =SUMIF(Calculations!$I$8:$QJ$8, AJ$2, Calculations!$I421:$QJ421) -> 0
C81: =Calculations!C422 -> add: Subordinated Debt Interest Expense | D81: 6709520.47 | E81: -949456.9569 | F81: =Calculations!E422 -> EUR | H81: 5760063.513 | I81: =SUMIF(Calculations!$I$8:$QJ$8, I$2, Calculations!$I422:$QJ422) -> 0 | J81: =SUMIF(Calculations!$I$8:$QJ$8, J$2, Calculations!$I422:$QJ422) -> 0 | K81: =SUMIF(Calculations!$I$8:$QJ$8, K$2, Calculations!$I422:$QJ422) -> 278268.4945 | L81: =SUMIF(Calculations!$I$8:$QJ$8, L$2, Calculations!$I422:$QJ422) -> 548995.8797 | M81: =SUMIF(Calculations!$I$8:$QJ$8, M$2, Calculations!$I422:$QJ422) -> 538669.2078 | N81: =SUMIF(Calculations!$I$8:$QJ$8, N$2, Calculations!$I422:$QJ422) -> 527032.8555 | O81: =SUMIF(Calculations!$I$8:$QJ$8, O$2, Calculations!$I422:$QJ422) -> 513920.7224 | P81: =SUMIF(Calculations!$I$8:$QJ$8, P$2, Calculations!$I422:$QJ422) -> 499145.6426 | Q81: =SUMIF(Calculations!$I$8:$QJ$8, Q$2, Calculations!$I422:$QJ422) -> 482496.713 | R81: =SUMIF(Calculations!$I$8:$QJ$8, R$2, Calculations!$I422:$QJ422) -> 463736.2823 | S81: =SUMIF(Calculations!$I$8:$QJ$8, S$2, Calculations!$I422:$QJ422) -> 442596.5594 | T81: =SUMIF(Calculations!$I$8:$QJ$8, T$2, Calculations!$I422:$QJ422) -> 418775.7905 | U81: =SUMIF(Calculations!$I$8:$QJ$8, U$2, Calculations!$I422:$QJ422) -> 391933.9519 | V81: =SUMIF(Calculations!$I$8:$QJ$8, V$2, Calculations!$I422:$QJ422) -> 361687.8963 | W81: =SUMIF(Calculations!$I$8:$QJ$8, W$2, Calculations!$I422:$QJ422) -> 327605.8838 | X81: =SUMIF(Calculations!$I$8:$QJ$8, X$2, Calculations!$I422:$QJ422) -> 289201.4191 | Y81: =SUMIF(Calculations!$I$8:$QJ$8, Y$2, Calculations!$I422:$QJ422) -> 245926.3069 | Z81: =SUMIF(Calculations!$I$8:$QJ$8, Z$2, Calculations!$I422:$QJ422) -> 197162.8274 | AA81: =SUMIF(Calculations!$I$8:$QJ$8, AA$2, Calculations!$I422:$QJ422) -> 142214.918 | AB81: =SUMIF(Calculations!$I$8:$QJ$8, AB$2, Calculations!$I422:$QJ422) -> 80298.23844 | AC81: =SUMIF(Calculations!$I$8:$QJ$8, AC$2, Calculations!$I422:$QJ422) -> 10528.9741 | AD81: =SUMIF(Calculations!$I$8:$QJ$8, AD$2, Calculations!$I422:$QJ422) -> -68088.77929 | AE81: =SUMIF(Calculations!$I$8:$QJ$8, AE$2, Calculations!$I422:$QJ422) -> -156677.2316 | AF81: =SUMIF(Calculations!$I$8:$QJ$8, AF$2, Calculations!$I422:$QJ422) -> -256500.9171 | AG81: =SUMIF(Calculations!$I$8:$QJ$8, AG$2, Calculations!$I422:$QJ422) -> -368984.7445 | AH81: =SUMIF(Calculations!$I$8:$QJ$8, AH$2, Calculations!$I422:$QJ422) -> -149883.3777 | AI81: =SUMIF(Calculations!$I$8:$QJ$8, AI$2, Calculations!$I422:$QJ422) -> 0 | AJ81: =SUMIF(Calculations!$I$8:$QJ$8, AJ$2, Calculations!$I422:$QJ422) -> 0
C82: =Calculations!C423 -> less: Interest on Reserve Accounts | D82: 0 | E82: 0 | F82: =Calculations!E423 -> EUR | H82: 0 | I82: =SUMIF(Calculations!$I$8:$QJ$8, I$2, Calculations!$I423:$QJ423) -> 0 | J82: =SUMIF(Calculations!$I$8:$QJ$8, J$2, Calculations!$I423:$QJ423) -> 0 | K82: =SUMIF(Calculations!$I$8:$QJ$8, K$2, Calculations!$I423:$QJ423) -> 0 | L82: =SUMIF(Calculations!$I$8:$QJ$8, L$2, Calculations!$I423:$QJ423) -> 0 | M82: =SUMIF(Calculations!$I$8:$QJ$8, M$2, Calculations!$I423:$QJ423) -> 0 | N82: =SUMIF(Calculations!$I$8:$QJ$8, N$2, Calculations!$I423:$QJ423) -> 0 | O82: =SUMIF(Calculations!$I$8:$QJ$8, O$2, Calculations!$I423:$QJ423) -> 0 | P82: =SUMIF(Calculations!$I$8:$QJ$8, P$2, Calculations!$I423:$QJ423) -> 0 | Q82: =SUMIF(Calculations!$I$8:$QJ$8, Q$2, Calculations!$I423:$QJ423) -> 0 | R82: =SUMIF(Calculations!$I$8:$QJ$8, R$2, Calculations!$I423:$QJ423) -> 0 | S82: =SUMIF(Calculations!$I$8:$QJ$8, S$2, Calculations!$I423:$QJ423) -> 0 | T82: =SUMIF(Calculations!$I$8:$QJ$8, T$2, Calculations!$I423:$QJ423) -> 0 | U82: =SUMIF(Calculations!$I$8:$QJ$8, U$2, Calculations!$I423:$QJ423) -> 0 | V82: =SUMIF(Calculations!$I$8:$QJ$8, V$2, Calculations!$I423:$QJ423) -> 0 | W82: =SUMIF(Calculations!$I$8:$QJ$8, W$2, Calculations!$I423:$QJ423) -> 0 | X82: =SUMIF(Calculations!$I$8:$QJ$8, X$2, Calculations!$I423:$QJ423) -> 0 | Y82: =SUMIF(Calculations!$I$8:$QJ$8, Y$2, Calculations!$I423:$QJ423) -> 0 | Z82: =SUMIF(Calculations!$I$8:$QJ$8, Z$2, Calculations!$I423:$QJ423) -> 0 | AA82: =SUMIF(Calculations!$I$8:$QJ$8, AA$2, Calculations!$I423:$QJ423) -> 0 | AB82: =SUMIF(Calculations!$I$8:$QJ$8, AB$2, Calculations!$I423:$QJ423) -> 0 | AC82: =SUMIF(Calculations!$I$8:$QJ$8, AC$2, Calculations!$I423:$QJ423) -> 0 | AD82: =SUMIF(Calculations!$I$8:$QJ$8, AD$2, Calculations!$I423:$QJ423) -> 0 | AE82: =SUMIF(Calculations!$I$8:$QJ$8, AE$2, Calculations!$I423:$QJ423) -> 0 | AF82: =SUMIF(Calculations!$I$8:$QJ$8, AF$2, Calculations!$I423:$QJ423) -> 0 | AG82: =SUMIF(Calculations!$I$8:$QJ$8, AG$2, Calculations!$I423:$QJ423) -> 0 | AH82: =SUMIF(Calculations!$I$8:$QJ$8, AH$2, Calculations!$I423:$QJ423) -> 0 | AI82: =SUMIF(Calculations!$I$8:$QJ$8, AI$2, Calculations!$I423:$QJ423) -> 0 | AJ82: =SUMIF(Calculations!$I$8:$QJ$8, AJ$2, Calculations!$I423:$QJ423) -> 0
C83: =Calculations!C424 -> Cash Flows From Operating Activities | D83: 27576559.08 | E83: 7330358.443 | F83: =Calculations!E424 -> EUR | H83: 34906917.52 | I83: =SUM(I76:I82) -> -704298.167 | J83: =SUM(J76:J82) -> 480401.4971 | K83: =SUM(K76:K82) -> 923349.9622 | L83: 1802905.891 | M83: 1772763.831 | N83: 1751519.726 | O83: 1726821.072 | P83: 1704313.426 | Q83: 1680845.337 | R83: 1657265.154 | S83: 1633205.962 | T83: 1609917.483 | U83: 1586010.944 | V83: 1562230.34 | W83: 1537982.608 | X83: 1514709.315 | Y83: 1491080.592 | Z83: 1467558.576 | AA83: 1443671.253 | AB83: 1420815.211 | AC83: 1395724.912 | AD83: 1257070.287 | AE83: 1133816.019 | AF83: 1095601.012 | AG83: =SUM(AG76:AG82) -> 1054982.277 | AH83: 1054606.842 | AI83: 1069227.89 | AJ83: -1217181.732
D84: 0 | E84: 0
B85: Investing Activities | D85: 0 | E85: 0
C86: =Calculations!C427 -> Capital Expenditures | D86: -2862917.328 | E86: -17440914.28 | F86: =Calculations!E427 -> EUR | H86: =SUM(I86:AT86) -> -20303831.61 | I86: =SUMIF(Calculations!$I$8:$QJ$8, I$2, Calculations!$I429:$QJ429) -> -6442961.527 | J86: =SUMIF(Calculations!$I$8:$QJ$8, J$2, Calculations!$I429:$QJ429) -> -8514655.775 | K86: =SUMIF(Calculations!$I$8:$QJ$8, K$2, Calculations!$I429:$QJ429) -> -2862917.328 | L86: =SUMIF(Calculations!$I$8:$QJ$8, L$2, Calculations!$I429:$QJ429) -> 0 | M86: =SUMIF(Calculations!$I$8:$QJ$8, M$2, Calculations!$I429:$QJ429) -> 0 | N86: =SUMIF(Calculations!$I$8:$QJ$8, N$2, Calculations!$I429:$QJ429) -> 0 | O86: =SUMIF(Calculations!$I$8:$QJ$8, O$2, Calculations!$I429:$QJ429) -> 0 | P86: =SUMIF(Calculations!$I$8:$QJ$8, P$2, Calculations!$I429:$QJ429) -> 0 | Q86: =SUMIF(Calculations!$I$8:$QJ$8, Q$2, Calculations!$I429:$QJ429) -> 0 | R86: =SUMIF(Calculations!$I$8:$QJ$8, R$2, Calculations!$I429:$QJ429) -> 0 | S86: =SUMIF(Calculations!$I$8:$QJ$8, S$2, Calculations!$I429:$QJ429) -> 0 | T86: =SUMIF(Calculations!$I$8:$QJ$8, T$2, Calculations!$I429:$QJ429) -> 0 | U86: =SUMIF(Calculations!$I$8:$QJ$8, U$2, Calculations!$I429:$QJ429) -> 0 | V86: =SUMIF(Calculations!$I$8:$QJ$8, V$2, Calculations!$I429:$QJ429) -> 0 | W86: =SUMIF(Calculations!$I$8:$QJ$8, W$2, Calculations!$I429:$QJ429) -> 0 | X86: =SUMIF(Calculations!$I$8:$QJ$8, X$2, Calculations!$I429:$QJ429) -> 0 | Y86: =SUMIF(Calculations!$I$8:$QJ$8, Y$2, Calculations!$I429:$QJ429) -> 0 | Z86: =SUMIF(Calculations!$I$8:$QJ$8, Z$2, Calculations!$I429:$QJ429) -> 0 | AA86: =SUMIF(Calculations!$I$8:$QJ$8, AA$2, Calculations!$I429:$QJ429) -> 0 | AB86: =SUMIF(Calculations!$I$8:$QJ$8, AB$2, Calculations!$I429:$QJ429) -> 0 | AC86: =SUMIF(Calculations!$I$8:$QJ$8, AC$2, Calculations!$I429:$QJ429) -> -2483296.978 | AD86: =SUMIF(Calculations!$I$8:$QJ$8, AD$2, Calculations!$I429:$QJ429) -> 0 | AE86: =SUMIF(Calculations!$I$8:$QJ$8, AE$2, Calculations!$I429:$QJ429) -> 0 | AF86: =SUMIF(Calculations!$I$8:$QJ$8, AF$2, Calculations!$I429:$QJ429) -> 0 | AG86: =SUMIF(Calculations!$I$8:$QJ$8, AG$2, Calculations!$I429:$QJ429) -> 0 | AH86: =SUMIF(Calculations!$I$8:$QJ$8, AH$2, Calculations!$I429:$QJ429) -> 0 | AI86: =SUMIF(Calculations!$I$8:$QJ$8, AI$2, Calculations!$I429:$QJ429) -> 0 | AJ86: =SUMIF(Calculations!$I$8:$QJ$8, AJ$2, Calculations!$I429:$QJ429) -> 0
C87: =Calculations!C429 -> Cash Flows From Investing Activities | D87: -2862917.328 | E87: -17440914.28 | F87: =Calculations!E429 -> EUR | H87: =SUM(I87:AT87) -> -20303831.61 | I87: =SUM(I86) -> -6442961.527 | J87: =SUM(J86) -> -8514655.775 | K87: -2862917.328 | L87: 0 | M87: 0 | N87: 0 | O87: 0 | P87: 0 | Q87: 0 | R87: 0 | S87: 0 | T87: 0 | U87: 0 | V87: 0 | W87: 0 | X87: 0 | Y87: 0 | Z87: 0 | AA87: 0 | AB87: 0 | AC87: -2483296.978 | AD87: 0 | AE87: 0 | AF87: 0 | AG87: =SUM(AG86) -> 0 | AH87: 0 | AI87: 0 | AJ87: 0
D88: 0 | E88: 0
B89: Financing Activities | D89: 0 | E89: 0
C90: =Calculations!C432 -> Drawdown of Equity | D90: 0 | E90: 4590000 | F90: =Calculations!E432 -> EUR | H90: =SUM(I90:AT90) -> 4590000 | I90: =SUMIF(Calculations!$I$8:$QJ$8, I$2, Calculations!$I432:$QJ432) -> 4590000 | J90: =SUMIF(Calculations!$I$8:$QJ$8, J$2, Calculations!$I432:$QJ432) -> 0 | K90: =SUMIF(Calculations!$I$8:$QJ$8, K$2, Calculations!$I432:$QJ432) -> 0 | L90: =SUMIF(Calculations!$I$8:$QJ$8, L$2, Calculations!$I432:$QJ432) -> 0 | M90: =SUMIF(Calculations!$I$8:$QJ$8, M$2, Calculations!$I432:$QJ432) -> 0 | N90: =SUMIF(Calculations!$I$8:$QJ$8, N$2, Calculations!$I432:$QJ432) -> 0 | O90: =SUMIF(Calculations!$I$8:$QJ$8, O$2, Calculations!$I432:$QJ432) -> 0 | P90: =SUMIF(Calculations!$I$8:$QJ$8, P$2, Calculations!$I432:$QJ432) -> 0 | Q90: =SUMIF(Calculations!$I$8:$QJ$8, Q$2, Calculations!$I432:$QJ432) -> 0 | R90: =SUMIF(Calculations!$I$8:$QJ$8, R$2, Calculations!$I432:$QJ432) -> 0 | S90: =SUMIF(Calculations!$I$8:$QJ$8, S$2, Calculations!$I432:$QJ432) -> 0 | T90: =SUMIF(Calculations!$I$8:$QJ$8, T$2, Calculations!$I432:$QJ432) -> 0 | U90: =SUMIF(Calculations!$I$8:$QJ$8, U$2, Calculations!$I432:$QJ432) -> 0 | V90: =SUMIF(Calculations!$I$8:$QJ$8, V$2, Calculations!$I432:$QJ432) -> 0 | W90: =SUMIF(Calculations!$I$8:$QJ$8, W$2, Calculations!$I432:$QJ432) -> 0 | X90: =SUMIF(Calculations!$I$8:$QJ$8, X$2, Calculations!$I432:$QJ432) -> 0 | Y90: =SUMIF(Calculations!$I$8:$QJ$8, Y$2, Calculations!$I432:$QJ432) -> 0 | Z90: =SUMIF(Calculations!$I$8:$QJ$8, Z$2, Calculations!$I432:$QJ432) -> 0 | AA90: =SUMIF(Calculations!$I$8:$QJ$8, AA$2, Calculations!$I432:$QJ432) -> 0 | AB90: =SUMIF(Calculations!$I$8:$QJ$8, AB$2, Calculations!$I432:$QJ432) -> 0 | AC90: =SUMIF(Calculations!$I$8:$QJ$8, AC$2, Calculations!$I432:$QJ432) -> 0 | AD90: =SUMIF(Calculations!$I$8:$QJ$8, AD$2, Calculations!$I432:$QJ432) -> 0 | AE90: =SUMIF(Calculations!$I$8:$QJ$8, AE$2, Calculations!$I432:$QJ432) -> 0 | AF90: =SUMIF(Calculations!$I$8:$QJ$8, AF$2, Calculations!$I432:$QJ432) -> 0 | AG90: =SUMIF(Calculations!$I$8:$QJ$8, AG$2, Calculations!$I432:$QJ432) -> 0 | AH90: =SUMIF(Calculations!$I$8:$QJ$8, AH$2, Calculations!$I432:$QJ432) -> 0 | AI90: =SUMIF(Calculations!$I$8:$QJ$8, AI$2, Calculations!$I432:$QJ432) -> 0 | AJ90: =SUMIF(Calculations!$I$8:$QJ$8, AJ$2, Calculations!$I432:$QJ432) -> 0
C91: =Calculations!C433 -> Drawdown of Subordinated Debt | D91: 0 | E91: 4590000 | F91: =Calculations!E433 -> EUR | H91: 4590000 | I91: =SUMIF(Calculations!$I$8:$QJ$8, I$2, Calculations!$I433:$QJ433) -> 2295000 | J91: =SUMIF(Calculations!$I$8:$QJ$8, J$2, Calculations!$I433:$QJ433) -> 2295000 | K91: =SUMIF(Calculations!$I$8:$QJ$8, K$2, Calculations!$I433:$QJ433) -> 0 | L91: =SUMIF(Calculations!$I$8:$QJ$8, L$2, Calculations!$I433:$QJ433) -> 0 | M91: =SUMIF(Calculations!$I$8:$QJ$8, M$2, Calculations!$I433:$QJ433) -> 0 | N91: =SUMIF(Calculations!$I$8:$QJ$8, N$2, Calculations!$I433:$QJ433) -> 0 | O91: =SUMIF(Calculations!$I$8:$QJ$8, O$2, Calculations!$I433:$QJ433) -> 0 | P91: =SUMIF(Calculations!$I$8:$QJ$8, P$2, Calculations!$I433:$QJ433) -> 0 | Q91: =SUMIF(Calculations!$I$8:$QJ$8, Q$2, Calculations!$I433:$QJ433) -> 0 | R91: =SUMIF(Calculations!$I$8:$QJ$8, R$2, Calculations!$I433:$QJ433) -> 0 | S91: =SUMIF(Calculations!$I$8:$QJ$8, S$2, Calculations!$I433:$QJ433) -> 0 | T91: =SUMIF(Calculations!$I$8:$QJ$8, T$2, Calculations!$I433:$QJ433) -> 0 | U91: =SUMIF(Calculations!$I$8:$QJ$8, U$2, Calculations!$I433:$QJ433) -> 0 | V91: =SUMIF(Calculations!$I$8:$QJ$8, V$2, Calculations!$I433:$QJ433) -> 0 | W91: =SUMIF(Calculations!$I$8:$QJ$8, W$2, Calculations!$I433:$QJ433) -> 0 | X91: =SUMIF(Calculations!$I$8:$QJ$8, X$2, Calculations!$I433:$QJ433) -> 0 | Y91: =SUMIF(Calculations!$I$8:$QJ$8, Y$2, Calculations!$I433:$QJ433) -> 0 | Z91: =SUMIF(Calculations!$I$8:$QJ$8, Z$2, Calculations!$I433:$QJ433) -> 0 | AA91: =SUMIF(Calculations!$I$8:$QJ$8, AA$2, Calculations!$I433:$QJ433) -> 0 | AB91: =SUMIF(Calculations!$I$8:$QJ$8, AB$2, Calculations!$I433:$QJ433) -> 0 | AC91: =SUMIF(Calculations!$I$8:$QJ$8, AC$2, Calculations!$I433:$QJ433) -> 0 | AD91: =SUMIF(Calculations!$I$8:$QJ$8, AD$2, Calculations!$I433:$QJ433) -> 0 | AE91: =SUMIF(Calculations!$I$8:$QJ$8, AE$2, Calculations!$I433:$QJ433) -> 0 | AF91: =SUMIF(Calculations!$I$8:$QJ$8, AF$2, Calculations!$I433:$QJ433) -> 0 | AG91: =SUMIF(Calculations!$I$8:$QJ$8, AG$2, Calculations!$I433:$QJ433) -> 0 | AH91: =SUMIF(Calculations!$I$8:$QJ$8, AH$2, Calculations!$I433:$QJ433) -> 0 | AI91: =SUMIF(Calculations!$I$8:$QJ$8, AI$2, Calculations!$I433:$QJ433) -> 0 | AJ91: =SUMIF(Calculations!$I$8:$QJ$8, AJ$2, Calculations!$I433:$QJ433) -> 0
C92: =Calculations!C434 -> Drawdown of Construction Loan | D92: 3175000 | E92: 6005000 | F92: =Calculations!E434 -> EUR | H92: 9180000 | I92: =SUMIF(Calculations!$I$8:$QJ$8, I$2, Calculations!$I434:$QJ434) -> 380000 | J92: =SUMIF(Calculations!$I$8:$QJ$8, J$2, Calculations!$I434:$QJ434) -> 5625000 | K92: =SUMIF(Calculations!$I$8:$QJ$8, K$2, Calculations!$I434:$QJ434) -> 3175000 | L92: =SUMIF(Calculations!$I$8:$QJ$8, L$2, Calculations!$I434:$QJ434) -> 0 | M92: =SUMIF(Calculations!$I$8:$QJ$8, M$2, Calculations!$I434:$QJ434) -> 0 | N92: =SUMIF(Calculations!$I$8:$QJ$8, N$2, Calculations!$I434:$QJ434) -> 0 | O92: =SUMIF(Calculations!$I$8:$QJ$8, O$2, Calculations!$I434:$QJ434) -> 0 | P92: =SUMIF(Calculations!$I$8:$QJ$8, P$2, Calculations!$I434:$QJ434) -> 0 | Q92: =SUMIF(Calculations!$I$8:$QJ$8, Q$2, Calculations!$I434:$QJ434) -> 0 | R92: =SUMIF(Calculations!$I$8:$QJ$8, R$2, Calculations!$I434:$QJ434) -> 0 | S92: =SUMIF(Calculations!$I$8:$QJ$8, S$2, Calculations!$I434:$QJ434) -> 0 | T92: =SUMIF(Calculations!$I$8:$QJ$8, T$2, Calculations!$I434:$QJ434) -> 0 | U92: =SUMIF(Calculations!$I$8:$QJ$8, U$2, Calculations!$I434:$QJ434) -> 0 | V92: =SUMIF(Calculations!$I$8:$QJ$8, V$2, Calculations!$I434:$QJ434) -> 0 | W92: =SUMIF(Calculations!$I$8:$QJ$8, W$2, Calculations!$I434:$QJ434) -> 0 | X92: =SUMIF(Calculations!$I$8:$QJ$8, X$2, Calculations!$I434:$QJ434) -> 0 | Y92: =SUMIF(Calculations!$I$8:$QJ$8, Y$2, Calculations!$I434:$QJ434) -> 0 | Z92: =SUMIF(Calculations!$I$8:$QJ$8, Z$2, Calculations!$I434:$QJ434) -> 0 | AA92: =SUMIF(Calculations!$I$8:$QJ$8, AA$2, Calculations!$I434:$QJ434) -> 0 | AB92: =SUMIF(Calculations!$I$8:$QJ$8, AB$2, Calculations!$I434:$QJ434) -> 0 | AC92: =SUMIF(Calculations!$I$8:$QJ$8, AC$2, Calculations!$I434:$QJ434) -> 0 | AD92: =SUMIF(Calculations!$I$8:$QJ$8, AD$2, Calculations!$I434:$QJ434) -> 0 | AE92: =SUMIF(Calculations!$I$8:$QJ$8, AE$2, Calculations!$I434:$QJ434) -> 0 | AF92: =SUMIF(Calculations!$I$8:$QJ$8, AF$2, Calculations!$I434:$QJ434) -> 0 | AG92: =SUMIF(Calculations!$I$8:$QJ$8, AG$2, Calculations!$I434:$QJ434) -> 0 | AH92: =SUMIF(Calculations!$I$8:$QJ$8, AH$2, Calculations!$I434:$QJ434) -> 0 | AI92: =SUMIF(Calculations!$I$8:$QJ$8, AI$2, Calculations!$I434:$QJ434) -> 0 | AJ92: =SUMIF(Calculations!$I$8:$QJ$8, AJ$2, Calculations!$I434:$QJ434) -> 0
C93: =Calculations!C435 -> Drawdown of Operating Loan | D93: 0 | E93: 0 | F93: =Calculations!E435 -> 0 | H93: 0 | I93: =SUMIF(Calculations!$I$8:$QJ$8, I$2, Calculations!$I435:$QJ435) -> 0 | J93: =SUMIF(Calculations!$I$8:$QJ$8, J$2, Calculations!$I435:$QJ435) -> 0 | K93: =SUMIF(Calculations!$I$8:$QJ$8, K$2, Calculations!$I435:$QJ435) -> 0 | L93: =SUMIF(Calculations!$I$8:$QJ$8, L$2, Calculations!$I435:$QJ435) -> 0 | M93: =SUMIF(Calculations!$I$8:$QJ$8, M$2, Calculations!$I435:$QJ435) -> 0 | N93: =SUMIF(Calculations!$I$8:$QJ$8, N$2, Calculations!$I435:$QJ435) -> 0 | O93: =SUMIF(Calculations!$I$8:$QJ$8, O$2, Calculations!$I435:$QJ435) -> 0 | P93: =SUMIF(Calculations!$I$8:$QJ$8, P$2, Calculations!$I435:$QJ435) -> 0 | Q93: =SUMIF(Calculations!$I$8:$QJ$8, Q$2, Calculations!$I435:$QJ435) -> 0 | R93: =SUMIF(Calculations!$I$8:$QJ$8, R$2, Calculations!$I435:$QJ435) -> 0 | S93: =SUMIF(Calculations!$I$8:$QJ$8, S$2, Calculations!$I435:$QJ435) -> 0 | T93: =SUMIF(Calculations!$I$8:$QJ$8, T$2, Calculations!$I435:$QJ435) -> 0 | U93: =SUMIF(Calculations!$I$8:$QJ$8, U$2, Calculations!$I435:$QJ435) -> 0 | V93: =SUMIF(Calculations!$I$8:$QJ$8, V$2, Calculations!$I435:$QJ435) -> 0 | W93: =SUMIF(Calculations!$I$8:$QJ$8, W$2, Calculations!$I435:$QJ435) -> 0 | X93: =SUMIF(Calculations!$I$8:$QJ$8, X$2, Calculations!$I435:$QJ435) -> 0 | Y93: =SUMIF(Calculations!$I$8:$QJ$8, Y$2, Calculations!$I435:$QJ435) -> 0 | Z93: =SUMIF(Calculations!$I$8:$QJ$8, Z$2, Calculations!$I435:$QJ435) -> 0 | AA93: =SUMIF(Calculations!$I$8:$QJ$8, AA$2, Calculations!$I435:$QJ435) -> 0 | AB93: =SUMIF(Calculations!$I$8:$QJ$8, AB$2, Calculations!$I435:$QJ435) -> 0 | AC93: =SUMIF(Calculations!$I$8:$QJ$8, AC$2, Calculations!$I435:$QJ435) -> 0 | AD93: =SUMIF(Calculations!$I$8:$QJ$8, AD$2, Calculations!$I435:$QJ435) -> 0 | AE93: =SUMIF(Calculations!$I$8:$QJ$8, AE$2, Calculations!$I435:$QJ435) -> 0 | AF93: =SUMIF(Calculations!$I$8:$QJ$8, AF$2, Calculations!$I435:$QJ435) -> 0 | AG93: =SUMIF(Calculations!$I$8:$QJ$8, AG$2, Calculations!$I435:$QJ435) -> 0 | AH93: =SUMIF(Calculations!$I$8:$QJ$8, AH$2, Calculations!$I435:$QJ435) -> 0 | AI93: =SUMIF(Calculations!$I$8:$QJ$8, AI$2, Calculations!$I435:$QJ435) -> 0 | AJ93: =SUMIF(Calculations!$I$8:$QJ$8, AJ$2, Calculations!$I435:$QJ435) -> 0
C94: =Calculations!C436 -> Principal Repayment of Subordinated Debt | D94: -3910502.333 | E94: -679497.6665 | F94: =Calculations!E436 -> EUR | H94: -4590000 | I94: =SUMIF(Calculations!$I$8:$QJ$8, I$2, Calculations!$I436:$QJ436) -> 0 | J94: =SUMIF(Calculations!$I$8:$QJ$8, J$2, Calculations!$I436:$QJ436) -> 0 | K94: =SUMIF(Calculations!$I$8:$QJ$8, K$2, Calculations!$I436:$QJ436) -> -18055.29322 | L94: =SUMIF(Calculations!$I$8:$QJ$8, L$2, Calculations!$I436:$QJ436) -> -79820.17134 | M94: =SUMIF(Calculations!$I$8:$QJ$8, M$2, Calculations!$I436:$QJ436) -> -89943.36698 | N94: =SUMIF(Calculations!$I$8:$QJ$8, N$2, Calculations!$I436:$QJ436) -> -101350.4372 | O94: =SUMIF(Calculations!$I$8:$QJ$8, O$2, Calculations!$I436:$QJ436) -> -114204.2095 | P94: =SUMIF(Calculations!$I$8:$QJ$8, P$2, Calculations!$I436:$QJ436) -> -128688.1618 | Q94: =SUMIF(Calculations!$I$8:$QJ$8, Q$2, Calculations!$I436:$QJ436) -> -145009.0418 | R94: =SUMIF(Calculations!$I$8:$QJ$8, R$2, Calculations!$I436:$QJ436) -> -163399.8179 | S94: =SUMIF(Calculations!$I$8:$QJ$8, S$2, Calculations!$I436:$QJ436) -> -184123.0047 | T94: =SUMIF(Calculations!$I$8:$QJ$8, T$2, Calculations!$I436:$QJ436) -> -207474.4103 | U94: =SUMIF(Calculations!$I$8:$QJ$8, U$2, Calculations!$I436:$QJ436) -> -233787.3586 | V94: =SUMIF(Calculations!$I$8:$QJ$8, V$2, Calculations!$I436:$QJ436) -> -263437.4474 | W94: =SUMIF(Calculations!$I$8:$QJ$8, W$2, Calculations!$I436:$QJ436) -> -296847.9096 | X94: =SUMIF(Calculations!$I$8:$QJ$8, X$2, Calculations!$I436:$QJ436) -> -334495.6547 | Y94: =SUMIF(Calculations!$I$8:$QJ$8, Y$2, Calculations!$I436:$QJ436) -> -376918.0762 | Z94: =SUMIF(Calculations!$I$8:$QJ$8, Z$2, Calculations!$I436:$QJ436) -> -424720.7226 | AA94: =SUMIF(Calculations!$I$8:$QJ$8, AA$2, Calculations!$I436:$QJ436) -> -478585.941 | AB94: =SUMIF(Calculations!$I$8:$QJ$8, AB$2, Calculations!$I436:$QJ436) -> -539282.6174 | AC94: =SUMIF(Calculations!$I$8:$QJ$8, AC$2, Calculations!$I436:$QJ436) -> -607677.1516 | AD94: =SUMIF(Calculations!$I$8:$QJ$8, AD$2, Calculations!$I436:$QJ436) -> -684745.8247 | AE94: =SUMIF(Calculations!$I$8:$QJ$8, AE$2, Calculations!$I436:$QJ436) -> -771588.7345 | AF94: =SUMIF(Calculations!$I$8:$QJ$8, AF$2, Calculations!$I436:$QJ436) -> -869445.499 | AG94: =SUMIF(Calculations!$I$8:$QJ$8, AG$2, Calculations!$I436:$QJ436) -> -979712.9506 | AH94: =SUMIF(Calculations!$I$8:$QJ$8, AH$2, Calculations!$I436:$QJ436) -> 3503313.803 | AI94: =SUMIF(Calculations!$I$8:$QJ$8, AI$2, Calculations!$I436:$QJ436) -> 0 | AJ94: =SUMIF(Calculations!$I$8:$QJ$8, AJ$2, Calculations!$I436:$QJ436) -> 0
C95: =Calculations!C437 -> Principal Repayment of Construction Loan | D95: 0 | E95: 0 | F95: =Calculations!E437 -> EUR | H95: 0 | I95: =SUMIF(Calculations!$I$8:$QJ$8, I$2, Calculations!$I437:$QJ437) -> 0 | J95: =SUMIF(Calculations!$I$8:$QJ$8, J$2, Calculations!$I437:$QJ437) -> 0 | K95: =SUMIF(Calculations!$I$8:$QJ$8, K$2, Calculations!$I437:$QJ437) -> 0 | L95: =SUMIF(Calculations!$I$8:$QJ$8, L$2, Calculations!$I437:$QJ437) -> 0 | M95: =SUMIF(Calculations!$I$8:$QJ$8, M$2, Calculations!$I437:$QJ437) -> 0 | N95: =SUMIF(Calculations!$I$8:$QJ$8, N$2, Calculations!$I437:$QJ437) -> 0 | O95: =SUMIF(Calculations!$I$8:$QJ$8, O$2, Calculations!$I437:$QJ437) -> 0 | P95: =SUMIF(Calculations!$I$8:$QJ$8, P$2, Calculations!$I437:$QJ437) -> 0 | Q95: =SUMIF(Calculations!$I$8:$QJ$8, Q$2, Calculations!$I437:$QJ437) -> 0 | R95: =SUMIF(Calculations!$I$8:$QJ$8, R$2, Calculations!$I437:$QJ437) -> 0 | S95: =SUMIF(Calculations!$I$8:$QJ$8, S$2, Calculations!$I437:$QJ437) -> 0 | T95: =SUMIF(Calculations!$I$8:$QJ$8, T$2, Calculations!$I437:$QJ437) -> 0 | U95: =SUMIF(Calculations!$I$8:$QJ$8, U$2, Calculations!$I437:$QJ437) -> 0 | V95: =SUMIF(Calculations!$I$8:$QJ$8, V$2, Calculations!$I437:$QJ437) -> 0 | W95: =SUMIF(Calculations!$I$8:$QJ$8, W$2, Calculations!$I437:$QJ437) -> 0 | X95: =SUMIF(Calculations!$I$8:$QJ$8, X$2, Calculations!$I437:$QJ437) -> 0 | Y95: =SUMIF(Calculations!$I$8:$QJ$8, Y$2, Calculations!$I437:$QJ437) -> 0 | Z95: =SUMIF(Calculations!$I$8:$QJ$8, Z$2, Calculations!$I437:$QJ437) -> 0 | AA95: =SUMIF(Calculations!$I$8:$QJ$8, AA$2, Calculations!$I437:$QJ437) -> 0 | AB95: =SUMIF(Calculations!$I$8:$QJ$8, AB$2, Calculations!$I437:$QJ437) -> 0 | AC95: =SUMIF(Calculations!$I$8:$QJ$8, AC$2, Calculations!$I437:$QJ437) -> 0 | AD95: =SUMIF(Calculations!$I$8:$QJ$8, AD$2, Calculations!$I437:$QJ437) -> 0 | AE95: =SUMIF(Calculations!$I$8:$QJ$8, AE$2, Calculations!$I437:$QJ437) -> 0 | AF95: =SUMIF(Calculations!$I$8:$QJ$8, AF$2, Calculations!$I437:$QJ437) -> 0 | AG95: =SUMIF(Calculations!$I$8:$QJ$8, AG$2, Calculations!$I437:$QJ437) -> 0 | AH95: =SUMIF(Calculations!$I$8:$QJ$8, AH$2, Calculations!$I437:$QJ437) -> 0 | AI95: =SUMIF(Calculations!$I$8:$QJ$8, AI$2, Calculations!$I437:$QJ437) -> 0 | AJ95: =SUMIF(Calculations!$I$8:$QJ$8, AJ$2, Calculations!$I437:$QJ437) -> 0
C96: =Calculations!C438 -> Principal Repayment of Operating Loan | D96: -8438307.775 | E96: -386866.9784 | F96: =Calculations!E438 -> EUR | H96: -8825174.753 | I96: =SUMIF(Calculations!$I$8:$QJ$8, I$2, Calculations!$I438:$QJ438) -> 0 | J96: =SUMIF(Calculations!$I$8:$QJ$8, J$2, Calculations!$I438:$QJ438) -> 0 | K96: =SUMIF(Calculations!$I$8:$QJ$8, K$2, Calculations!$I438:$QJ438) -> -35599.7447 | L96: =SUMIF(Calculations!$I$8:$QJ$8, L$2, Calculations!$I438:$QJ438) -> -321577.5138 | M96: =SUMIF(Calculations!$I$8:$QJ$8, M$2, Calculations!$I438:$QJ438) -> -339717.0133 | N96: =SUMIF(Calculations!$I$8:$QJ$8, N$2, Calculations!$I438:$QJ438) -> -358879.7232 | O96: =SUMIF(Calculations!$I$8:$QJ$8, O$2, Calculations!$I438:$QJ438) -> -379123.3605 | P96: =SUMIF(Calculations!$I$8:$QJ$8, P$2, Calculations!$I438:$QJ438) -> -400508.8981 | Q96: =SUMIF(Calculations!$I$8:$QJ$8, Q$2, Calculations!$I438:$QJ438) -> -423100.7481 | R96: =SUMIF(Calculations!$I$8:$QJ$8, R$2, Calculations!$I438:$QJ438) -> -446966.956 | S96: =SUMIF(Calculations!$I$8:$QJ$8, S$2, Calculations!$I438:$QJ438) -> -472179.4056 | T96: =SUMIF(Calculations!$I$8:$QJ$8, T$2, Calculations!$I438:$QJ438) -> -498814.0356 | U96: =SUMIF(Calculations!$I$8:$QJ$8, U$2, Calculations!$I438:$QJ438) -> -526951.0681 | V96: =SUMIF(Calculations!$I$8:$QJ$8, V$2, Calculations!$I438:$QJ438) -> -556675.2504 | W96: =SUMIF(Calculations!$I$8:$QJ$8, W$2, Calculations!$I438:$QJ438) -> -588076.1102 | X96: =SUMIF(Calculations!$I$8:$QJ$8, X$2, Calculations!$I438:$QJ438) -> -621248.2253 | Y96: =SUMIF(Calculations!$I$8:$QJ$8, Y$2, Calculations!$I438:$QJ438) -> -656291.5085 | Z96: =SUMIF(Calculations!$I$8:$QJ$8, Z$2, Calculations!$I438:$QJ438) -> -693311.5083 | AA96: =SUMIF(Calculations!$I$8:$QJ$8, AA$2, Calculations!$I438:$QJ438) -> -732419.727 | AB96: =SUMIF(Calculations!$I$8:$QJ$8, AB$2, Calculations!$I438:$QJ438) -> -773733.9567 | AC96: =SUMIF(Calculations!$I$8:$QJ$8, AC$2, Calculations!$I438:$QJ438) -> 0 | AD96: =SUMIF(Calculations!$I$8:$QJ$8, AD$2, Calculations!$I438:$QJ438) -> 0 | AE96: =SUMIF(Calculations!$I$8:$QJ$8, AE$2, Calculations!$I438:$QJ438) -> 0 | AF96: =SUMIF(Calculations!$I$8:$QJ$8, AF$2, Calculations!$I438:$QJ438) -> 0 | AG96: =SUMIF(Calculations!$I$8:$QJ$8, AG$2, Calculations!$I438:$QJ438) -> 0 | AH96: =SUMIF(Calculations!$I$8:$QJ$8, AH$2, Calculations!$I438:$QJ438) -> 0 | AI96: =SUMIF(Calculations!$I$8:$QJ$8, AI$2, Calculations!$I438:$QJ438) -> 0 | AJ96: =SUMIF(Calculations!$I$8:$QJ$8, AJ$2, Calculations!$I438:$QJ438) -> 0
C97: =Calculations!C439 -> Interest Payment on Senior Loan | D97: -5300735.455 | E97: -28154.95776 | F97: =Calculations!E439 -> EUR | H97: -5328890.413 | I97: =SUMIF(Calculations!$I$8:$QJ$8, I$2, Calculations!$I439:$QJ439) -> 0 | J97: =SUMIF(Calculations!$I$8:$QJ$8, J$2, Calculations!$I439:$QJ439) -> 0 | K97: =SUMIF(Calculations!$I$8:$QJ$8, K$2, Calculations!$I439:$QJ439) -> -169460.602 | L97: =SUMIF(Calculations!$I$8:$QJ$8, L$2, Calculations!$I439:$QJ439) -> -498663.8731 | M97: =SUMIF(Calculations!$I$8:$QJ$8, M$2, Calculations!$I439:$QJ439) -> -480524.3736 | N97: =SUMIF(Calculations!$I$8:$QJ$8, N$2, Calculations!$I439:$QJ439) -> -461361.6637 | O97: =SUMIF(Calculations!$I$8:$QJ$8, O$2, Calculations!$I439:$QJ439) -> -441118.0264 | P97: =SUMIF(Calculations!$I$8:$QJ$8, P$2, Calculations!$I439:$QJ439) -> -419732.4888 | Q97: =SUMIF(Calculations!$I$8:$QJ$8, Q$2, Calculations!$I439:$QJ439) -> -397140.6388 | R97: =SUMIF(Calculations!$I$8:$QJ$8, R$2, Calculations!$I439:$QJ439) -> -373274.4309 | S97: =SUMIF(Calculations!$I$8:$QJ$8, S$2, Calculations!$I439:$QJ439) -> -348061.9812 | T97: =SUMIF(Calculations!$I$8:$QJ$8, T$2, Calculations!$I439:$QJ439) -> -321427.3512 | U97: =SUMIF(Calculations!$I$8:$QJ$8, U$2, Calculations!$I439:$QJ439) -> -293290.3188 | V97: =SUMIF(Calculations!$I$8:$QJ$8, V$2, Calculations!$I439:$QJ439) -> -263566.1365 | W97: =SUMIF(Calculations!$I$8:$QJ$8, W$2, Calculations!$I439:$QJ439) -> -232165.2767 | X97: =SUMIF(Calculations!$I$8:$QJ$8, X$2, Calculations!$I439:$QJ439) -> -198993.1616 | Y97: =SUMIF(Calculations!$I$8:$QJ$8, Y$2, Calculations!$I439:$QJ439) -> -163949.8784 | Z97: =SUMIF(Calculations!$I$8:$QJ$8, Z$2, Calculations!$I439:$QJ439) -> -126929.8786 | AA97: =SUMIF(Calculations!$I$8:$QJ$8, AA$2, Calculations!$I439:$QJ439) -> -87821.65986 | AB97: =SUMIF(Calculations!$I$8:$QJ$8, AB$2, Calculations!$I439:$QJ439) -> -46507.43015 | AC97: =SUMIF(Calculations!$I$8:$QJ$8, AC$2, Calculations!$I439:$QJ439) -> -4901.242686 | AD97: =SUMIF(Calculations!$I$8:$QJ$8, AD$2, Calculations!$I439:$QJ439) -> 0 | AE97: =SUMIF(Calculations!$I$8:$QJ$8, AE$2, Calculations!$I439:$QJ439) -> 0 | AF97: =SUMIF(Calculations!$I$8:$QJ$8, AF$2, Calculations!$I439:$QJ439) -> 0 | AG97: =SUMIF(Calculations!$I$8:$QJ$8, AG$2, Calculations!$I439:$QJ439) -> 0 | AH97: =SUMIF(Calculations!$I$8:$QJ$8, AH$2, Calculations!$I439:$QJ439) -> 0 | AI97: =SUMIF(Calculations!$I$8:$QJ$8, AI$2, Calculations!$I439:$QJ439) -> 0 | AJ97: =SUMIF(Calculations!$I$8:$QJ$8, AJ$2, Calculations!$I439:$QJ439) -> 0
C98: =Calculations!C440 -> Interest Payment on Subordinated Debt | D98: -6695862.567 | E98: 935799.0538 | F98: =Calculations!E440 -> EUR | H98: -5760063.513 | I98: =SUMIF(Calculations!$I$8:$QJ$8, I$2, Calculations!$I440:$QJ440) -> 0 | J98: =SUMIF(Calculations!$I$8:$QJ$8, J$2, Calculations!$I440:$QJ440) -> 0 | K98: =SUMIF(Calculations!$I$8:$QJ$8, K$2, Calculations!$I440:$QJ440) -> -186372.4059 | L98: =SUMIF(Calculations!$I$8:$QJ$8, L$2, Calculations!$I440:$QJ440) -> -550600.2651 | M98: =SUMIF(Calculations!$I$8:$QJ$8, M$2, Calculations!$I440:$QJ440) -> -540477.0695 | N98: =SUMIF(Calculations!$I$8:$QJ$8, N$2, Calculations!$I440:$QJ440) -> -529069.9993 | O98: =SUMIF(Calculations!$I$8:$QJ$8, O$2, Calculations!$I440:$QJ440) -> -516216.227 | P98: =SUMIF(Calculations!$I$8:$QJ$8, P$2, Calculations!$I440:$QJ440) -> -501732.2747 | Q98: =SUMIF(Calculations!$I$8:$QJ$8, Q$2, Calculations!$I440:$QJ440) -> -485411.3947 | R98: =SUMIF(Calculations!$I$8:$QJ$8, R$2, Calculations!$I440:$QJ440) -> -467020.6186 | S98: =SUMIF(Calculations!$I$8:$QJ$8, S$2, Calculations!$I440:$QJ440) -> -446297.4318 | T98: =SUMIF(Calculations!$I$8:$QJ$8, T$2, Calculations!$I440:$QJ440) -> -422946.0262 | U98: =SUMIF(Calculations!$I$8:$QJ$8, U$2, Calculations!$I440:$QJ440) -> -396633.0778 | V98: =SUMIF(Calculations!$I$8:$QJ$8, V$2, Calculations!$I440:$QJ440) -> -366982.989 | W98: =SUMIF(Calculations!$I$8:$QJ$8, W$2, Calculations!$I440:$QJ440) -> -333572.5268 | X98: =SUMIF(Calculations!$I$8:$QJ$8, X$2, Calculations!$I440:$QJ440) -> -295924.7817 | Y98: =SUMIF(Calculations!$I$8:$QJ$8, Y$2, Calculations!$I440:$QJ440) -> -253502.3603 | Z98: =SUMIF(Calculations!$I$8:$QJ$8, Z$2, Calculations!$I440:$QJ440) -> -205699.7139 | AA98: =SUMIF(Calculations!$I$8:$QJ$8, AA$2, Calculations!$I440:$QJ440) -> -151834.4954 | AB98: =SUMIF(Calculations!$I$8:$QJ$8, AB$2, Calculations!$I440:$QJ440) -> -91137.81905 | AC98: =SUMIF(Calculations!$I$8:$QJ$8, AC$2, Calculations!$I440:$QJ440) -> -22743.28485 | AD98: =SUMIF(Calculations!$I$8:$QJ$8, AD$2, Calculations!$I440:$QJ440) -> 54325.38822 | AE98: =SUMIF(Calculations!$I$8:$QJ$8, AE$2, Calculations!$I440:$QJ440) -> 141168.2981 | AF98: =SUMIF(Calculations!$I$8:$QJ$8, AF$2, Calculations!$I440:$QJ440) -> 239025.0626 | AG98: =SUMIF(Calculations!$I$8:$QJ$8, AG$2, Calculations!$I440:$QJ440) -> 349292.5142 | AH98: =SUMIF(Calculations!$I$8:$QJ$8, AH$2, Calculations!$I440:$QJ440) -> 220299.9852 | AI98: =SUMIF(Calculations!$I$8:$QJ$8, AI$2, Calculations!$I440:$QJ440) -> 0 | AJ98: =SUMIF(Calculations!$I$8:$QJ$8, AJ$2, Calculations!$I440:$QJ440) -> 0
C99: =Calculations!C441 -> Dividends | D99: 0 | E99: 0 | F99: =Calculations!E441 -> EUR | H99: 0 | I99: =SUMIF(Calculations!$I$8:$QJ$8, I$2, Calculations!$I441:$QJ441) -> 0 | J99: =SUMIF(Calculations!$I$8:$QJ$8, J$2, Calculations!$I441:$QJ441) -> 0 | K99: =SUMIF(Calculations!$I$8:$QJ$8, K$2, Calculations!$I441:$QJ441) -> 0 | L99: =SUMIF(Calculations!$I$8:$QJ$8, L$2, Calculations!$I441:$QJ441) -> 0 | M99: =SUMIF(Calculations!$I$8:$QJ$8, M$2, Calculations!$I441:$QJ441) -> 0 | N99: =SUMIF(Calculations!$I$8:$QJ$8, N$2, Calculations!$I441:$QJ441) -> 0 | O99: =SUMIF(Calculations!$I$8:$QJ$8, O$2, Calculations!$I441:$QJ441) -> 0 | P99: =SUMIF(Calculations!$I$8:$QJ$8, P$2, Calculations!$I441:$QJ441) -> 0 | Q99: =SUMIF(Calculations!$I$8:$QJ$8, Q$2, Calculations!$I441:$QJ441) -> 0 | R99: =SUMIF(Calculations!$I$8:$QJ$8, R$2, Calculations!$I441:$QJ441) -> 0 | S99: =SUMIF(Calculations!$I$8:$QJ$8, S$2, Calculations!$I441:$QJ441) -> 0 | T99: =SUMIF(Calculations!$I$8:$QJ$8, T$2, Calculations!$I441:$QJ441) -> 0 | U99: =SUMIF(Calculations!$I$8:$QJ$8, U$2, Calculations!$I441:$QJ441) -> 0 | V99: =SUMIF(Calculations!$I$8:$QJ$8, V$2, Calculations!$I441:$QJ441) -> 0 | W99: =SUMIF(Calculations!$I$8:$QJ$8, W$2, Calculations!$I441:$QJ441) -> 0 | X99: =SUMIF(Calculations!$I$8:$QJ$8, X$2, Calculations!$I441:$QJ441) -> 0 | Y99: =SUMIF(Calculations!$I$8:$QJ$8, Y$2, Calculations!$I441:$QJ441) -> 0 | Z99: =SUMIF(Calculations!$I$8:$QJ$8, Z$2, Calculations!$I441:$QJ441) -> 0 | AA99: =SUMIF(Calculations!$I$8:$QJ$8, AA$2, Calculations!$I441:$QJ441) -> 0 | AB99: =SUMIF(Calculations!$I$8:$QJ$8, AB$2, Calculations!$I441:$QJ441) -> 0 | AC99: =SUMIF(Calculations!$I$8:$QJ$8, AC$2, Calculations!$I441:$QJ441) -> 0 | AD99: =SUMIF(Calculations!$I$8:$QJ$8, AD$2, Calculations!$I441:$QJ441) -> 0 | AE99: =SUMIF(Calculations!$I$8:$QJ$8, AE$2, Calculations!$I441:$QJ441) -> 0 | AF99: =SUMIF(Calculations!$I$8:$QJ$8, AF$2, Calculations!$I441:$QJ441) -> 0 | AG99: =SUMIF(Calculations!$I$8:$QJ$8, AG$2, Calculations!$I441:$QJ441) -> 0 | AH99: =SUMIF(Calculations!$I$8:$QJ$8, AH$2, Calculations!$I441:$QJ441) -> 0 | AI99: =SUMIF(Calculations!$I$8:$QJ$8, AI$2, Calculations!$I441:$QJ441) -> 0 | AJ99: =SUMIF(Calculations!$I$8:$QJ$8, AJ$2, Calculations!$I441:$QJ441) -> 0
C100: =Calculations!C442 -> Change in DSRA | D100: -384923.5913 | E100: 384923.5913 | F100: =Calculations!E442 -> EUR | H100: 0 | I100: =SUMIF(Calculations!$I$8:$QJ$8, I$2, Calculations!$I442:$QJ442) -> 0 | J100: =SUMIF(Calculations!$I$8:$QJ$8, J$2, Calculations!$I442:$QJ442) -> 0 | K100: =SUMIF(Calculations!$I$8:$QJ$8, K$2, Calculations!$I442:$QJ442) -> -410120.6934 | L100: =SUMIF(Calculations!$I$8:$QJ$8, L$2, Calculations!$I442:$QJ442) -> 0 | M100: =SUMIF(Calculations!$I$8:$QJ$8, M$2, Calculations!$I442:$QJ442) -> 0 | N100: =SUMIF(Calculations!$I$8:$QJ$8, N$2, Calculations!$I442:$QJ442) -> 0 | O100: =SUMIF(Calculations!$I$8:$QJ$8, O$2, Calculations!$I442:$QJ442) -> 0 | P100: =SUMIF(Calculations!$I$8:$QJ$8, P$2, Calculations!$I442:$QJ442) -> 0 | Q100: =SUMIF(Calculations!$I$8:$QJ$8, Q$2, Calculations!$I442:$QJ442) -> 0 | R100: =SUMIF(Calculations!$I$8:$QJ$8, R$2, Calculations!$I442:$QJ442) -> 0 | S100: =SUMIF(Calculations!$I$8:$QJ$8, S$2, Calculations!$I442:$QJ442) -> 0 | T100: =SUMIF(Calculations!$I$8:$QJ$8, T$2, Calculations!$I442:$QJ442) -> 0 | U100: =SUMIF(Calculations!$I$8:$QJ$8, U$2, Calculations!$I442:$QJ442) -> 0 | V100: =SUMIF(Calculations!$I$8:$QJ$8, V$2, Calculations!$I442:$QJ442) -> 0 | W100: =SUMIF(Calculations!$I$8:$QJ$8, W$2, Calculations!$I442:$QJ442) -> 0 | X100: =SUMIF(Calculations!$I$8:$QJ$8, X$2, Calculations!$I442:$QJ442) -> 0 | Y100: =SUMIF(Calculations!$I$8:$QJ$8, Y$2, Calculations!$I442:$QJ442) -> 0 | Z100: =SUMIF(Calculations!$I$8:$QJ$8, Z$2, Calculations!$I442:$QJ442) -> 0 | AA100: =SUMIF(Calculations!$I$8:$QJ$8, AA$2, Calculations!$I442:$QJ442) -> 0 | AB100: =SUMIF(Calculations!$I$8:$QJ$8, AB$2, Calculations!$I442:$QJ442) -> 50394.20421 | AC100: =SUMIF(Calculations!$I$8:$QJ$8, AC$2, Calculations!$I442:$QJ442) -> 359726.4892 | AD100: =SUMIF(Calculations!$I$8:$QJ$8, AD$2, Calculations!$I442:$QJ442) -> 0 | AE100: =SUMIF(Calculations!$I$8:$QJ$8, AE$2, Calculations!$I442:$QJ442) -> 0 | AF100: =SUMIF(Calculations!$I$8:$QJ$8, AF$2, Calculations!$I442:$QJ442) -> 0 | AG100: =SUMIF(Calculations!$I$8:$QJ$8, AG$2, Calculations!$I442:$QJ442) -> 0 | AH100: =SUMIF(Calculations!$I$8:$QJ$8, AH$2, Calculations!$I442:$QJ442) -> 0 | AI100: =SUMIF(Calculations!$I$8:$QJ$8, AI$2, Calculations!$I442:$QJ442) -> 0 | AJ100: =SUMIF(Calculations!$I$8:$QJ$8, AJ$2, Calculations!$I442:$QJ442) -> 0
C101: =Calculations!C443 -> Change in MMRA | D101: 0 | E101: 0 | F101: =Calculations!E443 -> EUR | H101: 0 | I101: =SUMIF(Calculations!$I$8:$QJ$8, I$2, Calculations!$I443:$QJ443) -> 0 | J101: =SUMIF(Calculations!$I$8:$QJ$8, J$2, Calculations!$I443:$QJ443) -> 0 | K101: =SUMIF(Calculations!$I$8:$QJ$8, K$2, Calculations!$I443:$QJ443) -> 0 | L101: =SUMIF(Calculations!$I$8:$QJ$8, L$2, Calculations!$I443:$QJ443) -> 0 | M101: =SUMIF(Calculations!$I$8:$QJ$8, M$2, Calculations!$I443:$QJ443) -> 0 | N101: =SUMIF(Calculations!$I$8:$QJ$8, N$2, Calculations!$I443:$QJ443) -> 0 | O101: =SUMIF(Calculations!$I$8:$QJ$8, O$2, Calculations!$I443:$QJ443) -> 0 | P101: =SUMIF(Calculations!$I$8:$QJ$8, P$2, Calculations!$I443:$QJ443) -> 0 | Q101: =SUMIF(Calculations!$I$8:$QJ$8, Q$2, Calculations!$I443:$QJ443) -> 0 | R101: =SUMIF(Calculations!$I$8:$QJ$8, R$2, Calculations!$I443:$QJ443) -> 0 | S101: =SUMIF(Calculations!$I$8:$QJ$8, S$2, Calculations!$I443:$QJ443) -> 0 | T101: =SUMIF(Calculations!$I$8:$QJ$8, T$2, Calculations!$I443:$QJ443) -> 0 | U101: =SUMIF(Calculations!$I$8:$QJ$8, U$2, Calculations!$I443:$QJ443) -> 0 | V101: =SUMIF(Calculations!$I$8:$QJ$8, V$2, Calculations!$I443:$QJ443) -> 0 | W101: =SUMIF(Calculations!$I$8:$QJ$8, W$2, Calculations!$I443:$QJ443) -> 0 | X101: =SUMIF(Calculations!$I$8:$QJ$8, X$2, Calculations!$I443:$QJ443) -> 0 | Y101: =SUMIF(Calculations!$I$8:$QJ$8, Y$2, Calculations!$I443:$QJ443) -> 0 | Z101: =SUMIF(Calculations!$I$8:$QJ$8, Z$2, Calculations!$I443:$QJ443) -> 0 | AA101: =SUMIF(Calculations!$I$8:$QJ$8, AA$2, Calculations!$I443:$QJ443) -> 0 | AB101: =SUMIF(Calculations!$I$8:$QJ$8, AB$2, Calculations!$I443:$QJ443) -> 0 | AC101: =SUMIF(Calculations!$I$8:$QJ$8, AC$2, Calculations!$I443:$QJ443) -> 0 | AD101: =SUMIF(Calculations!$I$8:$QJ$8, AD$2, Calculations!$I443:$QJ443) -> 0 | AE101: =SUMIF(Calculations!$I$8:$QJ$8, AE$2, Calculations!$I443:$QJ443) -> 0 | AF101: =SUMIF(Calculations!$I$8:$QJ$8, AF$2, Calculations!$I443:$QJ443) -> 0 | AG101: =SUMIF(Calculations!$I$8:$QJ$8, AG$2, Calculations!$I443:$QJ443) -> 0 | AH101: =SUMIF(Calculations!$I$8:$QJ$8, AH$2, Calculations!$I443:$QJ443) -> 0 | AI101: =SUMIF(Calculations!$I$8:$QJ$8, AI$2, Calculations!$I443:$QJ443) -> 0 | AJ101: =SUMIF(Calculations!$I$8:$QJ$8, AJ$2, Calculations!$I443:$QJ443) -> 0
C102: =Calculations!C444 -> Initial Funding of Working Capital | D102: 0 | E102: 0 | F102: =Calculations!E444 -> EUR | H102: 0 | I102: =SUMIF(Calculations!$I$8:$QJ$8, I$2, Calculations!$I444:$QJ444) -> 0 | J102: =SUMIF(Calculations!$I$8:$QJ$8, J$2, Calculations!$I444:$QJ444) -> 0 | K102: =SUMIF(Calculations!$I$8:$QJ$8, K$2, Calculations!$I444:$QJ444) -> 0 | L102: =SUMIF(Calculations!$I$8:$QJ$8, L$2, Calculations!$I444:$QJ444) -> 0 | M102: =SUMIF(Calculations!$I$8:$QJ$8, M$2, Calculations!$I444:$QJ444) -> 0 | N102: =SUMIF(Calculations!$I$8:$QJ$8, N$2, Calculations!$I444:$QJ444) -> 0 | O102: =SUMIF(Calculations!$I$8:$QJ$8, O$2, Calculations!$I444:$QJ444) -> 0 | P102: =SUMIF(Calculations!$I$8:$QJ$8, P$2, Calculations!$I444:$QJ444) -> 0 | Q102: =SUMIF(Calculations!$I$8:$QJ$8, Q$2, Calculations!$I444:$QJ444) -> 0 | R102: =SUMIF(Calculations!$I$8:$QJ$8, R$2, Calculations!$I444:$QJ444) -> 0 | S102: =SUMIF(Calculations!$I$8:$QJ$8, S$2, Calculations!$I444:$QJ444) -> 0 | T102: =SUMIF(Calculations!$I$8:$QJ$8, T$2, Calculations!$I444:$QJ444) -> 0 | U102: =SUMIF(Calculations!$I$8:$QJ$8, U$2, Calculations!$I444:$QJ444) -> 0 | V102: =SUMIF(Calculations!$I$8:$QJ$8, V$2, Calculations!$I444:$QJ444) -> 0 | W102: =SUMIF(Calculations!$I$8:$QJ$8, W$2, Calculations!$I444:$QJ444) -> 0 | X102: =SUMIF(Calculations!$I$8:$QJ$8, X$2, Calculations!$I444:$QJ444) -> 0 | Y102: =SUMIF(Calculations!$I$8:$QJ$8, Y$2, Calculations!$I444:$QJ444) -> 0 | Z102: =SUMIF(Calculations!$I$8:$QJ$8, Z$2, Calculations!$I444:$QJ444) -> 0 | AA102: =SUMIF(Calculations!$I$8:$QJ$8, AA$2, Calculations!$I444:$QJ444) -> 0 | AB102: =SUMIF(Calculations!$I$8:$QJ$8, AB$2, Calculations!$I444:$QJ444) -> 0 | AC102: =SUMIF(Calculations!$I$8:$QJ$8, AC$2, Calculations!$I444:$QJ444) -> 0 | AD102: =SUMIF(Calculations!$I$8:$QJ$8, AD$2, Calculations!$I444:$QJ444) -> 0 | AE102: =SUMIF(Calculations!$I$8:$QJ$8, AE$2, Calculations!$I444:$QJ444) -> 0 | AF102: =SUMIF(Calculations!$I$8:$QJ$8, AF$2, Calculations!$I444:$QJ444) -> 0 | AG102: =SUMIF(Calculations!$I$8:$QJ$8, AG$2, Calculations!$I444:$QJ444) -> 0 | AH102: =SUMIF(Calculations!$I$8:$QJ$8, AH$2, Calculations!$I444:$QJ444) -> 0 | AI102: =SUMIF(Calculations!$I$8:$QJ$8, AI$2, Calculations!$I444:$QJ444) -> 0 | AJ102: =SUMIF(Calculations!$I$8:$QJ$8, AJ$2, Calculations!$I444:$QJ444) -> 0
C103: =Calculations!C445 -> Interest on Reserve Accounts | D103: 0 | E103: 0 | F103: =Calculations!E445 -> EUR | H103: 0 | I103: =SUMIF(Calculations!$I$8:$QJ$8, I$2, Calculations!$I445:$QJ445) -> 0 | J103: =SUMIF(Calculations!$I$8:$QJ$8, J$2, Calculations!$I445:$QJ445) -> 0 | K103: =SUMIF(Calculations!$I$8:$QJ$8, K$2, Calculations!$I445:$QJ445) -> 0 | L103: =SUMIF(Calculations!$I$8:$QJ$8, L$2, Calculations!$I445:$QJ445) -> 0 | M103: =SUMIF(Calculations!$I$8:$QJ$8, M$2, Calculations!$I445:$QJ445) -> 0 | N103: =SUMIF(Calculations!$I$8:$QJ$8, N$2, Calculations!$I445:$QJ445) -> 0 | O103: =SUMIF(Calculations!$I$8:$QJ$8, O$2, Calculations!$I445:$QJ445) -> 0 | P103: =SUMIF(Calculations!$I$8:$QJ$8, P$2, Calculations!$I445:$QJ445) -> 0 | Q103: =SUMIF(Calculations!$I$8:$QJ$8, Q$2, Calculations!$I445:$QJ445) -> 0 | R103: =SUMIF(Calculations!$I$8:$QJ$8, R$2, Calculations!$I445:$QJ445) -> 0 | S103: =SUMIF(Calculations!$I$8:$QJ$8, S$2, Calculations!$I445:$QJ445) -> 0 | T103: =SUMIF(Calculations!$I$8:$QJ$8, T$2, Calculations!$I445:$QJ445) -> 0 | U103: =SUMIF(Calculations!$I$8:$QJ$8, U$2, Calculations!$I445:$QJ445) -> 0 | V103: =SUMIF(Calculations!$I$8:$QJ$8, V$2, Calculations!$I445:$QJ445) -> 0 | W103: =SUMIF(Calculations!$I$8:$QJ$8, W$2, Calculations!$I445:$QJ445) -> 0 | X103: =SUMIF(Calculations!$I$8:$QJ$8, X$2, Calculations!$I445:$QJ445) -> 0 | Y103: =SUMIF(Calculations!$I$8:$QJ$8, Y$2, Calculations!$I445:$QJ445) -> 0 | Z103: =SUMIF(Calculations!$I$8:$QJ$8, Z$2, Calculations!$I445:$QJ445) -> 0 | AA103: =SUMIF(Calculations!$I$8:$QJ$8, AA$2, Calculations!$I445:$QJ445) -> 0 | AB103: =SUMIF(Calculations!$I$8:$QJ$8, AB$2, Calculations!$I445:$QJ445) -> 0 | AC103: =SUMIF(Calculations!$I$8:$QJ$8, AC$2, Calculations!$I445:$QJ445) -> 0 | AD103: =SUMIF(Calculations!$I$8:$QJ$8, AD$2, Calculations!$I445:$QJ445) -> 0 | AE103: =SUMIF(Calculations!$I$8:$QJ$8, AE$2, Calculations!$I445:$QJ445) -> 0 | AF103: =SUMIF(Calculations!$I$8:$QJ$8, AF$2, Calculations!$I445:$QJ445) -> 0 | AG103: =SUMIF(Calculations!$I$8:$QJ$8, AG$2, Calculations!$I445:$QJ445) -> 0 | AH103: =SUMIF(Calculations!$I$8:$QJ$8, AH$2, Calculations!$I445:$QJ445) -> 0 | AI103: =SUMIF(Calculations!$I$8:$QJ$8, AI$2, Calculations!$I445:$QJ445) -> 0 | AJ103: =SUMIF(Calculations!$I$8:$QJ$8, AJ$2, Calculations!$I445:$QJ445) -> 0
C104: =Calculations!C446 -> Cash Flows From Financing Activities | D104: -21555331.72 | E104: 15411203.04 | F104: =Calculations!E446 -> EUR | H104: -6144128.68 | I104: =SUM(I90:I103) -> 7265000 | J104: 7920000 | K104: 2355391.261 | L104: -1450661.823 | M104: -1450661.823 | N104: -1450661.823 | O104: -1450661.823 | P104: -1450661.823 | Q104: -1450661.823 | R104: -1450661.823 | S104: -1450661.823 | T104: -1450661.823 | U104: -1450661.823 | V104: -1450661.823 | W104: -1450661.823 | X104: -1450661.823 | Y104: -1450661.823 | Z104: -1450661.823 | AA104: -1450661.823 | AB104: -1400267.619 | AC104: -275595.1899 | AD104: -630420.4365 | AE104: -630420.4365 | AF104: -630420.4365 | AG104: -630420.4365 | AH104: 3723613.788 | AI104: 0 | AJ104: =SUM(AJ90:AJ103) -> 0
D105: 0 | E105: 0
B106: Net Movements In Cash | D106: 3158310.027 | E106: 5300647.205 | F106: =Calculations!E448 -> EUR | H106: =SUM(I106:AT106) -> 8458957.232 | I106: =I83+I87+I104 -> 117740.3059 | J106: -114254.2781 | K106: 415823.8946 | L106: 352244.0674 | M106: 322102.0079 | N106: 300857.9023 | O106: 276159.2484 | P106: 253651.6025 | Q106: 230183.5137 | R106: 206603.3304 | S106: 182544.1391 | T106: 159255.6601 | U106: 135349.1208 | V106: 111568.5171 | W106: 87320.78428 | X106: 64047.4918 | Y106: 40418.76831 | Z106: 16896.75301 | AA106: -6990.56989 | AB106: 20547.59148 | AC106: -1363167.256 | AD106: 626649.8509 | AE106: 503395.5821 | AF106: 465180.576 | AG106: 424561.8404 | AH106: 4778220.629 | AI106: 1069227.89 | AJ106: =AJ83+AJ87+AJ104 -> -1217181.732
D107: =SUM(K107:AB107) -> 0
B108: Cash Position
C109: =Calculations!C451 -> Beginning of Period | F109: =Calculations!E451 -> EUR | I109: =H110 -> 0 | J109: =I110 -> 117740.3059 | K109: 3486.027826 | L109: 419309.9224 | M109: 771553.9898 | N109: =M110 -> 1093655.998 | O109: 1394513.9 | P109: 1670673.148 | Q109: 1924324.751 | R109: 2154508.265 | S109: 2361111.595 | T109: 2543655.734 | U109: 2702911.394 | V109: 2838260.515 | W109: 2949829.032 | X109: 3037149.816 | Y109: 3101197.308 | Z109: 3141616.076 | AA109: 3158512.829 | AB109: 3151522.26 | AC109: 3172069.851 | AD109: 1808902.595 | AE109: 2435552.446 | AF109: 2938948.028 | AG109: =AF110 -> 3404128.604 | AH109: 3828690.444 | AI109: 8606911.073 | AJ109: 9676138.964
C110: =Calculations!C452 -> End of Period | F110: =Calculations!E452 -> EUR | H110: 0 | I110: =I106+I109 -> 117740.3059 | J110: =J106+J109 -> 3486.027826 | K110: 419309.9224 | L110: 771553.9898 | M110: 1093655.998 | N110: 1394513.9 | O110: 1670673.148 | P110: 1924324.751 | Q110: 2154508.265 | R110: 2361111.595 | S110: 2543655.734 | T110: 2702911.394 | U110: 2838260.515 | V110: 2949829.032 | W110: 3037149.816 | X110: 3101197.308 | Y110: 3141616.076 | Z110: 3158512.829 | AA110: 3151522.26 | AB110: 3172069.851 | AC110: 1808902.595 | AD110: 2435552.446 | AE110: 2938948.028 | AF110: 3404128.604 | AG110: =AG106+AG109 -> 3828690.444 | AH110: 8606911.073 | AI110: 9676138.964 | AJ110: 8458957.232
A112: · | B112: Cash Waterfall | F112: Unit
C114: =Calculations!C459 -> Drawdown of Equity | F114: =Calculations!E459 -> EUR | H114: =SUM(I114:AT114) -> 4590000 | I114: =SUMIF(Calculations!$I$8:$QJ$8, I$2, Calculations!$I459:$QJ459) -> 4590000 | J114: =SUMIF(Calculations!$I$8:$QJ$8, J$2, Calculations!$I459:$QJ459) -> 0 | K114: =SUMIF(Calculations!$I$8:$QJ$8, K$2, Calculations!$I459:$QJ459) -> 0 | L114: =SUMIF(Calculations!$I$8:$QJ$8, L$2, Calculations!$I459:$QJ459) -> 0 | M114: =SUMIF(Calculations!$I$8:$QJ$8, M$2, Calculations!$I459:$QJ459) -> 0 | N114: =SUMIF(Calculations!$I$8:$QJ$8, N$2, Calculations!$I459:$QJ459) -> 0 | O114: =SUMIF(Calculations!$I$8:$QJ$8, O$2, Calculations!$I459:$QJ459) -> 0 | P114: =SUMIF(Calculations!$I$8:$QJ$8, P$2, Calculations!$I459:$QJ459) -> 0 | Q114: =SUMIF(Calculations!$I$8:$QJ$8, Q$2, Calculations!$I459:$QJ459) -> 0 | R114: =SUMIF(Calculations!$I$8:$QJ$8, R$2, Calculations!$I459:$QJ459) -> 0 | S114: =SUMIF(Calculations!$I$8:$QJ$8, S$2, Calculations!$I459:$QJ459) -> 0 | T114: =SUMIF(Calculations!$I$8:$QJ$8, T$2, Calculations!$I459:$QJ459) -> 0 | U114: =SUMIF(Calculations!$I$8:$QJ$8, U$2, Calculations!$I459:$QJ459) -> 0 | V114: =SUMIF(Calculations!$I$8:$QJ$8, V$2, Calculations!$I459:$QJ459) -> 0 | W114: =SUMIF(Calculations!$I$8:$QJ$8, W$2, Calculations!$I459:$QJ459) -> 0 | X114: =SUMIF(Calculations!$I$8:$QJ$8, X$2, Calculations!$I459:$QJ459) -> 0 | Y114: =SUMIF(Calculations!$I$8:$QJ$8, Y$2, Calculations!$I459:$QJ459) -> 0 | Z114: =SUMIF(Calculations!$I$8:$QJ$8, Z$2, Calculations!$I459:$QJ459) -> 0 | AA114: =SUMIF(Calculations!$I$8:$QJ$8, AA$2, Calculations!$I459:$QJ459) -> 0 | AB114: =SUMIF(Calculations!$I$8:$QJ$8, AB$2, Calculations!$I459:$QJ459) -> 0 | AC114: =SUMIF(Calculations!$I$8:$QJ$8, AC$2, Calculations!$I459:$QJ459) -> 0 | AD114: =SUMIF(Calculations!$I$8:$QJ$8, AD$2, Calculations!$I459:$QJ459) -> 0 | AE114: =SUMIF(Calculations!$I$8:$QJ$8, AE$2, Calculations!$I459:$QJ459) -> 0 | AF114: =SUMIF(Calculations!$I$8:$QJ$8, AF$2, Calculations!$I459:$QJ459) -> 0 | AG114: =SUMIF(Calculations!$I$8:$QJ$8, AG$2, Calculations!$I459:$QJ459) -> 0 | AH114: =SUMIF(Calculations!$I$8:$QJ$8, AH$2, Calculations!$I459:$QJ459) -> 0 | AI114: =SUMIF(Calculations!$I$8:$QJ$8, AI$2, Calculations!$I459:$QJ459) -> 0 | AJ114: =SUMIF(Calculations!$I$8:$QJ$8, AJ$2, Calculations!$I459:$QJ459) -> 0
C115: =Calculations!C460 -> Interest on Reserve Accounts | F115: =Calculations!E460 -> EUR | H115: 0 | I115: =SUMIF(Calculations!$I$8:$QJ$8, I$2, Calculations!$I460:$QJ460) -> 0 | J115: =SUMIF(Calculations!$I$8:$QJ$8, J$2, Calculations!$I460:$QJ460) -> 0 | K115: =SUMIF(Calculations!$I$8:$QJ$8, K$2, Calculations!$I460:$QJ460) -> 0 | L115: =SUMIF(Calculations!$I$8:$QJ$8, L$2, Calculations!$I460:$QJ460) -> 0 | M115: =SUMIF(Calculations!$I$8:$QJ$8, M$2, Calculations!$I460:$QJ460) -> 0 | N115: =SUMIF(Calculations!$I$8:$QJ$8, N$2, Calculations!$I460:$QJ460) -> 0 | O115: =SUMIF(Calculations!$I$8:$QJ$8, O$2, Calculations!$I460:$QJ460) -> 0 | P115: =SUMIF(Calculations!$I$8:$QJ$8, P$2, Calculations!$I460:$QJ460) -> 0 | Q115: =SUMIF(Calculations!$I$8:$QJ$8, Q$2, Calculations!$I460:$QJ460) -> 0 | R115: =SUMIF(Calculations!$I$8:$QJ$8, R$2, Calculations!$I460:$QJ460) -> 0 | S115: =SUMIF(Calculations!$I$8:$QJ$8, S$2, Calculations!$I460:$QJ460) -> 0 | T115: =SUMIF(Calculations!$I$8:$QJ$8, T$2, Calculations!$I460:$QJ460) -> 0 | U115: =SUMIF(Calculations!$I$8:$QJ$8, U$2, Calculations!$I460:$QJ460) -> 0 | V115: =SUMIF(Calculations!$I$8:$QJ$8, V$2, Calculations!$I460:$QJ460) -> 0 | W115: =SUMIF(Calculations!$I$8:$QJ$8, W$2, Calculations!$I460:$QJ460) -> 0 | X115: =SUMIF(Calculations!$I$8:$QJ$8, X$2, Calculations!$I460:$QJ460) -> 0 | Y115: =SUMIF(Calculations!$I$8:$QJ$8, Y$2, Calculations!$I460:$QJ460) -> 0 | Z115: =SUMIF(Calculations!$I$8:$QJ$8, Z$2, Calculations!$I460:$QJ460) -> 0 | AA115: =SUMIF(Calculations!$I$8:$QJ$8, AA$2, Calculations!$I460:$QJ460) -> 0 | AB115: =SUMIF(Calculations!$I$8:$QJ$8, AB$2, Calculations!$I460:$QJ460) -> 0 | AC115: =SUMIF(Calculations!$I$8:$QJ$8, AC$2, Calculations!$I460:$QJ460) -> 0 | AD115: =SUMIF(Calculations!$I$8:$QJ$8, AD$2, Calculations!$I460:$QJ460) -> 0 | AE115: =SUMIF(Calculations!$I$8:$QJ$8, AE$2, Calculations!$I460:$QJ460) -> 0 | AF115: =SUMIF(Calculations!$I$8:$QJ$8, AF$2, Calculations!$I460:$QJ460) -> 0 | AG115: =SUMIF(Calculations!$I$8:$QJ$8, AG$2, Calculations!$I460:$QJ460) -> 0 | AH115: =SUMIF(Calculations!$I$8:$QJ$8, AH$2, Calculations!$I460:$QJ460) -> 0 | AI115: =SUMIF(Calculations!$I$8:$QJ$8, AI$2, Calculations!$I460:$QJ460) -> 0 | AJ115: =SUMIF(Calculations!$I$8:$QJ$8, AJ$2, Calculations!$I460:$QJ460) -> 0
C116: =Calculations!C461 -> Cash Flow Available for Debt Service | F116: =Calculations!E461 -> EUR | H116: 39496917.52 | I116: =SUMIF(Calculations!$I$8:$QJ$8, I$2, Calculations!$I461:$QJ461) -> 3885701.833 | J116: =SUMIF(Calculations!$I$8:$QJ$8, J$2, Calculations!$I461:$QJ461) -> 480401.4971 | K116: =SUMIF(Calculations!$I$8:$QJ$8, K$2, Calculations!$I461:$QJ461) -> 923349.9622 | L116: =SUMIF(Calculations!$I$8:$QJ$8, L$2, Calculations!$I461:$QJ461) -> 1802905.891 | M116: =SUMIF(Calculations!$I$8:$QJ$8, M$2, Calculations!$I461:$QJ461) -> 1772763.831 | N116: =SUMIF(Calculations!$I$8:$QJ$8, N$2, Calculations!$I461:$QJ461) -> 1751519.726 | O116: =SUMIF(Calculations!$I$8:$QJ$8, O$2, Calculations!$I461:$QJ461) -> 1726821.072 | P116: =SUMIF(Calculations!$I$8:$QJ$8, P$2, Calculations!$I461:$QJ461) -> 1704313.426 | Q116: =SUMIF(Calculations!$I$8:$QJ$8, Q$2, Calculations!$I461:$QJ461) -> 1680845.337 | R116: =SUMIF(Calculations!$I$8:$QJ$8, R$2, Calculations!$I461:$QJ461) -> 1657265.154 | S116: =SUMIF(Calculations!$I$8:$QJ$8, S$2, Calculations!$I461:$QJ461) -> 1633205.962 | T116: =SUMIF(Calculations!$I$8:$QJ$8, T$2, Calculations!$I461:$QJ461) -> 1609917.483 | U116: =SUMIF(Calculations!$I$8:$QJ$8, U$2, Calculations!$I461:$QJ461) -> 1586010.944 | V116: =SUMIF(Calculations!$I$8:$QJ$8, V$2, Calculations!$I461:$QJ461) -> 1562230.34 | W116: =SUMIF(Calculations!$I$8:$QJ$8, W$2, Calculations!$I461:$QJ461) -> 1537982.608 | X116: =SUMIF(Calculations!$I$8:$QJ$8, X$2, Calculations!$I461:$QJ461) -> 1514709.315 | Y116: =SUMIF(Calculations!$I$8:$QJ$8, Y$2, Calculations!$I461:$QJ461) -> 1491080.592 | Z116: =SUMIF(Calculations!$I$8:$QJ$8, Z$2, Calculations!$I461:$QJ461) -> 1467558.576 | AA116: =SUMIF(Calculations!$I$8:$QJ$8, AA$2, Calculations!$I461:$QJ461) -> 1443671.253 | AB116: =SUMIF(Calculations!$I$8:$QJ$8, AB$2, Calculations!$I461:$QJ461) -> 1420815.211 | AC116: =SUMIF(Calculations!$I$8:$QJ$8, AC$2, Calculations!$I461:$QJ461) -> 1395724.912 | AD116: =SUMIF(Calculations!$I$8:$QJ$8, AD$2, Calculations!$I461:$QJ461) -> 1257070.287 | AE116: =SUMIF(Calculations!$I$8:$QJ$8, AE$2, Calculations!$I461:$QJ461) -> 1133816.019 | AF116: =SUMIF(Calculations!$I$8:$QJ$8, AF$2, Calculations!$I461:$QJ461) -> 1095601.012 | AG116: =SUMIF(Calculations!$I$8:$QJ$8, AG$2, Calculations!$I461:$QJ461) -> 1054982.277 | AH116: =SUMIF(Calculations!$I$8:$QJ$8, AH$2, Calculations!$I461:$QJ461) -> 1054606.842 | AI116: =SUMIF(Calculations!$I$8:$QJ$8, AI$2, Calculations!$I461:$QJ461) -> 1069227.89 | AJ116: =SUMIF(Calculations!$I$8:$QJ$8, AJ$2, Calculations!$I461:$QJ461) -> -1217181.732
C117: =Calculations!C462 -> less: Senior Debt Interest Expense | F117: =Calculations!E462 -> EUR | H117: -5328890.413 | I117: =SUMIF(Calculations!$I$8:$QJ$8, I$2, Calculations!$I462:$QJ462) -> 0 | J117: =SUMIF(Calculations!$I$8:$QJ$8, J$2, Calculations!$I462:$QJ462) -> 0 | K117: =SUMIF(Calculations!$I$8:$QJ$8, K$2, Calculations!$I462:$QJ462) -> -169460.602 | L117: =SUMIF(Calculations!$I$8:$QJ$8, L$2, Calculations!$I462:$QJ462) -> -498663.8731 | M117: =SUMIF(Calculations!$I$8:$QJ$8, M$2, Calculations!$I462:$QJ462) -> -480524.3736 | N117: =SUMIF(Calculations!$I$8:$QJ$8, N$2, Calculations!$I462:$QJ462) -> -461361.6637 | O117: =SUMIF(Calculations!$I$8:$QJ$8, O$2, Calculations!$I462:$QJ462) -> -441118.0264 | P117: =SUMIF(Calculations!$I$8:$QJ$8, P$2, Calculations!$I462:$QJ462) -> -419732.4888 | Q117: =SUMIF(Calculations!$I$8:$QJ$8, Q$2, Calculations!$I462:$QJ462) -> -397140.6388 | R117: =SUMIF(Calculations!$I$8:$QJ$8, R$2, Calculations!$I462:$QJ462) -> -373274.4309 | S117: =SUMIF(Calculations!$I$8:$QJ$8, S$2, Calculations!$I462:$QJ462) -> -348061.9812 | T117: =SUMIF(Calculations!$I$8:$QJ$8, T$2, Calculations!$I462:$QJ462) -> -321427.3512 | U117: =SUMIF(Calculations!$I$8:$QJ$8, U$2, Calculations!$I462:$QJ462) -> -293290.3188 | V117: =SUMIF(Calculations!$I$8:$QJ$8, V$2, Calculations!$I462:$QJ462) -> -263566.1365 | W117: =SUMIF(Calculations!$I$8:$QJ$8, W$2, Calculations!$I462:$QJ462) -> -232165.2767 | X117: =SUMIF(Calculations!$I$8:$QJ$8, X$2, Calculations!$I462:$QJ462) -> -198993.1616 | Y117: =SUMIF(Calculations!$I$8:$QJ$8, Y$2, Calculations!$I462:$QJ462) -> -163949.8784 | Z117: =SUMIF(Calculations!$I$8:$QJ$8, Z$2, Calculations!$I462:$QJ462) -> -126929.8786 | AA117: =SUMIF(Calculations!$I$8:$QJ$8, AA$2, Calculations!$I462:$QJ462) -> -87821.65986 | AB117: =SUMIF(Calculations!$I$8:$QJ$8, AB$2, Calculations!$I462:$QJ462) -> -46507.43015 | AC117: =SUMIF(Calculations!$I$8:$QJ$8, AC$2, Calculations!$I462:$QJ462) -> -4901.242686 | AD117: =SUMIF(Calculations!$I$8:$QJ$8, AD$2, Calculations!$I462:$QJ462) -> 0 | AE117: =SUMIF(Calculations!$I$8:$QJ$8, AE$2, Calculations!$I462:$QJ462) -> 0 | AF117: =SUMIF(Calculations!$I$8:$QJ$8, AF$2, Calculations!$I462:$QJ462) -> 0 | AG117: =SUMIF(Calculations!$I$8:$QJ$8, AG$2, Calculations!$I462:$QJ462) -> 0 | AH117: =SUMIF(Calculations!$I$8:$QJ$8, AH$2, Calculations!$I462:$QJ462) -> 0 | AI117: =SUMIF(Calculations!$I$8:$QJ$8, AI$2, Calculations!$I462:$QJ462) -> 0 | AJ117: =SUMIF(Calculations!$I$8:$QJ$8, AJ$2, Calculations!$I462:$QJ462) -> 0
C118: =Calculations!C463 -> add: Drawdown on Senior Debt | F118: =Calculations!E463 -> EUR | H118: 9180000 | I118: =SUMIF(Calculations!$I$8:$QJ$8, I$2, Calculations!$I463:$QJ463) -> 380000 | J118: =SUMIF(Calculations!$I$8:$QJ$8, J$2, Calculations!$I463:$QJ463) -> 5625000 | K118: =SUMIF(Calculations!$I$8:$QJ$8, K$2, Calculations!$I463:$QJ463) -> 3175000 | L118: =SUMIF(Calculations!$I$8:$QJ$8, L$2, Calculations!$I463:$QJ463) -> 0 | M118: =SUMIF(Calculations!$I$8:$QJ$8, M$2, Calculations!$I463:$QJ463) -> 0 | N118: =SUMIF(Calculations!$I$8:$QJ$8, N$2, Calculations!$I463:$QJ463) -> 0 | O118: =SUMIF(Calculations!$I$8:$QJ$8, O$2, Calculations!$I463:$QJ463) -> 0 | P118: =SUMIF(Calculations!$I$8:$QJ$8, P$2, Calculations!$I463:$QJ463) -> 0 | Q118: =SUMIF(Calculations!$I$8:$QJ$8, Q$2, Calculations!$I463:$QJ463) -> 0 | R118: =SUMIF(Calculations!$I$8:$QJ$8, R$2, Calculations!$I463:$QJ463) -> 0 | S118: =SUMIF(Calculations!$I$8:$QJ$8, S$2, Calculations!$I463:$QJ463) -> 0 | T118: =SUMIF(Calculations!$I$8:$QJ$8, T$2, Calculations!$I463:$QJ463) -> 0 | U118: =SUMIF(Calculations!$I$8:$QJ$8, U$2, Calculations!$I463:$QJ463) -> 0 | V118: =SUMIF(Calculations!$I$8:$QJ$8, V$2, Calculations!$I463:$QJ463) -> 0 | W118: =SUMIF(Calculations!$I$8:$QJ$8, W$2, Calculations!$I463:$QJ463) -> 0 | X118: =SUMIF(Calculations!$I$8:$QJ$8, X$2, Calculations!$I463:$QJ463) -> 0 | Y118: =SUMIF(Calculations!$I$8:$QJ$8, Y$2, Calculations!$I463:$QJ463) -> 0 | Z118: =SUMIF(Calculations!$I$8:$QJ$8, Z$2, Calculations!$I463:$QJ463) -> 0 | AA118: =SUMIF(Calculations!$I$8:$QJ$8, AA$2, Calculations!$I463:$QJ463) -> 0 | AB118: =SUMIF(Calculations!$I$8:$QJ$8, AB$2, Calculations!$I463:$QJ463) -> 0 | AC118: =SUMIF(Calculations!$I$8:$QJ$8, AC$2, Calculations!$I463:$QJ463) -> 0 | AD118: =SUMIF(Calculations!$I$8:$QJ$8, AD$2, Calculations!$I463:$QJ463) -> 0 | AE118: =SUMIF(Calculations!$I$8:$QJ$8, AE$2, Calculations!$I463:$QJ463) -> 0 | AF118: =SUMIF(Calculations!$I$8:$QJ$8, AF$2, Calculations!$I463:$QJ463) -> 0 | AG118: =SUMIF(Calculations!$I$8:$QJ$8, AG$2, Calculations!$I463:$QJ463) -> 0 | AH118: =SUMIF(Calculations!$I$8:$QJ$8, AH$2, Calculations!$I463:$QJ463) -> 0 | AI118: =SUMIF(Calculations!$I$8:$QJ$8, AI$2, Calculations!$I463:$QJ463) -> 0 | AJ118: =SUMIF(Calculations!$I$8:$QJ$8, AJ$2, Calculations!$I463:$QJ463) -> 0
C119: =Calculations!C464 -> less: Senior Debt Principal Repayment | F119: =Calculations!E464 -> EUR | H119: -8825174.753 | I119: =SUMIF(Calculations!$I$8:$QJ$8, I$2, Calculations!$I464:$QJ464) -> 0 | J119: =SUMIF(Calculations!$I$8:$QJ$8, J$2, Calculations!$I464:$QJ464) -> 0 | K119: =SUMIF(Calculations!$I$8:$QJ$8, K$2, Calculations!$I464:$QJ464) -> -35599.7447 | L119: =SUMIF(Calculations!$I$8:$QJ$8, L$2, Calculations!$I464:$QJ464) -> -321577.5138 | M119: =SUMIF(Calculations!$I$8:$QJ$8, M$2, Calculations!$I464:$QJ464) -> -339717.0133 | N119: =SUMIF(Calculations!$I$8:$QJ$8, N$2, Calculations!$I464:$QJ464) -> -358879.7232 | O119: =SUMIF(Calculations!$I$8:$QJ$8, O$2, Calculations!$I464:$QJ464) -> -379123.3605 | P119: =SUMIF(Calculations!$I$8:$QJ$8, P$2, Calculations!$I464:$QJ464) -> -400508.8981 | Q119: =SUMIF(Calculations!$I$8:$QJ$8, Q$2, Calculations!$I464:$QJ464) -> -423100.7481 | R119: =SUMIF(Calculations!$I$8:$QJ$8, R$2, Calculations!$I464:$QJ464) -> -446966.956 | S119: =SUMIF(Calculations!$I$8:$QJ$8, S$2, Calculations!$I464:$QJ464) -> -472179.4056 | T119: =SUMIF(Calculations!$I$8:$QJ$8, T$2, Calculations!$I464:$QJ464) -> -498814.0356 | U119: =SUMIF(Calculations!$I$8:$QJ$8, U$2, Calculations!$I464:$QJ464) -> -526951.0681 | V119: =SUMIF(Calculations!$I$8:$QJ$8, V$2, Calculations!$I464:$QJ464) -> -556675.2504 | W119: =SUMIF(Calculations!$I$8:$QJ$8, W$2, Calculations!$I464:$QJ464) -> -588076.1102 | X119: =SUMIF(Calculations!$I$8:$QJ$8, X$2, Calculations!$I464:$QJ464) -> -621248.2253 | Y119: =SUMIF(Calculations!$I$8:$QJ$8, Y$2, Calculations!$I464:$QJ464) -> -656291.5085 | Z119: =SUMIF(Calculations!$I$8:$QJ$8, Z$2, Calculations!$I464:$QJ464) -> -693311.5083 | AA119: =SUMIF(Calculations!$I$8:$QJ$8, AA$2, Calculations!$I464:$QJ464) -> -732419.727 | AB119: =SUMIF(Calculations!$I$8:$QJ$8, AB$2, Calculations!$I464:$QJ464) -> -773733.9567 | AC119: =SUMIF(Calculations!$I$8:$QJ$8, AC$2, Calculations!$I464:$QJ464) -> 0 | AD119: =SUMIF(Calculations!$I$8:$QJ$8, AD$2, Calculations!$I464:$QJ464) -> 0 | AE119: =SUMIF(Calculations!$I$8:$QJ$8, AE$2, Calculations!$I464:$QJ464) -> 0 | AF119: =SUMIF(Calculations!$I$8:$QJ$8, AF$2, Calculations!$I464:$QJ464) -> 0 | AG119: =SUMIF(Calculations!$I$8:$QJ$8, AG$2, Calculations!$I464:$QJ464) -> 0 | AH119: =SUMIF(Calculations!$I$8:$QJ$8, AH$2, Calculations!$I464:$QJ464) -> 0 | AI119: =SUMIF(Calculations!$I$8:$QJ$8, AI$2, Calculations!$I464:$QJ464) -> 0 | AJ119: =SUMIF(Calculations!$I$8:$QJ$8, AJ$2, Calculations!$I464:$QJ464) -> 0
C120: =Calculations!C465 -> Cash Flow Available for Reserve Accounts | F120: =Calculations!E465 -> EUR | H120: 34522852.35 | I120: =SUMIF(Calculations!$I$8:$QJ$8, I$2, Calculations!$I465:$QJ465) -> 4265701.833 | J120: =SUMIF(Calculations!$I$8:$QJ$8, J$2, Calculations!$I465:$QJ465) -> 6105401.497 | K120: =SUMIF(Calculations!$I$8:$QJ$8, K$2, Calculations!$I465:$QJ465) -> 3893289.615 | L120: =SUMIF(Calculations!$I$8:$QJ$8, L$2, Calculations!$I465:$QJ465) -> 982664.5039 | M120: =SUMIF(Calculations!$I$8:$QJ$8, M$2, Calculations!$I465:$QJ465) -> 952522.4444 | N120: =SUMIF(Calculations!$I$8:$QJ$8, N$2, Calculations!$I465:$QJ465) -> 931278.3388 | O120: =SUMIF(Calculations!$I$8:$QJ$8, O$2, Calculations!$I465:$QJ465) -> 906579.6848 | P120: =SUMIF(Calculations!$I$8:$QJ$8, P$2, Calculations!$I465:$QJ465) -> 884072.0389 | Q120: =SUMIF(Calculations!$I$8:$QJ$8, Q$2, Calculations!$I465:$QJ465) -> 860603.9502 | R120: =SUMIF(Calculations!$I$8:$QJ$8, R$2, Calculations!$I465:$QJ465) -> 837023.7669 | S120: =SUMIF(Calculations!$I$8:$QJ$8, S$2, Calculations!$I465:$QJ465) -> 812964.5756 | T120: =SUMIF(Calculations!$I$8:$QJ$8, T$2, Calculations!$I465:$QJ465) -> 789676.0965 | U120: =SUMIF(Calculations!$I$8:$QJ$8, U$2, Calculations!$I465:$QJ465) -> 765769.5573 | V120: =SUMIF(Calculations!$I$8:$QJ$8, V$2, Calculations!$I465:$QJ465) -> 741988.9536 | W120: =SUMIF(Calculations!$I$8:$QJ$8, W$2, Calculations!$I465:$QJ465) -> 717741.2207 | X120: =SUMIF(Calculations!$I$8:$QJ$8, X$2, Calculations!$I465:$QJ465) -> 694467.9283 | Y120: =SUMIF(Calculations!$I$8:$QJ$8, Y$2, Calculations!$I465:$QJ465) -> 670839.2048 | Z120: =SUMIF(Calculations!$I$8:$QJ$8, Z$2, Calculations!$I465:$QJ465) -> 647317.1895 | AA120: =SUMIF(Calculations!$I$8:$QJ$8, AA$2, Calculations!$I465:$QJ465) -> 623429.8666 | AB120: =SUMIF(Calculations!$I$8:$QJ$8, AB$2, Calculations!$I465:$QJ465) -> 600573.8237 | AC120: =SUMIF(Calculations!$I$8:$QJ$8, AC$2, Calculations!$I465:$QJ465) -> 1390823.669 | AD120: =SUMIF(Calculations!$I$8:$QJ$8, AD$2, Calculations!$I465:$QJ465) -> 1257070.287 | AE120: =SUMIF(Calculations!$I$8:$QJ$8, AE$2, Calculations!$I465:$QJ465) -> 1133816.019 | AF120: =SUMIF(Calculations!$I$8:$QJ$8, AF$2, Calculations!$I465:$QJ465) -> 1095601.012 | AG120: =SUMIF(Calculations!$I$8:$QJ$8, AG$2, Calculations!$I465:$QJ465) -> 1054982.277 | AH120: =SUMIF(Calculations!$I$8:$QJ$8, AH$2, Calculations!$I465:$QJ465) -> 1054606.842 | AI120: =SUMIF(Calculations!$I$8:$QJ$8, AI$2, Calculations!$I465:$QJ465) -> 1069227.89 | AJ120: =SUMIF(Calculations!$I$8:$QJ$8, AJ$2, Calculations!$I465:$QJ465) -> -1217181.732
C121: =Calculations!C466 -> less: Change in DSRA | F121: =Calculations!E466 -> EUR | H121: 0 | I121: =SUMIF(Calculations!$I$8:$QJ$8, I$2, Calculations!$I466:$QJ466) -> 0 | J121: =SUMIF(Calculations!$I$8:$QJ$8, J$2, Calculations!$I466:$QJ466) -> 0 | K121: =SUMIF(Calculations!$I$8:$QJ$8, K$2, Calculations!$I466:$QJ466) -> -410120.6934 | L121: =SUMIF(Calculations!$I$8:$QJ$8, L$2, Calculations!$I466:$QJ466) -> 0 | M121: =SUMIF(Calculations!$I$8:$QJ$8, M$2, Calculations!$I466:$QJ466) -> 0 | N121: =SUMIF(Calculations!$I$8:$QJ$8, N$2, Calculations!$I466:$QJ466) -> 0 | O121: =SUMIF(Calculations!$I$8:$QJ$8, O$2, Calculations!$I466:$QJ466) -> 0 | P121: =SUMIF(Calculations!$I$8:$QJ$8, P$2, Calculations!$I466:$QJ466) -> 0 | Q121: =SUMIF(Calculations!$I$8:$QJ$8, Q$2, Calculations!$I466:$QJ466) -> 0 | R121: =SUMIF(Calculations!$I$8:$QJ$8, R$2, Calculations!$I466:$QJ466) -> 0 | S121: =SUMIF(Calculations!$I$8:$QJ$8, S$2, Calculations!$I466:$QJ466) -> 0 | T121: =SUMIF(Calculations!$I$8:$QJ$8, T$2, Calculations!$I466:$QJ466) -> 0 | U121: =SUMIF(Calculations!$I$8:$QJ$8, U$2, Calculations!$I466:$QJ466) -> 0 | V121: =SUMIF(Calculations!$I$8:$QJ$8, V$2, Calculations!$I466:$QJ466) -> 0 | W121: =SUMIF(Calculations!$I$8:$QJ$8, W$2, Calculations!$I466:$QJ466) -> 0 | X121: =SUMIF(Calculations!$I$8:$QJ$8, X$2, Calculations!$I466:$QJ466) -> 0 | Y121: =SUMIF(Calculations!$I$8:$QJ$8, Y$2, Calculations!$I466:$QJ466) -> 0 | Z121: =SUMIF(Calculations!$I$8:$QJ$8, Z$2, Calculations!$I466:$QJ466) -> 0 | AA121: =SUMIF(Calculations!$I$8:$QJ$8, AA$2, Calculations!$I466:$QJ466) -> 0 | AB121: =SUMIF(Calculations!$I$8:$QJ$8, AB$2, Calculations!$I466:$QJ466) -> 50394.20421 | AC121: =SUMIF(Calculations!$I$8:$QJ$8, AC$2, Calculations!$I466:$QJ466) -> 359726.4892 | AD121: =SUMIF(Calculations!$I$8:$QJ$8, AD$2, Calculations!$I466:$QJ466) -> 0 | AE121: =SUMIF(Calculations!$I$8:$QJ$8, AE$2, Calculations!$I466:$QJ466) -> 0 | AF121: =SUMIF(Calculations!$I$8:$QJ$8, AF$2, Calculations!$I466:$QJ466) -> 0 | AG121: =SUMIF(Calculations!$I$8:$QJ$8, AG$2, Calculations!$I466:$QJ466) -> 0 | AH121: =SUMIF(Calculations!$I$8:$QJ$8, AH$2, Calculations!$I466:$QJ466) -> 0 | AI121: =SUMIF(Calculations!$I$8:$QJ$8, AI$2, Calculations!$I466:$QJ466) -> 0 | AJ121: =SUMIF(Calculations!$I$8:$QJ$8, AJ$2, Calculations!$I466:$QJ466) -> 0
C122: =Calculations!C467 -> less: Change in MMRA | F122: =Calculations!E467 -> EUR | H122: 0 | I122: =SUMIF(Calculations!$I$8:$QJ$8, I$2, Calculations!$I467:$QJ467) -> 0 | J122: =SUMIF(Calculations!$I$8:$QJ$8, J$2, Calculations!$I467:$QJ467) -> 0 | K122: =SUMIF(Calculations!$I$8:$QJ$8, K$2, Calculations!$I467:$QJ467) -> 0 | L122: =SUMIF(Calculations!$I$8:$QJ$8, L$2, Calculations!$I467:$QJ467) -> 0 | M122: =SUMIF(Calculations!$I$8:$QJ$8, M$2, Calculations!$I467:$QJ467) -> 0 | N122: =SUMIF(Calculations!$I$8:$QJ$8, N$2, Calculations!$I467:$QJ467) -> 0 | O122: =SUMIF(Calculations!$I$8:$QJ$8, O$2, Calculations!$I467:$QJ467) -> 0 | P122: =SUMIF(Calculations!$I$8:$QJ$8, P$2, Calculations!$I467:$QJ467) -> 0 | Q122: =SUMIF(Calculations!$I$8:$QJ$8, Q$2, Calculations!$I467:$QJ467) -> 0 | R122: =SUMIF(Calculations!$I$8:$QJ$8, R$2, Calculations!$I467:$QJ467) -> 0 | S122: =SUMIF(Calculations!$I$8:$QJ$8, S$2, Calculations!$I467:$QJ467) -> 0 | T122: =SUMIF(Calculations!$I$8:$QJ$8, T$2, Calculations!$I467:$QJ467) -> 0 | U122: =SUMIF(Calculations!$I$8:$QJ$8, U$2, Calculations!$I467:$QJ467) -> 0 | V122: =SUMIF(Calculations!$I$8:$QJ$8, V$2, Calculations!$I467:$QJ467) -> 0 | W122: =SUMIF(Calculations!$I$8:$QJ$8, W$2, Calculations!$I467:$QJ467) -> 0 | X122: =SUMIF(Calculations!$I$8:$QJ$8, X$2, Calculations!$I467:$QJ467) -> 0 | Y122: =SUMIF(Calculations!$I$8:$QJ$8, Y$2, Calculations!$I467:$QJ467) -> 0 | Z122: =SUMIF(Calculations!$I$8:$QJ$8, Z$2, Calculations!$I467:$QJ467) -> 0 | AA122: =SUMIF(Calculations!$I$8:$QJ$8, AA$2, Calculations!$I467:$QJ467) -> 0 | AB122: =SUMIF(Calculations!$I$8:$QJ$8, AB$2, Calculations!$I467:$QJ467) -> 0 | AC122: =SUMIF(Calculations!$I$8:$QJ$8, AC$2, Calculations!$I467:$QJ467) -> 0 | AD122: =SUMIF(Calculations!$I$8:$QJ$8, AD$2, Calculations!$I467:$QJ467) -> 0 | AE122: =SUMIF(Calculations!$I$8:$QJ$8, AE$2, Calculations!$I467:$QJ467) -> 0 | AF122: =SUMIF(Calculations!$I$8:$QJ$8, AF$2, Calculations!$I467:$QJ467) -> 0 | AG122: =SUMIF(Calculations!$I$8:$QJ$8, AG$2, Calculations!$I467:$QJ467) -> 0 | AH122: =SUMIF(Calculations!$I$8:$QJ$8, AH$2, Calculations!$I467:$QJ467) -> 0 | AI122: =SUMIF(Calculations!$I$8:$QJ$8, AI$2, Calculations!$I467:$QJ467) -> 0 | AJ122: =SUMIF(Calculations!$I$8:$QJ$8, AJ$2, Calculations!$I467:$QJ467) -> 0
C123: =Calculations!C468 -> Cash Flow Available for Subordinated Debt | F123: =Calculations!E468 -> EUR | H123: 34522852.35 | I123: =SUMIF(Calculations!$I$8:$QJ$8, I$2, Calculations!$I468:$QJ468) -> 4265701.833 | J123: =SUMIF(Calculations!$I$8:$QJ$8, J$2, Calculations!$I468:$QJ468) -> 6105401.497 | K123: =SUMIF(Calculations!$I$8:$QJ$8, K$2, Calculations!$I468:$QJ468) -> 3483168.922 | L123: =SUMIF(Calculations!$I$8:$QJ$8, L$2, Calculations!$I468:$QJ468) -> 982664.5039 | M123: =SUMIF(Calculations!$I$8:$QJ$8, M$2, Calculations!$I468:$QJ468) -> 952522.4444 | N123: =SUMIF(Calculations!$I$8:$QJ$8, N$2, Calculations!$I468:$QJ468) -> 931278.3388 | O123: =SUMIF(Calculations!$I$8:$QJ$8, O$2, Calculations!$I468:$QJ468) -> 906579.6848 | P123: =SUMIF(Calculations!$I$8:$QJ$8, P$2, Calculations!$I468:$QJ468) -> 884072.0389 | Q123: =SUMIF(Calculations!$I$8:$QJ$8, Q$2, Calculations!$I468:$QJ468) -> 860603.9502 | R123: =SUMIF(Calculations!$I$8:$QJ$8, R$2, Calculations!$I468:$QJ468) -> 837023.7669 | S123: =SUMIF(Calculations!$I$8:$QJ$8, S$2, Calculations!$I468:$QJ468) -> 812964.5756 | T123: =SUMIF(Calculations!$I$8:$QJ$8, T$2, Calculations!$I468:$QJ468) -> 789676.0965 | U123: =SUMIF(Calculations!$I$8:$QJ$8, U$2, Calculations!$I468:$QJ468) -> 765769.5573 | V123: =SUMIF(Calculations!$I$8:$QJ$8, V$2, Calculations!$I468:$QJ468) -> 741988.9536 | W123: =SUMIF(Calculations!$I$8:$QJ$8, W$2, Calculations!$I468:$QJ468) -> 717741.2207 | X123: =SUMIF(Calculations!$I$8:$QJ$8, X$2, Calculations!$I468:$QJ468) -> 694467.9283 | Y123: =SUMIF(Calculations!$I$8:$QJ$8, Y$2, Calculations!$I468:$QJ468) -> 670839.2048 | Z123: =SUMIF(Calculations!$I$8:$QJ$8, Z$2, Calculations!$I468:$QJ468) -> 647317.1895 | AA123: =SUMIF(Calculations!$I$8:$QJ$8, AA$2, Calculations!$I468:$QJ468) -> 623429.8666 | AB123: =SUMIF(Calculations!$I$8:$QJ$8, AB$2, Calculations!$I468:$QJ468) -> 650968.0279 | AC123: =SUMIF(Calculations!$I$8:$QJ$8, AC$2, Calculations!$I468:$QJ468) -> 1750550.158 | AD123: =SUMIF(Calculations!$I$8:$QJ$8, AD$2, Calculations!$I468:$QJ468) -> 1257070.287 | AE123: =SUMIF(Calculations!$I$8:$QJ$8, AE$2, Calculations!$I468:$QJ468) -> 1133816.019 | AF123: =SUMIF(Calculations!$I$8:$QJ$8, AF$2, Calculations!$I468:$QJ468) -> 1095601.012 | AG123: =SUMIF(Calculations!$I$8:$QJ$8, AG$2, Calculations!$I468:$QJ468) -> 1054982.277 | AH123: =SUMIF(Calculations!$I$8:$QJ$8, AH$2, Calculations!$I468:$QJ468) -> 1054606.842 | AI123: =SUMIF(Calculations!$I$8:$QJ$8, AI$2, Calculations!$I468:$QJ468) -> 1069227.89 | AJ123: =SUMIF(Calculations!$I$8:$QJ$8, AJ$2, Calculations!$I468:$QJ468) -> -1217181.732
C124: =Calculations!C469 -> less: Subordinated Debt Interest Expense | F124: =Calculations!E469 -> EUR | H124: -5760063.513 | I124: =SUMIF(Calculations!$I$8:$QJ$8, I$2, Calculations!$I469:$QJ469) -> 0 | J124: =SUMIF(Calculations!$I$8:$QJ$8, J$2, Calculations!$I469:$QJ469) -> 0 | K124: =SUMIF(Calculations!$I$8:$QJ$8, K$2, Calculations!$I469:$QJ469) -> -186372.4059 | L124: =SUMIF(Calculations!$I$8:$QJ$8, L$2, Calculations!$I469:$QJ469) -> -550600.2651 | M124: =SUMIF(Calculations!$I$8:$QJ$8, M$2, Calculations!$I469:$QJ469) -> -540477.0695 | N124: =SUMIF(Calculations!$I$8:$QJ$8, N$2, Calculations!$I469:$QJ469) -> -529069.9993 | O124: =SUMIF(Calculations!$I$8:$QJ$8, O$2, Calculations!$I469:$QJ469) -> -516216.227 | P124: =SUMIF(Calculations!$I$8:$QJ$8, P$2, Calculations!$I469:$QJ469) -> -501732.2747 | Q124: =SUMIF(Calculations!$I$8:$QJ$8, Q$2, Calculations!$I469:$QJ469) -> -485411.3947 | R124: =SUMIF(Calculations!$I$8:$QJ$8, R$2, Calculations!$I469:$QJ469) -> -467020.6186 | S124: =SUMIF(Calculations!$I$8:$QJ$8, S$2, Calculations!$I469:$QJ469) -> -446297.4318 | T124: =SUMIF(Calculations!$I$8:$QJ$8, T$2, Calculations!$I469:$QJ469) -> -422946.0262 | U124: =SUMIF(Calculations!$I$8:$QJ$8, U$2, Calculations!$I469:$QJ469) -> -396633.0778 | V124: =SUMIF(Calculations!$I$8:$QJ$8, V$2, Calculations!$I469:$QJ469) -> -366982.989 | W124: =SUMIF(Calculations!$I$8:$QJ$8, W$2, Calculations!$I469:$QJ469) -> -333572.5268 | X124: =SUMIF(Calculations!$I$8:$QJ$8, X$2, Calculations!$I469:$QJ469) -> -295924.7817 | Y124: =SUMIF(Calculations!$I$8:$QJ$8, Y$2, Calculations!$I469:$QJ469) -> -253502.3603 | Z124: =SUMIF(Calculations!$I$8:$QJ$8, Z$2, Calculations!$I469:$QJ469) -> -205699.7139 | AA124: =SUMIF(Calculations!$I$8:$QJ$8, AA$2, Calculations!$I469:$QJ469) -> -151834.4954 | AB124: =SUMIF(Calculations!$I$8:$QJ$8, AB$2, Calculations!$I469:$QJ469) -> -91137.81905 | AC124: =SUMIF(Calculations!$I$8:$QJ$8, AC$2, Calculations!$I469:$QJ469) -> -22743.28485 | AD124: =SUMIF(Calculations!$I$8:$QJ$8, AD$2, Calculations!$I469:$QJ469) -> 54325.38822 | AE124: =SUMIF(Calculations!$I$8:$QJ$8, AE$2, Calculations!$I469:$QJ469) -> 141168.2981 | AF124: =SUMIF(Calculations!$I$8:$QJ$8, AF$2, Calculations!$I469:$QJ469) -> 239025.0626 | AG124: =SUMIF(Calculations!$I$8:$QJ$8, AG$2, Calculations!$I469:$QJ469) -> 349292.5142 | AH124: =SUMIF(Calculations!$I$8:$QJ$8, AH$2, Calculations!$I469:$QJ469) -> 220299.9852 | AI124: =SUMIF(Calculations!$I$8:$QJ$8, AI$2, Calculations!$I469:$QJ469) -> 0 | AJ124: =SUMIF(Calculations!$I$8:$QJ$8, AJ$2, Calculations!$I469:$QJ469) -> 0
C125: =Calculations!C470 -> add: Drawdown on Subordinated Debt | F125: =Calculations!E470 -> EUR | H125: 4590000 | I125: =SUMIF(Calculations!$I$8:$QJ$8, I$2, Calculations!$I470:$QJ470) -> 2295000 | J125: =SUMIF(Calculations!$I$8:$QJ$8, J$2, Calculations!$I470:$QJ470) -> 2295000 | K125: =SUMIF(Calculations!$I$8:$QJ$8, K$2, Calculations!$I470:$QJ470) -> 0 | L125: =SUMIF(Calculations!$I$8:$QJ$8, L$2, Calculations!$I470:$QJ470) -> 0 | M125: =SUMIF(Calculations!$I$8:$QJ$8, M$2, Calculations!$I470:$QJ470) -> 0 | N125: =SUMIF(Calculations!$I$8:$QJ$8, N$2, Calculations!$I470:$QJ470) -> 0 | O125: =SUMIF(Calculations!$I$8:$QJ$8, O$2, Calculations!$I470:$QJ470) -> 0 | P125: =SUMIF(Calculations!$I$8:$QJ$8, P$2, Calculations!$I470:$QJ470) -> 0 | Q125: =SUMIF(Calculations!$I$8:$QJ$8, Q$2, Calculations!$I470:$QJ470) -> 0 | R125: =SUMIF(Calculations!$I$8:$QJ$8, R$2, Calculations!$I470:$QJ470) -> 0 | S125: =SUMIF(Calculations!$I$8:$QJ$8, S$2, Calculations!$I470:$QJ470) -> 0 | T125: =SUMIF(Calculations!$I$8:$QJ$8, T$2, Calculations!$I470:$QJ470) -> 0 | U125: =SUMIF(Calculations!$I$8:$QJ$8, U$2, Calculations!$I470:$QJ470) -> 0 | V125: =SUMIF(Calculations!$I$8:$QJ$8, V$2, Calculations!$I470:$QJ470) -> 0 | W125: =SUMIF(Calculations!$I$8:$QJ$8, W$2, Calculations!$I470:$QJ470) -> 0 | X125: =SUMIF(Calculations!$I$8:$QJ$8, X$2, Calculations!$I470:$QJ470) -> 0 | Y125: =SUMIF(Calculations!$I$8:$QJ$8, Y$2, Calculations!$I470:$QJ470) -> 0 | Z125: =SUMIF(Calculations!$I$8:$QJ$8, Z$2, Calculations!$I470:$QJ470) -> 0 | AA125: =SUMIF(Calculations!$I$8:$QJ$8, AA$2, Calculations!$I470:$QJ470) -> 0 | AB125: =SUMIF(Calculations!$I$8:$QJ$8, AB$2, Calculations!$I470:$QJ470) -> 0 | AC125: =SUMIF(Calculations!$I$8:$QJ$8, AC$2, Calculations!$I470:$QJ470) -> 0 | AD125: =SUMIF(Calculations!$I$8:$QJ$8, AD$2, Calculations!$I470:$QJ470) -> 0 | AE125: =SUMIF(Calculations!$I$8:$QJ$8, AE$2, Calculations!$I470:$QJ470) -> 0 | AF125: =SUMIF(Calculations!$I$8:$QJ$8, AF$2, Calculations!$I470:$QJ470) -> 0 | AG125: =SUMIF(Calculations!$I$8:$QJ$8, AG$2, Calculations!$I470:$QJ470) -> 0 | AH125: =SUMIF(Calculations!$I$8:$QJ$8, AH$2, Calculations!$I470:$QJ470) -> 0 | AI125: =SUMIF(Calculations!$I$8:$QJ$8, AI$2, Calculations!$I470:$QJ470) -> 0 | AJ125: =SUMIF(Calculations!$I$8:$QJ$8, AJ$2, Calculations!$I470:$QJ470) -> 0
C126: =Calculations!C471 -> less: Subordinated Debt Principal Repayment | F126: =Calculations!E471 -> EUR | H126: -4590000 | I126: =SUMIF(Calculations!$I$8:$QJ$8, I$2, Calculations!$I471:$QJ471) -> 0 | J126: =SUMIF(Calculations!$I$8:$QJ$8, J$2, Calculations!$I471:$QJ471) -> 0 | K126: =SUMIF(Calculations!$I$8:$QJ$8, K$2, Calculations!$I471:$QJ471) -> -18055.29322 | L126: =SUMIF(Calculations!$I$8:$QJ$8, L$2, Calculations!$I471:$QJ471) -> -79820.17134 | M126: =SUMIF(Calculations!$I$8:$QJ$8, M$2, Calculations!$I471:$QJ471) -> -89943.36698 | N126: =SUMIF(Calculations!$I$8:$QJ$8, N$2, Calculations!$I471:$QJ471) -> -101350.4372 | O126: =SUMIF(Calculations!$I$8:$QJ$8, O$2, Calculations!$I471:$QJ471) -> -114204.2095 | P126: =SUMIF(Calculations!$I$8:$QJ$8, P$2, Calculations!$I471:$QJ471) -> -128688.1618 | Q126: =SUMIF(Calculations!$I$8:$QJ$8, Q$2, Calculations!$I471:$QJ471) -> -145009.0418 | R126: =SUMIF(Calculations!$I$8:$QJ$8, R$2, Calculations!$I471:$QJ471) -> -163399.8179 | S126: =SUMIF(Calculations!$I$8:$QJ$8, S$2, Calculations!$I471:$QJ471) -> -184123.0047 | T126: =SUMIF(Calculations!$I$8:$QJ$8, T$2, Calculations!$I471:$QJ471) -> -207474.4103 | U126: =SUMIF(Calculations!$I$8:$QJ$8, U$2, Calculations!$I471:$QJ471) -> -233787.3586 | V126: =SUMIF(Calculations!$I$8:$QJ$8, V$2, Calculations!$I471:$QJ471) -> -263437.4474 | W126: =SUMIF(Calculations!$I$8:$QJ$8, W$2, Calculations!$I471:$QJ471) -> -296847.9096 | X126: =SUMIF(Calculations!$I$8:$QJ$8, X$2, Calculations!$I471:$QJ471) -> -334495.6547 | Y126: =SUMIF(Calculations!$I$8:$QJ$8, Y$2, Calculations!$I471:$QJ471) -> -376918.0762 | Z126: =SUMIF(Calculations!$I$8:$QJ$8, Z$2, Calculations!$I471:$QJ471) -> -424720.7226 | AA126: =SUMIF(Calculations!$I$8:$QJ$8, AA$2, Calculations!$I471:$QJ471) -> -478585.941 | AB126: =SUMIF(Calculations!$I$8:$QJ$8, AB$2, Calculations!$I471:$QJ471) -> -539282.6174 | AC126: =SUMIF(Calculations!$I$8:$QJ$8, AC$2, Calculations!$I471:$QJ471) -> -607677.1516 | AD126: =SUMIF(Calculations!$I$8:$QJ$8, AD$2, Calculations!$I471:$QJ471) -> -684745.8247 | AE126: =SUMIF(Calculations!$I$8:$QJ$8, AE$2, Calculations!$I471:$QJ471) -> -771588.7345 | AF126: =SUMIF(Calculations!$I$8:$QJ$8, AF$2, Calculations!$I471:$QJ471) -> -869445.499 | AG126: =SUMIF(Calculations!$I$8:$QJ$8, AG$2, Calculations!$I471:$QJ471) -> -979712.9506 | AH126: =SUMIF(Calculations!$I$8:$QJ$8, AH$2, Calculations!$I471:$QJ471) -> 3503313.803 | AI126: =SUMIF(Calculations!$I$8:$QJ$8, AI$2, Calculations!$I471:$QJ471) -> 0 | AJ126: =SUMIF(Calculations!$I$8:$QJ$8, AJ$2, Calculations!$I471:$QJ471) -> 0
C127: =Calculations!C472 -> less: Capital Investment | F127: =Calculations!E472 -> EUR | H127: -20303831.61 | I127: =SUMIF(Calculations!$I$8:$QJ$8, I$2, Calculations!$I472:$QJ472) -> -6442961.527 | J127: =SUMIF(Calculations!$I$8:$QJ$8, J$2, Calculations!$I472:$QJ472) -> -8514655.775 | K127: =SUMIF(Calculations!$I$8:$QJ$8, K$2, Calculations!$I472:$QJ472) -> -2862917.328 | L127: =SUMIF(Calculations!$I$8:$QJ$8, L$2, Calculations!$I472:$QJ472) -> 0 | M127: =SUMIF(Calculations!$I$8:$QJ$8, M$2, Calculations!$I472:$QJ472) -> 0 | N127: =SUMIF(Calculations!$I$8:$QJ$8, N$2, Calculations!$I472:$QJ472) -> 0 | O127: =SUMIF(Calculations!$I$8:$QJ$8, O$2, Calculations!$I472:$QJ472) -> 0 | P127: =SUMIF(Calculations!$I$8:$QJ$8, P$2, Calculations!$I472:$QJ472) -> 0 | Q127: =SUMIF(Calculations!$I$8:$QJ$8, Q$2, Calculations!$I472:$QJ472) -> 0 | R127: =SUMIF(Calculations!$I$8:$QJ$8, R$2, Calculations!$I472:$QJ472) -> 0 | S127: =SUMIF(Calculations!$I$8:$QJ$8, S$2, Calculations!$I472:$QJ472) -> 0 | T127: =SUMIF(Calculations!$I$8:$QJ$8, T$2, Calculations!$I472:$QJ472) -> 0 | U127: =SUMIF(Calculations!$I$8:$QJ$8, U$2, Calculations!$I472:$QJ472) -> 0 | V127: =SUMIF(Calculations!$I$8:$QJ$8, V$2, Calculations!$I472:$QJ472) -> 0 | W127: =SUMIF(Calculations!$I$8:$QJ$8, W$2, Calculations!$I472:$QJ472) -> 0 | X127: =SUMIF(Calculations!$I$8:$QJ$8, X$2, Calculations!$I472:$QJ472) -> 0 | Y127: =SUMIF(Calculations!$I$8:$QJ$8, Y$2, Calculations!$I472:$QJ472) -> 0 | Z127: =SUMIF(Calculations!$I$8:$QJ$8, Z$2, Calculations!$I472:$QJ472) -> 0 | AA127: =SUMIF(Calculations!$I$8:$QJ$8, AA$2, Calculations!$I472:$QJ472) -> 0 | AB127: =SUMIF(Calculations!$I$8:$QJ$8, AB$2, Calculations!$I472:$QJ472) -> 0 | AC127: =SUMIF(Calculations!$I$8:$QJ$8, AC$2, Calculations!$I472:$QJ472) -> -2483296.978 | AD127: =SUMIF(Calculations!$I$8:$QJ$8, AD$2, Calculations!$I472:$QJ472) -> 0 | AE127: =SUMIF(Calculations!$I$8:$QJ$8, AE$2, Calculations!$I472:$QJ472) -> 0 | AF127: =SUMIF(Calculations!$I$8:$QJ$8, AF$2, Calculations!$I472:$QJ472) -> 0 | AG127: =SUMIF(Calculations!$I$8:$QJ$8, AG$2, Calculations!$I472:$QJ472) -> 0 | AH127: =SUMIF(Calculations!$I$8:$QJ$8, AH$2, Calculations!$I472:$QJ472) -> 0 | AI127: =SUMIF(Calculations!$I$8:$QJ$8, AI$2, Calculations!$I472:$QJ472) -> 0 | AJ127: =SUMIF(Calculations!$I$8:$QJ$8, AJ$2, Calculations!$I472:$QJ472) -> 0
C128: =Calculations!C473 -> Cash Flow Available for Dividends | F128: =Calculations!E473 -> EUR | H128: 8458957.232 | I128: =SUMIF(Calculations!$I$8:$QJ$8, I$2, Calculations!$I473:$QJ473) -> 117740.3059 | J128: =SUMIF(Calculations!$I$8:$QJ$8, J$2, Calculations!$I473:$QJ473) -> -114254.2781 | K128: =SUMIF(Calculations!$I$8:$QJ$8, K$2, Calculations!$I473:$QJ473) -> 415823.8946 | L128: =SUMIF(Calculations!$I$8:$QJ$8, L$2, Calculations!$I473:$QJ473) -> 352244.0674 | M128: =SUMIF(Calculations!$I$8:$QJ$8, M$2, Calculations!$I473:$QJ473) -> 322102.0079 | N128: =SUMIF(Calculations!$I$8:$QJ$8, N$2, Calculations!$I473:$QJ473) -> 300857.9023 | O128: =SUMIF(Calculations!$I$8:$QJ$8, O$2, Calculations!$I473:$QJ473) -> 276159.2484 | P128: =SUMIF(Calculations!$I$8:$QJ$8, P$2, Calculations!$I473:$QJ473) -> 253651.6025 | Q128: =SUMIF(Calculations!$I$8:$QJ$8, Q$2, Calculations!$I473:$QJ473) -> 230183.5137 | R128: =SUMIF(Calculations!$I$8:$QJ$8, R$2, Calculations!$I473:$QJ473) -> 206603.3304 | S128: =SUMIF(Calculations!$I$8:$QJ$8, S$2, Calculations!$I473:$QJ473) -> 182544.1391 | T128: =SUMIF(Calculations!$I$8:$QJ$8, T$2, Calculations!$I473:$QJ473) -> 159255.6601 | U128: =SUMIF(Calculations!$I$8:$QJ$8, U$2, Calculations!$I473:$QJ473) -> 135349.1208 | V128: =SUMIF(Calculations!$I$8:$QJ$8, V$2, Calculations!$I473:$QJ473) -> 111568.5171 | W128: =SUMIF(Calculations!$I$8:$QJ$8, W$2, Calculations!$I473:$QJ473) -> 87320.78428 | X128: =SUMIF(Calculations!$I$8:$QJ$8, X$2, Calculations!$I473:$QJ473) -> 64047.4918 | Y128: =SUMIF(Calculations!$I$8:$QJ$8, Y$2, Calculations!$I473:$QJ473) -> 40418.76831 | Z128: =SUMIF(Calculations!$I$8:$QJ$8, Z$2, Calculations!$I473:$QJ473) -> 16896.75301 | AA128: =SUMIF(Calculations!$I$8:$QJ$8, AA$2, Calculations!$I473:$QJ473) -> -6990.56989 | AB128: =SUMIF(Calculations!$I$8:$QJ$8, AB$2, Calculations!$I473:$QJ473) -> 20547.59148 | AC128: =SUMIF(Calculations!$I$8:$QJ$8, AC$2, Calculations!$I473:$QJ473) -> -1363167.256 | AD128: =SUMIF(Calculations!$I$8:$QJ$8, AD$2, Calculations!$I473:$QJ473) -> 626649.8509 | AE128: =SUMIF(Calculations!$I$8:$QJ$8, AE$2, Calculations!$I473:$QJ473) -> 503395.5821 | AF128: =SUMIF(Calculations!$I$8:$QJ$8, AF$2, Calculations!$I473:$QJ473) -> 465180.576 | AG128: =SUMIF(Calculations!$I$8:$QJ$8, AG$2, Calculations!$I473:$QJ473) -> 424561.8404 | AH128: =SUMIF(Calculations!$I$8:$QJ$8, AH$2, Calculations!$I473:$QJ473) -> 4778220.629 | AI128: =SUMIF(Calculations!$I$8:$QJ$8, AI$2, Calculations!$I473:$QJ473) -> 1069227.89 | AJ128: =SUMIF(Calculations!$I$8:$QJ$8, AJ$2, Calculations!$I473:$QJ473) -> -1217181.732
C129: =Calculations!C474 -> Dividend | F129: =Calculations!E474 -> EUR | H129: 0 | I129: =SUMIF(Calculations!$I$8:$QJ$8, I$2, Calculations!$I474:$QJ474) -> 0 | J129: =SUMIF(Calculations!$I$8:$QJ$8, J$2, Calculations!$I474:$QJ474) -> 0 | K129: =SUMIF(Calculations!$I$8:$QJ$8, K$2, Calculations!$I474:$QJ474) -> 0 | L129: =SUMIF(Calculations!$I$8:$QJ$8, L$2, Calculations!$I474:$QJ474) -> 0 | M129: =SUMIF(Calculations!$I$8:$QJ$8, M$2, Calculations!$I474:$QJ474) -> 0 | N129: =SUMIF(Calculations!$I$8:$QJ$8, N$2, Calculations!$I474:$QJ474) -> 0 | O129: =SUMIF(Calculations!$I$8:$QJ$8, O$2, Calculations!$I474:$QJ474) -> 0 | P129: =SUMIF(Calculations!$I$8:$QJ$8, P$2, Calculations!$I474:$QJ474) -> 0 | Q129: =SUMIF(Calculations!$I$8:$QJ$8, Q$2, Calculations!$I474:$QJ474) -> 0 | R129: =SUMIF(Calculations!$I$8:$QJ$8, R$2, Calculations!$I474:$QJ474) -> 0 | S129: =SUMIF(Calculations!$I$8:$QJ$8, S$2, Calculations!$I474:$QJ474) -> 0 | T129: =SUMIF(Calculations!$I$8:$QJ$8, T$2, Calculations!$I474:$QJ474) -> 0 | U129: =SUMIF(Calculations!$I$8:$QJ$8, U$2, Calculations!$I474:$QJ474) -> 0 | V129: =SUMIF(Calculations!$I$8:$QJ$8, V$2, Calculations!$I474:$QJ474) -> 0 | W129: =SUMIF(Calculations!$I$8:$QJ$8, W$2, Calculations!$I474:$QJ474) -> 0 | X129: =SUMIF(Calculations!$I$8:$QJ$8, X$2, Calculations!$I474:$QJ474) -> 0 | Y129: =SUMIF(Calculations!$I$8:$QJ$8, Y$2, Calculations!$I474:$QJ474) -> 0 | Z129: =SUMIF(Calculations!$I$8:$QJ$8, Z$2, Calculations!$I474:$QJ474) -> 0 | AA129: =SUMIF(Calculations!$I$8:$QJ$8, AA$2, Calculations!$I474:$QJ474) -> 0 | AB129: =SUMIF(Calculations!$I$8:$QJ$8, AB$2, Calculations!$I474:$QJ474) -> 0 | AC129: =SUMIF(Calculations!$I$8:$QJ$8, AC$2, Calculations!$I474:$QJ474) -> 0 | AD129: =SUMIF(Calculations!$I$8:$QJ$8, AD$2, Calculations!$I474:$QJ474) -> 0 | AE129: =SUMIF(Calculations!$I$8:$QJ$8, AE$2, Calculations!$I474:$QJ474) -> 0 | AF129: =SUMIF(Calculations!$I$8:$QJ$8, AF$2, Calculations!$I474:$QJ474) -> 0 | AG129: =SUMIF(Calculations!$I$8:$QJ$8, AG$2, Calculations!$I474:$QJ474) -> 0 | AH129: =SUMIF(Calculations!$I$8:$QJ$8, AH$2, Calculations!$I474:$QJ474) -> 0 | AI129: =SUMIF(Calculations!$I$8:$QJ$8, AI$2, Calculations!$I474:$QJ474) -> 0 | AJ129: =SUMIF(Calculations!$I$8:$QJ$8, AJ$2, Calculations!$I474:$QJ474) -> 0
C130: =Calculations!C475 -> Net Movements in Cash | F130: =Calculations!E475 -> EUR | H130: 8458957.232 | I130: =SUMIF(Calculations!$I$8:$QJ$8, I$2, Calculations!$I475:$QJ475) -> 117740.3059 | J130: =SUMIF(Calculations!$I$8:$QJ$8, J$2, Calculations!$I475:$QJ475) -> -114254.2781 | K130: =SUMIF(Calculations!$I$8:$QJ$8, K$2, Calculations!$I475:$QJ475) -> 415823.8946 | L130: =SUMIF(Calculations!$I$8:$QJ$8, L$2, Calculations!$I475:$QJ475) -> 352244.0674 | M130: =SUMIF(Calculations!$I$8:$QJ$8, M$2, Calculations!$I475:$QJ475) -> 322102.0079 | N130: =SUMIF(Calculations!$I$8:$QJ$8, N$2, Calculations!$I475:$QJ475) -> 300857.9023 | O130: =SUMIF(Calculations!$I$8:$QJ$8, O$2, Calculations!$I475:$QJ475) -> 276159.2484 | P130: =SUMIF(Calculations!$I$8:$QJ$8, P$2, Calculations!$I475:$QJ475) -> 253651.6025 | Q130: =SUMIF(Calculations!$I$8:$QJ$8, Q$2, Calculations!$I475:$QJ475) -> 230183.5137 | R130: =SUMIF(Calculations!$I$8:$QJ$8, R$2, Calculations!$I475:$QJ475) -> 206603.3304 | S130: =SUMIF(Calculations!$I$8:$QJ$8, S$2, Calculations!$I475:$QJ475) -> 182544.1391 | T130: =SUMIF(Calculations!$I$8:$QJ$8, T$2, Calculations!$I475:$QJ475) -> 159255.6601 | U130: =SUMIF(Calculations!$I$8:$QJ$8, U$2, Calculations!$I475:$QJ475) -> 135349.1208 | V130: =SUMIF(Calculations!$I$8:$QJ$8, V$2, Calculations!$I475:$QJ475) -> 111568.5171 | W130: =SUMIF(Calculations!$I$8:$QJ$8, W$2, Calculations!$I475:$QJ475) -> 87320.78428 | X130: =SUMIF(Calculations!$I$8:$QJ$8, X$2, Calculations!$I475:$QJ475) -> 64047.4918 | Y130: =SUMIF(Calculations!$I$8:$QJ$8, Y$2, Calculations!$I475:$QJ475) -> 40418.76831 | Z130: =SUMIF(Calculations!$I$8:$QJ$8, Z$2, Calculations!$I475:$QJ475) -> 16896.75301 | AA130: =SUMIF(Calculations!$I$8:$QJ$8, AA$2, Calculations!$I475:$QJ475) -> -6990.56989 | AB130: =SUMIF(Calculations!$I$8:$QJ$8, AB$2, Calculations!$I475:$QJ475) -> 20547.59148 | AC130: =SUMIF(Calculations!$I$8:$QJ$8, AC$2, Calculations!$I475:$QJ475) -> -1363167.256 | AD130: =SUMIF(Calculations!$I$8:$QJ$8, AD$2, Calculations!$I475:$QJ475) -> 626649.8509 | AE130: =SUMIF(Calculations!$I$8:$QJ$8, AE$2, Calculations!$I475:$QJ475) -> 503395.5821 | AF130: =SUMIF(Calculations!$I$8:$QJ$8, AF$2, Calculations!$I475:$QJ475) -> 465180.576 | AG130: =SUMIF(Calculations!$I$8:$QJ$8, AG$2, Calculations!$I475:$QJ475) -> 424561.8404 | AH130: =SUMIF(Calculations!$I$8:$QJ$8, AH$2, Calculations!$I475:$QJ475) -> 4778220.629 | AI130: =SUMIF(Calculations!$I$8:$QJ$8, AI$2, Calculations!$I475:$QJ475) -> 1069227.89 | AJ130: =SUMIF(Calculations!$I$8:$QJ$8, AJ$2, Calculations!$I475:$QJ475) -> -1217181.732
C132: =Calculations!C477 -> Beginning Cash Balance | F132: =Calculations!E477 -> EUR | I132: =H133 -> 0 | J132: =I133 -> 117740.3059 | K132: 3486.027826 | L132: 419309.9224 | M132: 771553.9898 | N132: =M133 -> 1093655.998 | O132: 1394513.9 | P132: 1670673.148 | Q132: 1924324.751 | R132: 2154508.265 | S132: 2361111.595 | T132: 2543655.734 | U132: 2702911.394 | V132: 2838260.515 | W132: 2949829.032 | X132: 3037149.816 | Y132: 3101197.308 | Z132: 3141616.076 | AA132: 3158512.829 | AB132: 3151522.26 | AC132: 3172069.851 | AD132: 1808902.595 | AE132: 2435552.446 | AF132: 2938948.028 | AG132: =AF133 -> 3404128.604 | AH132: 3828690.444 | AI132: 8606911.073 | AJ132: 9676138.964
C133: =Calculations!C478 -> Closing Cash Balance | F133: =Calculations!E478 -> EUR | H133: 0 | I133: =I130+I132 -> 117740.3059 | J133: =J130+J132 -> 3486.027826 | K133: =K130+K132 -> 419309.9224 | L133: 771553.9898 | M133: 1093655.998 | N133: 1394513.9 | O133: 1670673.148 | P133: 1924324.751 | Q133: 2154508.265 | R133: 2361111.595 | S133: 2543655.734 | T133: 2702911.394 | U133: 2838260.515 | V133: 2949829.032 | W133: 3037149.816 | X133: 3101197.308 | Y133: 3141616.076 | Z133: 3158512.829 | AA133: 3151522.26 | AB133: 3172069.851 | AC133: 1808902.595 | AD133: 2435552.446 | AE133: 2938948.028 | AF133: 3404128.604 | AG133: =AG130+AG132 -> 3828690.444 | AH133: 8606911.073 | AI133: 9676138.964 | AJ133: 8458957.232
C135: Annual = Monthly Check | F135: Check | G135: =IF(ROUND($H$28-Calculations!$H$369+$H$106-Calculations!$H$448, 0)=0, "OK", "NO") -> OK

Sheet QFS
A1: =Inputs!$D$6&" - Quarterly Financial Statements" -> Força Açoreana, S.A.: Azores PV & BESS (Terceira) - Quarterly Financial Statements
C3: Year | H3: 2026 | I3: =H3 -> 2026 | J3: 2027 | K3: =J3 -> 2027 | L3: =H3+1 -> 2027 | M3: 2027 | N3: =J3+1 -> 2028 | O3: =K3+1 -> 2028 | P3: =L3+1 -> 2028 | Q3: =M3+1 -> 2028 | R3: =N3+1 -> 2029 | S3: =O3+1 -> 2029 | T3: =P3+1 -> 2029 | U3: =Q3+1 -> 2029 | V3: =R3+1 -> 2030 | W3: =S3+1 -> 2030 | X3: =T3+1 -> 2030 | Y3: =U3+1 -> 2030 | Z3: =V3+1 -> 2031 | AA3: =W3+1 -> 2031 | AB3: =X3+1 -> 2031 | AC3: =Y3+1 -> 2031 | AD3: =Z3+1 -> 2032 | AE3: =AA3+1 -> 2032 | AF3: =AB3+1 -> 2032 | AG3: =AC3+1 -> 2032 | AH3: =AD3+1 -> 2033 | AI3: =AE3+1 -> 2033 | AJ3: =AF3+1 -> 2033 | AK3: =AG3+1 -> 2033 | AL3: =AH3+1 -> 2034 | AM3: =AI3+1 -> 2034 | AN3: =AJ3+1 -> 2034 | AO3: =AK3+1 -> 2034 | AP3: =AL3+1 -> 2035 | AQ3: =AM3+1 -> 2035 | AR3: =AN3+1 -> 2035 | AS3: =AO3+1 -> 2035 | AT3: =AP3+1 -> 2036 | AU3: =AQ3+1 -> 2036 | AV3: =AR3+1 -> 2036 | AW3: =AS3+1 -> 2036 | AX3: =AT3+1 -> 2037 | AY3: =AU3+1 -> 2037 | AZ3: =AV3+1 -> 2037 | BA3: =AW3+1 -> 2037 | BB3: =AX3+1 -> 2038 | BC3: =AY3+1 -> 2038 | BD3: =AZ3+1 -> 2038 | BE3: =BA3+1 -> 2038 | BF3: =BB3+1 -> 2039 | BG3: =BC3+1 -> 2039 | BH3: =BD3+1 -> 2039 | BI3: =BE3+1 -> 2039 | BJ3: =BF3+1 -> 2040 | BK3: =BG3+1 -> 2040 | BL3: =BH3+1 -> 2040 | BM3: =BI3+1 -> 2040 | BN3: =BJ3+1 -> 2041 | BO3: =BK3+1 -> 2041 | BP3: =BL3+1 -> 2041 | BQ3: =BM3+1 -> 2041 | BR3: =BN3+1 -> 2042 | BS3: =BO3+1 -> 2042 | BT3: =BP3+1 -> 2042 | BU3: =BQ3+1 -> 2042 | BV3: =BR3+1 -> 2043 | BW3: =BS3+1 -> 2043 | BX3: =BT3+1 -> 2043 | BY3: =BU3+1 -> 2043 | BZ3: =BV3+1 -> 2044 | CA3: =BW3+1 -> 2044 | CB3: =BX3+1 -> 2044 | CC3: =BY3+1 -> 2044 | CD3: =BZ3+1 -> 2045 | CE3: =CA3+1 -> 2045 | CF3: =CB3+1 -> 2045 | CG3: =CC3+1 -> 2045 | CH3: =CD3+1 -> 2046 | CI3: =CE3+1 -> 2046 | CJ3: =CF3+1 -> 2046 | CK3: =CG3+1 -> 2046 | CL3: =CH3+1 -> 2047 | CM3: =CI3+1 -> 2047 | CN3: =CJ3+1 -> 2047 | CO3: =CK3+1 -> 2047 | CP3: =CL3+1 -> 2048 | CQ3: =CM3+1 -> 2048 | CR3: =CN3+1 -> 2048 | CS3: =CO3+1 -> 2048 | CT3: =CP3+1 -> 2049 | CU3: =CQ3+1 -> 2049 | CV3: =CR3+1 -> 2049 | CW3: =CS3+1 -> 2049 | CX3: =CT3+1 -> 2050 | CY3: =CU3+1 -> 2050 | CZ3: =CV3+1 -> 2050 | DA3: =CW3+1 -> 2050 | DB3: =CX3+1 -> 2051 | DC3: =CY3+1 -> 2051 | DD3: =CZ3+1 -> 2051 | DE3: =DA3+1 -> 2051 | DF3: =DB3+1 -> 2052 | DG3: =DC3+1 -> 2052 | DH3: =DD3+1 -> 2052 | DI3: =DE3+1 -> 2052 | DJ3: =DF3+1 -> 2053 | DK3: =DG3+1 -> 2053
C4: Quarter | H4: 3 | I4: =IF(H4=4, 1, H4+1) -> 4 | J4: =IF(I4=4, 1, I4+1) -> 1 | K4: =IF(J4=4, 1, J4+1) -> 2 | L4: =IF(K4=4, 1, K4+1) -> 3 | M4: 4 | N4: 1 | O4: 2 | P4: 3 | Q4: 4 | R4: 1 | S4: 2 | T4: 3 | U4: 4 | V4: 1 | W4: 2 | X4: 3 | Y4: 4 | Z4: 1 | AA4: 2 | AB4: 3 | AC4: 4 | AD4: 1 | AE4: 2 | AF4: 3 | AG4: 4 | AH4: 1 | AI4: 2 | AJ4: 3 | AK4: 4 | AL4: 1 | AM4: 2 | AN4: 3 | AO4: 4 | AP4: 1 | AQ4: 2 | AR4: 3 | AS4: 4 | AT4: 1 | AU4: 2 | AV4: 3 | AW4: 4 | AX4: 1 | AY4: 2 | AZ4: 3 | BA4: 4 | BB4: 1 | BC4: 2 | BD4: 3 | BE4: 4 | BF4: 1 | BG4: 2 | BH4: 3 | BI4: 4 | BJ4: 1 | BK4: 2 | BL4: 3 | BM4: 4 | BN4: 1 | BO4: 2 | BP4: 3 | BQ4: 4 | BR4: 1 | BS4: 2 | BT4: 3 | BU4: 4 | BV4: 1 | BW4: 2 | BX4: =IF(BW4=4, 1, BW4+1) -> 3 | BY4: 4 | BZ4: 1 | CA4: 2 | CB4: 3 | CC4: 4 | CD4: 1 | CE4: 2 | CF4: 3 | CG4: 4 | CH4: 1 | CI4: 2 | CJ4: 3 | CK4: 4 | CL4: 1 | CM4: 2 | CN4: 3 | CO4: 4 | CP4: 1 | CQ4: 2 | CR4: 3 | CS4: 4 | CT4: 1 | CU4: 2 | CV4: 3 | CW4: 4 | CX4: 1 | CY4: 2 | CZ4: 3 | DA4: 4 | DB4: =IF(DA4=4, 1, DA4+1) -> 1 | DC4: 2 | DD4: 3 | DE4: 4 | DF4: 1 | DG4: 2 | DH4: 3 | DI4: 4 | DJ4: =IF(DI4=4, 1, DI4+1) -> 1 | DK4: 2
C5: Period End | H5: =EOMONTH(DATE(H3, H4*3, 1), 0) -> 2026-09-30 | I5: 2026-12-31 | J5: 2027-03-31 | K5: 2027-06-30 | L5: 2027-09-30 | M5: 2027-12-31 | N5: 2028-03-31 | O5: 2028-06-30 | P5: 2028-09-30 | Q5: 2028-12-31 | R5: 2029-03-31 | S5: 2029-06-30 | T5: 2029-09-30 | U5: 2029-12-31 | V5: 2030-03-31 | W5: 2030-06-30 | X5: 2030-09-30 | Y5: 2030-12-31 | Z5: 2031-03-31 | AA5: 2031-06-30 | AB5: 2031-09-30 | AC5: 2031-12-31 | AD5: 2032-03-31 | AE5: 2032-06-30 | AF5: 2032-09-30 | AG5: 2032-12-31 | AH5: 2033-03-31 | AI5: 2033-06-30 | AJ5: 2033-09-30 | AK5: 2033-12-31 | AL5: 2034-03-31 | AM5: 2034-06-30 | AN5: 2034-09-30 | AO5: 2034-12-31 | AP5: 2035-03-31 | AQ5: 2035-06-30 | AR5: 2035-09-30 | AS5: 2035-12-31 | AT5: 2036-03-31 | AU5: 2036-06-30 | AV5: 2036-09-30 | AW5: 2036-12-31 | AX5: 2037-03-31 | AY5: 2037-06-30 | AZ5: 2037-09-30 | BA5: 2037-12-31 | BB5: 2038-03-31 | BC5: 2038-06-30 | BD5: 2038-09-30 | BE5: 2038-12-31 | BF5: 2039-03-31 | BG5: 2039-06-30 | BH5: 2039-09-30 | BI5: 2039-12-31 | BJ5: 2040-03-31 | BK5: 2040-06-30 | BL5: 2040-09-30 | BM5: 2040-12-31 | BN5: 2041-03-31 | BO5: 2041-06-30 | BP5: 2041-09-30 | BQ5: 2041-12-31 | BR5: 2042-03-31 | BS5: 2042-06-30 | BT5: =EOMONTH(DATE(BT3, BT4*3, 1), 0) -> 2042-09-30 | BU5: 2042-12-31 | BV5: 2043-03-31 | BW5: 2043-06-30 | BX5: 2043-09-30 | BY5: 2043-12-31 | BZ5: 2044-03-31 | CA5: 2044-06-30 | CB5: 2044-09-30 | CC5: 2044-12-31 | CD5: 2045-03-31 | CE5: 2045-06-30 | CF5: 2045-09-30 | CG5: 2045-12-31 | CH5: 2046-03-31 | CI5: 2046-06-30 | CJ5: 2046-09-30 | CK5: 2046-12-31 | CL5: 2047-03-31 | CM5: 2047-06-30 | CN5: 2047-09-30 | CO5: 2047-12-31 | CP5: 2048-03-31 | CQ5: 2048-06-30 | CR5: 2048-09-30 | CS5: 2048-12-31 | CT5: 2049-03-31 | CU5: 2049-06-30 | CV5: 2049-09-30 | CW5: 2049-12-31 | CX5: 2050-03-31 | CY5: 2050-06-30 | CZ5: 2050-09-30 | DA5: 2050-12-31 | DB5: =EOMONTH(DATE(DB3, DB4*3, 1), 0) -> 2051-03-31 | DC5: 2051-06-30 | DD5: 2051-09-30 | DE5: 2051-12-31 | DF5: 2052-03-31 | DG5: 2052-06-30 | DH5: 2052-09-30 | DI5: 2052-12-31 | DJ5: =EOMONTH(DATE(DJ3, DJ4*3, 1), 0) -> 2053-03-31 | DK5: 2053-06-30
A6: · | B6: Income Statement | E6: Unit
A7: =Summary!$C$49 -> OK
C8: Revenues | AE8: .
C9: =Calculations!C352 -> Production Sold | E9: EUR | G9: =SUM(H9:FA9) -> 55769309.51 | H9: =SUMIFS(Calculations!$I229:$QJ229, Calculations!$I$8:$QJ$8, H$3, Calculations!$I$10:$QJ$10, H$4) -> 0 | I9: =SUMIFS(Calculations!$I229:$QJ229, Calculations!$I$8:$QJ$8, I$3, Calculations!$I$10:$QJ$10, I$4) -> 0 | J9: =SUMIFS(Calculations!$I229:$QJ229, Calculations!$I$8:$QJ$8, J$3, Calculations!$I$10:$QJ$10, J$4) -> 0 | K9: =SUMIFS(Calculations!$I229:$QJ229, Calculations!$I$8:$QJ$8, K$3, Calculations!$I$10:$QJ$10, K$4) -> 0 | L9: =SUMIFS(Calculations!$I229:$QJ229, Calculations!$I$8:$QJ$8, L$3, Calculations!$I$10:$QJ$10, L$4) -> 0 | M9: =SUMIFS(Calculations!$I229:$QJ229, Calculations!$I$8:$QJ$8, M$3, Calculations!$I$10:$QJ$10, M$4) -> 0 | N9: =SUMIFS(Calculations!$I229:$QJ229, Calculations!$I$8:$QJ$8, N$3, Calculations!$I$10:$QJ$10, N$4) -> 0 | O9: =SUMIFS(Calculations!$I229:$QJ229, Calculations!$I$8:$QJ$8, O$3, Calculations!$I$10:$QJ$10, O$4) -> 0 | P9: =SUMIFS(Calculations!$I229:$QJ229, Calculations!$I$8:$QJ$8, P$3, Calculations!$I$10:$QJ$10, P$4) -> 785186.5921 | Q9: =SUMIFS(Calculations!$I229:$QJ229, Calculations!$I$8:$QJ$8, Q$3, Calculations!$I$10:$QJ$10, Q$4) -> 421097.8806 | R9: =SUMIFS(Calculations!$I229:$QJ229, Calculations!$I$8:$QJ$8, R$3, Calculations!$I$10:$QJ$10, R$4) -> 438592.4688 | S9: =SUMIFS(Calculations!$I229:$QJ229, Calculations!$I$8:$QJ$8, S$3, Calculations!$I$10:$QJ$10, S$4) -> 628420.072 | T9: =SUMIFS(Calculations!$I229:$QJ229, Calculations!$I$8:$QJ$8, T$3, Calculations!$I$10:$QJ$10, T$4) -> 794608.8312 | U9: =SUMIFS(Calculations!$I229:$QJ229, Calculations!$I$8:$QJ$8, U$3, Calculations!$I$10:$QJ$10, U$4) -> 426151.0552 | V9: =SUMIFS(Calculations!$I229:$QJ229, Calculations!$I$8:$QJ$8, V$3, Calculations!$I$10:$QJ$10, V$4) -> 443855.5784 | W9: =SUMIFS(Calculations!$I229:$QJ229, Calculations!$I$8:$QJ$8, W$3, Calculations!$I$10:$QJ$10, W$4) -> 635961.1129 | X9: =SUMIFS(Calculations!$I229:$QJ229, Calculations!$I$8:$QJ$8, X$3, Calculations!$I$10:$QJ$10, X$4) -> 804144.1372 | Y9: =SUMIFS(Calculations!$I229:$QJ229, Calculations!$I$8:$QJ$8, Y$3, Calculations!$I$10:$QJ$10, Y$4) -> 429770.8173 | Z9: =SUMIFS(Calculations!$I229:$QJ229, Calculations!$I$8:$QJ$8, Z$3, Calculations!$I$10:$QJ$10, Z$4) -> 449181.8453 | AA9: =SUMIFS(Calculations!$I229:$QJ229, Calculations!$I$8:$QJ$8, AA$3, Calculations!$I$10:$QJ$10, AA$4) -> 643592.6462 | AB9: =SUMIFS(Calculations!$I229:$QJ229, Calculations!$I$8:$QJ$8, AB$3, Calculations!$I$10:$QJ$10, AB$4) -> 811589.1397 | AC9: =SUMIFS(Calculations!$I229:$QJ229, Calculations!$I$8:$QJ$8, AC$3, Calculations!$I$10:$QJ$10, AC$4) -> 429596.3428 | AD9: =SUMIFS(Calculations!$I229:$QJ229, Calculations!$I$8:$QJ$8, AD$3, Calculations!$I$10:$QJ$10, AD$4) -> 454572.0275 | AE9: =SUMIFS(Calculations!$I229:$QJ229, Calculations!$I$8:$QJ$8, AE$3, Calculations!$I$10:$QJ$10, AE$4) -> 651315.758 | AF9: =SUMIFS(Calculations!$I229:$QJ229, Calculations!$I$8:$QJ$8, AF$3, Calculations!$I$10:$QJ$10, AF$4) -> 809511.8628 | AG9: =SUMIFS(Calculations!$I229:$QJ229, Calculations!$I$8:$QJ$8, AG$3, Calculations!$I$10:$QJ$10, AG$4) -> 429325.0689 | AH9: =SUMIFS(Calculations!$I229:$QJ229, Calculations!$I$8:$QJ$8, AH$3, Calculations!$I$10:$QJ$10, AH$4) -> 456777.0086 | AI9: =SUMIFS(Calculations!$I229:$QJ229, Calculations!$I$8:$QJ$8, AI$3, Calculations!$I$10:$QJ$10, AI$4) -> 658574.3158 | AJ9: =SUMIFS(Calculations!$I229:$QJ229, Calculations!$I$8:$QJ$8, AJ$3, Calculations!$I$10:$QJ$10, AJ$4) -> 807319.7764 | AK9: =SUMIFS(Calculations!$I229:$QJ229, Calculations!$I$8:$QJ$8, AK$3, Calculations!$I$10:$QJ$10, AK$4) -> 427712.3468 | AL9: =SUMIFS(Calculations!$I229:$QJ229, Calculations!$I$8:$QJ$8, AL$3, Calculations!$I$10:$QJ$10, AL$4) -> 457695.4121 | AM9: =SUMIFS(Calculations!$I229:$QJ229, Calculations!$I$8:$QJ$8, AM$3, Calculations!$I$10:$QJ$10, AM$4) -> 660488.0207 | AN9: =SUMIFS(Calculations!$I229:$QJ229, Calculations!$I$8:$QJ$8, AN$3, Calculations!$I$10:$QJ$10, AN$4) -> 805220.8538 | AO9: =SUMIFS(Calculations!$I229:$QJ229, Calculations!$I$8:$QJ$8, AO$3, Calculations!$I$10:$QJ$10, AO$4) -> 423335.2959 | AP9: =SUMIFS(Calculations!$I229:$QJ229, Calculations!$I$8:$QJ$8, AP$3, Calculations!$I$10:$QJ$10, AP$4) -> 458670.7402 | AQ9: =SUMIFS(Calculations!$I229:$QJ229, Calculations!$I$8:$QJ$8, AQ$3, Calculations!$I$10:$QJ$10, AQ$4) -> 662484.7757 | AR9: =SUMIFS(Calculations!$I229:$QJ229, Calculations!$I$8:$QJ$8, AR$3, Calculations!$I$10:$QJ$10, AR$4) -> 799435.6761 | AS9: =SUMIFS(Calculations!$I229:$QJ229, Calculations!$I$8:$QJ$8, AS$3, Calculations!$I$10:$QJ$10, AS$4) -> 419001.8155 | AT9: =SUMIFS(Calculations!$I229:$QJ229, Calculations!$I$8:$QJ$8, AT$3, Calculations!$I$10:$QJ$10, AT$4) -> 459703.219 | AU9: =SUMIFS(Calculations!$I229:$QJ229, Calculations!$I$8:$QJ$8, AU$3, Calculations!$I$10:$QJ$10, AU$4) -> 664564.9793 | AV9: =SUMIFS(Calculations!$I229:$QJ229, Calculations!$I$8:$QJ$8, AV$3, Calculations!$I$10:$QJ$10, AV$4) -> 791358.382 | AW9: =SUMIFS(Calculations!$I229:$QJ229, Calculations!$I$8:$QJ$8, AW$3, Calculations!$I$10:$QJ$10, AW$4) -> 414711.4718 | AX9: =SUMIFS(Calculations!$I229:$QJ229, Calculations!$I$8:$QJ$8, AX$3, Calculations!$I$10:$QJ$10, AX$4) -> 459926.658 | AY9: =SUMIFS(Calculations!$I229:$QJ229, Calculations!$I$8:$QJ$8, AY$3, Calculations!$I$10:$QJ$10, AY$4) -> 663480.3081 | AZ9: =SUMIFS(Calculations!$I229:$QJ229, Calculations!$I$8:$QJ$8, AZ$3, Calculations!$I$10:$QJ$10, AZ$4) -> 783361.4917 | BA9: =SUMIFS(Calculations!$I229:$QJ229, Calculations!$I$8:$QJ$8, BA$3, Calculations!$I$10:$QJ$10, BA$4) -> 410463.8355 | BB9: =SUMIFS(Calculations!$I229:$QJ229, Calculations!$I$8:$QJ$8, BB$3, Calculations!$I$10:$QJ$10, BB$4) -> 458044.6725 | BC9: =SUMIFS(Calculations!$I229:$QJ229, Calculations!$I$8:$QJ$8, BC$3, Calculations!$I$10:$QJ$10, BC$4) -> 660361.6647 | BD9: =SUMIFS(Calculations!$I229:$QJ229, Calculations!$I$8:$QJ$8, BD$3, Calculations!$I$10:$QJ$10, BD$4) -> 775444.2048 | BE9: =SUMIFS(Calculations!$I229:$QJ229, Calculations!$I$8:$QJ$8, BE$3, Calculations!$I$10:$QJ$10, BE$4) -> 406258.4814 | BF9: =SUMIFS(Calculations!$I229:$QJ229, Calculations!$I$8:$QJ$8, BF$3, Calculations!$I$10:$QJ$10, BF$4) -> 456214.6953 | BG9: =SUMIFS(Calculations!$I229:$QJ229, Calculations!$I$8:$QJ$8, BG$3, Calculations!$I$10:$QJ$10, BG$4) -> 657316.8458 | BH9: =SUMIFS(Calculations!$I229:$QJ229, Calculations!$I$8:$QJ$8, BH$3, Calculations!$I$10:$QJ$10, BH$4) -> 767605.7288 | BI9: =SUMIFS(Calculations!$I229:$QJ229, Calculations!$I$8:$QJ$8, BI$3, Calculations!$I$10:$QJ$10, BI$4) -> 402094.9886 | BJ9: =SUMIFS(Calculations!$I229:$QJ229, Calculations!$I$8:$QJ$8, BJ$3, Calculations!$I$10:$QJ$10, BJ$4) -> 452524.8849 | BK9: =SUMIFS(Calculations!$I229:$QJ229, Calculations!$I$8:$QJ$8, BK$3, Calculations!$I$10:$QJ$10, BK$4) -> 654345.6299 | BL9: =SUMIFS(Calculations!$I229:$QJ229, Calculations!$I$8:$QJ$8, BL$3, Calculations!$I$10:$QJ$10, BL$4) -> 759845.2794 | BM9: =SUMIFS(Calculations!$I229:$QJ229, Calculations!$I$8:$QJ$8, BM$3, Calculations!$I$10:$QJ$10, BM$4) -> 397972.9404 | BN9: =SUMIFS(Calculations!$I229:$QJ229, Calculations!$I$8:$QJ$8, BN$3, Calculations!$I$10:$QJ$10, BN$4) -> 448032.6035 | BO9: =SUMIFS(Calculations!$I229:$QJ229, Calculations!$I$8:$QJ$8, BO$3, Calculations!$I$10:$QJ$10, BO$4) -> 651447.8039 | BP9: =SUMIFS(Calculations!$I229:$QJ229, Calculations!$I$8:$QJ$8, BP$3, Calculations!$I$10:$QJ$10, BP$4) -> 752162.0798 | BQ9: =SUMIFS(Calculations!$I229:$QJ229, Calculations!$I$8:$QJ$8, BQ$3, Calculations!$I$10:$QJ$10, BQ$4) -> 393891.9244 | BR9: =SUMIFS(Calculations!$I229:$QJ229, Calculations!$I$8:$QJ$8, BR$3, Calculations!$I$10:$QJ$10, BR$4) -> 443455.8761 | BS9: =SUMIFS(Calculations!$I229:$QJ229, Calculations!$I$8:$QJ$8, BS$3, Calculations!$I$10:$QJ$10, BS$4) -> 648623.1631 | BT9: =SUMIFS(Calculations!$I229:$QJ229, Calculations!$I$8:$QJ$8, BT$3, Calculations!$I$10:$QJ$10, BT$4) -> 744555.361 | BU9: =SUMIFS(Calculations!$I229:$QJ229, Calculations!$I$8:$QJ$8, BU$3, Calculations!$I$10:$QJ$10, BU$4) -> 389851.5319 | BV9: =SUMIFS(Calculations!$I229:$QJ229, Calculations!$I$8:$QJ$8, BV$3, Calculations!$I$10:$QJ$10, BV$4) -> 438924.7069 | BW9: =SUMIFS(Calculations!$I229:$QJ229, Calculations!$I$8:$QJ$8, BW$3, Calculations!$I$10:$QJ$10, BW$4) -> 645871.5108 | BX9: =SUMIFS(Calculations!$I229:$QJ229, Calculations!$I$8:$QJ$8, BX$3, Calculations!$I$10:$QJ$10, BX$4) -> 737024.3617 | BY9: =SUMIFS(Calculations!$I229:$QJ229, Calculations!$I$8:$QJ$8, BY$3, Calculations!$I$10:$QJ$10, BY$4) -> 385851.3587 | BZ9: =SUMIFS(Calculations!$I229:$QJ229, Calculations!$I$8:$QJ$8, BZ$3, Calculations!$I$10:$QJ$10, BZ$4) -> 434308.1801 | CA9: =SUMIFS(Calculations!$I229:$QJ229, Calculations!$I$8:$QJ$8, CA$3, Calculations!$I$10:$QJ$10, CA$4) -> 643192.6592 | CB9: =SUMIFS(Calculations!$I229:$QJ229, Calculations!$I$8:$QJ$8, CB$3, Calculations!$I$10:$QJ$10, CB$4) -> 729568.3282 | CC9: =SUMIFS(Calculations!$I229:$QJ229, Calculations!$I$8:$QJ$8, CC$3, Calculations!$I$10:$QJ$10, CC$4) -> 381891.0044 | CD9: =SUMIFS(Calculations!$I229:$QJ229, Calculations!$I$8:$QJ$8, CD$3, Calculations!$I$10:$QJ$10, CD$4) -> 429997.2331 | CE9: =SUMIFS(Calculations!$I229:$QJ229, Calculations!$I$8:$QJ$8, CE$3, Calculations!$I$10:$QJ$10, CE$4) -> 640586.4284 | CF9: =SUMIFS(Calculations!$I229:$QJ229, Calculations!$I$8:$QJ$8, CF$3, Calculations!$I$10:$QJ$10, CF$4) -> 722186.5142 | CG9: =SUMIFS(Calculations!$I229:$QJ229, Calculations!$I$8:$QJ$8, CG$3, Calculations!$I$10:$QJ$10, CG$4) -> 377970.0727 | CH9: =SUMIFS(Calculations!$I229:$QJ229, Calculations!$I$8:$QJ$8, CH$3, Calculations!$I$10:$QJ$10, CH$4) -> 425600.0352 | CI9: =SUMIFS(Calculations!$I229:$QJ229, Calculations!$I$8:$QJ$8, CI$3, Calculations!$I$10:$QJ$10, CI$4) -> 638052.6469 | CJ9: =SUMIFS(Calculations!$I229:$QJ229, Calculations!$I$8:$QJ$8, CJ$3, Calculations!$I$10:$QJ$10, CJ$4) -> 714878.181 | CK9: =SUMIFS(Calculations!$I229:$QJ229, Calculations!$I$8:$QJ$8, CK$3, Calculations!$I$10:$QJ$10, CK$4) -> 374088.171 | CL9: =SUMIFS(Calculations!$I229:$QJ229, Calculations!$I$8:$QJ$8, CL$3, Calculations!$I$10:$QJ$10, CL$4) -> 421246.6082 | CM9: =SUMIFS(Calculations!$I229:$QJ229, Calculations!$I$8:$QJ$8, CM$3, Calculations!$I$10:$QJ$10, CM$4) -> 635591.1517 | CN9: =SUMIFS(Calculations!$I229:$QJ229, Calculations!$I$8:$QJ$8, CN$3, Calculations!$I$10:$QJ$10, CN$4) -> 707642.597 | CO9: =SUMIFS(Calculations!$I229:$QJ229, Calculations!$I$8:$QJ$8, CO$3, Calculations!$I$10:$QJ$10, CO$4) -> 370244.911 | CP9: =SUMIFS(Calculations!$I229:$QJ229, Calculations!$I$8:$QJ$8, CP$3, Calculations!$I$10:$QJ$10, CP$4) -> 416806.0544 | CQ9: =SUMIFS(Calculations!$I229:$QJ229, Calculations!$I$8:$QJ$8, CQ$3, Calculations!$I$10:$QJ$10, CQ$4) -> 633201.788 | CR9: =SUMIFS(Calculations!$I229:$QJ229, Calculations!$I$8:$QJ$8, CR$3, Calculations!$I$10:$QJ$10, CR$4) -> 700479.0382 | CS9: =SUMIFS(Calculations!$I229:$QJ229, Calculations!$I$8:$QJ$8, CS$3, Calculations!$I$10:$QJ$10, CS$4) -> 366439.9078 | CT9: =SUMIFS(Calculations!$I229:$QJ229, Calculations!$I$8:$QJ$8, CT$3, Calculations!$I$10:$QJ$10, CT$4) -> 412669.3287 | CU9: =SUMIFS(Calculations!$I229:$QJ229, Calculations!$I$8:$QJ$8, CU$3, Calculations!$I$10:$QJ$10, CU$4) -> 630884.4093 | CV9: =SUMIFS(Calculations!$I229:$QJ229, Calculations!$I$8:$QJ$8, CV$3, Calculations!$I$10:$QJ$10, CV$4) -> 693386.7876 | CW9: =SUMIFS(Calculations!$I229:$QJ229, Calculations!$I$8:$QJ$8, CW$3, Calculations!$I$10:$QJ$10, CW$4) -> 362672.7808 | CX9: =SUMIFS(Calculations!$I229:$QJ229, Calculations!$I$8:$QJ$8, CX$3, Calculations!$I$10:$QJ$10, CX$4) -> 408444.6178 | CY9: =SUMIFS(Calculations!$I229:$QJ229, Calculations!$I$8:$QJ$8, CY$3, Calculations!$I$10:$QJ$10, CY$4) -> 628638.8775 | CZ9: =SUMIFS(Calculations!$I229:$QJ229, Calculations!$I$8:$QJ$8, CZ$3, Calculations!$I$10:$QJ$10, CZ$4) -> 686365.1353 | DA9: =SUMIFS(Calculations!$I229:$QJ229, Calculations!$I$8:$QJ$8, DA$3, Calculations!$I$10:$QJ$10, DA$4) -> 358943.1529 | DB9: =SUMIFS(Calculations!$I229:$QJ229, Calculations!$I$8:$QJ$8, DB$3, Calculations!$I$10:$QJ$10, DB$4) -> 404261.9609 | DC9: =SUMIFS(Calculations!$I229:$QJ229, Calculations!$I$8:$QJ$8, DC$3, Calculations!$I$10:$QJ$10, DC$4) -> 626465.0627 | DD9: =SUMIFS(Calculations!$I229:$QJ229, Calculations!$I$8:$QJ$8, DD$3, Calculations!$I$10:$QJ$10, DD$4) -> 679413.3786 | DE9: =SUMIFS(Calculations!$I229:$QJ229, Calculations!$I$8:$QJ$8, DE$3, Calculations!$I$10:$QJ$10, DE$4) -> 355250.6508 | DF9: =SUMIFS(Calculations!$I229:$QJ229, Calculations!$I$8:$QJ$8, DF$3, Calculations!$I$10:$QJ$10, DF$4) -> 399990.4773 | DG9: =SUMIFS(Calculations!$I229:$QJ229, Calculations!$I$8:$QJ$8, DG$3, Calculations!$I$10:$QJ$10, DG$4) -> 624362.8434 | DH9: =SUMIFS(Calculations!$I229:$QJ229, Calculations!$I$8:$QJ$8, DH$3, Calculations!$I$10:$QJ$10, DH$4) -> 672530.8218 | DI9: =SUMIFS(Calculations!$I229:$QJ229, Calculations!$I$8:$QJ$8, DI$3, Calculations!$I$10:$QJ$10, DI$4) -> 351594.905 | DJ9: =SUMIFS(Calculations!$I229:$QJ229, Calculations!$I$8:$QJ$8, DJ$3, Calculations!$I$10:$QJ$10, DJ$4) -> 396021.1388 | DK9: =SUMIFS(Calculations!$I229:$QJ229, Calculations!$I$8:$QJ$8, DK$3, Calculations!$I$10:$QJ$10, DK$4) -> 614959.7502
C10: Storage | E10: EUR | G10: 7437868.583 | H10: =SUMIFS(Calculations!$I230:$QJ230, Calculations!$I$8:$QJ$8, H$3, Calculations!$I$10:$QJ$10, H$4) -> 0 | I10: =SUMIFS(Calculations!$I230:$QJ230, Calculations!$I$8:$QJ$8, I$3, Calculations!$I$10:$QJ$10, I$4) -> 0 | J10: =SUMIFS(Calculations!$I230:$QJ230, Calculations!$I$8:$QJ$8, J$3, Calculations!$I$10:$QJ$10, J$4) -> 0 | K10: =SUMIFS(Calculations!$I230:$QJ230, Calculations!$I$8:$QJ$8, K$3, Calculations!$I$10:$QJ$10, K$4) -> 0 | L10: =SUMIFS(Calculations!$I230:$QJ230, Calculations!$I$8:$QJ$8, L$3, Calculations!$I$10:$QJ$10, L$4) -> 0 | M10: =SUMIFS(Calculations!$I230:$QJ230, Calculations!$I$8:$QJ$8, M$3, Calculations!$I$10:$QJ$10, M$4) -> 0 | N10: =SUMIFS(Calculations!$I230:$QJ230, Calculations!$I$8:$QJ$8, N$3, Calculations!$I$10:$QJ$10, N$4) -> 0 | O10: =SUMIFS(Calculations!$I230:$QJ230, Calculations!$I$8:$QJ$8, O$3, Calculations!$I$10:$QJ$10, O$4) -> 0 | P10: =SUMIFS(Calculations!$I230:$QJ230, Calculations!$I$8:$QJ$8, P$3, Calculations!$I$10:$QJ$10, P$4) -> 78537.58054 | Q10: =SUMIFS(Calculations!$I230:$QJ230, Calculations!$I$8:$QJ$8, Q$3, Calculations!$I$10:$QJ$10, Q$4) -> 74686.19679 | R10: =SUMIFS(Calculations!$I230:$QJ230, Calculations!$I$8:$QJ$8, R$3, Calculations!$I$10:$QJ$10, R$4) -> 75362.61177 | S10: =SUMIFS(Calculations!$I230:$QJ230, Calculations!$I$8:$QJ$8, S$3, Calculations!$I$10:$QJ$10, S$4) -> 80091.82269 | T10: =SUMIFS(Calculations!$I230:$QJ230, Calculations!$I$8:$QJ$8, T$3, Calculations!$I$10:$QJ$10, T$4) -> 76863.37098 | U10: =SUMIFS(Calculations!$I230:$QJ230, Calculations!$I$8:$QJ$8, U$3, Calculations!$I$10:$QJ$10, U$4) -> 74455.58936 | V10: =SUMIFS(Calculations!$I230:$QJ230, Calculations!$I$8:$QJ$8, V$3, Calculations!$I$10:$QJ$10, V$4) -> 75011.29523 | W10: =SUMIFS(Calculations!$I230:$QJ230, Calculations!$I$8:$QJ$8, W$3, Calculations!$I$10:$QJ$10, W$4) -> 79915.10295 | X10: =SUMIFS(Calculations!$I230:$QJ230, Calculations!$I$8:$QJ$8, X$3, Calculations!$I$10:$QJ$10, X$4) -> 75926.97085 | Y10: =SUMIFS(Calculations!$I230:$QJ230, Calculations!$I$8:$QJ$8, Y$3, Calculations!$I$10:$QJ$10, Y$4) -> 74132.52923 | Z10: =SUMIFS(Calculations!$I230:$QJ230, Calculations!$I$8:$QJ$8, Z$3, Calculations!$I$10:$QJ$10, Z$4) -> 74544.24156 | AA10: =SUMIFS(Calculations!$I230:$QJ230, Calculations!$I$8:$QJ$8, AA$3, Calculations!$I$10:$QJ$10, AA$4) -> 78041.96373 | AB10: =SUMIFS(Calculations!$I230:$QJ230, Calculations!$I$8:$QJ$8, AB$3, Calculations!$I$10:$QJ$10, AB$4) -> 75112.86315 | AC10: =SUMIFS(Calculations!$I230:$QJ230, Calculations!$I$8:$QJ$8, AC$3, Calculations!$I$10:$QJ$10, AC$4) -> 74034.57177 | AD10: =SUMIFS(Calculations!$I230:$QJ230, Calculations!$I$8:$QJ$8, AD$3, Calculations!$I$10:$QJ$10, AD$4) -> 74854.24223 | AE10: =SUMIFS(Calculations!$I230:$QJ230, Calculations!$I$8:$QJ$8, AE$3, Calculations!$I$10:$QJ$10, AE$4) -> 77511.77741 | AF10: =SUMIFS(Calculations!$I230:$QJ230, Calculations!$I$8:$QJ$8, AF$3, Calculations!$I$10:$QJ$10, AF$4) -> 74880.29372 | AG10: =SUMIFS(Calculations!$I230:$QJ230, Calculations!$I$8:$QJ$8, AG$3, Calculations!$I$10:$QJ$10, AG$4) -> 73933.51949 | AH10: =SUMIFS(Calculations!$I230:$QJ230, Calculations!$I$8:$QJ$8, AH$3, Calculations!$I$10:$QJ$10, AH$4) -> 73773.26543 | AI10: =SUMIFS(Calculations!$I230:$QJ230, Calculations!$I$8:$QJ$8, AI$3, Calculations!$I$10:$QJ$10, AI$4) -> 77003.27963 | AJ10: =SUMIFS(Calculations!$I230:$QJ230, Calculations!$I$8:$QJ$8, AJ$3, Calculations!$I$10:$QJ$10, AJ$4) -> 74648.32774 | AK10: =SUMIFS(Calculations!$I230:$QJ230, Calculations!$I$8:$QJ$8, AK$3, Calculations!$I$10:$QJ$10, AK$4) -> 73906.44617 | AL10: =SUMIFS(Calculations!$I230:$QJ230, Calculations!$I$8:$QJ$8, AL$3, Calculations!$I$10:$QJ$10, AL$4) -> 73553.13174 | AM10: =SUMIFS(Calculations!$I230:$QJ230, Calculations!$I$8:$QJ$8, AM$3, Calculations!$I$10:$QJ$10, AM$4) -> 76818.12678 | AN10: =SUMIFS(Calculations!$I230:$QJ230, Calculations!$I$8:$QJ$8, AN$3, Calculations!$I$10:$QJ$10, AN$4) -> 74404.28359 | AO10: =SUMIFS(Calculations!$I230:$QJ230, Calculations!$I$8:$QJ$8, AO$3, Calculations!$I$10:$QJ$10, AO$4) -> 74041.43212 | AP10: =SUMIFS(Calculations!$I230:$QJ230, Calculations!$I$8:$QJ$8, AP$3, Calculations!$I$10:$QJ$10, AP$4) -> 73321.39378 | AQ10: =SUMIFS(Calculations!$I230:$QJ230, Calculations!$I$8:$QJ$8, AQ$3, Calculations!$I$10:$QJ$10, AQ$4) -> 76621.23173 | AR10: =SUMIFS(Calculations!$I230:$QJ230, Calculations!$I$8:$QJ$8, AR$3, Calculations!$I$10:$QJ$10, AR$4) -> 74381.77946 | AS10: =SUMIFS(Calculations!$I230:$QJ230, Calculations!$I$8:$QJ$8, AS$3, Calculations!$I$10:$QJ$10, AS$4) -> 74165.21815 | AT10: =SUMIFS(Calculations!$I230:$QJ230, Calculations!$I$8:$QJ$8, AT$3, Calculations!$I$10:$QJ$10, AT$4) -> 73873.96 | AU10: =SUMIFS(Calculations!$I230:$QJ230, Calculations!$I$8:$QJ$8, AU$3, Calculations!$I$10:$QJ$10, AU$4) -> 76412.76344 | AV10: =SUMIFS(Calculations!$I230:$QJ230, Calculations!$I$8:$QJ$8, AV$3, Calculations!$I$10:$QJ$10, AV$4) -> 74494.85865 | AW10: =SUMIFS(Calculations!$I230:$QJ230, Calculations!$I$8:$QJ$8, AW$3, Calculations!$I$10:$QJ$10, AW$4) -> 74278.01385 | AX10: =SUMIFS(Calculations!$I230:$QJ230, Calculations!$I$8:$QJ$8, AX$3, Calculations!$I$10:$QJ$10, AX$4) -> 72877.27414 | AY10: =SUMIFS(Calculations!$I230:$QJ230, Calculations!$I$8:$QJ$8, AY$3, Calculations!$I$10:$QJ$10, AY$4) -> 76393.56293 | AZ10: =SUMIFS(Calculations!$I230:$QJ230, Calculations!$I$8:$QJ$8, AZ$3, Calculations!$I$10:$QJ$10, AZ$4) -> 74597.12694 | BA10: =SUMIFS(Calculations!$I230:$QJ230, Calculations!$I$8:$QJ$8, BA$3, Calculations!$I$10:$QJ$10, BA$4) -> 74380.02576 | BB10: =SUMIFS(Calculations!$I230:$QJ230, Calculations!$I$8:$QJ$8, BB$3, Calculations!$I$10:$QJ$10, BB$4) -> 72798.82171 | BC10: =SUMIFS(Calculations!$I230:$QJ230, Calculations!$I$8:$QJ$8, BC$3, Calculations!$I$10:$QJ$10, BC$4) -> 76493.96256 | BD10: =SUMIFS(Calculations!$I230:$QJ230, Calculations!$I$8:$QJ$8, BD$3, Calculations!$I$10:$QJ$10, BD$4) -> 74688.78837 | BE10: =SUMIFS(Calculations!$I230:$QJ230, Calculations!$I$8:$QJ$8, BE$3, Calculations!$I$10:$QJ$10, BE$4) -> 74471.4574 | BF10: =SUMIFS(Calculations!$I230:$QJ230, Calculations!$I$8:$QJ$8, BF$3, Calculations!$I$10:$QJ$10, BF$4) -> 72709.76132 | BG10: =SUMIFS(Calculations!$I230:$QJ230, Calculations!$I$8:$QJ$8, BG$3, Calculations!$I$10:$QJ$10, BG$4) -> 76583.94912 | BH10: =SUMIFS(Calculations!$I230:$QJ230, Calculations!$I$8:$QJ$8, BH$3, Calculations!$I$10:$QJ$10, BH$4) -> 74770.04397 | BI10: =SUMIFS(Calculations!$I230:$QJ230, Calculations!$I$8:$QJ$8, BI$3, Calculations!$I$10:$QJ$10, BI$4) -> 74552.50929 | BJ10: =SUMIFS(Calculations!$I230:$QJ230, Calculations!$I$8:$QJ$8, BJ$3, Calculations!$I$10:$QJ$10, BJ$4) -> 73528.29895 | BK10: =SUMIFS(Calculations!$I230:$QJ230, Calculations!$I$8:$QJ$8, BK$3, Calculations!$I$10:$QJ$10, BK$4) -> 76663.72 | BL10: =SUMIFS(Calculations!$I230:$QJ230, Calculations!$I$8:$QJ$8, BL$3, Calculations!$I$10:$QJ$10, BL$4) -> 74841.09182 | BM10: =SUMIFS(Calculations!$I230:$QJ230, Calculations!$I$8:$QJ$8, BM$3, Calculations!$I$10:$QJ$10, BM$4) -> 74623.37903 | BN10: =SUMIFS(Calculations!$I230:$QJ230, Calculations!$I$8:$QJ$8, BN$3, Calculations!$I$10:$QJ$10, BN$4) -> 72789.4518 | BO10: =SUMIFS(Calculations!$I230:$QJ230, Calculations!$I$8:$QJ$8, BO$3, Calculations!$I$10:$QJ$10, BO$4) -> 76733.46964 | BP10: =SUMIFS(Calculations!$I230:$QJ230, Calculations!$I$8:$QJ$8, BP$3, Calculations!$I$10:$QJ$10, BP$4) -> 74902.12709 | BQ10: =SUMIFS(Calculations!$I230:$QJ230, Calculations!$I$8:$QJ$8, BQ$3, Calculations!$I$10:$QJ$10, BQ$4) -> 74684.26129 | BR10: =SUMIFS(Calculations!$I230:$QJ230, Calculations!$I$8:$QJ$8, BR$3, Calculations!$I$10:$QJ$10, BR$4) -> 72848.86176 | BS10: =SUMIFS(Calculations!$I230:$QJ230, Calculations!$I$8:$QJ$8, BS$3, Calculations!$I$10:$QJ$10, BS$4) -> 76793.38966 | BT10: =SUMIFS(Calculations!$I230:$QJ230, Calculations!$I$8:$QJ$8, BT$3, Calculations!$I$10:$QJ$10, BT$4) -> 74953.34208 | BU10: =SUMIFS(Calculations!$I230:$QJ230, Calculations!$I$8:$QJ$8, BU$3, Calculations!$I$10:$QJ$10, BU$4) -> 74735.34788 | BV10: =SUMIFS(Calculations!$I230:$QJ230, Calculations!$I$8:$QJ$8, BV$3, Calculations!$I$10:$QJ$10, BV$4) -> 72898.71294 | BW10: =SUMIFS(Calculations!$I230:$QJ230, Calculations!$I$8:$QJ$8, BW$3, Calculations!$I$10:$QJ$10, BW$4) -> 76843.66884 | BX10: =SUMIFS(Calculations!$I230:$QJ230, Calculations!$I$8:$QJ$8, BX$3, Calculations!$I$10:$QJ$10, BX$4) -> 74994.92625 | BY10: =SUMIFS(Calculations!$I230:$QJ230, Calculations!$I$8:$QJ$8, BY$3, Calculations!$I$10:$QJ$10, BY$4) -> 74776.8278 | BZ10: =SUMIFS(Calculations!$I230:$QJ230, Calculations!$I$8:$QJ$8, BZ$3, Calculations!$I$10:$QJ$10, BZ$4) -> 73749.62498 | CA10: =SUMIFS(Calculations!$I230:$QJ230, Calculations!$I$8:$QJ$8, CA$3, Calculations!$I$10:$QJ$10, CA$4) -> 76884.49317 | CB10: =SUMIFS(Calculations!$I230:$QJ230, Calculations!$I$8:$QJ$8, CB$3, Calculations!$I$10:$QJ$10, CB$4) -> 75027.06625 | CC10: =SUMIFS(Calculations!$I230:$QJ230, Calculations!$I$8:$QJ$8, CC$3, Calculations!$I$10:$QJ$10, CC$4) -> 74808.88723 | CD10: =SUMIFS(Calculations!$I230:$QJ230, Calculations!$I$8:$QJ$8, CD$3, Calculations!$I$10:$QJ$10, CD$4) -> 72970.47391 | CE10: =SUMIFS(Calculations!$I230:$QJ230, Calculations!$I$8:$QJ$8, CE$3, Calculations!$I$10:$QJ$10, CE$4) -> 76916.0459 | CF10: =SUMIFS(Calculations!$I230:$QJ230, Calculations!$I$8:$QJ$8, CF$3, Calculations!$I$10:$QJ$10, CF$4) -> 75049.946 | CG10: =SUMIFS(Calculations!$I230:$QJ230, Calculations!$I$8:$QJ$8, CG$3, Calculations!$I$10:$QJ$10, CG$4) -> 74831.70962 | CH10: =SUMIFS(Calculations!$I230:$QJ230, Calculations!$I$8:$QJ$8, CH$3, Calculations!$I$10:$QJ$10, CH$4) -> 72992.74439 | CI10: =SUMIFS(Calculations!$I230:$QJ230, Calculations!$I$8:$QJ$8, CI$3, Calculations!$I$10:$QJ$10, CI$4) -> 75491.32115 | CJ10: =SUMIFS(Calculations!$I230:$QJ230, Calculations!$I$8:$QJ$8, CJ$3, Calculations!$I$10:$QJ$10, CJ$4) -> 75063.74666 | CK10: =SUMIFS(Calculations!$I230:$QJ230, Calculations!$I$8:$QJ$8, CK$3, Calculations!$I$10:$QJ$10, CK$4) -> 74845.47568 | CL10: =SUMIFS(Calculations!$I230:$QJ230, Calculations!$I$8:$QJ$8, CL$3, Calculations!$I$10:$QJ$10, CL$4) -> 73006.17755 | CM10: =SUMIFS(Calculations!$I230:$QJ230, Calculations!$I$8:$QJ$8, CM$3, Calculations!$I$10:$QJ$10, CM$4) -> 75238.36268 | CN10: =SUMIFS(Calculations!$I230:$QJ230, Calculations!$I$8:$QJ$8, CN$3, Calculations!$I$10:$QJ$10, CN$4) -> 75068.64671 | CO10: =SUMIFS(Calculations!$I230:$QJ230, Calculations!$I$8:$QJ$8, CO$3, Calculations!$I$10:$QJ$10, CO$4) -> 74850.36346 | CP10: =SUMIFS(Calculations!$I230:$QJ230, Calculations!$I$8:$QJ$8, CP$3, Calculations!$I$10:$QJ$10, CP$4) -> 73822.17964 | CQ10: =SUMIFS(Calculations!$I230:$QJ230, Calculations!$I$8:$QJ$8, CQ$3, Calculations!$I$10:$QJ$10, CQ$4) -> 74976.37707 | CR10: =SUMIFS(Calculations!$I230:$QJ230, Calculations!$I$8:$QJ$8, CR$3, Calculations!$I$10:$QJ$10, CR$4) -> 74288.20555 | CS10: =SUMIFS(Calculations!$I230:$QJ230, Calculations!$I$8:$QJ$8, CS$3, Calculations!$I$10:$QJ$10, CS$4) -> 74071.87882 | CT10: =SUMIFS(Calculations!$I230:$QJ230, Calculations!$I$8:$QJ$8, CT$3, Calculations!$I$10:$QJ$10, CT$4) -> 72251.28837 | CU10: =SUMIFS(Calculations!$I230:$QJ230, Calculations!$I$8:$QJ$8, CU$3, Calculations!$I$10:$QJ$10, CU$4) -> 73943.07859 | CV10: =SUMIFS(Calculations!$I230:$QJ230, Calculations!$I$8:$QJ$8, CV$3, Calculations!$I$10:$QJ$10, CV$4) -> 73429.2424 | CW10: =SUMIFS(Calculations!$I230:$QJ230, Calculations!$I$8:$QJ$8, CW$3, Calculations!$I$10:$QJ$10, CW$4) -> 73215.06905 | CX10: =SUMIFS(Calculations!$I230:$QJ230, Calculations!$I$8:$QJ$8, CX$3, Calculations!$I$10:$QJ$10, CX$4) -> 71415.19862 | CY10: =SUMIFS(Calculations!$I230:$QJ230, Calculations!$I$8:$QJ$8, CY$3, Calculations!$I$10:$QJ$10, CY$4) -> 72832.33879 | CZ10: =SUMIFS(Calculations!$I230:$QJ230, Calculations!$I$8:$QJ$8, CZ$3, Calculations!$I$10:$QJ$10, CZ$4) -> 72578.82963 | DA10: =SUMIFS(Calculations!$I230:$QJ230, Calculations!$I$8:$QJ$8, DA$3, Calculations!$I$10:$QJ$10, DA$4) -> 72366.78823 | DB10: =SUMIFS(Calculations!$I230:$QJ230, Calculations!$I$8:$QJ$8, DB$3, Calculations!$I$10:$QJ$10, DB$4) -> 70587.43155 | DC10: =SUMIFS(Calculations!$I230:$QJ230, Calculations!$I$8:$QJ$8, DC$3, Calculations!$I$10:$QJ$10, DC$4) -> 71729.60637 | DD10: =SUMIFS(Calculations!$I230:$QJ230, Calculations!$I$8:$QJ$8, DD$3, Calculations!$I$10:$QJ$10, DD$4) -> 71736.88212 | DE10: =SUMIFS(Calculations!$I230:$QJ230, Calculations!$I$8:$QJ$8, DE$3, Calculations!$I$10:$QJ$10, DE$4) -> 71526.95144 | DF10: =SUMIFS(Calculations!$I230:$QJ230, Calculations!$I$8:$QJ$8, DF$3, Calculations!$I$10:$QJ$10, DF$4) -> 70543.10303 | DG10: =SUMIFS(Calculations!$I230:$QJ230, Calculations!$I$8:$QJ$8, DG$3, Calculations!$I$10:$QJ$10, DG$4) -> 70634.76502 | DH10: =SUMIFS(Calculations!$I230:$QJ230, Calculations!$I$8:$QJ$8, DH$3, Calculations!$I$10:$QJ$10, DH$4) -> 70903.3156 | DI10: =SUMIFS(Calculations!$I230:$QJ230, Calculations!$I$8:$QJ$8, DI$3, Calculations!$I$10:$QJ$10, DI$4) -> 70695.47463 | DJ10: =SUMIFS(Calculations!$I230:$QJ230, Calculations!$I$8:$QJ$8, DJ$3, Calculations!$I$10:$QJ$10, DJ$4) -> 68956.53489 | DK10: =SUMIFS(Calculations!$I230:$QJ230, Calculations!$I$8:$QJ$8, DK$3, Calculations!$I$10:$QJ$10, DK$4) -> 68046.74229
C11: less: Purchased from EDA | E11: EUR | G11: -6952113.795 | H11: =SUMIFS(Calculations!$I354:$QJ354, Calculations!$I$8:$QJ$8, H$3, Calculations!$I$10:$QJ$10, H$4) -> 0 | I11: =SUMIFS(Calculations!$I354:$QJ354, Calculations!$I$8:$QJ$8, I$3, Calculations!$I$10:$QJ$10, I$4) -> 0 | J11: =SUMIFS(Calculations!$I354:$QJ354, Calculations!$I$8:$QJ$8, J$3, Calculations!$I$10:$QJ$10, J$4) -> 0 | K11: =SUMIFS(Calculations!$I354:$QJ354, Calculations!$I$8:$QJ$8, K$3, Calculations!$I$10:$QJ$10, K$4) -> 0 | L11: =SUMIFS(Calculations!$I354:$QJ354, Calculations!$I$8:$QJ$8, L$3, Calculations!$I$10:$QJ$10, L$4) -> 0 | M11: =SUMIFS(Calculations!$I354:$QJ354, Calculations!$I$8:$QJ$8, M$3, Calculations!$I$10:$QJ$10, M$4) -> 0 | N11: =SUMIFS(Calculations!$I354:$QJ354, Calculations!$I$8:$QJ$8, N$3, Calculations!$I$10:$QJ$10, N$4) -> 0 | O11: =SUMIFS(Calculations!$I354:$QJ354, Calculations!$I$8:$QJ$8, O$3, Calculations!$I$10:$QJ$10, O$4) -> 0 | P11: =SUMIFS(Calculations!$I354:$QJ354, Calculations!$I$8:$QJ$8, P$3, Calculations!$I$10:$QJ$10, P$4) -> -28998.45639 | Q11: =SUMIFS(Calculations!$I354:$QJ354, Calculations!$I$8:$QJ$8, Q$3, Calculations!$I$10:$QJ$10, Q$4) -> -58910.40808 | R11: =SUMIFS(Calculations!$I354:$QJ354, Calculations!$I$8:$QJ$8, R$3, Calculations!$I$10:$QJ$10, R$4) -> -22135.77834 | S11: =SUMIFS(Calculations!$I354:$QJ354, Calculations!$I$8:$QJ$8, S$3, Calculations!$I$10:$QJ$10, S$4) -> -6250.264871 | T11: =SUMIFS(Calculations!$I354:$QJ354, Calculations!$I$8:$QJ$8, T$3, Calculations!$I$10:$QJ$10, T$4) -> -34485.78163 | U11: =SUMIFS(Calculations!$I354:$QJ354, Calculations!$I$8:$QJ$8, U$3, Calculations!$I$10:$QJ$10, U$4) -> -65097.27628 | V11: =SUMIFS(Calculations!$I354:$QJ354, Calculations!$I$8:$QJ$8, V$3, Calculations!$I$10:$QJ$10, V$4) -> -29948.90086 | W11: =SUMIFS(Calculations!$I354:$QJ354, Calculations!$I$8:$QJ$8, W$3, Calculations!$I$10:$QJ$10, W$4) -> -11492.5409 | X11: =SUMIFS(Calculations!$I354:$QJ354, Calculations!$I$8:$QJ$8, X$3, Calculations!$I$10:$QJ$10, X$4) -> -50418.29747 | Y11: =SUMIFS(Calculations!$I354:$QJ354, Calculations!$I$8:$QJ$8, Y$3, Calculations!$I$10:$QJ$10, Y$4) -> -72397.88857 | Z11: =SUMIFS(Calculations!$I354:$QJ354, Calculations!$I$8:$QJ$8, Z$3, Calculations!$I$10:$QJ$10, Z$4) -> -39207.70655 | AA11: =SUMIFS(Calculations!$I354:$QJ354, Calculations!$I$8:$QJ$8, AA$3, Calculations!$I$10:$QJ$10, AA$4) -> -19311.53359 | AB11: =SUMIFS(Calculations!$I354:$QJ354, Calculations!$I$8:$QJ$8, AB$3, Calculations!$I$10:$QJ$10, AB$4) -> -64447.70469 | AC11: =SUMIFS(Calculations!$I354:$QJ354, Calculations!$I$8:$QJ$8, AC$3, Calculations!$I$10:$QJ$10, AC$4) -> -76350.10298 | AD11: =SUMIFS(Calculations!$I354:$QJ354, Calculations!$I$8:$QJ$8, AD$3, Calculations!$I$10:$QJ$10, AD$4) -> -49471.75529 | AE11: =SUMIFS(Calculations!$I354:$QJ354, Calculations!$I$8:$QJ$8, AE$3, Calculations!$I$10:$QJ$10, AE$4) -> -29240.82755 | AF11: =SUMIFS(Calculations!$I354:$QJ354, Calculations!$I$8:$QJ$8, AF$3, Calculations!$I$10:$QJ$10, AF$4) -> -70119.32609 | AG11: =SUMIFS(Calculations!$I354:$QJ354, Calculations!$I$8:$QJ$8, AG$3, Calculations!$I$10:$QJ$10, AG$4) -> -80166.27066 | AH11: =SUMIFS(Calculations!$I354:$QJ354, Calculations!$I$8:$QJ$8, AH$3, Calculations!$I$10:$QJ$10, AH$4) -> -54899.06908 | AI11: =SUMIFS(Calculations!$I354:$QJ354, Calculations!$I$8:$QJ$8, AI$3, Calculations!$I$10:$QJ$10, AI$4) -> -38692.61153 | AJ11: =SUMIFS(Calculations!$I354:$QJ354, Calculations!$I$8:$QJ$8, AJ$3, Calculations!$I$10:$QJ$10, AJ$4) -> -75605.77137 | AK11: =SUMIFS(Calculations!$I354:$QJ354, Calculations!$I$8:$QJ$8, AK$3, Calculations!$I$10:$QJ$10, AK$4) -> -82765.87657 | AL11: =SUMIFS(Calculations!$I354:$QJ354, Calculations!$I$8:$QJ$8, AL$3, Calculations!$I$10:$QJ$10, AL$4) -> -60159.88964 | AM11: =SUMIFS(Calculations!$I354:$QJ354, Calculations!$I$8:$QJ$8, AM$3, Calculations!$I$10:$QJ$10, AM$4) -> -43428.0912 | AN11: =SUMIFS(Calculations!$I354:$QJ354, Calculations!$I$8:$QJ$8, AN$3, Calculations!$I$10:$QJ$10, AN$4) -> -81088.65319 | AO11: =SUMIFS(Calculations!$I354:$QJ354, Calculations!$I$8:$QJ$8, AO$3, Calculations!$I$10:$QJ$10, AO$4) -> -82913.58027 | AP11: =SUMIFS(Calculations!$I354:$QJ354, Calculations!$I$8:$QJ$8, AP$3, Calculations!$I$10:$QJ$10, AP$4) -> -65415.10028 | AQ11: =SUMIFS(Calculations!$I354:$QJ354, Calculations!$I$8:$QJ$8, AQ$3, Calculations!$I$10:$QJ$10, AQ$4) -> -48162.50672 | AR11: =SUMIFS(Calculations!$I354:$QJ354, Calculations!$I$8:$QJ$8, AR$3, Calculations!$I$10:$QJ$10, AR$4) -> -83285.99357 | AS11: =SUMIFS(Calculations!$I354:$QJ354, Calculations!$I$8:$QJ$8, AS$3, Calculations!$I$10:$QJ$10, AS$4) -> -83049.02885 | AT11: =SUMIFS(Calculations!$I354:$QJ354, Calculations!$I$8:$QJ$8, AT$3, Calculations!$I$10:$QJ$10, AT$4) -> -71679.02156 | AU11: =SUMIFS(Calculations!$I354:$QJ354, Calculations!$I$8:$QJ$8, AU$3, Calculations!$I$10:$QJ$10, AU$4) -> -52896.5793 | AV11: =SUMIFS(Calculations!$I354:$QJ354, Calculations!$I$8:$QJ$8, AV$3, Calculations!$I$10:$QJ$10, AV$4) -> -83409.72656 | AW11: =SUMIFS(Calculations!$I354:$QJ354, Calculations!$I$8:$QJ$8, AW$3, Calculations!$I$10:$QJ$10, AW$4) -> -83172.45164 | AX11: =SUMIFS(Calculations!$I354:$QJ354, Calculations!$I$8:$QJ$8, AX$3, Calculations!$I$10:$QJ$10, AX$4) -> -75159.48729 | AY11: =SUMIFS(Calculations!$I354:$QJ354, Calculations!$I$8:$QJ$8, AY$3, Calculations!$I$10:$QJ$10, AY$4) -> -54809.07369 | AZ11: =SUMIFS(Calculations!$I354:$QJ354, Calculations!$I$8:$QJ$8, AZ$3, Calculations!$I$10:$QJ$10, AZ$4) -> -83521.6301 | BA11: =SUMIFS(Calculations!$I354:$QJ354, Calculations!$I$8:$QJ$8, BA$3, Calculations!$I$10:$QJ$10, BA$4) -> -83284.07465 | BB11: =SUMIFS(Calculations!$I354:$QJ354, Calculations!$I$8:$QJ$8, BB$3, Calculations!$I$10:$QJ$10, BB$4) -> -77771.4646 | BC11: =SUMIFS(Calculations!$I354:$QJ354, Calculations!$I$8:$QJ$8, BC$3, Calculations!$I$10:$QJ$10, BC$4) -> -54882.68512 | BD11: =SUMIFS(Calculations!$I354:$QJ354, Calculations!$I$8:$QJ$8, BD$3, Calculations!$I$10:$QJ$10, BD$4) -> -83621.92745 | BE11: =SUMIFS(Calculations!$I354:$QJ354, Calculations!$I$8:$QJ$8, BE$3, Calculations!$I$10:$QJ$10, BE$4) -> -83384.12055 | BF11: =SUMIFS(Calculations!$I354:$QJ354, Calculations!$I$8:$QJ$8, BF$3, Calculations!$I$10:$QJ$10, BF$4) -> -80376.13203 | BG11: =SUMIFS(Calculations!$I354:$QJ354, Calculations!$I$8:$QJ$8, BG$3, Calculations!$I$10:$QJ$10, BG$4) -> -54948.66185 | BH11: =SUMIFS(Calculations!$I354:$QJ354, Calculations!$I$8:$QJ$8, BH$3, Calculations!$I$10:$QJ$10, BH$4) -> -83710.83857 | BI11: =SUMIFS(Calculations!$I354:$QJ354, Calculations!$I$8:$QJ$8, BI$3, Calculations!$I$10:$QJ$10, BI$4) -> -83472.80878 | BJ11: =SUMIFS(Calculations!$I354:$QJ354, Calculations!$I$8:$QJ$8, BJ$3, Calculations!$I$10:$QJ$10, BJ$4) -> -82331.49004 | BK11: =SUMIFS(Calculations!$I354:$QJ354, Calculations!$I$8:$QJ$8, BK$3, Calculations!$I$10:$QJ$10, BK$4) -> -55007.1486 | BL11: =SUMIFS(Calculations!$I354:$QJ354, Calculations!$I$8:$QJ$8, BL$3, Calculations!$I$10:$QJ$10, BL$4) -> -83788.58022 | BM11: =SUMIFS(Calculations!$I354:$QJ354, Calculations!$I$8:$QJ$8, BM$3, Calculations!$I$10:$QJ$10, BM$4) -> -83550.35554 | BN11: =SUMIFS(Calculations!$I354:$QJ354, Calculations!$I$8:$QJ$8, BN$3, Calculations!$I$10:$QJ$10, BN$4) -> -81502.4201 | BO11: =SUMIFS(Calculations!$I354:$QJ354, Calculations!$I$8:$QJ$8, BO$3, Calculations!$I$10:$QJ$10, BO$4) -> -55058.28795 | BP11: =SUMIFS(Calculations!$I354:$QJ354, Calculations!$I$8:$QJ$8, BP$3, Calculations!$I$10:$QJ$10, BP$4) -> -83855.36596 | BQ11: =SUMIFS(Calculations!$I354:$QJ354, Calculations!$I$8:$QJ$8, BQ$3, Calculations!$I$10:$QJ$10, BQ$4) -> -83616.97384 | BR11: =SUMIFS(Calculations!$I354:$QJ354, Calculations!$I$8:$QJ$8, BR$3, Calculations!$I$10:$QJ$10, BR$4) -> -81567.42739 | BS11: =SUMIFS(Calculations!$I354:$QJ354, Calculations!$I$8:$QJ$8, BS$3, Calculations!$I$10:$QJ$10, BS$4) -> -55102.22036 | BT11: =SUMIFS(Calculations!$I354:$QJ354, Calculations!$I$8:$QJ$8, BT$3, Calculations!$I$10:$QJ$10, BT$4) -> -83911.40618 | BU11: =SUMIFS(Calculations!$I354:$QJ354, Calculations!$I$8:$QJ$8, BU$3, Calculations!$I$10:$QJ$10, BU$4) -> -83672.87358 | BV11: =SUMIFS(Calculations!$I354:$QJ354, Calculations!$I$8:$QJ$8, BV$3, Calculations!$I$10:$QJ$10, BV$4) -> -81621.97532 | BW11: =SUMIFS(Calculations!$I354:$QJ354, Calculations!$I$8:$QJ$8, BW$3, Calculations!$I$10:$QJ$10, BW$4) -> -55139.08426 | BX11: =SUMIFS(Calculations!$I354:$QJ354, Calculations!$I$8:$QJ$8, BX$3, Calculations!$I$10:$QJ$10, BX$4) -> -83956.90822 | BY11: =SUMIFS(Calculations!$I354:$QJ354, Calculations!$I$8:$QJ$8, BY$3, Calculations!$I$10:$QJ$10, BY$4) -> -83718.26155 | BZ11: =SUMIFS(Calculations!$I354:$QJ354, Calculations!$I$8:$QJ$8, BZ$3, Calculations!$I$10:$QJ$10, BZ$4) -> -82573.66839 | CA11: =SUMIFS(Calculations!$I354:$QJ354, Calculations!$I$8:$QJ$8, CA$3, Calculations!$I$10:$QJ$10, CA$4) -> -55169.01602 | CB11: =SUMIFS(Calculations!$I354:$QJ354, Calculations!$I$8:$QJ$8, CB$3, Calculations!$I$10:$QJ$10, CB$4) -> -83992.07631 | CC11: =SUMIFS(Calculations!$I354:$QJ354, Calculations!$I$8:$QJ$8, CC$3, Calculations!$I$10:$QJ$10, CC$4) -> -83753.34147 | CD11: =SUMIFS(Calculations!$I354:$QJ354, Calculations!$I$8:$QJ$8, CD$3, Calculations!$I$10:$QJ$10, CD$4) -> -81700.49728 | CE11: =SUMIFS(Calculations!$I354:$QJ354, Calculations!$I$8:$QJ$8, CE$3, Calculations!$I$10:$QJ$10, CE$4) -> -55192.14999 | CF11: =SUMIFS(Calculations!$I354:$QJ354, Calculations!$I$8:$QJ$8, CF$3, Calculations!$I$10:$QJ$10, CF$4) -> -84017.11168 | CG11: =SUMIFS(Calculations!$I354:$QJ354, Calculations!$I$8:$QJ$8, CG$3, Calculations!$I$10:$QJ$10, CG$4) -> -83778.31408 | CH11: =SUMIFS(Calculations!$I354:$QJ354, Calculations!$I$8:$QJ$8, CH$3, Calculations!$I$10:$QJ$10, CH$4) -> -81724.86598 | CI11: =SUMIFS(Calculations!$I354:$QJ354, Calculations!$I$8:$QJ$8, CI$3, Calculations!$I$10:$QJ$10, CI$4) -> -55658.45582 | CJ11: =SUMIFS(Calculations!$I354:$QJ354, Calculations!$I$8:$QJ$8, CJ$3, Calculations!$I$10:$QJ$10, CJ$4) -> -84032.21258 | CK11: =SUMIFS(Calculations!$I354:$QJ354, Calculations!$I$8:$QJ$8, CK$3, Calculations!$I$10:$QJ$10, CK$4) -> -83793.37712 | CL11: =SUMIFS(Calculations!$I354:$QJ354, Calculations!$I$8:$QJ$8, CL$3, Calculations!$I$10:$QJ$10, CL$4) -> -81739.56475 | CM11: =SUMIFS(Calculations!$I354:$QJ354, Calculations!$I$8:$QJ$8, CM$3, Calculations!$I$10:$QJ$10, CM$4) -> -59420.98249 | CN11: =SUMIFS(Calculations!$I354:$QJ354, Calculations!$I$8:$QJ$8, CN$3, Calculations!$I$10:$QJ$10, CN$4) -> -84037.57429 | CO11: =SUMIFS(Calculations!$I354:$QJ354, Calculations!$I$8:$QJ$8, CO$3, Calculations!$I$10:$QJ$10, CO$4) -> -83798.72539 | CP11: =SUMIFS(Calculations!$I354:$QJ354, Calculations!$I$8:$QJ$8, CP$3, Calculations!$I$10:$QJ$10, CP$4) -> -82653.05882 | CQ11: =SUMIFS(Calculations!$I354:$QJ354, Calculations!$I$8:$QJ$8, CQ$3, Calculations!$I$10:$QJ$10, CQ$4) -> -63178.01437 | CR11: =SUMIFS(Calculations!$I354:$QJ354, Calculations!$I$8:$QJ$8, CR$3, Calculations!$I$10:$QJ$10, CR$4) -> -83183.60355 | CS11: =SUMIFS(Calculations!$I354:$QJ354, Calculations!$I$8:$QJ$8, CS$3, Calculations!$I$10:$QJ$10, CS$4) -> -82946.89552 | CT11: =SUMIFS(Calculations!$I354:$QJ354, Calculations!$I$8:$QJ$8, CT$3, Calculations!$I$10:$QJ$10, CT$4) -> -80913.5534 | CU11: =SUMIFS(Calculations!$I354:$QJ354, Calculations!$I$8:$QJ$8, CU$3, Calculations!$I$10:$QJ$10, CU$4) -> -66095.93816 | CV11: =SUMIFS(Calculations!$I354:$QJ354, Calculations!$I$8:$QJ$8, CV$3, Calculations!$I$10:$QJ$10, CV$4) -> -82243.71286 | CW11: =SUMIFS(Calculations!$I354:$QJ354, Calculations!$I$8:$QJ$8, CW$3, Calculations!$I$10:$QJ$10, CW$4) -> -82009.36108 | CX11: =SUMIFS(Calculations!$I354:$QJ354, Calculations!$I$8:$QJ$8, CX$3, Calculations!$I$10:$QJ$10, CX$4) -> -79998.69112 | CY11: =SUMIFS(Calculations!$I354:$QJ354, Calculations!$I$8:$QJ$8, CY$3, Calculations!$I$10:$QJ$10, CY$4) -> -68934.49177 | CZ11: =SUMIFS(Calculations!$I354:$QJ354, Calculations!$I$8:$QJ$8, CZ$3, Calculations!$I$10:$QJ$10, CZ$4) -> -81313.17811 | DA11: =SUMIFS(Calculations!$I354:$QJ354, Calculations!$I$8:$QJ$8, DA$3, Calculations!$I$10:$QJ$10, DA$4) -> -81081.15914 | DB11: =SUMIFS(Calculations!$I354:$QJ354, Calculations!$I$8:$QJ$8, DB$3, Calculations!$I$10:$QJ$10, DB$4) -> -79092.93564 | DC11: =SUMIFS(Calculations!$I354:$QJ354, Calculations!$I$8:$QJ$8, DC$3, Calculations!$I$10:$QJ$10, DC$4) -> -71787.66907 | DD11: =SUMIFS(Calculations!$I354:$QJ354, Calculations!$I$8:$QJ$8, DD$3, Calculations!$I$10:$QJ$10, DD$4) -> -80391.90618 | DE11: =SUMIFS(Calculations!$I354:$QJ354, Calculations!$I$8:$QJ$8, DE$3, Calculations!$I$10:$QJ$10, DE$4) -> -80162.1968 | DF11: =SUMIFS(Calculations!$I354:$QJ354, Calculations!$I$8:$QJ$8, DF$3, Calculations!$I$10:$QJ$10, DF$4) -> -79065.04271 | DG11: =SUMIFS(Calculations!$I354:$QJ354, Calculations!$I$8:$QJ$8, DG$3, Calculations!$I$10:$QJ$10, DG$4) -> -74655.83906 | DH11: =SUMIFS(Calculations!$I354:$QJ354, Calculations!$I$8:$QJ$8, DH$3, Calculations!$I$10:$QJ$10, DH$4) -> -79479.80487 | DI11: =SUMIFS(Calculations!$I354:$QJ354, Calculations!$I$8:$QJ$8, DI$3, Calculations!$I$10:$QJ$10, DI$4) -> -79252.38208 | DJ11: =SUMIFS(Calculations!$I354:$QJ354, Calculations!$I$8:$QJ$8, DJ$3, Calculations!$I$10:$QJ$10, DJ$4) -> -77308.38341 | DK11: =SUMIFS(Calculations!$I354:$QJ354, Calculations!$I$8:$QJ$8, DK$3, Calculations!$I$10:$QJ$10, DK$4) -> -76565.58753
C12: Total Revenues | G12: 56255064.3 | H12: =+H9+H10+H11 -> 0 | I12: 0 | J12: 0 | K12: 0 | L12: 0 | M12: 0 | N12: 0 | O12: 0 | P12: 834725.7163 | Q12: 436873.6693 | R12: 491819.3022 | S12: 702261.6298 | T12: 836986.4206 | U12: 435509.3683 | V12: 488917.9728 | W12: 704383.6749 | X12: 829652.8106 | Y12: 431505.458 | Z12: 484518.3804 | AA12: 702323.0764 | AB12: 822254.2981 | AC12: 427280.8116 | AD12: 479954.5144 | AE12: 699586.7079 | AF12: 814272.8304 | AG12: 423092.3177 | AH12: 475651.205 | AI12: 696884.9839 | AJ12: 806362.3328 | AK12: 418852.9164 | AL12: 471088.6542 | AM12: 693878.0563 | AN12: 798536.4842 | AO12: 414463.1478 | AP12: 466577.0337 | AQ12: 690943.5007 | AR12: 790531.462 | AS12: 410118.0048 | AT12: 461898.1574 | AU12: 688081.1634 | AV12: 782443.5141 | AW12: 405817.034 | AX12: 457644.4449 | AY12: 685064.7973 | AZ12: 774436.9885 | BA12: 401559.7866 | BB12: 453072.0296 | BC12: 681972.9421 | BD12: 766511.0657 | BE12: 397345.8182 | BF12: 448548.3246 | BG12: 678952.1331 | BH12: 758664.9342 | BI12: 393174.6891 | BJ12: 443721.6938 | BK12: 676002.2013 | BL12: 750897.791 | BM12: 389045.9639 | BN12: 439319.6352 | BO12: 673122.9856 | BP12: 743208.8409 | BQ12: 384959.2118 | BR12: 434737.3105 | BS12: =+BS9+BS10+BS11 -> 670314.3324 | BT12: 735597.2969 | BU12: 380914.0062 | BV12: 430201.4445 | BW12: 667576.0954 | BX12: 728062.3797 | BY12: 376909.925 | BZ12: 425484.1367 | CA12: 664908.1363 | CB12: 720603.3181 | CC12: 372946.5502 | CD12: 421267.2098 | CE12: 662310.3243 | CF12: 713219.3485 | CG12: 369023.4682 | CH12: 416867.9136 | CI12: 657885.5122 | CJ12: 705909.715 | CK12: 365140.2696 | CL12: 412513.221 | CM12: 651408.5319 | CN12: 698673.6695 | CO12: 361296.549 | CP12: 407975.1752 | CQ12: 645000.1507 | CR12: 691583.6402 | CS12: 357564.8911 | CT12: 404007.0637 | CU12: 638731.5498 | CV12: 684572.3172 | CW12: 353878.4888 | CX12: 399861.1253 | CY12: 632536.7245 | CZ12: 677630.7868 | DA12: 350228.782 | DB12: 395756.4568 | DC12: 626407 | DD12: 670758.3546 | DE12: 346615.4054 | DF12: 391468.5376 | DG12: 620341.7694 | DH12: 663954.3325 | DI12: 343037.9975 | DJ12: 387669.2903 | DK12: 606440.905
C13: =Calculations!C356 -> less: Operating Expenses | E13: =Calculations!E356 -> EUR | G13: -19754981.64 | H13: =SUMIFS(Calculations!$I356:$QJ356, Calculations!$I$8:$QJ$8, H$3, Calculations!$I$10:$QJ$10, H$4) -> 0 | I13: =SUMIFS(Calculations!$I356:$QJ356, Calculations!$I$8:$QJ$8, I$3, Calculations!$I$10:$QJ$10, I$4) -> 0 | J13: =SUMIFS(Calculations!$I356:$QJ356, Calculations!$I$8:$QJ$8, J$3, Calculations!$I$10:$QJ$10, J$4) -> 0 | K13: =SUMIFS(Calculations!$I356:$QJ356, Calculations!$I$8:$QJ$8, K$3, Calculations!$I$10:$QJ$10, K$4) -> 0 | L13: =SUMIFS(Calculations!$I356:$QJ356, Calculations!$I$8:$QJ$8, L$3, Calculations!$I$10:$QJ$10, L$4) -> 0 | M13: =SUMIFS(Calculations!$I356:$QJ356, Calculations!$I$8:$QJ$8, M$3, Calculations!$I$10:$QJ$10, M$4) -> 0 | N13: =SUMIFS(Calculations!$I356:$QJ356, Calculations!$I$8:$QJ$8, N$3, Calculations!$I$10:$QJ$10, N$4) -> 0 | O13: =SUMIFS(Calculations!$I356:$QJ356, Calculations!$I$8:$QJ$8, O$3, Calculations!$I$10:$QJ$10, O$4) -> 0 | P13: =SUMIFS(Calculations!$I356:$QJ356, Calculations!$I$8:$QJ$8, P$3, Calculations!$I$10:$QJ$10, P$4) -> -165423.7162 | Q13: =SUMIFS(Calculations!$I356:$QJ356, Calculations!$I$8:$QJ$8, Q$3, Calculations!$I$10:$QJ$10, Q$4) -> -167216.6753 | R13: =SUMIFS(Calculations!$I356:$QJ356, Calculations!$I$8:$QJ$8, R$3, Calculations!$I$10:$QJ$10, R$4) -> -158914.5216 | S13: =SUMIFS(Calculations!$I356:$QJ356, Calculations!$I$8:$QJ$8, S$3, Calculations!$I$10:$QJ$10, S$4) -> -163367.6513 | T13: =SUMIFS(Calculations!$I356:$QJ356, Calculations!$I$8:$QJ$8, T$3, Calculations!$I$10:$QJ$10, T$4) -> -175213.9014 | U13: =SUMIFS(Calculations!$I356:$QJ356, Calculations!$I$8:$QJ$8, U$3, Calculations!$I$10:$QJ$10, U$4) -> -167184.3604 | V13: =SUMIFS(Calculations!$I356:$QJ356, Calculations!$I$8:$QJ$8, V$3, Calculations!$I$10:$QJ$10, V$4) -> -167763.9661 | W13: =SUMIFS(Calculations!$I356:$QJ356, Calculations!$I$8:$QJ$8, W$3, Calculations!$I$10:$QJ$10, W$4) -> -172317.5633 | X13: =SUMIFS(Calculations!$I356:$QJ356, Calculations!$I$8:$QJ$8, X$3, Calculations!$I$10:$QJ$10, X$4) -> -175997.3871 | Y13: =SUMIFS(Calculations!$I356:$QJ356, Calculations!$I$8:$QJ$8, Y$3, Calculations!$I$10:$QJ$10, Y$4) -> -168034.4401 | Z13: =SUMIFS(Calculations!$I356:$QJ356, Calculations!$I$8:$QJ$8, Z$3, Calculations!$I$10:$QJ$10, Z$4) -> -168606.1321 | AA13: =SUMIFS(Calculations!$I356:$QJ356, Calculations!$I$8:$QJ$8, AA$3, Calculations!$I$10:$QJ$10, AA$4) -> -173206.5092 | AB13: =SUMIFS(Calculations!$I356:$QJ356, Calculations!$I$8:$QJ$8, AB$3, Calculations!$I$10:$QJ$10, AB$4) -> -176802.8287 | AC13: =SUMIFS(Calculations!$I356:$QJ356, Calculations!$I$8:$QJ$8, AC$3, Calculations!$I$10:$QJ$10, AC$4) -> -168903.359 | AD13: =SUMIFS(Calculations!$I356:$QJ356, Calculations!$I$8:$QJ$8, AD$3, Calculations!$I$10:$QJ$10, AD$4) -> -170087.5498 | AE13: =SUMIFS(Calculations!$I356:$QJ356, Calculations!$I$8:$QJ$8, AE$3, Calculations!$I$10:$QJ$10, AE$4) -> -174480.1937 | AF13: =SUMIFS(Calculations!$I356:$QJ356, Calculations!$I$8:$QJ$8, AF$3, Calculations!$I$10:$QJ$10, AF$4) -> -177995.4465 | AG13: =SUMIFS(Calculations!$I356:$QJ356, Calculations!$I$8:$QJ$8, AG$3, Calculations!$I$10:$QJ$10, AG$4) -> -170171.8362 | AH13: =SUMIFS(Calculations!$I356:$QJ356, Calculations!$I$8:$QJ$8, AH$3, Calculations!$I$10:$QJ$10, AH$4) -> -170734.4476 | AI13: =SUMIFS(Calculations!$I356:$QJ356, Calculations!$I$8:$QJ$8, AI$3, Calculations!$I$10:$QJ$10, AI$4) -> -175403.4063 | AJ13: =SUMIFS(Calculations!$I356:$QJ356, Calculations!$I$8:$QJ$8, AJ$3, Calculations!$I$10:$QJ$10, AJ$4) -> -178838.9148 | AK13: =SUMIFS(Calculations!$I356:$QJ356, Calculations!$I$8:$QJ$8, AK$3, Calculations!$I$10:$QJ$10, AK$4) -> -171088.7265 | AL13: =SUMIFS(Calculations!$I356:$QJ356, Calculations!$I$8:$QJ$8, AL$3, Calculations!$I$10:$QJ$10, AL$4) -> -171644.8749 | AM13: =SUMIFS(Calculations!$I356:$QJ356, Calculations!$I$8:$QJ$8, AM$3, Calculations!$I$10:$QJ$10, AM$4) -> -176344.9461 | AN13: =SUMIFS(Calculations!$I356:$QJ356, Calculations!$I$8:$QJ$8, AN$3, Calculations!$I$10:$QJ$10, AN$4) -> -179709.1181 | AO13: =SUMIFS(Calculations!$I356:$QJ356, Calculations!$I$8:$QJ$8, AO$3, Calculations!$I$10:$QJ$10, AO$4) -> -172027.6514 | AP13: =SUMIFS(Calculations!$I356:$QJ356, Calculations!$I$8:$QJ$8, AP$3, Calculations!$I$10:$QJ$10, AP$4) -> -172581.3627 | AQ13: =SUMIFS(Calculations!$I356:$QJ356, Calculations!$I$8:$QJ$8, AQ$3, Calculations!$I$10:$QJ$10, AQ$4) -> -177312.9752 | AR13: =SUMIFS(Calculations!$I356:$QJ356, Calculations!$I$8:$QJ$8, AR$3, Calculations!$I$10:$QJ$10, AR$4) -> -180601.4059 | AS13: =SUMIFS(Calculations!$I356:$QJ356, Calculations!$I$8:$QJ$8, AS$3, Calculations!$I$10:$QJ$10, AS$4) -> -172993.1368 | AT13: =SUMIFS(Calculations!$I356:$QJ356, Calculations!$I$8:$QJ$8, AT$3, Calculations!$I$10:$QJ$10, AT$4) -> -173784.4566 | AU13: =SUMIFS(Calculations!$I356:$QJ356, Calculations!$I$8:$QJ$8, AU$3, Calculations!$I$10:$QJ$10, AU$4) -> -178308.1168 | AV13: =SUMIFS(Calculations!$I356:$QJ356, Calculations!$I$8:$QJ$8, AV$3, Calculations!$I$10:$QJ$10, AV$4) -> -181518.345 | AW13: =SUMIFS(Calculations!$I356:$QJ356, Calculations!$I$8:$QJ$8, AW$3, Calculations!$I$10:$QJ$10, AW$4) -> -173985.8154 | AX13: =SUMIFS(Calculations!$I356:$QJ356, Calculations!$I$8:$QJ$8, AX$3, Calculations!$I$10:$QJ$10, AX$4) -> -174533.7972 | AY13: =SUMIFS(Calculations!$I356:$QJ356, Calculations!$I$8:$QJ$8, AY$3, Calculations!$I$10:$QJ$10, AY$4) -> -179326.4874 | AZ13: =SUMIFS(Calculations!$I356:$QJ356, Calculations!$I$8:$QJ$8, AZ$3, Calculations!$I$10:$QJ$10, AZ$4) -> -182463.8799 | BA13: =SUMIFS(Calculations!$I356:$QJ356, Calculations!$I$8:$QJ$8, BA$3, Calculations!$I$10:$QJ$10, BA$4) -> -175006.3358 | BB13: =SUMIFS(Calculations!$I356:$QJ356, Calculations!$I$8:$QJ$8, BB$3, Calculations!$I$10:$QJ$10, BB$4) -> -175548.0143 | BC13: =SUMIFS(Calculations!$I356:$QJ356, Calculations!$I$8:$QJ$8, BC$3, Calculations!$I$10:$QJ$10, BC$4) -> -180370.3157 | BD13: =SUMIFS(Calculations!$I356:$QJ356, Calculations!$I$8:$QJ$8, BD$3, Calculations!$I$10:$QJ$10, BD$4) -> -183438.6685 | BE13: =SUMIFS(Calculations!$I356:$QJ356, Calculations!$I$8:$QJ$8, BE$3, Calculations!$I$10:$QJ$10, BE$4) -> -176055.3635 | BF13: =SUMIFS(Calculations!$I356:$QJ356, Calculations!$I$8:$QJ$8, BF$3, Calculations!$I$10:$QJ$10, BF$4) -> -176590.8473 | BG13: =SUMIFS(Calculations!$I356:$QJ356, Calculations!$I$8:$QJ$8, BG$3, Calculations!$I$10:$QJ$10, BG$4) -> -181443.2066 | BH13: =SUMIFS(Calculations!$I356:$QJ356, Calculations!$I$8:$QJ$8, BH$3, Calculations!$I$10:$QJ$10, BH$4) -> -184443.3856 | BI13: =SUMIFS(Calculations!$I356:$QJ356, Calculations!$I$8:$QJ$8, BI$3, Calculations!$I$10:$QJ$10, BI$4) -> -177133.5807 | BJ13: =SUMIFS(Calculations!$I356:$QJ356, Calculations!$I$8:$QJ$8, BJ$3, Calculations!$I$10:$QJ$10, BJ$4) -> -177900.2376 | BK13: =SUMIFS(Calculations!$I356:$QJ356, Calculations!$I$8:$QJ$8, BK$3, Calculations!$I$10:$QJ$10, BK$4) -> -182545.8477 | BL13: =SUMIFS(Calculations!$I356:$QJ356, Calculations!$I$8:$QJ$8, BL$3, Calculations!$I$10:$QJ$10, BL$4) -> -185478.7234 | BM13: =SUMIFS(Calculations!$I356:$QJ356, Calculations!$I$8:$QJ$8, BM$3, Calculations!$I$10:$QJ$10, BM$4) -> -178241.6869 | BN13: =SUMIFS(Calculations!$I356:$QJ356, Calculations!$I$8:$QJ$8, BN$3, Calculations!$I$10:$QJ$10, BN$4) -> -178758.5939 | BO13: =SUMIFS(Calculations!$I356:$QJ356, Calculations!$I$8:$QJ$8, BO$3, Calculations!$I$10:$QJ$10, BO$4) -> -183678.9441 | BP13: =SUMIFS(Calculations!$I356:$QJ356, Calculations!$I$8:$QJ$8, BP$3, Calculations!$I$10:$QJ$10, BP$4) -> -186545.3922 | BQ13: =SUMIFS(Calculations!$I356:$QJ356, Calculations!$I$8:$QJ$8, BQ$3, Calculations!$I$10:$QJ$10, BQ$4) -> -179380.3996 | BR13: =SUMIFS(Calculations!$I356:$QJ356, Calculations!$I$8:$QJ$8, BR$3, Calculations!$I$10:$QJ$10, BR$4) -> -179887.3952 | BS13: =SUMIFS(Calculations!$I356:$QJ356, Calculations!$I$8:$QJ$8, BS$3, Calculations!$I$10:$QJ$10, BS$4) -> -184843.2188 | BT13: =SUMIFS(Calculations!$I356:$QJ356, Calculations!$I$8:$QJ$8, BT$3, Calculations!$I$10:$QJ$10, BT$4) -> -187644.1203 | BU13: =SUMIFS(Calculations!$I356:$QJ356, Calculations!$I$8:$QJ$8, BU$3, Calculations!$I$10:$QJ$10, BU$4) -> -180550.4544 | BV13: =SUMIFS(Calculations!$I356:$QJ356, Calculations!$I$8:$QJ$8, BV$3, Calculations!$I$10:$QJ$10, BV$4) -> -181047.6368 | BW13: =SUMIFS(Calculations!$I356:$QJ356, Calculations!$I$8:$QJ$8, BW$3, Calculations!$I$10:$QJ$10, BW$4) -> -186039.413 | BX13: =SUMIFS(Calculations!$I356:$QJ356, Calculations!$I$8:$QJ$8, BX$3, Calculations!$I$10:$QJ$10, BX$4) -> -188775.6548 | BY13: =SUMIFS(Calculations!$I356:$QJ356, Calculations!$I$8:$QJ$8, BY$3, Calculations!$I$10:$QJ$10, BY$4) -> -181752.6057 | BZ13: =SUMIFS(Calculations!$I356:$QJ356, Calculations!$I$8:$QJ$8, BZ$3, Calculations!$I$10:$QJ$10, BZ$4) -> -182479.8068 | CA13: =SUMIFS(Calculations!$I356:$QJ356, Calculations!$I$8:$QJ$8, CA$3, Calculations!$I$10:$QJ$10, CA$4) -> -187268.2868 | CB13: =SUMIFS(Calculations!$I356:$QJ356, Calculations!$I$8:$QJ$8, CB$3, Calculations!$I$10:$QJ$10, CB$4) -> -189940.7623 | CC13: =SUMIFS(Calculations!$I356:$QJ356, Calculations!$I$8:$QJ$8, CC$3, Calculations!$I$10:$QJ$10, CC$4) -> -182987.627 | CD13: =SUMIFS(Calculations!$I356:$QJ356, Calculations!$I$8:$QJ$8, CD$3, Calculations!$I$10:$QJ$10, CD$4) -> -183465.4738 | CE13: =SUMIFS(Calculations!$I356:$QJ356, Calculations!$I$8:$QJ$8, CE$3, Calculations!$I$10:$QJ$10, CE$4) -> -188530.6193 | CF13: =SUMIFS(Calculations!$I356:$QJ356, Calculations!$I$8:$QJ$8, CF$3, Calculations!$I$10:$QJ$10, CF$4) -> -191140.2289 | CG13: =SUMIFS(Calculations!$I356:$QJ356, Calculations!$I$8:$QJ$8, CG$3, Calculations!$I$10:$QJ$10, CG$4) -> -184256.3113 | CH13: =SUMIFS(Calculations!$I356:$QJ356, Calculations!$I$8:$QJ$8, CH$3, Calculations!$I$10:$QJ$10, CH$4) -> -184724.6338 | CI13: =SUMIFS(Calculations!$I356:$QJ356, Calculations!$I$8:$QJ$8, CI$3, Calculations!$I$10:$QJ$10, CI$4) -> -189789.269 | CJ13: =SUMIFS(Calculations!$I356:$QJ356, Calculations!$I$8:$QJ$8, CJ$3, Calculations!$I$10:$QJ$10, CJ$4) -> -192374.8608 | CK13: =SUMIFS(Calculations!$I356:$QJ356, Calculations!$I$8:$QJ$8, CK$3, Calculations!$I$10:$QJ$10, CK$4) -> -185559.4719 | CL13: =SUMIFS(Calculations!$I356:$QJ356, Calculations!$I$8:$QJ$8, CL$3, Calculations!$I$10:$QJ$10, CL$4) -> -186018.3646 | CM13: =SUMIFS(Calculations!$I356:$QJ356, Calculations!$I$8:$QJ$8, CM$3, Calculations!$I$10:$QJ$10, CM$4) -> -191040.554 | CN13: =SUMIFS(Calculations!$I356:$QJ356, Calculations!$I$8:$QJ$8, CN$3, Calculations!$I$10:$QJ$10, CN$4) -> -193645.4851 | CO13: =SUMIFS(Calculations!$I356:$QJ356, Calculations!$I$8:$QJ$8, CO$3, Calculations!$I$10:$QJ$10, CO$4) -> -186897.9427 | CP13: =SUMIFS(Calculations!$I356:$QJ356, Calculations!$I$8:$QJ$8, CP$3, Calculations!$I$10:$QJ$10, CP$4) -> -187587.2321 | CQ13: =SUMIFS(Calculations!$I356:$QJ356, Calculations!$I$8:$QJ$8, CQ$3, Calculations!$I$10:$QJ$10, CQ$4) -> -192327.7316 | CR13: =SUMIFS(Calculations!$I356:$QJ356, Calculations!$I$8:$QJ$8, CR$3, Calculations!$I$10:$QJ$10, CR$4) -> -194954.4134 | CS13: =SUMIFS(Calculations!$I356:$QJ356, Calculations!$I$8:$QJ$8, CS$3, Calculations!$I$10:$QJ$10, CS$4) -> -188274.0384 | CT13: =SUMIFS(Calculations!$I356:$QJ356, Calculations!$I$8:$QJ$8, CT$3, Calculations!$I$10:$QJ$10, CT$4) -> -188714.3155 | CU13: =SUMIFS(Calculations!$I356:$QJ356, Calculations!$I$8:$QJ$8, CU$3, Calculations!$I$10:$QJ$10, CU$4) -> -193653.0884 | CV13: =SUMIFS(Calculations!$I356:$QJ356, Calculations!$I$8:$QJ$8, CV$3, Calculations!$I$10:$QJ$10, CV$4) -> -196301.184 | CW13: =SUMIFS(Calculations!$I356:$QJ356, Calculations!$I$8:$QJ$8, CW$3, Calculations!$I$10:$QJ$10, CW$4) -> -189687.3075 | CX13: =SUMIFS(Calculations!$I356:$QJ356, Calculations!$I$8:$QJ$8, CX$3, Calculations!$I$10:$QJ$10, CX$4) -> -190118.3938 | CY13: =SUMIFS(Calculations!$I356:$QJ356, Calculations!$I$8:$QJ$8, CY$3, Calculations!$I$10:$QJ$10, CY$4) -> -195016.189 | CZ13: =SUMIFS(Calculations!$I356:$QJ356, Calculations!$I$8:$QJ$8, CZ$3, Calculations!$I$10:$QJ$10, CZ$4) -> -197686.5254 | DA13: =SUMIFS(Calculations!$I356:$QJ356, Calculations!$I$8:$QJ$8, DA$3, Calculations!$I$10:$QJ$10, DA$4) -> -191138.4853 | DB13: =SUMIFS(Calculations!$I356:$QJ356, Calculations!$I$8:$QJ$8, DB$3, Calculations!$I$10:$QJ$10, DB$4) -> -191560.4724 | DC13: =SUMIFS(Calculations!$I356:$QJ356, Calculations!$I$8:$QJ$8, DC$3, Calculations!$I$10:$QJ$10, DC$4) -> -196417.7665 | DD13: =SUMIFS(Calculations!$I356:$QJ356, Calculations!$I$8:$QJ$8, DD$3, Calculations!$I$10:$QJ$10, DD$4) -> -199111.3531 | DE13: =SUMIFS(Calculations!$I356:$QJ356, Calculations!$I$8:$QJ$8, DE$3, Calculations!$I$10:$QJ$10, DE$4) -> -192628.4941 | DF13: =SUMIFS(Calculations!$I356:$QJ356, Calculations!$I$8:$QJ$8, DF$3, Calculations!$I$10:$QJ$10, DF$4) -> -193281.2735 | DG13: =SUMIFS(Calculations!$I356:$QJ356, Calculations!$I$8:$QJ$8, DG$3, Calculations!$I$10:$QJ$10, DG$4) -> -197858.7382 | DH13: =SUMIFS(Calculations!$I356:$QJ356, Calculations!$I$8:$QJ$8, DH$3, Calculations!$I$10:$QJ$10, DH$4) -> -200576.6058 | DI13: =SUMIFS(Calculations!$I356:$QJ356, Calculations!$I$8:$QJ$8, DI$3, Calculations!$I$10:$QJ$10, DI$4) -> -194158.2791 | DJ13: =SUMIFS(Calculations!$I356:$QJ356, Calculations!$I$8:$QJ$8, DJ$3, Calculations!$I$10:$QJ$10, DJ$4) -> -194562.3386 | DK13: =SUMIFS(Calculations!$I356:$QJ356, Calculations!$I$8:$QJ$8, DK$3, Calculations!$I$10:$QJ$10, DK$4) -> -1751257.771
C14: =Calculations!C357 -> EBITDA | G14: 36500082.66 | H14: =SUM(H12:H13) -> 0 | I14: 0 | J14: 0 | K14: 0 | L14: 0 | M14: 0 | N14: 0 | O14: 0 | P14: 669302 | Q14: 269656.994 | R14: 332904.7806 | S14: 538893.9785 | T14: 661772.5192 | U14: 268325.0079 | V14: 321154.0067 | W14: 532066.1116 | X14: 653655.4235 | Y14: 263471.0179 | Z14: 315912.2482 | AA14: 529116.5671 | AB14: 645451.4694 | AC14: 258377.4526 | AD14: 309866.9646 | AE14: 525106.5142 | AF14: 636277.3839 | AG14: 252920.4815 | AH14: 304916.7574 | AI14: 521481.5776 | AJ14: 627523.418 | AK14: 247764.1899 | AL14: =SUM(AL12:AL13) -> 299443.7793 | AM14: 517533.1102 | AN14: 618827.3661 | AO14: 242435.4964 | AP14: 293995.671 | AQ14: 513630.5254 | AR14: 609930.056 | AS14: 237124.868 | AT14: 288113.7008 | AU14: 509773.0466 | AV14: 600925.1691 | AW14: 231831.2187 | AX14: 283110.6477 | AY14: 505738.3099 | AZ14: 591973.1087 | BA14: 226553.4508 | BB14: 277524.0153 | BC14: 501602.6264 | BD14: 583072.3972 | BE14: 221290.4547 | BF14: 271957.4774 | BG14: 497508.9264 | BH14: 574221.5487 | BI14: 216041.1084 | BJ14: 265821.4562 | BK14: 493456.3536 | BL14: 565419.0676 | BM14: 210804.277 | BN14: 260561.0413 | BO14: 489444.0415 | BP14: 556663.4487 | BQ14: 205578.8122 | BR14: =SUM(BR12:BR13) -> 254849.9153 | BS14: 485471.1135 | BT14: 547953.1766 | BU14: 200363.5518 | BV14: 249153.8077 | BW14: 481536.6824 | BX14: 539286.7249 | BY14: 195157.3193 | BZ14: 243004.33 | CA14: 477639.8496 | CB14: 530662.5558 | CC14: 189958.9232 | CD14: 237801.736 | CE14: 473779.705 | CF14: 522079.1196 | CG14: 184767.1569 | CH14: 232143.2798 | CI14: 468096.2433 | CJ14: 513534.8542 | CK14: 179580.7977 | CL14: 226494.8564 | CM14: 460367.9779 | CN14: 505028.1843 | CO14: 174398.6063 | CP14: 220387.9432 | CQ14: 452672.4191 | CR14: 496629.2268 | CS14: 169290.8527 | CT14: 215292.7482 | CU14: 445078.4614 | CV14: 488271.1331 | CW14: 164191.1814 | CX14: =SUM(CX12:CX13) -> 209742.7315 | CY14: 437520.5356 | CZ14: 479944.2614 | DA14: 159090.2967 | DB14: 204195.9844 | DC14: 429989.2335 | DD14: 471647.0015 | DE14: 153986.9114 | DF14: 198187.2641 | DG14: 422483.0312 | DH14: 463377.7267 | DI14: 148879.7184 | DJ14: =SUM(DJ12:DJ13) -> 193106.9517 | DK14: -1144816.866
C16: =Calculations!C359 -> less: Depreciation and Amortization | E16: =Calculations!E359 -> EUR | G16: =SUM(H16:FA16) -> -17212957.12 | H16: =SUMIFS(Calculations!$I359:$QJ359, Calculations!$I$8:$QJ$8, H$3, Calculations!$I$10:$QJ$10, H$4) -> 0 | I16: =SUMIFS(Calculations!$I359:$QJ359, Calculations!$I$8:$QJ$8, I$3, Calculations!$I$10:$QJ$10, I$4) -> 0 | J16: =SUMIFS(Calculations!$I359:$QJ359, Calculations!$I$8:$QJ$8, J$3, Calculations!$I$10:$QJ$10, J$4) -> 0 | K16: =SUMIFS(Calculations!$I359:$QJ359, Calculations!$I$8:$QJ$8, K$3, Calculations!$I$10:$QJ$10, K$4) -> 0 | L16: =SUMIFS(Calculations!$I359:$QJ359, Calculations!$I$8:$QJ$8, L$3, Calculations!$I$10:$QJ$10, L$4) -> 0 | M16: =SUMIFS(Calculations!$I359:$QJ359, Calculations!$I$8:$QJ$8, M$3, Calculations!$I$10:$QJ$10, M$4) -> 0 | N16: =SUMIFS(Calculations!$I359:$QJ359, Calculations!$I$8:$QJ$8, N$3, Calculations!$I$10:$QJ$10, N$4) -> 0 | O16: =SUMIFS(Calculations!$I359:$QJ359, Calculations!$I$8:$QJ$8, O$3, Calculations!$I$10:$QJ$10, O$4) -> 0 | P16: =SUMIFS(Calculations!$I359:$QJ359, Calculations!$I$8:$QJ$8, P$3, Calculations!$I$10:$QJ$10, P$4) -> -333993.5661 | Q16: =SUMIFS(Calculations!$I359:$QJ359, Calculations!$I$8:$QJ$8, Q$3, Calculations!$I$10:$QJ$10, Q$4) -> -333993.5661 | R16: =SUMIFS(Calculations!$I359:$QJ359, Calculations!$I$8:$QJ$8, R$3, Calculations!$I$10:$QJ$10, R$4) -> -333993.5661 | S16: =SUMIFS(Calculations!$I359:$QJ359, Calculations!$I$8:$QJ$8, S$3, Calculations!$I$10:$QJ$10, S$4) -> -333993.5661 | T16: =SUMIFS(Calculations!$I359:$QJ359, Calculations!$I$8:$QJ$8, T$3, Calculations!$I$10:$QJ$10, T$4) -> -333993.5661 | U16: =SUMIFS(Calculations!$I359:$QJ359, Calculations!$I$8:$QJ$8, U$3, Calculations!$I$10:$QJ$10, U$4) -> -333993.5661 | V16: =SUMIFS(Calculations!$I359:$QJ359, Calculations!$I$8:$QJ$8, V$3, Calculations!$I$10:$QJ$10, V$4) -> -333993.5661 | W16: =SUMIFS(Calculations!$I359:$QJ359, Calculations!$I$8:$QJ$8, W$3, Calculations!$I$10:$QJ$10, W$4) -> -333993.5661 | X16: =SUMIFS(Calculations!$I359:$QJ359, Calculations!$I$8:$QJ$8, X$3, Calculations!$I$10:$QJ$10, X$4) -> -333993.5661 | Y16: =SUMIFS(Calculations!$I359:$QJ359, Calculations!$I$8:$QJ$8, Y$3, Calculations!$I$10:$QJ$10, Y$4) -> -333993.5661 | Z16: =SUMIFS(Calculations!$I359:$QJ359, Calculations!$I$8:$QJ$8, Z$3, Calculations!$I$10:$QJ$10, Z$4) -> -333993.5661 | AA16: =SUMIFS(Calculations!$I359:$QJ359, Calculations!$I$8:$QJ$8, AA$3, Calculations!$I$10:$QJ$10, AA$4) -> -333993.5661 | AB16: =SUMIFS(Calculations!$I359:$QJ359, Calculations!$I$8:$QJ$8, AB$3, Calculations!$I$10:$QJ$10, AB$4) -> -333993.5661 | AC16: =SUMIFS(Calculations!$I359:$QJ359, Calculations!$I$8:$QJ$8, AC$3, Calculations!$I$10:$QJ$10, AC$4) -> -333993.5661 | AD16: =SUMIFS(Calculations!$I359:$QJ359, Calculations!$I$8:$QJ$8, AD$3, Calculations!$I$10:$QJ$10, AD$4) -> -333993.5661 | AE16: =SUMIFS(Calculations!$I359:$QJ359, Calculations!$I$8:$QJ$8, AE$3, Calculations!$I$10:$QJ$10, AE$4) -> -333993.5661 | AF16: =SUMIFS(Calculations!$I359:$QJ359, Calculations!$I$8:$QJ$8, AF$3, Calculations!$I$10:$QJ$10, AF$4) -> -333993.5661 | AG16: =SUMIFS(Calculations!$I359:$QJ359, Calculations!$I$8:$QJ$8, AG$3, Calculations!$I$10:$QJ$10, AG$4) -> -333993.5661 | AH16: =SUMIFS(Calculations!$I359:$QJ359, Calculations!$I$8:$QJ$8, AH$3, Calculations!$I$10:$QJ$10, AH$4) -> -333993.5661 | AI16: =SUMIFS(Calculations!$I359:$QJ359, Calculations!$I$8:$QJ$8, AI$3, Calculations!$I$10:$QJ$10, AI$4) -> -333993.5661 | AJ16: =SUMIFS(Calculations!$I359:$QJ359, Calculations!$I$8:$QJ$8, AJ$3, Calculations!$I$10:$QJ$10, AJ$4) -> -325968.5661 | AK16: =SUMIFS(Calculations!$I359:$QJ359, Calculations!$I$8:$QJ$8, AK$3, Calculations!$I$10:$QJ$10, AK$4) -> -325968.5661 | AL16: =SUMIFS(Calculations!$I359:$QJ359, Calculations!$I$8:$QJ$8, AL$3, Calculations!$I$10:$QJ$10, AL$4) -> -325968.5661 | AM16: =SUMIFS(Calculations!$I359:$QJ359, Calculations!$I$8:$QJ$8, AM$3, Calculations!$I$10:$QJ$10, AM$4) -> -325968.5661 | AN16: =SUMIFS(Calculations!$I359:$QJ359, Calculations!$I$8:$QJ$8, AN$3, Calculations!$I$10:$QJ$10, AN$4) -> -325968.5661 | AO16: =SUMIFS(Calculations!$I359:$QJ359, Calculations!$I$8:$QJ$8, AO$3, Calculations!$I$10:$QJ$10, AO$4) -> -325968.5661 | AP16: =SUMIFS(Calculations!$I359:$QJ359, Calculations!$I$8:$QJ$8, AP$3, Calculations!$I$10:$QJ$10, AP$4) -> -325968.5661 | AQ16: =SUMIFS(Calculations!$I359:$QJ359, Calculations!$I$8:$QJ$8, AQ$3, Calculations!$I$10:$QJ$10, AQ$4) -> -325968.5661 | AR16: =SUMIFS(Calculations!$I359:$QJ359, Calculations!$I$8:$QJ$8, AR$3, Calculations!$I$10:$QJ$10, AR$4) -> -187715.5874 | AS16: =SUMIFS(Calculations!$I359:$QJ359, Calculations!$I$8:$QJ$8, AS$3, Calculations!$I$10:$QJ$10, AS$4) -> -187715.5874 | AT16: =SUMIFS(Calculations!$I359:$QJ359, Calculations!$I$8:$QJ$8, AT$3, Calculations!$I$10:$QJ$10, AT$4) -> -187715.5874 | AU16: =SUMIFS(Calculations!$I359:$QJ359, Calculations!$I$8:$QJ$8, AU$3, Calculations!$I$10:$QJ$10, AU$4) -> -187715.5874 | AV16: =SUMIFS(Calculations!$I359:$QJ359, Calculations!$I$8:$QJ$8, AV$3, Calculations!$I$10:$QJ$10, AV$4) -> -187715.5874 | AW16: =SUMIFS(Calculations!$I359:$QJ359, Calculations!$I$8:$QJ$8, AW$3, Calculations!$I$10:$QJ$10, AW$4) -> -187715.5874 | AX16: =SUMIFS(Calculations!$I359:$QJ359, Calculations!$I$8:$QJ$8, AX$3, Calculations!$I$10:$QJ$10, AX$4) -> -187715.5874 | AY16: =SUMIFS(Calculations!$I359:$QJ359, Calculations!$I$8:$QJ$8, AY$3, Calculations!$I$10:$QJ$10, AY$4) -> -187715.5874 | AZ16: =SUMIFS(Calculations!$I359:$QJ359, Calculations!$I$8:$QJ$8, AZ$3, Calculations!$I$10:$QJ$10, AZ$4) -> -187715.5874 | BA16: =SUMIFS(Calculations!$I359:$QJ359, Calculations!$I$8:$QJ$8, BA$3, Calculations!$I$10:$QJ$10, BA$4) -> -187715.5874 | BB16: =SUMIFS(Calculations!$I359:$QJ359, Calculations!$I$8:$QJ$8, BB$3, Calculations!$I$10:$QJ$10, BB$4) -> -187605.5874 | BC16: =SUMIFS(Calculations!$I359:$QJ359, Calculations!$I$8:$QJ$8, BC$3, Calculations!$I$10:$QJ$10, BC$4) -> -187605.5874 | BD16: =SUMIFS(Calculations!$I359:$QJ359, Calculations!$I$8:$QJ$8, BD$3, Calculations!$I$10:$QJ$10, BD$4) -> -120119.4027 | BE16: =SUMIFS(Calculations!$I359:$QJ359, Calculations!$I$8:$QJ$8, BE$3, Calculations!$I$10:$QJ$10, BE$4) -> -120119.4027 | BF16: =SUMIFS(Calculations!$I359:$QJ359, Calculations!$I$8:$QJ$8, BF$3, Calculations!$I$10:$QJ$10, BF$4) -> -120119.4027 | BG16: =SUMIFS(Calculations!$I359:$QJ359, Calculations!$I$8:$QJ$8, BG$3, Calculations!$I$10:$QJ$10, BG$4) -> -120119.4027 | BH16: =SUMIFS(Calculations!$I359:$QJ359, Calculations!$I$8:$QJ$8, BH$3, Calculations!$I$10:$QJ$10, BH$4) -> -120119.4027 | BI16: =SUMIFS(Calculations!$I359:$QJ359, Calculations!$I$8:$QJ$8, BI$3, Calculations!$I$10:$QJ$10, BI$4) -> -120119.4027 | BJ16: =SUMIFS(Calculations!$I359:$QJ359, Calculations!$I$8:$QJ$8, BJ$3, Calculations!$I$10:$QJ$10, BJ$4) -> -120119.4027 | BK16: =SUMIFS(Calculations!$I359:$QJ359, Calculations!$I$8:$QJ$8, BK$3, Calculations!$I$10:$QJ$10, BK$4) -> -120119.4027 | BL16: =SUMIFS(Calculations!$I359:$QJ359, Calculations!$I$8:$QJ$8, BL$3, Calculations!$I$10:$QJ$10, BL$4) -> -120119.4027 | BM16: =SUMIFS(Calculations!$I359:$QJ359, Calculations!$I$8:$QJ$8, BM$3, Calculations!$I$10:$QJ$10, BM$4) -> -120119.4027 | BN16: =SUMIFS(Calculations!$I359:$QJ359, Calculations!$I$8:$QJ$8, BN$3, Calculations!$I$10:$QJ$10, BN$4) -> -89408.18837 | BO16: =SUMIFS(Calculations!$I359:$QJ359, Calculations!$I$8:$QJ$8, BO$3, Calculations!$I$10:$QJ$10, BO$4) -> -89408.18837 | BP16: =SUMIFS(Calculations!$I359:$QJ359, Calculations!$I$8:$QJ$8, BP$3, Calculations!$I$10:$QJ$10, BP$4) -> -89408.18837 | BQ16: =SUMIFS(Calculations!$I359:$QJ359, Calculations!$I$8:$QJ$8, BQ$3, Calculations!$I$10:$QJ$10, BQ$4) -> -89408.18837 | BR16: =SUMIFS(Calculations!$I359:$QJ359, Calculations!$I$8:$QJ$8, BR$3, Calculations!$I$10:$QJ$10, BR$4) -> -89408.18837 | BS16: =SUMIFS(Calculations!$I359:$QJ359, Calculations!$I$8:$QJ$8, BS$3, Calculations!$I$10:$QJ$10, BS$4) -> -89408.18837 | BT16: =SUMIFS(Calculations!$I359:$QJ359, Calculations!$I$8:$QJ$8, BT$3, Calculations!$I$10:$QJ$10, BT$4) -> -89408.18837 | BU16: =SUMIFS(Calculations!$I359:$QJ359, Calculations!$I$8:$QJ$8, BU$3, Calculations!$I$10:$QJ$10, BU$4) -> -89408.18837 | BV16: =SUMIFS(Calculations!$I359:$QJ359, Calculations!$I$8:$QJ$8, BV$3, Calculations!$I$10:$QJ$10, BV$4) -> -89408.18837 | BW16: =SUMIFS(Calculations!$I359:$QJ359, Calculations!$I$8:$QJ$8, BW$3, Calculations!$I$10:$QJ$10, BW$4) -> -89408.18837 | BX16: =SUMIFS(Calculations!$I359:$QJ359, Calculations!$I$8:$QJ$8, BX$3, Calculations!$I$10:$QJ$10, BX$4) -> -89408.18837 | BY16: =SUMIFS(Calculations!$I359:$QJ359, Calculations!$I$8:$QJ$8, BY$3, Calculations!$I$10:$QJ$10, BY$4) -> -89408.18837 | BZ16: =SUMIFS(Calculations!$I359:$QJ359, Calculations!$I$8:$QJ$8, BZ$3, Calculations!$I$10:$QJ$10, BZ$4) -> -89408.18837 | CA16: =SUMIFS(Calculations!$I359:$QJ359, Calculations!$I$8:$QJ$8, CA$3, Calculations!$I$10:$QJ$10, CA$4) -> -89408.18837 | CB16: =SUMIFS(Calculations!$I359:$QJ359, Calculations!$I$8:$QJ$8, CB$3, Calculations!$I$10:$QJ$10, CB$4) -> -89408.18837 | CC16: =SUMIFS(Calculations!$I359:$QJ359, Calculations!$I$8:$QJ$8, CC$3, Calculations!$I$10:$QJ$10, CC$4) -> -89408.18837 | CD16: =SUMIFS(Calculations!$I359:$QJ359, Calculations!$I$8:$QJ$8, CD$3, Calculations!$I$10:$QJ$10, CD$4) -> -89408.18837 | CE16: =SUMIFS(Calculations!$I359:$QJ359, Calculations!$I$8:$QJ$8, CE$3, Calculations!$I$10:$QJ$10, CE$4) -> -89408.18837 | CF16: =SUMIFS(Calculations!$I359:$QJ359, Calculations!$I$8:$QJ$8, CF$3, Calculations!$I$10:$QJ$10, CF$4) -> -89408.18837 | CG16: =SUMIFS(Calculations!$I359:$QJ359, Calculations!$I$8:$QJ$8, CG$3, Calculations!$I$10:$QJ$10, CG$4) -> -89408.18837 | CH16: =SUMIFS(Calculations!$I359:$QJ359, Calculations!$I$8:$QJ$8, CH$3, Calculations!$I$10:$QJ$10, CH$4) -> -89453.74757 | CI16: =SUMIFS(Calculations!$I359:$QJ359, Calculations!$I$8:$QJ$8, CI$3, Calculations!$I$10:$QJ$10, CI$4) -> -89453.74757 | CJ16: =SUMIFS(Calculations!$I359:$QJ359, Calculations!$I$8:$QJ$8, CJ$3, Calculations!$I$10:$QJ$10, CJ$4) -> -89453.74757 | CK16: =SUMIFS(Calculations!$I359:$QJ359, Calculations!$I$8:$QJ$8, CK$3, Calculations!$I$10:$QJ$10, CK$4) -> -89453.74757 | CL16: =SUMIFS(Calculations!$I359:$QJ359, Calculations!$I$8:$QJ$8, CL$3, Calculations!$I$10:$QJ$10, CL$4) -> -89453.74757 | CM16: =SUMIFS(Calculations!$I359:$QJ359, Calculations!$I$8:$QJ$8, CM$3, Calculations!$I$10:$QJ$10, CM$4) -> -89453.74757 | CN16: =SUMIFS(Calculations!$I359:$QJ359, Calculations!$I$8:$QJ$8, CN$3, Calculations!$I$10:$QJ$10, CN$4) -> -89453.74757 | CO16: =SUMIFS(Calculations!$I359:$QJ359, Calculations!$I$8:$QJ$8, CO$3, Calculations!$I$10:$QJ$10, CO$4) -> -89453.74757 | CP16: =SUMIFS(Calculations!$I359:$QJ359, Calculations!$I$8:$QJ$8, CP$3, Calculations!$I$10:$QJ$10, CP$4) -> -89453.74757 | CQ16: =SUMIFS(Calculations!$I359:$QJ359, Calculations!$I$8:$QJ$8, CQ$3, Calculations!$I$10:$QJ$10, CQ$4) -> -89453.74757 | CR16: =SUMIFS(Calculations!$I359:$QJ359, Calculations!$I$8:$QJ$8, CR$3, Calculations!$I$10:$QJ$10, CR$4) -> -89453.74757 | CS16: =SUMIFS(Calculations!$I359:$QJ359, Calculations!$I$8:$QJ$8, CS$3, Calculations!$I$10:$QJ$10, CS$4) -> -89453.74757 | CT16: =SUMIFS(Calculations!$I359:$QJ359, Calculations!$I$8:$QJ$8, CT$3, Calculations!$I$10:$QJ$10, CT$4) -> -89453.74757 | CU16: =SUMIFS(Calculations!$I359:$QJ359, Calculations!$I$8:$QJ$8, CU$3, Calculations!$I$10:$QJ$10, CU$4) -> -89453.74757 | CV16: =SUMIFS(Calculations!$I359:$QJ359, Calculations!$I$8:$QJ$8, CV$3, Calculations!$I$10:$QJ$10, CV$4) -> -89453.74757 | CW16: =SUMIFS(Calculations!$I359:$QJ359, Calculations!$I$8:$QJ$8, CW$3, Calculations!$I$10:$QJ$10, CW$4) -> -89453.74757 | CX16: =SUMIFS(Calculations!$I359:$QJ359, Calculations!$I$8:$QJ$8, CX$3, Calculations!$I$10:$QJ$10, CX$4) -> -89453.74757 | CY16: =SUMIFS(Calculations!$I359:$QJ359, Calculations!$I$8:$QJ$8, CY$3, Calculations!$I$10:$QJ$10, CY$4) -> -89453.74757 | CZ16: =SUMIFS(Calculations!$I359:$QJ359, Calculations!$I$8:$QJ$8, CZ$3, Calculations!$I$10:$QJ$10, CZ$4) -> -89453.74757 | DA16: =SUMIFS(Calculations!$I359:$QJ359, Calculations!$I$8:$QJ$8, DA$3, Calculations!$I$10:$QJ$10, DA$4) -> -89453.74757 | DB16: =SUMIFS(Calculations!$I359:$QJ359, Calculations!$I$8:$QJ$8, DB$3, Calculations!$I$10:$QJ$10, DB$4) -> -89453.74757 | DC16: =SUMIFS(Calculations!$I359:$QJ359, Calculations!$I$8:$QJ$8, DC$3, Calculations!$I$10:$QJ$10, DC$4) -> -89453.74757 | DD16: =SUMIFS(Calculations!$I359:$QJ359, Calculations!$I$8:$QJ$8, DD$3, Calculations!$I$10:$QJ$10, DD$4) -> -89453.74757 | DE16: =SUMIFS(Calculations!$I359:$QJ359, Calculations!$I$8:$QJ$8, DE$3, Calculations!$I$10:$QJ$10, DE$4) -> -89453.74757 | DF16: =SUMIFS(Calculations!$I359:$QJ359, Calculations!$I$8:$QJ$8, DF$3, Calculations!$I$10:$QJ$10, DF$4) -> -89453.74757 | DG16: =SUMIFS(Calculations!$I359:$QJ359, Calculations!$I$8:$QJ$8, DG$3, Calculations!$I$10:$QJ$10, DG$4) -> -89453.74757 | DH16: =SUMIFS(Calculations!$I359:$QJ359, Calculations!$I$8:$QJ$8, DH$3, Calculations!$I$10:$QJ$10, DH$4) -> -89453.74757 | DI16: =SUMIFS(Calculations!$I359:$QJ359, Calculations!$I$8:$QJ$8, DI$3, Calculations!$I$10:$QJ$10, DI$4) -> -89453.74757 | DJ16: =SUMIFS(Calculations!$I359:$QJ359, Calculations!$I$8:$QJ$8, DJ$3, Calculations!$I$10:$QJ$10, DJ$4) -> -89453.74757 | DK16: =SUMIFS(Calculations!$I359:$QJ359, Calculations!$I$8:$QJ$8, DK$3, Calculations!$I$10:$QJ$10, DK$4) -> -89453.74757
C17: =Calculations!C360 -> EBIT | E17: =Calculations!E360 -> EUR | G17: =SUM(H17:FA17) -> 19287125.54 | H17: =H14+H16 -> 0 | I17: 0 | J17: 0 | K17: 0 | L17: 0 | M17: 0 | N17: 0 | O17: 0 | P17: 335308.4339 | Q17: -64336.57207 | R17: -1088.785445 | S17: 204900.4124 | T17: 327778.9531 | U17: -65668.55822 | V17: -12839.5594 | W17: 198072.5455 | X17: 319661.8574 | Y17: -70522.5482 | Z17: -18081.31786 | AA17: 195123.0011 | AB17: 311457.9033 | AC17: -75616.11347 | AD17: -24126.6015 | AE17: 191112.9481 | AF17: 302283.8178 | AG17: -81073.08461 | AH17: -29076.80871 | AI17: 187488.0115 | AJ17: 301554.8519 | AK17: -78204.37622 | AL17: -26524.78676 | AM17: 191564.5441 | AN17: 292858.8 | AO17: -83533.06973 | AP17: -31972.89512 | AQ17: 187661.9594 | AR17: 422214.4686 | AS17: 49409.28057 | AT17: 100398.1134 | AU17: 322057.4592 | AV17: 413209.5817 | AW17: 44115.63125 | AX17: 95395.06027 | AY17: 318022.7225 | AZ17: 404257.5212 | BA17: 38837.86335 | BB17: 89918.42787 | BC17: 313997.0389 | BD17: 462952.9946 | BE17: 101171.052 | BF17: 151838.0747 | BG17: 377389.5238 | BH17: 454102.146 | BI17: 95921.70577 | BJ17: 145702.0536 | BK17: 373336.9509 | BL17: 445299.6649 | BM17: 90684.87437 | BN17: 171152.8529 | BO17: 400035.8531 | BP17: 467255.2603 | BQ17: 116170.6238 | BR17: 165441.727 | BS17: =BS14+BS16 -> 396062.9252 | BT17: 458544.9882 | BU17: 110955.3634 | BV17: 159745.6193 | BW17: 392128.494 | BX17: 449878.5365 | BY17: 105749.1309 | BZ17: 153596.1416 | CA17: 388231.6612 | CB17: 441254.3674 | CC17: 100550.7349 | CD17: 148393.5476 | CE17: 384371.5167 | CF17: 432670.9312 | CG17: 95358.96856 | CH17: 142689.5322 | CI17: 378642.4957 | CJ17: 424081.1066 | CK17: 90127.0501 | CL17: 137041.1089 | CM17: 370914.2304 | CN17: 415574.4368 | CO17: 84944.85873 | CP17: 130934.1956 | CQ17: 363218.6716 | CR17: 407175.4793 | CS17: 79837.10515 | CT17: 125839.0007 | CU17: 355624.7138 | CV17: 398817.3856 | CW17: 74737.43378 | CX17: 120288.984 | CY17: 348066.788 | CZ17: 390490.5139 | DA17: 69636.54912 | DB17: =DB14+DB16 -> 114742.2368 | DC17: 340535.4859 | DD17: 382193.2539 | DE17: 64533.1638 | DF17: 108733.5165 | DG17: 333029.2836 | DH17: 373923.9791 | DI17: 59425.97081 | DJ17: =DJ14+DJ16 -> 103653.2041 | DK17: -1234270.613
C19: =Calculations!C362 -> less: Senior Debt Interest Expense | E19: =Calculations!E362 -> EUR | G19: =SUM(H19:FA19) -> -5328890.413 | H19: =SUMIFS(Calculations!$I362:$QJ362, Calculations!$I$8:$QJ$8, H$3, Calculations!$I$10:$QJ$10, H$4) -> 0 | I19: =SUMIFS(Calculations!$I362:$QJ362, Calculations!$I$8:$QJ$8, I$3, Calculations!$I$10:$QJ$10, I$4) -> 0 | J19: =SUMIFS(Calculations!$I362:$QJ362, Calculations!$I$8:$QJ$8, J$3, Calculations!$I$10:$QJ$10, J$4) -> 0 | K19: =SUMIFS(Calculations!$I362:$QJ362, Calculations!$I$8:$QJ$8, K$3, Calculations!$I$10:$QJ$10, K$4) -> 0 | L19: =SUMIFS(Calculations!$I362:$QJ362, Calculations!$I$8:$QJ$8, L$3, Calculations!$I$10:$QJ$10, L$4) -> 0 | M19: =SUMIFS(Calculations!$I362:$QJ362, Calculations!$I$8:$QJ$8, M$3, Calculations!$I$10:$QJ$10, M$4) -> 0 | N19: =SUMIFS(Calculations!$I362:$QJ362, Calculations!$I$8:$QJ$8, N$3, Calculations!$I$10:$QJ$10, N$4) -> 0 | O19: =SUMIFS(Calculations!$I362:$QJ362, Calculations!$I$8:$QJ$8, O$3, Calculations!$I$10:$QJ$10, O$4) -> 0 | P19: =SUMIFS(Calculations!$I362:$QJ362, Calculations!$I$8:$QJ$8, P$3, Calculations!$I$10:$QJ$10, P$4) -> -126804.4151 | Q19: =SUMIFS(Calculations!$I362:$QJ362, Calculations!$I$8:$QJ$8, Q$3, Calculations!$I$10:$QJ$10, Q$4) -> -126671.9518 | R19: =SUMIFS(Calculations!$I362:$QJ362, Calculations!$I$8:$QJ$8, R$3, Calculations!$I$10:$QJ$10, R$4) -> -125589.1637 | S19: =SUMIFS(Calculations!$I362:$QJ362, Calculations!$I$8:$QJ$8, S$3, Calculations!$I$10:$QJ$10, S$4) -> -124491.419 | T19: =SUMIFS(Calculations!$I362:$QJ362, Calculations!$I$8:$QJ$8, T$3, Calculations!$I$10:$QJ$10, T$4) -> -123378.5109 | U19: =SUMIFS(Calculations!$I362:$QJ362, Calculations!$I$8:$QJ$8, U$3, Calculations!$I$10:$QJ$10, U$4) -> -122250.2302 | V19: =SUMIFS(Calculations!$I362:$QJ362, Calculations!$I$8:$QJ$8, V$3, Calculations!$I$10:$QJ$10, V$4) -> -121106.3643 | W19: =SUMIFS(Calculations!$I362:$QJ362, Calculations!$I$8:$QJ$8, W$3, Calculations!$I$10:$QJ$10, W$4) -> -119946.6982 | X19: =SUMIFS(Calculations!$I362:$QJ362, Calculations!$I$8:$QJ$8, X$3, Calculations!$I$10:$QJ$10, X$4) -> -118771.0134 | Y19: =SUMIFS(Calculations!$I362:$QJ362, Calculations!$I$8:$QJ$8, Y$3, Calculations!$I$10:$QJ$10, Y$4) -> -117579.0887 | Z19: =SUMIFS(Calculations!$I362:$QJ362, Calculations!$I$8:$QJ$8, Z$3, Calculations!$I$10:$QJ$10, Z$4) -> -116370.6998 | AA19: =SUMIFS(Calculations!$I362:$QJ362, Calculations!$I$8:$QJ$8, AA$3, Calculations!$I$10:$QJ$10, AA$4) -> -115145.6193 | AB19: =SUMIFS(Calculations!$I362:$QJ362, Calculations!$I$8:$QJ$8, AB$3, Calculations!$I$10:$QJ$10, AB$4) -> -113903.6167 | AC19: =SUMIFS(Calculations!$I362:$QJ362, Calculations!$I$8:$QJ$8, AC$3, Calculations!$I$10:$QJ$10, AC$4) -> -112644.4581 | AD19: =SUMIFS(Calculations!$I362:$QJ362, Calculations!$I$8:$QJ$8, AD$3, Calculations!$I$10:$QJ$10, AD$4) -> -111367.9066 | AE19: =SUMIFS(Calculations!$I362:$QJ362, Calculations!$I$8:$QJ$8, AE$3, Calculations!$I$10:$QJ$10, AE$4) -> -110073.722 | AF19: =SUMIFS(Calculations!$I362:$QJ362, Calculations!$I$8:$QJ$8, AF$3, Calculations!$I$10:$QJ$10, AF$4) -> -108761.6606 | AG19: =SUMIFS(Calculations!$I362:$QJ362, Calculations!$I$8:$QJ$8, AG$3, Calculations!$I$10:$QJ$10, AG$4) -> -107431.4756 | AH19: =SUMIFS(Calculations!$I362:$QJ362, Calculations!$I$8:$QJ$8, AH$3, Calculations!$I$10:$QJ$10, AH$4) -> -106082.9165 | AI19: =SUMIFS(Calculations!$I362:$QJ362, Calculations!$I$8:$QJ$8, AI$3, Calculations!$I$10:$QJ$10, AI$4) -> -104715.7297 | AJ19: =SUMIFS(Calculations!$I362:$QJ362, Calculations!$I$8:$QJ$8, AJ$3, Calculations!$I$10:$QJ$10, AJ$4) -> -103329.6577 | AK19: =SUMIFS(Calculations!$I362:$QJ362, Calculations!$I$8:$QJ$8, AK$3, Calculations!$I$10:$QJ$10, AK$4) -> -101924.4398 | AL19: =SUMIFS(Calculations!$I362:$QJ362, Calculations!$I$8:$QJ$8, AL$3, Calculations!$I$10:$QJ$10, AL$4) -> -100499.8115 | AM19: =SUMIFS(Calculations!$I362:$QJ362, Calculations!$I$8:$QJ$8, AM$3, Calculations!$I$10:$QJ$10, AM$4) -> -99055.50454 | AN19: =SUMIFS(Calculations!$I362:$QJ362, Calculations!$I$8:$QJ$8, AN$3, Calculations!$I$10:$QJ$10, AN$4) -> -97591.24724 | AO19: =SUMIFS(Calculations!$I362:$QJ362, Calculations!$I$8:$QJ$8, AO$3, Calculations!$I$10:$QJ$10, AO$4) -> -96106.76399 | AP19: =SUMIFS(Calculations!$I362:$QJ362, Calculations!$I$8:$QJ$8, AP$3, Calculations!$I$10:$QJ$10, AP$4) -> -94601.77539 | AQ19: =SUMIFS(Calculations!$I362:$QJ362, Calculations!$I$8:$QJ$8, AQ$3, Calculations!$I$10:$QJ$10, AQ$4) -> -93075.99821 | AR19: =SUMIFS(Calculations!$I362:$QJ362, Calculations!$I$8:$QJ$8, AR$3, Calculations!$I$10:$QJ$10, AR$4) -> -91529.14528 | AS19: =SUMIFS(Calculations!$I362:$QJ362, Calculations!$I$8:$QJ$8, AS$3, Calculations!$I$10:$QJ$10, AS$4) -> -89960.9255 | AT19: =SUMIFS(Calculations!$I362:$QJ362, Calculations!$I$8:$QJ$8, AT$3, Calculations!$I$10:$QJ$10, AT$4) -> -88371.04372 | AU19: =SUMIFS(Calculations!$I362:$QJ362, Calculations!$I$8:$QJ$8, AU$3, Calculations!$I$10:$QJ$10, AU$4) -> -86759.20071 | AV19: =SUMIFS(Calculations!$I362:$QJ362, Calculations!$I$8:$QJ$8, AV$3, Calculations!$I$10:$QJ$10, AV$4) -> -85125.09312 | AW19: =SUMIFS(Calculations!$I362:$QJ362, Calculations!$I$8:$QJ$8, AW$3, Calculations!$I$10:$QJ$10, AW$4) -> -83468.41342 | AX19: =SUMIFS(Calculations!$I362:$QJ362, Calculations!$I$8:$QJ$8, AX$3, Calculations!$I$10:$QJ$10, AX$4) -> -81788.84981 | AY19: =SUMIFS(Calculations!$I362:$QJ362, Calculations!$I$8:$QJ$8, AY$3, Calculations!$I$10:$QJ$10, AY$4) -> -80086.08618 | AZ19: =SUMIFS(Calculations!$I362:$QJ362, Calculations!$I$8:$QJ$8, AZ$3, Calculations!$I$10:$QJ$10, AZ$4) -> -78359.80208 | BA19: =SUMIFS(Calculations!$I362:$QJ362, Calculations!$I$8:$QJ$8, BA$3, Calculations!$I$10:$QJ$10, BA$4) -> -76609.67262 | BB19: =SUMIFS(Calculations!$I362:$QJ362, Calculations!$I$8:$QJ$8, BB$3, Calculations!$I$10:$QJ$10, BB$4) -> -74835.36842 | BC19: =SUMIFS(Calculations!$I362:$QJ362, Calculations!$I$8:$QJ$8, BC$3, Calculations!$I$10:$QJ$10, BC$4) -> -73036.55554 | BD19: =SUMIFS(Calculations!$I362:$QJ362, Calculations!$I$8:$QJ$8, BD$3, Calculations!$I$10:$QJ$10, BD$4) -> -71212.89545 | BE19: =SUMIFS(Calculations!$I362:$QJ362, Calculations!$I$8:$QJ$8, BE$3, Calculations!$I$10:$QJ$10, BE$4) -> -69364.04493 | BF19: =SUMIFS(Calculations!$I362:$QJ362, Calculations!$I$8:$QJ$8, BF$3, Calculations!$I$10:$QJ$10, BF$4) -> -67489.65602 | BG19: =SUMIFS(Calculations!$I362:$QJ362, Calculations!$I$8:$QJ$8, BG$3, Calculations!$I$10:$QJ$10, BG$4) -> -65589.37596 | BH19: =SUMIFS(Calculations!$I362:$QJ362, Calculations!$I$8:$QJ$8, BH$3, Calculations!$I$10:$QJ$10, BH$4) -> -63662.84711 | BI19: =SUMIFS(Calculations!$I362:$QJ362, Calculations!$I$8:$QJ$8, BI$3, Calculations!$I$10:$QJ$10, BI$4) -> -61709.70689 | BJ19: =SUMIFS(Calculations!$I362:$QJ362, Calculations!$I$8:$QJ$8, BJ$3, Calculations!$I$10:$QJ$10, BJ$4) -> -59729.58771 | BK19: =SUMIFS(Calculations!$I362:$QJ362, Calculations!$I$8:$QJ$8, BK$3, Calculations!$I$10:$QJ$10, BK$4) -> -57722.11691 | BL19: =SUMIFS(Calculations!$I362:$QJ362, Calculations!$I$8:$QJ$8, BL$3, Calculations!$I$10:$QJ$10, BL$4) -> -55686.91669 | BM19: =SUMIFS(Calculations!$I362:$QJ362, Calculations!$I$8:$QJ$8, BM$3, Calculations!$I$10:$QJ$10, BM$4) -> -53623.60401 | BN19: =SUMIFS(Calculations!$I362:$QJ362, Calculations!$I$8:$QJ$8, BN$3, Calculations!$I$10:$QJ$10, BN$4) -> -51531.79054 | BO19: =SUMIFS(Calculations!$I362:$QJ362, Calculations!$I$8:$QJ$8, BO$3, Calculations!$I$10:$QJ$10, BO$4) -> -49411.08262 | BP19: =SUMIFS(Calculations!$I362:$QJ362, Calculations!$I$8:$QJ$8, BP$3, Calculations!$I$10:$QJ$10, BP$4) -> -47261.0811 | BQ19: =SUMIFS(Calculations!$I362:$QJ362, Calculations!$I$8:$QJ$8, BQ$3, Calculations!$I$10:$QJ$10, BQ$4) -> -45081.38137 | BR19: =SUMIFS(Calculations!$I362:$QJ362, Calculations!$I$8:$QJ$8, BR$3, Calculations!$I$10:$QJ$10, BR$4) -> -42871.57318 | BS19: =SUMIFS(Calculations!$I362:$QJ362, Calculations!$I$8:$QJ$8, BS$3, Calculations!$I$10:$QJ$10, BS$4) -> -40631.24066 | BT19: =SUMIFS(Calculations!$I362:$QJ362, Calculations!$I$8:$QJ$8, BT$3, Calculations!$I$10:$QJ$10, BT$4) -> -38359.96216 | BU19: =SUMIFS(Calculations!$I362:$QJ362, Calculations!$I$8:$QJ$8, BU$3, Calculations!$I$10:$QJ$10, BU$4) -> -36057.31022 | BV19: =SUMIFS(Calculations!$I362:$QJ362, Calculations!$I$8:$QJ$8, BV$3, Calculations!$I$10:$QJ$10, BV$4) -> -33722.85149 | BW19: =SUMIFS(Calculations!$I362:$QJ362, Calculations!$I$8:$QJ$8, BW$3, Calculations!$I$10:$QJ$10, BW$4) -> -31356.1466 | BX19: =SUMIFS(Calculations!$I362:$QJ362, Calculations!$I$8:$QJ$8, BX$3, Calculations!$I$10:$QJ$10, BX$4) -> -28956.75014 | BY19: =SUMIFS(Calculations!$I362:$QJ362, Calculations!$I$8:$QJ$8, BY$3, Calculations!$I$10:$QJ$10, BY$4) -> -26524.21054 | BZ19: =SUMIFS(Calculations!$I362:$QJ362, Calculations!$I$8:$QJ$8, BZ$3, Calculations!$I$10:$QJ$10, BZ$4) -> -24058.06998 | CA19: =SUMIFS(Calculations!$I362:$QJ362, Calculations!$I$8:$QJ$8, CA$3, Calculations!$I$10:$QJ$10, CA$4) -> -21557.86433 | CB19: =SUMIFS(Calculations!$I362:$QJ362, Calculations!$I$8:$QJ$8, CB$3, Calculations!$I$10:$QJ$10, CB$4) -> -19023.12305 | CC19: =SUMIFS(Calculations!$I362:$QJ362, Calculations!$I$8:$QJ$8, CC$3, Calculations!$I$10:$QJ$10, CC$4) -> -16453.36909 | CD19: =SUMIFS(Calculations!$I362:$QJ362, Calculations!$I$8:$QJ$8, CD$3, Calculations!$I$10:$QJ$10, CD$4) -> -13848.11882 | CE19: =SUMIFS(Calculations!$I362:$QJ362, Calculations!$I$8:$QJ$8, CE$3, Calculations!$I$10:$QJ$10, CE$4) -> -11206.88193 | CF19: =SUMIFS(Calculations!$I362:$QJ362, Calculations!$I$8:$QJ$8, CF$3, Calculations!$I$10:$QJ$10, CF$4) -> -8529.161313 | CG19: =SUMIFS(Calculations!$I362:$QJ362, Calculations!$I$8:$QJ$8, CG$3, Calculations!$I$10:$QJ$10, CG$4) -> -5814.453032 | CH19: =SUMIFS(Calculations!$I362:$QJ362, Calculations!$I$8:$QJ$8, CH$3, Calculations!$I$10:$QJ$10, CH$4) -> -1641.224132 | CI19: =SUMIFS(Calculations!$I362:$QJ362, Calculations!$I$8:$QJ$8, CI$3, Calculations!$I$10:$QJ$10, CI$4) -> 0 | CJ19: =SUMIFS(Calculations!$I362:$QJ362, Calculations!$I$8:$QJ$8, CJ$3, Calculations!$I$10:$QJ$10, CJ$4) -> 0 | CK19: =SUMIFS(Calculations!$I362:$QJ362, Calculations!$I$8:$QJ$8, CK$3, Calculations!$I$10:$QJ$10, CK$4) -> 0 | CL19: =SUMIFS(Calculations!$I362:$QJ362, Calculations!$I$8:$QJ$8, CL$3, Calculations!$I$10:$QJ$10, CL$4) -> 0 | CM19: =SUMIFS(Calculations!$I362:$QJ362, Calculations!$I$8:$QJ$8, CM$3, Calculations!$I$10:$QJ$10, CM$4) -> 0 | CN19: =SUMIFS(Calculations!$I362:$QJ362, Calculations!$I$8:$QJ$8, CN$3, Calculations!$I$10:$QJ$10, CN$4) -> 0 | CO19: =SUMIFS(Calculations!$I362:$QJ362, Calculations!$I$8:$QJ$8, CO$3, Calculations!$I$10:$QJ$10, CO$4) -> 0 | CP19: =SUMIFS(Calculations!$I362:$QJ362, Calculations!$I$8:$QJ$8, CP$3, Calculations!$I$10:$QJ$10, CP$4) -> 0 | CQ19: =SUMIFS(Calculations!$I362:$QJ362, Calculations!$I$8:$QJ$8, CQ$3, Calculations!$I$10:$QJ$10, CQ$4) -> 0 | CR19: =SUMIFS(Calculations!$I362:$QJ362, Calculations!$I$8:$QJ$8, CR$3, Calculations!$I$10:$QJ$10, CR$4) -> 0 | CS19: =SUMIFS(Calculations!$I362:$QJ362, Calculations!$I$8:$QJ$8, CS$3, Calculations!$I$10:$QJ$10, CS$4) -> 0 | CT19: =SUMIFS(Calculations!$I362:$QJ362, Calculations!$I$8:$QJ$8, CT$3, Calculations!$I$10:$QJ$10, CT$4) -> 0 | CU19: =SUMIFS(Calculations!$I362:$QJ362, Calculations!$I$8:$QJ$8, CU$3, Calculations!$I$10:$QJ$10, CU$4) -> 0 | CV19: =SUMIFS(Calculations!$I362:$QJ362, Calculations!$I$8:$QJ$8, CV$3, Calculations!$I$10:$QJ$10, CV$4) -> 0 | CW19: =SUMIFS(Calculations!$I362:$QJ362, Calculations!$I$8:$QJ$8, CW$3, Calculations!$I$10:$QJ$10, CW$4) -> 0 | CX19: =SUMIFS(Calculations!$I362:$QJ362, Calculations!$I$8:$QJ$8, CX$3, Calculations!$I$10:$QJ$10, CX$4) -> 0 | CY19: =SUMIFS(Calculations!$I362:$QJ362, Calculations!$I$8:$QJ$8, CY$3, Calculations!$I$10:$QJ$10, CY$4) -> 0 | CZ19: =SUMIFS(Calculations!$I362:$QJ362, Calculations!$I$8:$QJ$8, CZ$3, Calculations!$I$10:$QJ$10, CZ$4) -> 0 | DA19: =SUMIFS(Calculations!$I362:$QJ362, Calculations!$I$8:$QJ$8, DA$3, Calculations!$I$10:$QJ$10, DA$4) -> 0 | DB19: =SUMIFS(Calculations!$I362:$QJ362, Calculations!$I$8:$QJ$8, DB$3, Calculations!$I$10:$QJ$10, DB$4) -> 0 | DC19: =SUMIFS(Calculations!$I362:$QJ362, Calculations!$I$8:$QJ$8, DC$3, Calculations!$I$10:$QJ$10, DC$4) -> 0 | DD19: =SUMIFS(Calculations!$I362:$QJ362, Calculations!$I$8:$QJ$8, DD$3, Calculations!$I$10:$QJ$10, DD$4) -> 0 | DE19: =SUMIFS(Calculations!$I362:$QJ362, Calculations!$I$8:$QJ$8, DE$3, Calculations!$I$10:$QJ$10, DE$4) -> 0 | DF19: =SUMIFS(Calculations!$I362:$QJ362, Calculations!$I$8:$QJ$8, DF$3, Calculations!$I$10:$QJ$10, DF$4) -> 0 | DG19: =SUMIFS(Calculations!$I362:$QJ362, Calculations!$I$8:$QJ$8, DG$3, Calculations!$I$10:$QJ$10, DG$4) -> 0 | DH19: =SUMIFS(Calculations!$I362:$QJ362, Calculations!$I$8:$QJ$8, DH$3, Calculations!$I$10:$QJ$10, DH$4) -> 0 | DI19: =SUMIFS(Calculations!$I362:$QJ362, Calculations!$I$8:$QJ$8, DI$3, Calculations!$I$10:$QJ$10, DI$4) -> 0 | DJ19: =SUMIFS(Calculations!$I362:$QJ362, Calculations!$I$8:$QJ$8, DJ$3, Calculations!$I$10:$QJ$10, DJ$4) -> 0 | DK19: =SUMIFS(Calculations!$I362:$QJ362, Calculations!$I$8:$QJ$8, DK$3, Calculations!$I$10:$QJ$10, DK$4) -> 0
C20: =Calculations!C363 -> less: Subordinated Debt Interest Expense | E20: =Calculations!E363 -> EUR | G20: =SUM(H20:FA20) -> -5760063.513 | H20: =SUMIFS(Calculations!$I363:$QJ363, Calculations!$I$8:$QJ$8, H$3, Calculations!$I$10:$QJ$10, H$4) -> 0 | I20: =SUMIFS(Calculations!$I363:$QJ363, Calculations!$I$8:$QJ$8, I$3, Calculations!$I$10:$QJ$10, I$4) -> 0 | J20: =SUMIFS(Calculations!$I363:$QJ363, Calculations!$I$8:$QJ$8, J$3, Calculations!$I$10:$QJ$10, J$4) -> 0 | K20: =SUMIFS(Calculations!$I363:$QJ363, Calculations!$I$8:$QJ$8, K$3, Calculations!$I$10:$QJ$10, K$4) -> 0 | L20: =SUMIFS(Calculations!$I363:$QJ363, Calculations!$I$8:$QJ$8, L$3, Calculations!$I$10:$QJ$10, L$4) -> 0 | M20: =SUMIFS(Calculations!$I363:$QJ363, Calculations!$I$8:$QJ$8, M$3, Calculations!$I$10:$QJ$10, M$4) -> 0 | N20: =SUMIFS(Calculations!$I363:$QJ363, Calculations!$I$8:$QJ$8, N$3, Calculations!$I$10:$QJ$10, N$4) -> 0 | O20: =SUMIFS(Calculations!$I363:$QJ363, Calculations!$I$8:$QJ$8, O$3, Calculations!$I$10:$QJ$10, O$4) -> 0 | P20: =SUMIFS(Calculations!$I363:$QJ363, Calculations!$I$8:$QJ$8, P$3, Calculations!$I$10:$QJ$10, P$4) -> -139081.59 | Q20: =SUMIFS(Calculations!$I363:$QJ363, Calculations!$I$8:$QJ$8, Q$3, Calculations!$I$10:$QJ$10, Q$4) -> -139186.9045 | R20: =SUMIFS(Calculations!$I363:$QJ363, Calculations!$I$8:$QJ$8, R$3, Calculations!$I$10:$QJ$10, R$4) -> -138151.1772 | S20: =SUMIFS(Calculations!$I363:$QJ363, Calculations!$I$8:$QJ$8, S$3, Calculations!$I$10:$QJ$10, S$4) -> -137561.7037 | T20: =SUMIFS(Calculations!$I363:$QJ363, Calculations!$I$8:$QJ$8, T$3, Calculations!$I$10:$QJ$10, T$4) -> -136954.3684 | U20: =SUMIFS(Calculations!$I363:$QJ363, Calculations!$I$8:$QJ$8, U$3, Calculations!$I$10:$QJ$10, U$4) -> -136328.6303 | V20: =SUMIFS(Calculations!$I363:$QJ363, Calculations!$I$8:$QJ$8, V$3, Calculations!$I$10:$QJ$10, V$4) -> -135683.9318 | W20: =SUMIFS(Calculations!$I363:$QJ363, Calculations!$I$8:$QJ$8, W$3, Calculations!$I$10:$QJ$10, W$4) -> -135019.6982 | X20: =SUMIFS(Calculations!$I363:$QJ363, Calculations!$I$8:$QJ$8, X$3, Calculations!$I$10:$QJ$10, X$4) -> -134335.3376 | Y20: =SUMIFS(Calculations!$I363:$QJ363, Calculations!$I$8:$QJ$8, Y$3, Calculations!$I$10:$QJ$10, Y$4) -> -133630.2403 | Z20: =SUMIFS(Calculations!$I363:$QJ363, Calculations!$I$8:$QJ$8, Z$3, Calculations!$I$10:$QJ$10, Z$4) -> -132903.7778 | AA20: =SUMIFS(Calculations!$I363:$QJ363, Calculations!$I$8:$QJ$8, AA$3, Calculations!$I$10:$QJ$10, AA$4) -> -132155.3027 | AB20: =SUMIFS(Calculations!$I363:$QJ363, Calculations!$I$8:$QJ$8, AB$3, Calculations!$I$10:$QJ$10, AB$4) -> -131384.1481 | AC20: =SUMIFS(Calculations!$I363:$QJ363, Calculations!$I$8:$QJ$8, AC$3, Calculations!$I$10:$QJ$10, AC$4) -> -130589.6268 | AD20: =SUMIFS(Calculations!$I363:$QJ363, Calculations!$I$8:$QJ$8, AD$3, Calculations!$I$10:$QJ$10, AD$4) -> -129771.0307 | AE20: =SUMIFS(Calculations!$I363:$QJ363, Calculations!$I$8:$QJ$8, AE$3, Calculations!$I$10:$QJ$10, AE$4) -> -128927.6303 | AF20: =SUMIFS(Calculations!$I363:$QJ363, Calculations!$I$8:$QJ$8, AF$3, Calculations!$I$10:$QJ$10, AF$4) -> -128058.674 | AG20: =SUMIFS(Calculations!$I363:$QJ363, Calculations!$I$8:$QJ$8, AG$3, Calculations!$I$10:$QJ$10, AG$4) -> -127163.3875 | AH20: =SUMIFS(Calculations!$I363:$QJ363, Calculations!$I$8:$QJ$8, AH$3, Calculations!$I$10:$QJ$10, AH$4) -> -126240.9728 | AI20: =SUMIFS(Calculations!$I363:$QJ363, Calculations!$I$8:$QJ$8, AI$3, Calculations!$I$10:$QJ$10, AI$4) -> -125290.6082 | AJ20: =SUMIFS(Calculations!$I363:$QJ363, Calculations!$I$8:$QJ$8, AJ$3, Calculations!$I$10:$QJ$10, AJ$4) -> -124311.4465 | AK20: =SUMIFS(Calculations!$I363:$QJ363, Calculations!$I$8:$QJ$8, AK$3, Calculations!$I$10:$QJ$10, AK$4) -> -123302.6152 | AL20: =SUMIFS(Calculations!$I363:$QJ363, Calculations!$I$8:$QJ$8, AL$3, Calculations!$I$10:$QJ$10, AL$4) -> -122263.2153 | AM20: =SUMIFS(Calculations!$I363:$QJ363, Calculations!$I$8:$QJ$8, AM$3, Calculations!$I$10:$QJ$10, AM$4) -> -121192.3206 | AN20: =SUMIFS(Calculations!$I363:$QJ363, Calculations!$I$8:$QJ$8, AN$3, Calculations!$I$10:$QJ$10, AN$4) -> -120088.9767 | AO20: =SUMIFS(Calculations!$I363:$QJ363, Calculations!$I$8:$QJ$8, AO$3, Calculations!$I$10:$QJ$10, AO$4) -> -118952.2004 | AP20: =SUMIFS(Calculations!$I363:$QJ363, Calculations!$I$8:$QJ$8, AP$3, Calculations!$I$10:$QJ$10, AP$4) -> -117780.9786 | AQ20: =SUMIFS(Calculations!$I363:$QJ363, Calculations!$I$8:$QJ$8, AQ$3, Calculations!$I$10:$QJ$10, AQ$4) -> -116574.2676 | AR20: =SUMIFS(Calculations!$I363:$QJ363, Calculations!$I$8:$QJ$8, AR$3, Calculations!$I$10:$QJ$10, AR$4) -> -115330.9921 | AS20: =SUMIFS(Calculations!$I363:$QJ363, Calculations!$I$8:$QJ$8, AS$3, Calculations!$I$10:$QJ$10, AS$4) -> -114050.044 | AT20: =SUMIFS(Calculations!$I363:$QJ363, Calculations!$I$8:$QJ$8, AT$3, Calculations!$I$10:$QJ$10, AT$4) -> -112730.282 | AU20: =SUMIFS(Calculations!$I363:$QJ363, Calculations!$I$8:$QJ$8, AU$3, Calculations!$I$10:$QJ$10, AU$4) -> -111370.5299 | AV20: =SUMIFS(Calculations!$I363:$QJ363, Calculations!$I$8:$QJ$8, AV$3, Calculations!$I$10:$QJ$10, AV$4) -> -109969.5759 | AW20: =SUMIFS(Calculations!$I363:$QJ363, Calculations!$I$8:$QJ$8, AW$3, Calculations!$I$10:$QJ$10, AW$4) -> -108526.1716 | AX20: =SUMIFS(Calculations!$I363:$QJ363, Calculations!$I$8:$QJ$8, AX$3, Calculations!$I$10:$QJ$10, AX$4) -> -107039.0307 | AY20: =SUMIFS(Calculations!$I363:$QJ363, Calculations!$I$8:$QJ$8, AY$3, Calculations!$I$10:$QJ$10, AY$4) -> -105506.828 | AZ20: =SUMIFS(Calculations!$I363:$QJ363, Calculations!$I$8:$QJ$8, AZ$3, Calculations!$I$10:$QJ$10, AZ$4) -> -103928.198 | BA20: =SUMIFS(Calculations!$I363:$QJ363, Calculations!$I$8:$QJ$8, BA$3, Calculations!$I$10:$QJ$10, BA$4) -> -102301.7339 | BB20: =SUMIFS(Calculations!$I363:$QJ363, Calculations!$I$8:$QJ$8, BB$3, Calculations!$I$10:$QJ$10, BB$4) -> -100625.9863 | BC20: =SUMIFS(Calculations!$I363:$QJ363, Calculations!$I$8:$QJ$8, BC$3, Calculations!$I$10:$QJ$10, BC$4) -> -98899.4619 | BD20: =SUMIFS(Calculations!$I363:$QJ363, Calculations!$I$8:$QJ$8, BD$3, Calculations!$I$10:$QJ$10, BD$4) -> -97120.62208 | BE20: =SUMIFS(Calculations!$I363:$QJ363, Calculations!$I$8:$QJ$8, BE$3, Calculations!$I$10:$QJ$10, BE$4) -> -95287.88164 | BF20: =SUMIFS(Calculations!$I363:$QJ363, Calculations!$I$8:$QJ$8, BF$3, Calculations!$I$10:$QJ$10, BF$4) -> -93399.60733 | BG20: =SUMIFS(Calculations!$I363:$QJ363, Calculations!$I$8:$QJ$8, BG$3, Calculations!$I$10:$QJ$10, BG$4) -> -91454.11642 | BH20: =SUMIFS(Calculations!$I363:$QJ363, Calculations!$I$8:$QJ$8, BH$3, Calculations!$I$10:$QJ$10, BH$4) -> -89449.67519 | BI20: =SUMIFS(Calculations!$I363:$QJ363, Calculations!$I$8:$QJ$8, BI$3, Calculations!$I$10:$QJ$10, BI$4) -> -87384.49739 | BJ20: =SUMIFS(Calculations!$I363:$QJ363, Calculations!$I$8:$QJ$8, BJ$3, Calculations!$I$10:$QJ$10, BJ$4) -> -85256.74263 | BK20: =SUMIFS(Calculations!$I363:$QJ363, Calculations!$I$8:$QJ$8, BK$3, Calculations!$I$10:$QJ$10, BK$4) -> -83064.51478 | BL20: =SUMIFS(Calculations!$I363:$QJ363, Calculations!$I$8:$QJ$8, BL$3, Calculations!$I$10:$QJ$10, BL$4) -> -80805.86023 | BM20: =SUMIFS(Calculations!$I363:$QJ363, Calculations!$I$8:$QJ$8, BM$3, Calculations!$I$10:$QJ$10, BM$4) -> -78478.76619 | BN20: =SUMIFS(Calculations!$I363:$QJ363, Calculations!$I$8:$QJ$8, BN$3, Calculations!$I$10:$QJ$10, BN$4) -> -76081.15888 | BO20: =SUMIFS(Calculations!$I363:$QJ363, Calculations!$I$8:$QJ$8, BO$3, Calculations!$I$10:$QJ$10, BO$4) -> -73610.90166 | BP20: =SUMIFS(Calculations!$I363:$QJ363, Calculations!$I$8:$QJ$8, BP$3, Calculations!$I$10:$QJ$10, BP$4) -> -71065.79318 | BQ20: =SUMIFS(Calculations!$I363:$QJ363, Calculations!$I$8:$QJ$8, BQ$3, Calculations!$I$10:$QJ$10, BQ$4) -> -68443.56537 | BR20: =SUMIFS(Calculations!$I363:$QJ363, Calculations!$I$8:$QJ$8, BR$3, Calculations!$I$10:$QJ$10, BR$4) -> -65741.88143 | BS20: =SUMIFS(Calculations!$I363:$QJ363, Calculations!$I$8:$QJ$8, BS$3, Calculations!$I$10:$QJ$10, BS$4) -> -62958.33377 | BT20: =SUMIFS(Calculations!$I363:$QJ363, Calculations!$I$8:$QJ$8, BT$3, Calculations!$I$10:$QJ$10, BT$4) -> -60090.44183 | BU20: =SUMIFS(Calculations!$I363:$QJ363, Calculations!$I$8:$QJ$8, BU$3, Calculations!$I$10:$QJ$10, BU$4) -> -57135.64989 | BV20: =SUMIFS(Calculations!$I363:$QJ363, Calculations!$I$8:$QJ$8, BV$3, Calculations!$I$10:$QJ$10, BV$4) -> -54091.32481 | BW20: =SUMIFS(Calculations!$I363:$QJ363, Calculations!$I$8:$QJ$8, BW$3, Calculations!$I$10:$QJ$10, BW$4) -> -50954.75363 | BX20: =SUMIFS(Calculations!$I363:$QJ363, Calculations!$I$8:$QJ$8, BX$3, Calculations!$I$10:$QJ$10, BX$4) -> -47723.14121 | BY20: =SUMIFS(Calculations!$I363:$QJ363, Calculations!$I$8:$QJ$8, BY$3, Calculations!$I$10:$QJ$10, BY$4) -> -44393.6077 | BZ20: =SUMIFS(Calculations!$I363:$QJ363, Calculations!$I$8:$QJ$8, BZ$3, Calculations!$I$10:$QJ$10, BZ$4) -> -40963.186 | CA20: =SUMIFS(Calculations!$I363:$QJ363, Calculations!$I$8:$QJ$8, CA$3, Calculations!$I$10:$QJ$10, CA$4) -> -37428.81908 | CB20: =SUMIFS(Calculations!$I363:$QJ363, Calculations!$I$8:$QJ$8, CB$3, Calculations!$I$10:$QJ$10, CB$4) -> -33787.35732 | CC20: =SUMIFS(Calculations!$I363:$QJ363, Calculations!$I$8:$QJ$8, CC$3, Calculations!$I$10:$QJ$10, CC$4) -> -30035.55562 | CD20: =SUMIFS(Calculations!$I363:$QJ363, Calculations!$I$8:$QJ$8, CD$3, Calculations!$I$10:$QJ$10, CD$4) -> -26170.07058 | CE20: =SUMIFS(Calculations!$I363:$QJ363, Calculations!$I$8:$QJ$8, CE$3, Calculations!$I$10:$QJ$10, CE$4) -> -22187.45748 | CF20: =SUMIFS(Calculations!$I363:$QJ363, Calculations!$I$8:$QJ$8, CF$3, Calculations!$I$10:$QJ$10, CF$4) -> -18084.16722 | CG20: =SUMIFS(Calculations!$I363:$QJ363, Calculations!$I$8:$QJ$8, CG$3, Calculations!$I$10:$QJ$10, CG$4) -> -13856.54316 | CH20: =SUMIFS(Calculations!$I363:$QJ363, Calculations!$I$8:$QJ$8, CH$3, Calculations!$I$10:$QJ$10, CH$4) -> -9500.817861 | CI20: =SUMIFS(Calculations!$I363:$QJ363, Calculations!$I$8:$QJ$8, CI$3, Calculations!$I$10:$QJ$10, CI$4) -> -5013.109732 | CJ20: =SUMIFS(Calculations!$I363:$QJ363, Calculations!$I$8:$QJ$8, CJ$3, Calculations!$I$10:$QJ$10, CJ$4) -> -389.4195583 | CK20: =SUMIFS(Calculations!$I363:$QJ363, Calculations!$I$8:$QJ$8, CK$3, Calculations!$I$10:$QJ$10, CK$4) -> 4374.373051 | CL20: =SUMIFS(Calculations!$I363:$QJ363, Calculations!$I$8:$QJ$8, CL$3, Calculations!$I$10:$QJ$10, CL$4) -> 9282.51334 | CM20: =SUMIFS(Calculations!$I363:$QJ363, Calculations!$I$8:$QJ$8, CM$3, Calculations!$I$10:$QJ$10, CM$4) -> 14339.37519 | CN20: =SUMIFS(Calculations!$I363:$QJ363, Calculations!$I$8:$QJ$8, CN$3, Calculations!$I$10:$QJ$10, CN$4) -> 19549.46501 | CO20: =SUMIFS(Calculations!$I363:$QJ363, Calculations!$I$8:$QJ$8, CO$3, Calculations!$I$10:$QJ$10, CO$4) -> 24917.42576 | CP20: =SUMIFS(Calculations!$I363:$QJ363, Calculations!$I$8:$QJ$8, CP$3, Calculations!$I$10:$QJ$10, CP$4) -> 30448.04109 | CQ20: =SUMIFS(Calculations!$I363:$QJ363, Calculations!$I$8:$QJ$8, CQ$3, Calculations!$I$10:$QJ$10, CQ$4) -> 36146.23959 | CR20: =SUMIFS(Calculations!$I363:$QJ363, Calculations!$I$8:$QJ$8, CR$3, Calculations!$I$10:$QJ$10, CR$4) -> 42017.09921 | CS20: =SUMIFS(Calculations!$I363:$QJ363, Calculations!$I$8:$QJ$8, CS$3, Calculations!$I$10:$QJ$10, CS$4) -> 48065.85174 | CT20: =SUMIFS(Calculations!$I363:$QJ363, Calculations!$I$8:$QJ$8, CT$3, Calculations!$I$10:$QJ$10, CT$4) -> 54297.88753 | CU20: =SUMIFS(Calculations!$I363:$QJ363, Calculations!$I$8:$QJ$8, CU$3, Calculations!$I$10:$QJ$10, CU$4) -> 60718.76023 | CV20: =SUMIFS(Calculations!$I363:$QJ363, Calculations!$I$8:$QJ$8, CV$3, Calculations!$I$10:$QJ$10, CV$4) -> 67334.19179 | CW20: =SUMIFS(Calculations!$I363:$QJ363, Calculations!$I$8:$QJ$8, CW$3, Calculations!$I$10:$QJ$10, CW$4) -> 74150.07755 | CX20: =SUMIFS(Calculations!$I363:$QJ363, Calculations!$I$8:$QJ$8, CX$3, Calculations!$I$10:$QJ$10, CX$4) -> 81172.49146 | CY20: =SUMIFS(Calculations!$I363:$QJ363, Calculations!$I$8:$QJ$8, CY$3, Calculations!$I$10:$QJ$10, CY$4) -> 88407.69154 | CZ20: =SUMIFS(Calculations!$I363:$QJ363, Calculations!$I$8:$QJ$8, CZ$3, Calculations!$I$10:$QJ$10, CZ$4) -> 95862.12541 | DA20: =SUMIFS(Calculations!$I363:$QJ363, Calculations!$I$8:$QJ$8, DA$3, Calculations!$I$10:$QJ$10, DA$4) -> 103542.4361 | DB20: =SUMIFS(Calculations!$I363:$QJ363, Calculations!$I$8:$QJ$8, DB$3, Calculations!$I$10:$QJ$10, DB$4) -> 111455.4678 | DC20: =SUMIFS(Calculations!$I363:$QJ363, Calculations!$I$8:$QJ$8, DC$3, Calculations!$I$10:$QJ$10, DC$4) -> 38427.90987 | DD20: =SUMIFS(Calculations!$I363:$QJ363, Calculations!$I$8:$QJ$8, DD$3, Calculations!$I$10:$QJ$10, DD$4) -> 0 | DE20: =SUMIFS(Calculations!$I363:$QJ363, Calculations!$I$8:$QJ$8, DE$3, Calculations!$I$10:$QJ$10, DE$4) -> 0 | DF20: =SUMIFS(Calculations!$I363:$QJ363, Calculations!$I$8:$QJ$8, DF$3, Calculations!$I$10:$QJ$10, DF$4) -> 0 | DG20: =SUMIFS(Calculations!$I363:$QJ363, Calculations!$I$8:$QJ$8, DG$3, Calculations!$I$10:$QJ$10, DG$4) -> 0 | DH20: =SUMIFS(Calculations!$I363:$QJ363, Calculations!$I$8:$QJ$8, DH$3, Calculations!$I$10:$QJ$10, DH$4) -> 0 | DI20: =SUMIFS(Calculations!$I363:$QJ363, Calculations!$I$8:$QJ$8, DI$3, Calculations!$I$10:$QJ$10, DI$4) -> 0 | DJ20: =SUMIFS(Calculations!$I363:$QJ363, Calculations!$I$8:$QJ$8, DJ$3, Calculations!$I$10:$QJ$10, DJ$4) -> 0 | DK20: =SUMIFS(Calculations!$I363:$QJ363, Calculations!$I$8:$QJ$8, DK$3, Calculations!$I$10:$QJ$10, DK$4) -> 0
